Workbook

Sheet Front
I5: Gold mining tax model for Tanzania
I6: Last updated 18 June 2020
B10: Purpose
B15: Table of contents
B17: Results | C17: The main results of the model are presented in this sheet.
B18: Inputs | C18: The inputs for the model are set out in this sheet, and can be changed by the user.
B19: Model | C19: The calculation of investor returns and government revenues for the modeled project takes place in this sheet. Additional results are also presented here.
B21: Relation to IMF's FARI model
B27: Sources
B31: Disclaimer
J42: This work is licensed under the Creative Commons Attribution 4.0 International License.
J43: To view a copy of this license, visit http://creativecommons.org/licenses/by/4.0/

Sheet Results
B2: Results dashboard | H2: Chosen mine profile: | K2: =Inputs!E193 -> Large gold mine
B5: Summary assumptions | C5: units
B6: Produced reserves | C6: =Inputs!D196 -> ounces | D6: =SUM(Model!G12:BD12) -> 6000000
B7: Production starts | C7: year | D7: =Model!$C$34 -> 3
B8: Production life | C8: year | D8: =MAX(Model!G32:BD32) -> 25
B9: Development costs | C9: $m | D9: =Inputs!B201 -> 420
B10: Production to DEV CAPEX | C10: =Inputs!D196&"/$m" -> ounces/$m | D10: =D6/D9 -> 14285.71429
B11: Mineral Price | C11: ="$/"&Inputs!D196 -> $/ounces | D11: =Inputs!$F$187 -> 1400
B12: Operating cost per unit | C12: ="$/"&Inputs!D196 -> $/ounces | D12: =Inputs!E248 -> 485
B13: Transport and TC/RC | C13: ="$/"&Inputs!D196 -> $/ounces | D13: =((Inputs!B198+Inputs!B197)*1000000)/Inputs!B196 -> 5
B14: C1 cash cost less royalties | C14: ="$/"&Inputs!D196 -> $/ounces | D14: =D13+D12 -> 490
B15: Total C1 cash costs | C15: ="$/"&Inputs!D196 -> $/ounces | D15: =D12+(SUM(Model!C598:C601)*1000000/Model!C12)+D13 -> 553.63875
B16: Discount rate (government) | C16: % | D16: =Inputs!E178 -> 0.1
B17: Discount rate (investors) | C17: % | D17: =Inputs!E179 -> 0.125
B18: Inflation | C18: % | D18: =Inputs!E180 -> 0.02
B19: Real interest rate | C19: % | D19: =Inputs!E176 -> 0.05
B20: Leverage (equity/total assets) | C20: % | D20: =Inputs!E174 -> 0.7
B22: Summary results | C22: units
B23: Project pre-tax net cashflow (discounted) | C23: $m | D23: =Model!C28 -> 1419.866584
B24: Pre-tax project IRR | C24: % | D24: =Model!C27 -> 0.5453551743
B25: Post-tax IRR | C25: % | D25: =Model!C569 -> 0.3919599732
B26: Investor hurdle | C26: % | D26: =D17 -> 0.125
B27: IRR above hurdle? | D27: =D25>D26 -> TRUE
B28: Payback period (not discounted) | C28: years | D28: =Model!C475 -> 3.936474693
B29: Payback period (discounted) | C29: years | D29: =Model!C480 -> 4.278302959
B30: AETR (undiscounted) | D30: =Model!G578 -> 0.4290011982
B31: AETR (discounted at 10%) | D31: =Model!I578 -> 0.4534389126
B34: "Press for results" to compare a new selection of fiscal regimes or after changing project assumptions. Use "Select Data" in each graph to adjust axis lengths and selected data fields. For example, to focus on different fiscal regimes.
B36: Overall government take
B78: Timing of revenues
B100: Progressivity as profits change
B142: Tax base simplicity
B164: Tables used to populate charts - DO NOT TOUCH
B166: AETR | E166: Pasted and re-ordered by macro
C167: AETR | F167: AETR
B168: =TRANSPOSE(Model!G739:Q739) -> Tanzania pre-2017 amendments | C168: =TRANSPOSE(Model!G743:Q743) -> 0.4534389126 | E168: Peru | F168: 0.4261427614
B169: Tanzania 2017 | C169: 0.6310848007 | E169: Tanzania pre-2017 amendments | F169: 0.4534389126
B170: Tanzania 2020 | C170: 0.5705579304 | E170: Zimbabwe (ordinary mining license) | F170: 0.4708335804
B171: DRC | C171: 0.5326413034 | E171: Mali 2019 | F171: 0.5198085649
B172: Ghana | C172: 0.5409765692 | E172: DRC | F172: 0.5326413034
B173: Guinea | C173: 0.5393748223 | E173: Guinea | F173: 0.5393748223
B174: Mali 2019 | C174: 0.5198085649 | E174: South Africa (gold) | F174: 0.5398328241
B175: South Africa (gold) | C175: 0.5398328241 | E175: Ghana | F175: 0.5409765692
B176: Zimbabwe (ordinary mining license) | C176: 0.4708335804 | E176: Tanzania 2020 | F176: 0.5705579304
B177: Indonesia | C177: 0.5730408125 | E177: Indonesia | F177: 0.5730408125
B178: Peru | C178: 0.4261427614 | E178: Tanzania 2017 | F178: 0.6310848007
B181: METR and break-even price
C182: Breakeven | D182: METR
B183: Peru | C183: 753.2913602 | D183: 0.2413316284
B184: Zimbabwe (ordinary mining license) | C184: 787.1847997 | D184: 0.3392784343
B185: DRC | C185: 799.6719103 | D185: 0.3684871806
B186: Tanzania pre-2017 amendments | C186: 800.4270865 | D186: 0.3701588229 | L186: `
B187: South Africa (gold) | C187: 801.6138489 | D187: 0.3727653027
B188: Mali 2019 | C188: 807.6713843 | D188: 0.3856917007
B189: Guinea | C189: 809.2899642 | D189: 0.3890425725
B190: Ghana | C190: 817.4646104 | D190: 0.4053435393
B191: Tanzania 2020 | C191: 838.7328997 | D191: 0.4434328503
B192: Indonesia | C192: 846.3947868 | D192: 0.4558243428
B193: Tanzania 2017 | C193: 938.3708194 | D193: 0.5671028735
B195: Profile of government revenue - comparing regimes (NPV10)
C197: PV | D197: Share
B198: =Model!D596 -> Signature bonus | C198: =Model!C596 -> 0 | D198: =C198/$C$213 -> 0
B199: =Model!D597 -> Import duties | C199: =Model!C597 -> 92.4375 | D199: 0.0436618898
B200: =Model!D598 -> VAT | C200: =Model!C598 -> 0 | D200: 0
B201: =Model!D599 -> Skills development levy | C201: =Model!C599 -> 45.8325 | D201: 0.02164850374
B202: =Model!D600 -> Royalty | C202: =Model!C600 -> 336 | D202: 0.1587060984
B203: =Model!D601 -> Variable rate royalty | C203: =Model!C601 -> 0 | D203: 0
B204: =Model!D602 -> South Africa variable royalty | C204: =Model!C602 -> 0 | D204: 0
B205: =Model!D603 -> Operating profit tax | C205: =Model!C603 -> 0 | D205: 0
B206: =Model!D604 -> DRC excess profits tax | C206: =Model!C604 -> 0 | D206: =C206/$C$213 -> 0
B207: =Model!D605 -> Corporate income tax | C207: =Model!C605 -> 1328.523465 | D207: 0.6275142134
B208: =Model!D606 -> Resource rent tax | C208: =Model!C606 -> 0 | D208: 0
B209: =Model!D607 -> South Africa gold profit tax | C209: =Model!C607 -> 0 | D209: 0
B210: =Model!D609 -> Dividends to state | C210: =Model!C609 -> 0 | D210: 0
B211: =Model!D610 -> Dividend withholding tax | C211: =Model!C610 -> 307.6612688 | D211: 0.145320594
B212: =Model!D611 -> Interest withholding tax | C212: =Model!C611 -> 6.666179834 | D212: 0.003148700574
B213: =Model!D613 -> Total government revenue | C213: =Model!C613 -> 2117.120913 | D213: 1
C219: Coefficient of variation
B220: Tanzania 2017 | C220: 0.535884811
B221: Tanzania 2020 | C221: 0.6502272742
B222: Tanzania pre-2017 amendments | C222: 0.6758951936
B223: Mali 2019 | C223: 0.6791174061
B224: Guinea | C224: 0.6798169271
B225: Ghana | C225: 0.6816316494
B226: Indonesia | C226: 0.6876341089
B227: Zimbabwe (ordinary mining license) | C227: 0.7187546287
B228: South Africa (gold) | C228: 0.7211465175
B229: DRC | C229: 0.7644320409
B230: Peru | C230: 0.7667905909
C233: Minus 20% ($mm) | D233: Plus 20% ($mm)
B234: Tanzania 2017 | C234: -182.5804322 | D234: 213.0417655
B235: Tanzania pre-2017 amendments | C235: -197.6355353 | D235: 213.5956585
B236: Guinea | C236: -197.7526589 | D236: 211.9773177
B237: Tanzania 2020 | C237: -200.027113 | D237: 218.009494
B238: DRC | C238: -203.3270941 | D238: 230.6980633
B239: Mali 2019 | C239: -204.5984753 | D239: 216.0760079
B240: Ghana | C240: -205.2769482 | D240: 231.112138
B241: Peru | C241: -211.550991 | D241: 219.307795
B242: Zimbabwe (ordinary mining license) | C242: -216.4403228 | D242: 230.5101273
B243: South Africa (gold) | C243: -251.6334797 | D243: 270.8938118
B244: Indonesia | C244: -258.4931451 | D244: 268.1816501

Sheet Inputs
B2: Inputs
C5: Choose primary mineral
C6: Gold | D6: =MATCH(C6,Lists!$B$3:$B$11,0) -> 1
C7: Choose co-product
C8: Copper | D8: =MATCH(C8,Lists!$B$3:$B$11,0) -> 2
C10: Main components of tax regime
C11: Our current set of tax regimes can be found in a table to the right of this section. Revisions can be made to these regimes, and new regimes added, in this table.
C12: "Select tax regime" of focus from the adjacent table. The other regimes will be used as comparators. To include an alternative regime, type its name into one of the yellow cells (G15:Q15). | U12: TAX REGIMES TO SELECT FROM
L13: --- Fiscal regime comparators in use ---
C14: SELECT TAX REGIME | E14: 1 | G14: 1 | H14: 2 | I14: 3 | J14: 4 | K14: 5 | L14: 6 | M14: 7 | N14: 8 | O14: 9 | P14: 10 | Q14: 11 | AB14: 1 | AC14: 2 | AD14: 3 | AE14: 4 | AF14: 5 | AG14: 6 | AH14: 7 | AI14: 8 | AJ14: 9 | AK14: 10 | AL14: 11 | AM14: 12 | AN14: 13 | AO14: 14 | AP14: 15 | AQ14: 16 | AR14: 17 | AS14: 18 | AT14: 19 | AU14: 20 | AV14: 21 | AW14: 22 | AX14: 23 | AY14: 24 | AZ14: 25 | BA14: 26 | BB14: 27 | BC14: 28 | BD14: 29 | BE14: 30
C15: Regime name | E15: =INDEX(G15:Q15,$E$14) -> Tanzania pre-2017 amendments | G15: Tanzania pre-2017 amendments | H15: Tanzania 2017 | I15: Tanzania 2020 | J15: DRC | K15: Ghana | L15: Guinea | M15: Mali 2019 | N15: South Africa (gold) | O15: Zimbabwe (ordinary mining license) | P15: Indonesia | Q15: Peru | U15: Regime name | AB15: Tanzania 1998 | AC15: Tanzania pre-2017 amendments | AD15: Tanzania 2017 | AE15: Tanzania 2020 | AF15: Burkina Faso | AG15: DRC | AH15: Ghana | AI15: Guinea | AJ15: Mali 2018 | AK15: Mali 2019 | AL15: South Africa (gold) | AM15: South Africa (non-gold) | AN15: Zambia (gold) | AO15: Zambia (non-gold) | AP15: Zimbabwe (ordinary mining license) | AQ15: Zimbabwe (special mining license) | AR15: Brazil | AS15: Chile | AT15: Indonesia | AU15: Kazakhstan | AV15: Kyrgyz Republic | AW15: Philippines | AX15: Peru | AY15: Western Australia
G16: =MATCH(G15,$AB$15:$BE$15,0) -> 2 | H16: =MATCH(H15,$AB$15:$BE$15,0) -> 3 | I16: 4 | J16: 6 | K16: 7 | L16: 8 | M16: 10 | N16: 11 | O16: 15 | P16: 19 | Q16: 23
C17: Signature bonus | D17: $mm | E17: =INDEX(G17:Q17,Model!$E$886) -> 0 | G17: =INDEX($AB17:$BE17,G$16) -> 0 | H17: 0 | I17: 0 | J17: 0 | K17: 0 | L17: 0 | M17: 0 | N17: 0 | O17: 0 | P17: 0 | Q17: 0 | U17: Signature bonus | AA17: $mm | AB17: 0 | AC17: 0 | AD17: 0 | AE17: 0 | AF17: 0 | AG17: 0 | AH17: 0 | AI17: 0 | AJ17: 0 | AK17: 0 | AL17: 0 | AM17: 0 | AN17: 0 | AO17: 0 | AP17: 0 | AQ17: 0 | AR17: 0 | AS17: 0 | AT17: 0 | AU17: 0 | AV17: 0 | AW17: 0 | AX17: 0 | AY17: 0
C18: Input taxes | U18: Input taxes
C19: Import duty rate 1 | D19: % | E19: =INDEX(G19:Q19,Model!$E$886) -> 0.05 | G19: =INDEX($AB19:$BE19,G$16) -> 0.05 | H19: 0.05 | I19: 0.05 | J19: 0.05 | K19: 0 | L19: 0 | M19: 0 | N19: 0.058 | O19: 0 | P19: 0.069 | Q19: 0 | U19: Import duty rate 1 | AA19: % | AB19: 0 | AC19: 0.05 | AD19: 0.05 | AE19: 0.05 | AF19: 0.025 | AG19: 0.05 | AH19: 0 | AI19: 0 | AJ19: 0 | AK19: 0 | AL19: 0.058 | AM19: 0.058 | AN19: 0 | AO19: 0 | AP19: 0 | AQ19: 0 | AR19: 0.06 | AS19: 0.06 | AT19: 0.069 | AU19: 0.05 | AV19: 0.05 | AW19: 0 | AX19: 0 | AY19: 0.05
C20: Import duty rate 2 | D20: % | E20: =INDEX(G20:Q20,Model!$E$886) -> 0 | G20: 0 | H20: 0 | I20: 0 | J20: 0 | K20: 0 | L20: 0.065 | M20: 0.075 | N20: 0 | O20: 0 | P20: 0 | Q20: 0 | U20: Import duty rate 2 | AA20: % | AB20: 0.05 | AF20: 0.075 | AI20: 0.065 | AJ20: 0.075 | AK20: 0.075
C21: Production year that rate changes: where 0 is no rate change | D21: years | E21: =INDEX(G21:Q21,Model!$E$886) -> 0 | G21: 0 | H21: 0 | I21: 0 | J21: 0 | K21: 0 | L21: 1 | M21: 4 | N21: 0 | O21: 0 | P21: 0 | Q21: 0 | U21: Production year that rate changes | AA21: years | AB21: 2 | AF21: 1 | AI21: 1 | AJ21: 4 | AK21: 4
C22: VAT on inputs | D22: % | E22: =INDEX(G22:Q22,Model!$E$886) -> 0 | G22: 0 | H22: 0.18 | I22: 0 | J22: 0 | K22: 0.05 | L22: 0 | M22: 0 | N22: 0 | O22: 0 | P22: 0 | Q22: 0 | U22: VAT on inputs | AA22: % | AB22: 0 | AC22: 0 | AD22: 0.18 | AE22: 0 | AF22: 0 | AG22: 0 | AH22: 0.05 | AI22: 0 | AJ22: 0 | AK22: 0 | AL22: 0 | AM22: 0 | AN22: 0 | AO22: 0 | AP22: 0 | AQ22: 0 | AR22: 0 | AS22: 0 | AT22: 0 | AU22: 0 | AV22: 0 | AW22: 0 | AX22: 0 | AY22: 0
C23: Skills development levy rate 1 | D23: % | E23: =INDEX(G23:Q23,Model!$E$886) -> 0.045 | G23: 0.045 | H23: =INDEX($AB23:$BE23,H$16) -> 0.045 | I23: 0.04 | J23: 0 | K23: 0 | L23: 0 | M23: 0 | N23: 0.01 | O23: 0.01 | P23: 0 | Q23: 0 | U23: Skills development levy rate 1 | AA23: % | AB23: 0.02 | AC23: 0.045 | AD23: 0.045 | AE23: 0.04 | AF23: 0 | AG23: 0 | AH23: 0 | AI23: 0 | AJ23: 0 | AK23: 0 | AL23: 0.01 | AM23: 0.01 | AN23: 0.005 | AO23: 0.005 | AP23: 0.01 | AQ23: 0.01 | AR23: 0.025 | AS23: 0 | AT23: 0 | AU23: 0 | AV23: 0 | AW23: 0 | AX23: 0 | AY23: 0
C24: Skills development levy rate 2 | D24: % | E24: =INDEX(G24:Q24,Model!$E$886) -> 0 | G24: 0 | H24: 0 | I24: 0 | J24: 0 | K24: 0 | L24: 0 | M24: 0 | N24: 0 | O24: 0 | P24: 0 | Q24: 0 | U24: Skills development levy rate 2 | AA24: % | AF24: 0.03
C25: Production year that rate changes: where 0 is no rate change | D25: years | E25: =INDEX(G25:Q25,Model!$E$886) -> 0 | G25: 0 | H25: 0 | I25: 0 | J25: 0 | K25: 0 | L25: 0 | M25: 0 | N25: 0 | O25: 0 | P25: 0 | Q25: 0 | U25: Production year that rate changes | AA25: years | AF25: 8
C26: Sales taxes | U26: Sales taxes
C27: Royalty (gold) | D27: % | E27: =INDEX(G27:Q27,Model!$E$886) -> 0.04 | G27: 0.04 | H27: 0.06 | I27: 0.06 | J27: 0.035 | K27: 0.05 | L27: 0.05 | M27: 0.06 | N27: 0 | O27: 0.05 | P27: 0.0375 | Q27: 0 | U27: Royalty (gold) | AA27: % | AB27: 0.03 | AC27: 0.04 | AD27: 0.06 | AE27: 0.06 | AF27: 0 | AG27: 0.035 | AH27: 0.05 | AI27: 0.05 | AJ27: 0.06 | AK27: 0.06 | AL27: 0 | AM27: 0 | AN27: 0.06 | AO27: 0.06 | AP27: 0.05 | AQ27: 0.05 | AR27: 0.015 | AS27: 0 | AT27: 0.0375 | AU27: 0.05 | AV27: 0.07 | AW27: 0.07 | AX27: 0 | AY27: 0.025
C28: Royalty (copper) | D28: % | E28: =INDEX(G28:Q28,Model!$E$886) -> 0.04 | G28: 0.04 | H28: 0.06 | I28: 0.06 | J28: 0.035 | K28: 0.05 | L28: 0.03 | M28: 0 | N28: 0 | O28: 0.02 | P28: 0.04 | Q28: 0 | U28: Royalty (copper) | AA28: % | AB28: 0.03 | AC28: 0.04 | AD28: 0.06 | AE28: 0.06 | AF28: 0.03 | AG28: 0.035 | AH28: 0.05 | AI28: 0.03 | AL28: 0 | AM28: 0 | AN28: 0 | AO28: 0 | AP28: 0.02 | AQ28: 0.02 | AR28: 0.02 | AS28: 0 | AT28: 0.04 | AU28: 0.05 | AV28: 0.07 | AW28: 0.07 | AX28: 0 | AY28: 0.025
C29: Royalty (cobalt) | D29: % | E29: =INDEX(G29:Q29,Model!$E$886) -> 0.04 | G29: 0.04 | H29: 0.06 | I29: 0.06 | J29: 0.1 | K29: 0.05 | L29: 0.03 | M29: 0 | N29: 0 | O29: 0.02 | P29: 0.04 | Q29: 0 | U29: Royalty (cobalt) | AA29: % | AB29: 0.03 | AC29: 0.04 | AD29: 0.06 | AE29: 0.06 | AF29: 0.03 | AG29: 0.1 | AH29: 0.05 | AI29: 0.03 | AL29: 0 | AM29: 0 | AN29: 0.08 | AO29: 0.08 | AP29: 0.02 | AQ29: 0.02 | AR29: 0.02 | AS29: 0 | AT29: 0.04 | AU29: 0.05 | AV29: 0.05 | AW29: 0.07 | AX29: 0 | AY29: 0.025
C30: Royalty (nickel) | D30: % | E30: =INDEX(G30:Q30,Model!$E$886) -> 0.04 | G30: 0.04 | H30: 0.06 | I30: 0.06 | J30: 0 | K30: 0 | L30: 0 | M30: 0 | N30: 0 | O30: 0.02 | P30: 0.04 | Q30: 0 | U30: Royalty (nickel) | AA30: % | AB30: 0.03 | AC30: 0.04 | AD30: 0.06 | AE30: 0.06 | AF30: 0.03 | AL30: 0 | AM30: 0 | AN30: 0.05 | AO30: 0.05 | AP30: 0.02 | AQ30: 0.02 | AR30: 0.02 | AT30: 0.04 | AU30: 0.05 | AW30: 0.07 | AY30: 0.025
C31: Royalty base: netback/gross | D31: switch | E31: =INDEX(G31:Q31,Model!$E$886) -> gross | G31: gross | H31: gross | I31: gross | J31: gross | K31: gross | L31: gross | M31: net | N31: gross | O31: gross | P31: net | Q31: gross | U31: Royalty base: netback/gross | AA31: switch | AB31: net | AC31: gross | AD31: gross | AE31: gross | AF31: gross | AG31: gross | AH31: gross | AI31: gross | AJ31: net | AK31: net | AL31: gross | AM31: gross | AN31: gross | AO31: gross | AP31: gross | AQ31: gross | AR31: gross | AS31: gross | AT31: net | AU31: gross | AV31: gross | AW31: gross | AX31: gross | AY31: gross
C32: Variable rate royalty - revenue based: see schedules 1-6 below, where schedule 1 is no tax | D32: switch | E32: =INDEX(G32:Q32,Model!$E$886) -> 1 | G32: 1 | H32: 1 | I32: 1 | J32: 1 | K32: 1 | L32: 1 | M32: 1 | N32: 1 | O32: 1 | P32: 1 | Q32: 1 | U32: Variable rate royalty - revenue based: see schedules 1-6 below, where schedule 1 is no tax | AA32: switch | AB32: 1 | AC32: 1 | AD32: 1 | AE32: 1 | AF32: 1 | AG32: 1 | AH32: 1 | AI32: 1 | AJ32: 1 | AK32: 1 | AL32: 1 | AM32: 1 | AN32: 1 | AO32: 1 | AP32: 1 | AQ32: 1 | AR32: 1 | AS32: 1 | AT32: 1 | AU32: 1 | AV32: 1 | AW32: 1 | AX32: 1 | AY32: 1
C33: Variable rate royalty - price based: see schedules 1-6 below, where schedule 1 is no tax | D33: switch | E33: =INDEX(G33:Q33,Model!$E$886) -> 1 | G33: 1 | H33: 1 | I33: 1 | J33: 1 | K33: 1 | L33: 1 | M33: 1 | N33: 1 | O33: 1 | P33: 1 | Q33: 1 | U33: Variable rate royalty - price based: see schedules 1-6 below, where schedule 1 is no tax | AA33: switch | AB33: 1 | AC33: 1 | AD33: 1 | AE33: 1 | AF33: 2 | AG33: 1 | AH33: 1 | AI33: 1 | AJ33: 1 | AK33: 1 | AL33: 1 | AM33: 1 | AN33: 1 | AO33: 3 | AP33: 1 | AQ33: 1 | AR33: 1 | AS33: 1 | AT33: 1 | AU33: 1 | AV33: 4 | AW33: 1 | AX33: 1 | AY33: 1
C34: Variable rate royalty - price based: not marginal=1, marginal=2 | D34: switch | E34: =INDEX(G34:Q34,Model!$E$886) -> 1 | G34: 1 | H34: 1 | I34: 1 | J34: 1 | K34: 1 | L34: 1 | M34: 1 | N34: 1 | O34: 1 | P34: 1 | Q34: 1 | U34: Variable rate royalty - price based: not marginal=1, marginal=2 | AA34: switch | AB34: 1 | AC34: 1 | AD34: 1 | AE34: 1 | AF34: 1 | AG34: 1 | AH34: 1 | AI34: 1 | AJ34: 1 | AK34: 1 | AL34: 1 | AM34: 1 | AN34: 1 | AO34: 1 | AP34: 1 | AQ34: 1 | AR34: 1 | AS34: 1 | AT34: 1 | AU34: 1 | AV34: 1 | AW34: 1 | AX34: 1 | AY34: 1
C35: South Africa variable rate royalty: off=0, on=1 | D35: switch | E35: =INDEX(G35:Q35,Model!$E$886) -> 0 | G35: 0 | H35: 0 | I35: 0 | J35: 0 | K35: 0 | L35: 0 | M35: 0 | N35: 1 | O35: 0 | P35: 0 | Q35: 0 | U35: South Africa variable rate royalty: off=0, on=1 | AA35: switch | AB35: 0 | AC35: 0 | AD35: 0 | AE35: 0 | AF35: 0 | AG35: 0 | AH35: 0 | AI35: 0 | AJ35: 0 | AK35: 0 | AL35: 1 | AM35: 1 | AN35: 0 | AO35: 0 | AP35: 0 | AQ35: 0 | AR35: 0 | AS35: 0 | AT35: 0 | AU35: 0 | AV35: 0 | AW35: 0 | AX35: 0 | AY35: 0
C36: Schedule: schedules 1-3 further below | D36: switch | E36: =INDEX(G36:Q36,Model!$E$886) -> 1 | G36: 1 | H36: 1 | I36: 1 | J36: 1 | K36: 1 | L36: 1 | M36: 1 | N36: 2 | O36: 1 | P36: 1 | Q36: 1 | U36: Schedule: schedules 1-3 further below | AA36: switch | AB36: 1 | AC36: 1 | AD36: 1 | AE36: 1 | AF36: 1 | AG36: 1 | AH36: 1 | AI36: 1 | AJ36: 1 | AK36: 1 | AL36: 2 | AM36: 2 | AN36: 1 | AO36: 1 | AP36: 1 | AQ36: 1 | AR36: 1 | AS36: 1 | AT36: 1 | AU36: 1 | AV36: 1 | AW36: 1 | AX36: 1 | AY36: 1
C37: Export duty/clearance fee | D37: % | E37: =INDEX(G37:Q37,Model!$E$886) -> 0 | G37: 0 | H37: 0.01 | I37: 0.01 | J37: 0 | K37: 0 | L37: 0 | M37: 0 | N37: 0 | O37: 0 | P37: 0 | Q37: 0 | U37: Export duty/clearance fee | AA37: % | AB37: 0 | AC37: 0 | AD37: 0.01 | AE37: 0.01 | AF37: 0 | AG37: 0 | AH37: 0 | AI37: 0 | AJ37: 0 | AK37: 0 | AL37: 0 | AM37: 0 | AN37: 0.15 | AO37: 0 | AP37: 0 | AQ37: 0 | AR37: 0 | AS37: 0 | AT37: 0 | AU37: 0 | AV37: 0 | AW37: 0 | AX37: 0 | AY37: 0
C38: Operating profit taxes | U38: Operating profit taxes
C39: Operating profit tax: see schedules 1 to 6, where schedule 1 is no tax | D39: switch | E39: =INDEX(G39:Q39,Model!$E$886) -> 1 | G39: 1 | H39: 1 | I39: 1 | J39: 1 | K39: 1 | L39: 1 | M39: 1 | N39: 1 | O39: 1 | P39: 1 | Q39: 3 | U39: Operating profit tax: see schedules 1 to 6, where schedule 1 is no tax | AA39: switch | AB39: 1 | AC39: 1 | AD39: 1 | AE39: 1 | AF39: 1 | AG39: 1 | AH39: 1 | AI39: 1 | AJ39: 1 | AK39: 1 | AL39: 1 | AM39: 1 | AN39: 1 | AO39: 1 | AP39: 1 | AQ39: 1 | AR39: 1 | AS39: 2 | AT39: 1 | AU39: 1 | AV39: 1 | AW39: 1 | AX39: 3 | AY39: 1
C40: DRC excess profits tax rate | D40: % | E40: =INDEX(G40:Q40,Model!$E$886) -> 0 | G40: 0 | H40: 0 | I40: 0 | J40: 0.5 | K40: 0 | L40: 0 | M40: 0 | N40: 0 | O40: 0 | P40: 0 | Q40: 0 | U40: DRC excess profits tax rate | AA40: % | AG40: 0.5
C41: Threshold | D41: % | E41: =INDEX(G41:Q41,Model!$E$886) -> 0 | G41: 0 | H41: 0 | I41: =INDEX($AB41:$BE41,I$16) -> 0 | J41: 0.25 | K41: 0 | L41: 0 | M41: 0 | N41: 0 | O41: 0 | P41: 0 | Q41: 0 | U41: Threshold | AA41: % | AG41: 0.25
C42: Corporate income tax | U42: Corporate income tax
C43: Corporate income tax rate 1 | D43: % | E43: =INDEX(G43:Q43,Model!$E$886) -> 0.3 | G43: =INDEX($AB43:$BE43,G$16) -> 0.3 | H43: 0.3 | I43: 0.3 | J43: 0.3 | K43: 0.35 | L43: 0.3 | M43: 0.25 | N43: 0 | O43: 0.28 | P43: 0.35 | Q43: 0.295 | U43: Corporate income tax rate 1 | AA43: % | AB43: 0.3 | AC43: 0.3 | AD43: 0.3 | AE43: 0.3 | AF43: 0.275 | AG43: 0.3 | AH43: 0.35 | AI43: 0.3 | AJ43: 0.25 | AK43: 0.25 | AL43: 0 | AM43: 0.28 | AN43: 0.3 | AO43: 0.3 | AP43: 0.28 | AQ43: 0.18 | AR43: 0.34 | AS43: 0.25 | AT43: 0.35 | AU43: 0.2 | AV43: 0 | AW43: 0.3 | AX43: 0.295 | AY43: 0.3
C44: Corporate income tax rate 2 | D44: % | E44: =INDEX(G44:Q44,Model!$E$886) -> 0 | G44: 0 | H44: 0 | I44: 0 | J44: 0 | K44: 0 | L44: 0 | M44: 0.3 | N44: 0 | O44: 0 | P44: 0 | Q44: 0 | U44: Corporate income tax rate 2 | AA44: % | AJ44: 0.3 | AK44: 0.3
C45: Production year that rate changes: where 0 is no rate change | D45: years | E45: =INDEX(G45:Q45,Model!$E$886) -> 0 | G45: 0 | H45: 0 | I45: 0 | J45: 0 | K45: 0 | L45: 0 | M45: 4 | N45: 0 | O45: 0 | P45: 0 | Q45: 0 | U45: Production year that rate changes | AA45: years | AJ45: 16 | AK45: 4
C46: Exploration costs (expensed): immediate/deferred | D46: switch | E46: =INDEX(G46:Q46,Model!$E$886) -> deferred | G46: deferred | H46: deferred | I46: deferred | J46: deferred | K46: deferred | L46: deferred | M46: deferred | N46: deferred | O46: deferred | P46: deferred | Q46: deferred | U46: Exploration costs (expensed): immediate/deferred | AA46: switch | AB46: deferred | AC46: deferred | AD46: deferred | AE46: deferred | AF46: deferred | AG46: deferred | AH46: deferred | AI46: deferred | AJ46: deferred | AK46: deferred | AL46: deferred | AM46: deferred | AN46: deferred | AO46: deferred | AP46: deferred | AQ46: deferred | AR46: deferred | AS46: deferred | AT46: deferred | AU46: deferred | AW46: deferred | AX46: deferred | AY46: deferred
C47: Development costs - intangibles (expensed): immediate/deferred | D47: switch | E47: =INDEX(G47:Q47,Model!$E$886) -> deferred | G47: deferred | H47: deferred | I47: deferred | J47: deferred | K47: deferred | L47: deferred | M47: deferred | N47: deferred | O47: deferred | P47: deferred | Q47: deferred | U47: Development costs - intangibles (expensed): immediate/deferred | AA47: switch | AB47: deferred | AC47: deferred | AD47: deferred | AE47: deferred | AF47: deferred | AG47: deferred | AH47: deferred | AI47: deferred | AJ47: deferred | AK47: deferred | AL47: deferred | AM47: deferred | AN47: deferred | AO47: deferred | AP47: deferred | AQ47: deferred | AR47: deferred | AS47: deferred | AT47: deferred | AU47: deferred | AW47: deferred | AX47: deferred | AY47: deferred
C48: Development costs - tangibles (depreciated): immediate/deferred | D48: switch | E48: =INDEX(G48:Q48,Model!$E$886) -> deferred | G48: deferred | H48: deferred | I48: deferred | J48: deferred | K48: deferred | L48: deferred | M48: deferred | N48: deferred | O48: deferred | P48: deferred | Q48: deferred | U48: Development costs - tangibles (depreciated): immediate/deferred | AA48: switch | AB48: deferred | AC48: deferred | AD48: deferred | AE48: deferred | AF48: deferred | AG48: deferred | AH48: deferred | AI48: deferred | AJ48: deferred | AK48: deferred | AL48: deferred | AM48: deferred | AN48: deferred | AO48: deferred | AP48: deferred | AQ48: deferred | AR48: deferred | AS48: deferred | AT48: deferred | AU48: deferred | AW48: deferred | AX48: deferred | AY48: deferred
C49: Depreciation allowance (on tangible and replacement capital) | D49: years | E49: =INDEX(G49:Q49,Model!$E$886) -> 5 | G49: 5 | H49: 5 | I49: 5 | J49: 10 | K49: 5 | L49: 5 | M49: 0 | N49: 1 | O49: 1 | P49: 16 | Q49: 10 | U49: Depreciation allowance (on tangible and replacement capital) | AA49: years | AB49: 1 | AC49: 5 | AD49: 5 | AE49: 5 | AG49: 10 | AH49: 5 | AI49: 5 | AL49: 1 | AM49: 1 | AN49: 4 | AO49: 4 | AP49: 1 | AQ49: 4 | AR49: 17 | AS49: 10 | AT49: 16 | AU49: 4 | AW49: 5 | AX49: 10 | AY49: 20
C50: Non-linear depreciation: off=0, on=1 | D50: switch | E50: =INDEX(G50:Q50,Model!$E$886) -> 0 | G50: 0 | H50: 0 | I50: 0 | J50: 0 | K50: 0 | L50: 0 | M50: 1 | N50: 0 | O50: 0 | P50: 0 | Q50: 0 | U50: Non-linear depreciation: off=0, on=1 | AA50: switch | AB50: 0 | AC50: 0 | AD50: 0 | AE50: 0 | AF50: 1 | AG50: 0 | AH50: 0 | AI50: 0 | AJ50: 1 | AK50: 1 | AL50: 0 | AM50: 0 | AN50: 0 | AO50: 0 | AP50: 0 | AQ50: 0 | AR50: 0 | AS50: 0 | AT50: 0 | AU50: 0 | AW50: 0 | AX50: 0 | AY50: 0
C51: Tanzania additional capital allowance: yes=1, no=2 | D51: switch | E51: =INDEX(G51:Q51,Model!$E$886) -> 2 | G51: 2 | H51: 2 | I51: 2 | J51: 2 | K51: 2 | L51: 2 | M51: 2 | N51: 2 | O51: 2 | P51: 2 | Q51: 2 | U51: Tanzania additional capital allowance: yes=1, no=2 | AA51: switch | AB51: 1 | AC51: 2 | AD51: 2 | AE51: 2 | AF51: 2 | AG51: 2 | AH51: 2 | AI51: 2 | AJ51: 2 | AK51: 2 | AL51: 2 | AM51: 2 | AN51: 2 | AO51: 2 | AP51: 2 | AQ51: 2 | AR51: 2 | AS51: 2 | AT51: 2 | AU51: 2 | AV51: 2 | AW51: 2 | AX51: 2 | AY51: 2
C52: Additional capital allowance rate | D52: % | E52: =INDEX(G52:Q52,Model!$E$886) -> 0 | G52: 0 | H52: 0 | I52: 0 | J52: 0 | K52: 0 | L52: 0 | M52: 0 | N52: 0 | O52: 0 | P52: 0 | Q52: 0 | U52: Additional capital allowance rate | AA52: % | AB52: 0.15
C53: Deductibility of royalty: yes=1, no=2 | D53: switch | E53: =INDEX(G53:Q53,Model!$E$886) -> 1 | G53: 1 | H53: 1 | I53: 1 | J53: 1 | K53: 1 | L53: 1 | M53: 1 | N53: 1 | O53: 2 | P53: 1 | Q53: 1 | U53: Deductibility of royalty: yes=1, no=2 | AA53: switch | AB53: 1 | AC53: 1 | AD53: 1 | AE53: 1 | AF53: 1 | AG53: 1 | AH53: 1 | AI53: 1 | AJ53: 1 | AK53: 1 | AL53: 1 | AM53: 1 | AN53: 2 | AO53: 2 | AP53: 2 | AQ53: 2 | AR53: 1 | AS53: 1 | AT53: 1 | AU53: 1 | AV53: 1 | AW53: 1 | AX53: 1 | AY53: 1
C54: Loss carry forward (time period): where 100 is indefinite carry forward | D54: years | E54: =INDEX(G54:Q54,Model!$E$886) -> 100 | G54: 100 | H54: 100 | I54: 100 | J54: 5 | K54: 5 | L54: 100 | M54: 100 | N54: 100 | O54: 100 | P54: 5 | Q54: 4 | U54: Loss carry forward (time period): where 100 is indefinite carry forward | AA54: years | AB54: 100 | AC54: 100 | AD54: 100 | AE54: 100 | AF54: 100 | AG54: 5 | AH54: 5 | AI54: 100 | AJ54: 100 | AK54: 100 | AL54: 100 | AM54: 100 | AN54: 10 | AO54: 10 | AP54: 100 | AQ54: 100 | AR54: 100 | AS54: 100 | AT54: 5 | AU54: 10 | AW54: 5 | AX54: 4 | AY54: 100
C55: Loss carry forward (annual income that losses can be utilised against) | D55: % | E55: =INDEX(G55:Q55,Model!$E$886) -> 0.7 | G55: 0.7 | H55: 0.7 | I55: 0.7 | J55: 1 | K55: 1 | L55: 1 | M55: 1 | N55: 1 | O55: 1 | P55: 1 | Q55: 1 | U55: Loss carry forward (annual income that losses can be utilised against) | AA55: % | AB55: 1 | AC55: 0.7 | AD55: 0.7 | AE55: 0.7 | AF55: 1 | AG55: 1 | AH55: 1 | AI55: 1 | AJ55: 1 | AK55: 1 | AL55: 1 | AM55: 1 | AN55: 0.5 | AO55: 0.5 | AP55: 1 | AQ55: 1 | AR55: 0.3 | AS55: 1 | AT55: 1 | AU55: 1 | AW55: 1 | AX55: 1 | AY55: 1
C56: Other variable rate profit taxes | U56: Other variable rate profit taxes
C57: Resource rent tax rate | D57: % | E57: =INDEX(G57:Q57,Model!$E$886) -> 0 | G57: =INDEX($AB57:$BE57,G$16) -> 0 | H57: 0 | I57: 0 | J57: 0 | K57: 0 | L57: 0 | M57: 0 | N57: 0 | O57: 0 | P57: 0 | Q57: 0 | U57: Resource rent tax rate | AA57: %
C58: Threshhold | D58: % | E58: =INDEX(G58:Q58,Model!$E$886) -> 0 | G58: 0 | H58: 0 | I58: 0 | J58: 0 | K58: 0 | L58: 0 | M58: 0 | N58: 0 | O58: 0 | P58: 0 | Q58: 0 | U58: Threshhold | AA58: %
C59: CIT deductible; yes=1, no=2 | D59: switch | E59: =INDEX(G59:Q59,Model!$E$886) -> 0 | G59: 0 | H59: 0 | I59: 0 | J59: 0 | K59: 0 | L59: 0 | M59: 0 | N59: 0 | O59: 0 | P59: 0 | Q59: 0 | U59: CIT deductible; yes=1, no=2 | AA59: switch
C60: South Africa gold profit tax: off=0, on=1 | D60: switch | E60: =INDEX(G60:Q60,Model!$E$886) -> 0 | G60: 0 | H60: 0 | I60: 0 | J60: 0 | K60: 0 | L60: 0 | M60: 0 | N60: 1 | O60: 0 | P60: 0 | Q60: 0 | U60: South Africa gold profit tax: off=0, on=1 | AA60: switch | AB60: 0 | AC60: 0 | AD60: 0 | AE60: 0 | AF60: 0 | AG60: 0 | AH60: 0 | AI60: 0 | AJ60: 0 | AK60: 0 | AL60: 1 | AM60: 0 | AN60: 0 | AO60: 0 | AP60: 0 | AQ60: 0 | AR60: 0 | AS60: 0 | AT60: 0 | AU60: 0 | AV60: 0 | AW60: 0 | AX60: 0 | AY60: 0
C61: Parameter a | E61: =INDEX(G61:Q61,Model!$E$886) -> 0 | G61: 0 | H61: 0 | I61: 0 | J61: 0 | K61: 0 | L61: 0 | M61: 0 | N61: 34 | O61: 0 | P61: 0 | Q61: 0 | U61: Parameter a | AL61: 34
C62: Parameter b | E62: =INDEX(G62:Q62,Model!$E$886) -> 0 | G62: 0 | H62: 0 | I62: 0 | J62: 0 | K62: 0 | L62: 0 | M62: 0 | N62: 5 | O62: 0 | P62: 0 | Q62: 0 | U62: Parameter b | AL62: 5
C63: Zimbabwe additional profits tax: off=0, on=1 | D63: switch | E63: =INDEX(G63:Q63,Model!$E$886) -> 0 | G63: 0 | H63: 0 | I63: =INDEX($AB63:$BE63,I$16) -> 0 | J63: 0 | K63: 0 | L63: 0 | M63: 0 | N63: 0 | O63: 0 | P63: 0 | Q63: 0 | U63: Zimbabwe additional profits tax: off=0, on=1 | AA63: switch | AB63: 0 | AC63: 0 | AD63: 0 | AE63: 0 | AF63: 0 | AG63: 0 | AH63: 0 | AI63: 0 | AJ63: 0 | AK63: 0 | AL63: 0 | AM63: 0 | AN63: 0 | AO63: 0 | AP63: 0 | AQ63: 1 | AR63: 0 | AS63: 0 | AT63: 0 | AU63: 0 | AV63: 0 | AW63: 0 | AX63: 0 | AY63: 0
C64: Threshold for first accumulated net cash position | D64: % | E64: =INDEX(G64:Q64,Model!$E$886) -> 0 | G64: 0 | H64: 0 | I64: 0 | J64: 0 | K64: 0 | L64: 0 | M64: 0 | N64: 0 | O64: 0 | P64: 0 | Q64: 0 | U64: Threshold for first accumulated net cash position | AA64: % | AQ64: 0.15
C65: Tax rate on first accumulated net cash position | D65: % | E65: =INDEX(G65:Q65,Model!$E$886) -> 0 | G65: 0 | H65: 0 | I65: 0 | J65: 0 | K65: 0 | L65: 0 | M65: 0 | N65: 0 | O65: 0 | P65: 0 | Q65: 0 | U65: Tax rate on first accumulated net cash position | AA65: % | AQ65: 0.2888
C66: Threshold for second accumulated net cash position | D66: % | E66: =INDEX(G66:Q66,Model!$E$886) -> 0 | G66: 0 | H66: 0 | I66: 0 | J66: 0 | K66: 0 | L66: 0 | M66: 0 | N66: 0 | O66: 0 | P66: 0 | Q66: 0 | U66: Threshold for second accumulated net cash position | AA66: % | AQ66: 0.2
C67: Tax rate on second accumulated net cash position | D67: % | E67: =INDEX(G67:Q67,Model!$E$886) -> 0 | G67: 0 | H67: 0 | I67: 0 | J67: 0 | K67: 0 | L67: 0 | M67: 0 | N67: 0 | O67: 0 | P67: 0 | Q67: 0 | U67: Tax rate on second accumulated net cash position | AA67: % | AQ67: 0.27778
C68: Other profit taxes | U68: Other profit taxes
C69: Interest withholding tax | D69: % | E69: =INDEX(G69:Q69,Model!$E$886) -> 0.1 | G69: =INDEX($AB69:$BE69,G$16) -> 0.1 | H69: =INDEX($AB69:$BE69,H$16) -> 0.1 | I69: 0.1 | J69: 0 | K69: 0.08 | L69: 0.1 | M69: 0.09 | N69: 0.15 | O69: 0 | P69: 0.2 | Q69: 0.0499 | U69: Interest withholding tax | AA69: % | AB69: 0 | AC69: 0.1 | AD69: 0.1 | AE69: 0.1 | AF69: 0.0625 | AG69: 0 | AH69: 0.08 | AI69: 0.1 | AJ69: 0.09 | AK69: 0.09 | AL69: 0.15 | AM69: 0.15 | AN69: 0.2 | AO69: 0.2 | AP69: 0 | AQ69: 0 | AR69: 0.15 | AS69: 0.35 | AT69: 0.2 | AU69: 0.15 | AV69: 0.1 | AW69: 0.1 | AX69: 0.0499 | AY69: 0.1
C70: Dividend withholding tax | D70: % | E70: =INDEX(G70:Q70,Model!$E$886) -> 0.1 | G70: =INDEX($AB70:$BE70,G$16) -> 0.1 | H70: =INDEX($AB70:$BE70,H$16) -> 0.1 | I70: 0.1 | J70: 0.1 | K70: 0.08 | L70: 0.1 | M70: 0.1 | N70: 0.2 | O70: 0.15 | P70: 0.2 | Q70: 0.05 | U70: Dividend withholding tax | AA70: % | AB70: 0.1 | AC70: 0.1 | AD70: 0.1 | AE70: 0.1 | AF70: 0.0625 | AG70: 0.1 | AH70: 0.08 | AI70: 0.1 | AJ70: 0.1 | AK70: 0.1 | AL70: 0.2 | AM70: 0.2 | AN70: 0.2 | AO70: 0.2 | AP70: 0.15 | AQ70: 0.15 | AR70: 0 | AS70: 0.1 | AT70: 0.2 | AU70: 0.15 | AV70: 0.1 | AW70: 0.1 | AX70: 0.05 | AY70: 0
C71: State equity | U71: State equity
C72: State equity share | D72: % | E72: =INDEX(G72:Q72,Model!$E$886) -> 0 | G72: =INDEX($AB72:$BE72,G$16) -> 0 | H72: =INDEX($AB72:$BE72,H$16) -> 0.16 | I72: 0.16 | J72: 0.1 | K72: 0.1 | L72: 0.15 | M72: 0.1 | N72: 0 | O72: 0 | P72: 0 | Q72: 0 | U72: State equity share | AA72: % | AB72: 0 | AC72: 0 | AD72: 0.16 | AE72: 0.16 | AF72: 0.1 | AG72: 0.1 | AH72: 0.1 | AI72: 0.15 | AJ72: 0.1 | AK72: 0.1 | AL72: 0 | AM72: 0 | AN72: 0 | AO72: 0 | AP72: 0 | AQ72: 0 | AR72: 0 | AS72: 0 | AT72: 0 | AU72: 0 | AV72: 0 | AW72: 0 | AX72: 0 | AY72: 0
C73: State equity to be paid for: yes=1, no=2 | D73: switch | E73: =INDEX(G73:Q73,Model!$E$886) -> 2 | G73: =INDEX($AB73:$BE73,G$16) -> 2 | H73: =INDEX($AB73:$BE73,H$16) -> 2 | I73: 2 | J73: 2 | K73: 2 | L73: 2 | M73: 2 | N73: 2 | O73: 2 | P73: 2 | Q73: 2 | U73: State equity to be paid for: yes=1, no=2 | AA73: switch | AB73: 2 | AC73: 2 | AD73: 2 | AE73: 2 | AF73: 2 | AG73: 2 | AH73: 2 | AI73: 2 | AJ73: 2 | AK73: 2 | AL73: 2 | AM73: 2 | AN73: 2 | AO73: 2 | AP73: 2 | AQ73: 2 | AR73: 2 | AS73: 2 | AT73: 2 | AU73: 2 | AV73: 2 | AW73: 2 | AX73: 2 | AY73: 2
C74: Other provisions | U74: Other provisions
C75: Decommissioning provision: yes=1, no=2 | D75: switch | E75: =INDEX(G75:Q75,Model!$E$886) -> 0 | G75: =INDEX($AB75:$BE75,G$16) -> 0 | H75: =INDEX($AB75:$BE75,H$16) -> 0 | I75: 0 | J75: 0 | K75: 0 | L75: 0 | M75: 0 | N75: 0 | O75: 0 | P75: 0 | Q75: 0 | U75: Decommissioning provision: yes=1, no=2 | AA75: switch
C76: Commencement of decommissioning provision | D76: % depletion | E76: =INDEX(G76:Q76,Model!$E$886) -> 0 | G76: =INDEX($AB76:$BE76,G$16) -> 0 | H76: =INDEX($AB76:$BE76,H$16) -> 0 | I76: 0 | J76: 0 | K76: 0 | L76: =INDEX($AB76:$BE76,L$16) -> 0 | M76: 0 | N76: 0 | O76: 0 | P76: 0 | Q76: 0 | U76: Commencement of decommissioning provision | AA76: % depletion
U77: Sources
U78: General | V78: https://www.ey.com/gl/en/services/tax/international-tax/tax-alert-library#country | AF78: https://thelawreviews.co.uk/edition/the-mining-law-review-edition-7/1175366/mining-burkina-faso | AH78: https://www.pwc.com/gh/en/assets/pdf/2018-tax-facts-and-figures.pdf | AK78: https://www.iied.org/malis-new-mining-law-improvement-fails-artisanal-miners | AL78: https://www.imf.org/external/pubs/ft/scr/2015/cr15244.pdf | AM78: https://www.imf.org/external/pubs/ft/scr/2015/cr15244.pdf | AN78: https://www.pwc.com/zm/en/assets/pdf/zambia-budget-2019.pdf | AO78: https://www.pwc.com/zm/en/assets/pdf/zambia-budget-2019.pdf | AP78: https://www.ey.com/Publication/vwLUAssets/ey-zimbabwe-budget-and-tax-facts11/$FILE/ey-zimbabwe-budget-and-tax-facts11.pdf | AQ78: https://www.ey.com/Publication/vwLUAssets/ey-zimbabwe-budget-and-tax-facts11/$FILE/ey-zimbabwe-budget-and-tax-facts11.pdf | AR78: http://tozzinifreire.com.br/en/boletins/changes-to-the-cfem-the-brazilian-mining-royalty?utm_source=Mondaq&utm_medium=syndication&utm_campaign=View-Original | AS78: https://www2.deloitte.com/content/dam/Deloitte/global/Documents/Tax/dttl-tax-chilehighlights-2018.pdf | AT78: https://www.pwc.com/id/en/publications/assets/eumpublications/mining/Mining-Guide-2018.pdf | AU78: https://www2.deloitte.com/content/dam/Deloitte/kz/Documents/tax/other/Kazakhstan_Highlights_2018_To_practice.pdf | AX78: http://www.bergbau-peru.com/fileadmin/ahk_peru_bergbau/PDF/EY-Peru-mining-metals-investment-guide_2017-2018.pdf | AY78: http://taxsummaries.pwc.com/ID/Australia-Corporate-Withholding-taxes
V79: https://fiscalite-miniere.ferdi.fr/en/tax-systems | AF79: https://eiti.org/sites/default/files/documents/rapport_de_conciliation_itie_burkina_faso_2016_v_signee.pdf | AH79: https://iclg.com/practice-areas/mining-laws-and-regulations/ghana#chaptercontent5 | AP79: http://www.mines.gov.zw/?q=mpd/57 | AQ79: http://www.mines.gov.zw/?q=mpd/57 | AR79: https://www2.deloitte.com/content/dam/Deloitte/global/Documents/Tax/dttl-tax-brazilhighlights-2018.pdf
U80: Import duty | V80: https://www.export.gov/ccg | AR80: https://www.zimra.co.zw/downloads/category/17-acts?download=181:income-tax-act-chapter-23-06-updated&start=20
U81: WHT | V81: http://taxsummaries.pwc.com/ID/Withholding-tax-(WHT)-rates
C83: Non-linear depreciation schedule
E85: Depreciation year 1 | G85: =AB85 -> 0.5 | AA85: Depreciation year 1 | AB85: 0.5
E86: Depreciation year 2 | G86: =AB86 -> 0.125 | AA86: Depreciation year 2 | AB86: 0.125
E87: Depreciation year 3 | G87: 0.05357142857 | AA87: Depreciation year 3 | AB87: 0.05357142857
E88: Depreciation year 4 | G88: 0.05357142857 | AA88: Depreciation year 4 | AB88: 0.05357142857
E89: Depreciation year 5 | G89: 0.05357142857 | AA89: Depreciation year 5 | AB89: 0.05357142857
E90: Depreciation year 6 | G90: 0.05357142857 | AA90: Depreciation year 6 | AB90: 0.05357142857
E91: Depreciation year 7 | G91: 0.05357142857 | AA91: Depreciation year 7 | AB91: 0.05357142857
E92: Depreciation year 8 | G92: 0.05357142857 | AA92: Depreciation year 8 | AB92: 0.05357142857
E93: Depreciation year 9 | G93: 0.05357142857 | AA93: Depreciation year 9 | AB93: 0.05357142857
E94: Depreciation year 10 | G94: 0 | AA94: Depreciation year 10 | AB94: 0
E95: Depreciation year 11 | G95: 0 | AA95: Depreciation year 11 | AB95: 0
E96: Depreciation year 12 | G96: 0 | AA96: Depreciation year 12 | AB96: 0
E97: Depreciation year 13 | G97: 0 | AA97: Depreciation year 13 | AB97: 0
E98: Depreciation year 14 | G98: 0 | AA98: Depreciation year 14 | AB98: 0
E99: Depreciation year 15 | G99: 0 | AA99: Depreciation year 15 | AB99: 0
E100: Depreciation year 16 | G100: 0 | AA100: Depreciation year 16 | AB100: 0
E101: Depreciation year 17 | G101: 0 | AA101: Depreciation year 17 | AB101: 0
E102: Depreciation year 18 | G102: 0 | AA102: Depreciation year 18 | AB102: 0
E103: Depreciation year 19 | G103: 0 | AA103: Depreciation year 19 | AB103: 0
E104: Depreciation year 20 | G104: 0 | AA104: Depreciation year 20 | AB104: 0
C106: Variable rate taxes - schedules
C107: "Variable rate taxes" are taxes whose rate depends on some economic measure such as the project's operating margin or commodity price.
D109: Variable rate royalty on revenue | U109: Variable rate royalty on revenue
G110: =U110 -> 1 - No VRR | I110: =W110 -> 2 - Custom | K110: =Y110 -> 3 - Custom | M110: =AA110 -> 4 - Custom | O110: =AC110 -> 5 - Custom | Q110: =AE110 -> 6 - Custom | U110: 1 - No VRR | W110: 2 - Custom | Y110: 3 - Custom | AA110: 4 - Custom | AC110: 5 - Custom | AE110: 6 - Custom
C111: Bracket | D111: Upper limit ($mm) | E111: Marginal rate | G111: Upper limit ($mm) | H111: Marginal rate | I111: Upper limit ($mm) | J111: Marginal rate | K111: Upper limit ($mm) | L111: Marginal rate | M111: Upper limit ($mm) | N111: Marginal rate | O111: Upper limit ($mm) | P111: Marginal rate | Q111: Upper limit ($mm) | R111: Marginal rate | U111: Upper limit ($mm) | V111: Marginal rate | W111: Upper limit ($mm) | X111: Marginal rate | Y111: Upper limit ($mm) | Z111: Marginal rate | AA111: Upper limit ($mm) | AB111: Marginal rate | AC111: Upper limit ($mm) | AD111: Marginal rate | AE111: Upper limit ($mm) | AF111: Marginal rate
C112: 1 | D112: =CHOOSE($E$32,G112,I112,K112,M112,O112,Q112) -> 0 | E112: =CHOOSE($E$32,H112,J112,L112,N112,P112,R112) -> 0 | G112: =U112 -> 0 | H112: =V112 -> 0 | I112: 0 | J112: 0 | K112: 0 | L112: 0 | M112: 0 | N112: 0 | O112: 0 | P112: 0 | Q112: 0 | R112: 0
C113: 2 | D113: =CHOOSE($E$32,G113,I113,K113,M113,O113,Q113) -> 0 | E113: =CHOOSE($E$32,H113,J113,L113,N113,P113,R113) -> 0 | G113: =U113 -> 0 | H113: 0 | I113: 0 | J113: 0 | K113: 0 | L113: 0 | M113: 0 | N113: 0 | O113: 0 | P113: 0 | Q113: 0 | R113: 0
C114: 3 | D114: 0 | E114: 0 | G114: 0 | H114: 0 | I114: 0 | J114: 0 | K114: 0 | L114: 0 | M114: 0 | N114: 0 | O114: 0 | P114: 0 | Q114: 0 | R114: 0
C115: 4 | D115: 0 | E115: 0 | G115: 0 | H115: 0 | I115: 0 | J115: 0 | K115: 0 | L115: 0 | M115: 0 | N115: 0 | O115: 0 | P115: 0 | Q115: 0 | R115: 0
C116: 5 | D116: 0 | E116: 0 | G116: 0 | H116: 0 | I116: 0 | J116: 0 | K116: 0 | L116: 0 | M116: 0 | N116: 0 | O116: 0 | P116: 0 | Q116: 0 | R116: 0
C117: 6 | D117: 0 | E117: 0 | G117: 0 | H117: 0 | I117: 0 | J117: 0 | K117: 0 | L117: 0 | M117: 0 | N117: 0 | O117: 0 | P117: 0 | Q117: 0 | R117: 0
C118: 7 | D118: 0 | E118: 0 | G118: 0 | H118: 0 | I118: 0 | J118: 0 | K118: 0 | L118: 0 | M118: 0 | N118: 0 | O118: 0 | P118: 0 | Q118: 0 | R118: 0
C119: 8 | D119: 0 | E119: 0 | G119: 0 | H119: 0 | I119: 0 | J119: 0 | K119: 0 | L119: 0 | M119: 0 | N119: 0 | O119: 0 | P119: 0 | Q119: 0 | R119: 0
C120: 9 | D120: 0 | E120: 0 | G120: 0 | H120: 0 | I120: 0 | J120: 0 | K120: 0 | L120: 0 | M120: 0 | N120: 0 | O120: 0 | P120: 0 | Q120: 0 | R120: 0
C121: 10 | D121: 0 | E121: 0 | G121: 0 | H121: 0 | I121: 0 | J121: 0 | K121: 0 | L121: 0 | M121: 0 | N121: 0 | O121: 0 | P121: 0 | Q121: 0 | R121: 0
D123: Variable rate royalty on price | U123: Variable rate royalty on price
G124: =U124 -> 1 - No VRR | I124: =W124 -> 2 - Burkina Faso: gold | K124: =Y124 -> 3 - Zambia: copper | M124: =AA124 -> 4 - Kyrgyz Republic: gold | O124: =AC124 -> 5 - Tanzania proposal: gold | Q124: =AE124 -> 6 - Custom | U124: 1 - No VRR | W124: 2 - Burkina Faso: gold | Y124: 3 - Zambia: copper | AA124: 4 - Kyrgyz Republic: gold | AC124: 5 - Tanzania proposal: gold | AE124: 6 - Custom
C125: Bracket | D125: =CHOOSE($E$33,G125,I125,K125,M125,O125,Q125) -> Lower limit ($/oz) | E125: Marginal rate | G125: Lower limit ($/oz) | H125: Marginal rate | I125: Lower limit ($/oz) | J125: Marginal rate | K125: Lower limit ($/oz) | L125: Marginal rate | M125: Lower limit ($/oz) | N125: Marginal rate | O125: Lower limit ($/oz) | P125: Marginal rate | Q125: Lower limit ($/oz) | R125: Marginal rate | U125: Lower limit ($/oz) | V125: Marginal rate | W125: Lower limit ($/oz) | X125: Marginal rate | Y125: Lower limit ($/oz) | Z125: Marginal rate | AA125: Lower limit ($/oz) | AB125: Marginal rate | AC125: Lower limit ($/oz) | AD125: Marginal rate | AE125: Lower limit ($/oz) | AF125: Marginal rate
C126: 1 | D126: =CHOOSE($E$33,G126,I126,K126,M126,O126,Q126) -> 0 | E126: =CHOOSE($E$33,H126,J126,L126,N126,P126,R126) -> 0 | G126: =U126 -> 0 | H126: =V126 -> 0 | I126: 0 | J126: 0.03 | K126: 0 | L126: 0.055 | M126: 0 | N126: 0.01 | O126: 0 | P126: 0.04 | Q126: 0 | R126: 0 | W126: 0 | X126: 0.03 | Y126: 0 | Z126: 0.055 | AA126: 0 | AB126: 0.01 | AC126: 0 | AD126: 0.04
C127: 2 | D127: =CHOOSE($E$33,G127,I127,K127,M127,O127,Q127) -> 0 | E127: =CHOOSE($E$33,H127,J127,L127,N127,P127,R127) -> 0 | G127: =U127 -> 0 | H127: 0 | I127: 1000 | J127: 0.04 | K127: 4500 | L127: 0.065 | M127: 1300 | N127: 0.03 | O127: 1100 | P127: 0.05 | Q127: 0 | R127: 0 | W127: 1000 | X127: 0.04 | Y127: 4500 | Z127: 0.065 | AA127: 1300 | AB127: 0.03 | AC127: 1100 | AD127: 0.05
C128: 3 | D128: 0 | E128: 0 | G128: 0 | H128: 0 | I128: 1300 | J128: 0.05 | K128: 6000 | L128: 0.075 | M128: 1400 | N128: 0.05 | O128: 1300 | P128: 0.06 | Q128: 0 | R128: 0 | W128: 1300 | X128: 0.05 | Y128: 6000 | Z128: 0.075 | AA128: 1400 | AB128: 0.05 | AC128: 1300 | AD128: 0.06
C129: 4 | D129: 0 | E129: 0 | G129: 0 | H129: 0 | I129: 50000 | J129: 0.05 | K129: 7500 | L129: 0.1 | M129: 1500 | N129: 0.07 | O129: 1600 | P129: 0.07 | Q129: 0 | R129: 0 | W129: 50000 | X129: 0.05 | Y129: 7500 | Z129: 0.1 | AA129: 1500 | AB129: 0.07 | AC129: 1600 | AD129: 0.07
C130: 5 | D130: 0 | E130: 0 | G130: 0 | H130: 0 | I130: 50000 | J130: 0.05 | K130: 50000 | L130: 0.1 | M130: 1600 | N130: 0.1 | O130: 50000 | P130: 0.07 | Q130: 0 | R130: 0 | W130: 50000 | X130: 0.05 | Y130: 50000 | Z130: 0.1 | AA130: 1600 | AB130: 0.1 | AC130: 50000 | AD130: 0.07
C131: 6 | D131: 0 | E131: 0 | G131: 0 | H131: 0 | I131: 50000 | J131: 0.05 | K131: 50000 | L131: 0.1 | M131: 1700 | N131: 0.13 | O131: 50000 | P131: 0.07 | Q131: 0 | R131: 0 | W131: 50000 | X131: 0.05 | Y131: 50000 | Z131: 0.1 | AA131: 1700 | AB131: 0.13 | AC131: 50000 | AD131: 0.07
C132: 7 | D132: 0 | E132: 0 | G132: 0 | H132: 0 | I132: 50000 | J132: 0.05 | K132: 50000 | L132: 0.1 | M132: 1800 | N132: 0.14 | O132: 50000 | P132: 0.07 | Q132: 0 | R132: 0 | W132: 50000 | X132: 0.05 | Y132: 50000 | Z132: 0.1 | AA132: 1800 | AB132: 0.14 | AC132: 50000 | AD132: 0.07
C133: 8 | D133: 0 | E133: 0 | G133: 0 | H133: 0 | I133: 50000 | J133: 0.05 | K133: 50000 | L133: 0.1 | M133: 1900 | N133: 0.15 | O133: 50000 | P133: 0.07 | Q133: 0 | R133: 0 | W133: 50000 | X133: 0.05 | Y133: 50000 | Z133: 0.1 | AA133: 1900 | AB133: 0.15 | AC133: 50000 | AD133: 0.07
C134: 9 | D134: 0 | E134: 0 | G134: 0 | H134: 0 | I134: 50000 | J134: 0.05 | K134: 50000 | L134: 0.1 | M134: 2000 | N134: 0.16 | O134: 50000 | P134: 0.07 | Q134: 0 | R134: 0 | W134: 50000 | X134: 0.05 | Y134: 50000 | Z134: 0.1 | AA134: 2000 | AB134: 0.16 | AC134: 50000 | AD134: 0.07
C135: 10 | D135: 0 | E135: 0 | G135: 0 | H135: 0 | I135: 50000 | J135: 0.05 | K135: 50000 | L135: 0.1 | M135: 2100 | N135: 0.17 | O135: 50000 | P135: 0.07 | Q135: 0 | R135: 0 | W135: 50000 | X135: 0.05 | Y135: 50000 | Z135: 0.1 | AA135: 2100 | AB135: 0.17 | AC135: 50000 | AD135: 0.07
C136: 11 | D136: 0 | E136: 0 | G136: 0 | H136: 0 | I136: 50000 | J136: 0.05 | K136: 50000 | L136: 0.1 | M136: 2200 | N136: 0.18 | O136: 50000 | P136: 0.07 | Q136: 0 | R136: 0 | W136: 50000 | X136: 0.05 | Y136: 50000 | Z136: 0.1 | AA136: 2200 | AB136: 0.18 | AC136: 50000 | AD136: 0.07
C137: 12 | D137: 0 | E137: 0 | G137: 0 | H137: 0 | I137: 50000 | J137: 0.05 | K137: 50000 | L137: 0.1 | M137: 2300 | N137: 0.19 | O137: 50000 | P137: 0.07 | Q137: 0 | R137: 0 | W137: 50000 | X137: 0.05 | Y137: 50000 | Z137: 0.1 | AA137: 2300 | AB137: 0.19 | AC137: 50000 | AD137: 0.07
C138: 13 | D138: 0 | E138: 0 | G138: 0 | H138: 0 | I138: 50000 | J138: 0.05 | K138: 50000 | L138: 0.1 | M138: 2400 | N138: 0.2 | O138: 50000 | P138: 0.07 | Q138: 0 | R138: 0 | W138: 50000 | X138: 0.05 | Y138: 50000 | Z138: 0.1 | AA138: 2400 | AB138: 0.2 | AC138: 50000 | AD138: 0.07
C139: 14 | D139: 0 | E139: 0 | G139: 0 | H139: 0 | I139: 50000 | J139: 0.05 | K139: 50000 | L139: 0.1 | M139: 3000 | N139: 0.2 | O139: 50000 | P139: 0.07 | Q139: 0 | R139: 0 | W139: 50000 | X139: 0.05 | Y139: 50000 | Z139: 0.1 | AA139: 3000 | AB139: 0.2 | AC139: 50000 | AD139: 0.07
D141: Operating profit tax | U141: Operating profit tax
G142: =U142 -> 1 - No OPT | I142: =W142 -> 2 - Chile | K142: =Y142 -> 3 - Peru | M142: =AA142 -> 4 - Custom | O142: =AC142 -> 5 - Custom | Q142: =AE142 -> 6 - Custom | U142: 1 - No OPT | W142: 2 - Chile | Y142: 3 - Peru | AA142: 4 - Custom | AC142: 5 - Custom | AE142: 6 - Custom
C143: Bracket | D143: Lower limit | E143: Marginal rate | G143: Lower limit | H143: Marginal rate | I143: Lower limit | J143: Marginal rate | K143: Lower limit | L143: Marginal rate | M143: Lower limit | N143: Marginal rate | O143: Lower limit | P143: Marginal rate | Q143: Lower limit | R143: Marginal rate | U143: Lower limit | V143: Marginal rate | W143: Lower limit | X143: Marginal rate | Y143: Lower limit | Z143: Marginal rate | AA143: Lower limit | AB143: Marginal rate | AC143: Lower limit | AD143: Marginal rate | AE143: Lower limit | AF143: Marginal rate
C144: 1 | D144: =CHOOSE($E$39,G144,I144,K144,M144,O144,Q144) -> 0 | E144: =CHOOSE($E$39,H144,J144,L144,N144,P144,R144) -> 0 | G144: =U144 -> 0 | H144: =V144 -> 0 | I144: 0 | J144: 0.05 | K144: 0 | L144: 0.03 | M144: =AA144 -> 0 | N144: =AB144 -> 0 | O144: 0 | P144: 0 | Q144: 0 | R144: 0 | W144: 0 | X144: 0.05 | Y144: 0 | Z144: 0.03
C145: 2 | D145: =CHOOSE($E$39,G145,I145,K145,M145,O145,Q145) -> 0 | E145: =CHOOSE($E$39,H145,J145,L145,N145,P145,R145) -> 0 | G145: =U145 -> 0 | H145: 0 | I145: 0.35 | J145: 0.08 | K145: 0.1 | L145: 0.0415 | M145: 0 | N145: 0 | O145: 0 | P145: 0 | Q145: 0 | R145: 0 | W145: 0.35 | X145: 0.08 | Y145: 0.1 | Z145: 0.0415
C146: 3 | D146: 0 | E146: 0 | G146: 0 | H146: 0 | I146: 0.4 | J146: 0.105 | K146: 0.15 | L146: 0.053 | M146: 0 | N146: 0 | O146: 0 | P146: 0 | Q146: 0 | R146: 0 | W146: 0.4 | X146: 0.105 | Y146: 0.15 | Z146: 0.053
C147: 4 | D147: 0 | E147: 0 | G147: 0 | H147: 0 | I147: 0.45 | J147: 0.13 | K147: 0.2 | L147: 0.0645 | M147: 0 | N147: 0 | O147: 0 | P147: 0 | Q147: 0 | R147: 0 | W147: 0.45 | X147: 0.13 | Y147: 0.2 | Z147: 0.0645
C148: 5 | D148: 0 | E148: 0 | G148: 0 | H148: 0 | I148: 0.5 | J148: 0.155 | K148: 0.25 | L148: 0.076 | M148: 0 | N148: 0 | O148: 0 | P148: 0 | Q148: 0 | R148: 0 | W148: 0.5 | X148: 0.155 | Y148: 0.25 | Z148: 0.076
C149: 6 | D149: 0 | E149: 0 | G149: 0 | H149: 0 | I149: 0.55 | J149: 0.18 | K149: 0.3 | L149: 0.0875 | M149: 0 | N149: 0 | O149: 0 | P149: 0 | Q149: 0 | R149: 0 | W149: 0.55 | X149: 0.18 | Y149: 0.3 | Z149: 0.0875
C150: 7 | D150: 0 | E150: 0 | G150: 0 | H150: 0 | I150: 0.6 | J150: 0.21 | K150: 0.35 | L150: 0.099 | M150: 0 | N150: 0 | O150: 0 | P150: 0 | Q150: 0 | R150: 0 | W150: 0.6 | X150: 0.21 | Y150: 0.35 | Z150: 0.099
C151: 8 | D151: 0 | E151: 0 | G151: 0 | H151: 0 | I151: 0.65 | J151: 0.24 | K151: 0.4 | L151: 0.1105 | M151: 0 | N151: 0 | O151: 0 | P151: 0 | Q151: 0 | R151: 0 | W151: 0.65 | X151: 0.24 | Y151: 0.4 | Z151: 0.1105
C152: 9 | D152: 0 | E152: 0 | G152: 0 | H152: 0 | I152: 0.7 | J152: 0.275 | K152: 0.45 | L152: 0.122 | M152: 0 | N152: 0 | O152: 0 | P152: 0 | Q152: 0 | R152: 0 | W152: 0.7 | X152: 0.275 | Y152: 0.45 | Z152: 0.122
C153: 10 | D153: 0 | E153: 0 | G153: 0 | H153: 0 | I153: 0.75 | J153: 0.31 | K153: 0.5 | L153: 0.1335 | M153: 0 | N153: 0 | O153: 0 | P153: 0 | Q153: 0 | R153: 0 | W153: 0.75 | X153: 0.31 | Y153: 0.5 | Z153: 0.1335
C154: 11 | D154: 0 | E154: 0 | G154: 0 | H154: 0 | I154: 0.8 | J154: 0.345 | K154: 0.55 | L154: 0.145 | M154: 0 | N154: 0 | O154: 0 | P154: 0 | Q154: 0 | R154: 0 | W154: 0.8 | X154: 0.345 | Y154: 0.55 | Z154: 0.145
C155: 12 | D155: 0 | E155: 0 | G155: 0 | H155: 0 | I155: 0.85 | J155: 0.345 | K155: 0.6 | L155: 0.1565 | M155: 0 | N155: 0 | O155: 0 | P155: 0 | Q155: 0 | R155: 0 | W155: 0.85 | X155: 0.345 | Y155: 0.6 | Z155: 0.1565
C156: 13 | D156: 0 | E156: 0 | G156: 0 | H156: 0 | I156: 0.85 | J156: 0.345 | K156: 0.65 | L156: 0.168 | M156: 0 | N156: 0 | O156: 0 | P156: 0 | Q156: 0 | R156: 0 | W156: 0.85 | X156: 0.345 | Y156: 0.65 | Z156: 0.168
C157: 14 | D157: 0 | E157: 0 | G157: 0 | H157: 0 | I157: 0.85 | J157: 0.345 | K157: 0.7 | L157: 0.1795 | M157: 0 | N157: 0 | O157: 0 | P157: 0 | Q157: 0 | R157: 0 | W157: 0.85 | X157: 0.345 | Y157: 0.7 | Z157: 0.1795
C158: 15 | D158: 0 | E158: 0 | G158: 0 | H158: 0 | I158: 0.85 | J158: 0.345 | K158: 0.75 | L158: 0.191 | M158: 0 | N158: 0 | O158: 0 | P158: 0 | Q158: 0 | R158: 0 | W158: 0.85 | X158: 0.345 | Y158: 0.75 | Z158: 0.191
C159: 16 | D159: 0 | E159: 0 | G159: 0 | H159: 0 | I159: 0.85 | J159: 0.345 | K159: 0.8 | L159: 0.2 | M159: 0 | N159: 0 | O159: 0 | P159: 0 | Q159: 0 | R159: 0 | W159: 0.85 | X159: 0.345 | Y159: 0.8 | Z159: 0.2
C160: 17 | D160: 0 | E160: 0 | G160: 0 | H160: =V160 -> 0 | I160: 0.85 | J160: 0.345 | K160: 0.85 | L160: 0.204 | M160: 0 | N160: 0 | O160: 0 | P160: 0 | Q160: 0 | R160: 0 | W160: 0.85 | X160: 0.345 | Y160: 0.85 | Z160: 0.204
D162: South Africa variable rate royalty | U162: South Africa variable rate royalty
E163: 1 - Refined | F163: 2 - Unrefined | G163: Alternative | W163: 1 - Refined | X163: 2 - Unrefined | Y163: Alternative
C164: Constant | E164: =W164 -> 0.005 | F164: =X164 -> 0.005 | G164: 0 | U164: Constant | W164: 0.005 | X164: 0.005
C165: Factor | E165: =W165 -> 12.5 | F165: 9 | G165: 0 | U165: Factor | W165: 12.5 | X165: 9
C166: Rate cap | E166: =W166 -> 0.05 | F166: 0.07 | G166: 0 | U166: Rate cap | W166: 0.05 | X166: 0.07
C168: Tax treaty assumptions
C170: Tax treaties reduce WHT rates to zero? (1 = statutory WHT rates, 0 = 0% rates) | E170: 1
C172: Economic and financing assumptions
C174: Leverage | D174: % | E174: 0.7
C175: Repayment period | D175: years | E175: 5
C176: Real interest rate for debt financing | D176: % | E176: 0.05
C177: Real interest rate for state equity carry | D177: % | E177: 0
C178: Discount rate government | D178: % | E178: 0.1
C179: Discount rate investor | D179: % | E179: 0.125
C180: Inflation rate | D180: % | E180: 0.02
C182: Price assumptions
C184: Primary mineral price | D184: ="$/"&D196 -> $/ounces | E184: 1400
F186: 1 | G186: 2 | H186: 3 | I186: 4 | J186: 5 | K186: 6 | L186: 7 | M186: 8 | N186: 9 | O186: 10 | P186: 11 | Q186: 12 | R186: 13 | S186: 14 | T186: 15 | U186: 16 | V186: 17 | W186: 18 | X186: 19 | Y186: 20 | Z186: 21 | AA186: 22 | AB186: 23 | AC186: 24 | AD186: 25 | AE186: 26 | AF186: 27 | AG186: 28 | AH186: 29 | AI186: 30 | AJ186: 31 | AK186: 32 | AL186: 33 | AM186: 34 | AN186: 35 | AO186: 36 | AP186: 37 | AQ186: 38 | AR186: 39 | AS186: 40 | AT186: 41 | AU186: 42 | AV186: 43 | AW186: 44 | AX186: 45 | AY186: 46 | AZ186: 47 | BA186: 48 | BB186: 49 | BC186: 50
C187: Price time series | D187: ="$/"&D196 -> $/ounces | F187: =Mineral_price -> 1400 | G187: =Model!$E$884 -> 1400 | H187: =Model!$E$884 -> 1400 | I187: =Model!$E$884 -> 1400 | J187: =Model!$E$884 -> 1400 | K187: =Model!$E$884 -> 1400 | L187: =Model!$E$884 -> 1400 | M187: =Model!$E$884 -> 1400 | N187: =Model!$E$884 -> 1400 | O187: =Model!$E$884 -> 1400 | P187: =Model!$E$884 -> 1400 | Q187: =Model!$E$884 -> 1400 | R187: =Model!$E$884 -> 1400 | S187: =Model!$E$884 -> 1400 | T187: =Model!$E$884 -> 1400 | U187: =Model!$E$884 -> 1400 | V187: =Model!$E$884 -> 1400 | W187: =Model!$E$884 -> 1400 | X187: =Model!$E$884 -> 1400 | Y187: =Model!$E$884 -> 1400 | Z187: =Model!$E$884 -> 1400 | AA187: =Model!$E$884 -> 1400 | AB187: =Model!$E$884 -> 1400 | AC187: =Model!$E$884 -> 1400 | AD187: =Model!$E$884 -> 1400 | AE187: =Model!$E$884 -> 1400 | AF187: =Model!$E$884 -> 1400 | AG187: =Model!$E$884 -> 1400 | AH187: =Model!$E$884 -> 1400 | AI187: =Model!$E$884 -> 1400 | AJ187: =Model!$E$884 -> 1400 | AK187: =Model!$E$884 -> 1400 | AL187: =Model!$E$884 -> 1400 | AM187: =Model!$E$884 -> 1400 | AN187: =Model!$E$884 -> 1400 | AO187: =Model!$E$884 -> 1400 | AP187: =Model!$E$884 -> 1400 | AQ187: =Model!$E$884 -> 1400 | AR187: =Model!$E$884 -> 1400 | AS187: =Model!$E$884 -> 1400 | AT187: =Model!$E$884 -> 1400 | AU187: =Model!$E$884 -> 1400 | AV187: =Model!$E$884 -> 1400 | AW187: =Model!$E$884 -> 1400 | AX187: =Model!$E$884 -> 1400 | AY187: =Model!$E$884 -> 1400 | AZ187: =Model!$E$884 -> 1400 | BA187: =Model!$E$884 -> 1400 | BB187: =Model!$E$884 -> 1400 | BC187: =Model!$E$884 -> 1400
C189: Primary mineral price in DRC feasibility study (for DRC excess profits tax) | D189: ="$/"&D196 -> $/ounces | E189: 1120
C191: Project assumptions (real values)
C193: SELECT PROJECT | E193: Large gold mine | G193: =MATCH(E193,Lists!$D$3:$D$14,0) -> 1
B195: Total | F195: 1 | G195: 2 | H195: 3 | I195: 4 | J195: 5 | K195: 6 | L195: 7 | M195: 8 | N195: 9 | O195: 10 | P195: 11 | Q195: 12 | R195: 13 | S195: 14 | T195: 15 | U195: 16 | V195: 17 | W195: 18 | X195: 19 | Y195: 20 | Z195: 21 | AA195: 22 | AB195: 23 | AC195: 24 | AD195: 25 | AE195: 26 | AF195: 27 | AG195: 28 | AH195: 29 | AI195: 30 | AJ195: 31 | AK195: 32 | AL195: 33 | AM195: 34 | AN195: 35 | AO195: 36 | AP195: 37 | AQ195: 38 | AR195: 39 | AS195: 40 | AT195: 41 | AU195: 42 | AV195: 43 | AW195: 44 | AX195: 45 | AY195: 46 | AZ195: 47 | BA195: 48 | BB195: 49 | BC195: 50
B196: =SUM(F196:BC196) -> 6000000 | C196: =CHOOSE($G$193,C211,C223,C235) -> Production of Gold | D196: ounces | F196: =CHOOSE($G$193,F211,F223,F235) -> 0 | G196: =CHOOSE($G$193,G211,G223,G235) -> 0 | H196: 125000 | I196: 250000 | J196: 250000 | K196: 250000 | L196: 250000 | M196: 250000 | N196: 250000 | O196: 250000 | P196: 250000 | Q196: 250000 | R196: 250000 | S196: 250000 | T196: 250000 | U196: 250000 | V196: 250000 | W196: 250000 | X196: 250000 | Y196: 250000 | Z196: 250000 | AA196: 250000 | AB196: 250000 | AC196: 250000 | AD196: 250000 | AE196: 250000 | AF196: 125000 | AG196: 0 | AH196: 0 | AI196: 0 | AJ196: 0 | AK196: 0 | AL196: 0 | AM196: 0 | AN196: 0 | AO196: 0 | AP196: 0 | AQ196: 0 | AR196: 0 | AS196: 0 | AT196: 0 | AU196: 0 | AV196: 0 | AW196: 0 | AX196: 0 | AY196: 0 | AZ196: 0 | BA196: 0 | BB196: 0 | BC196: 0
B197: 0 | C197: Transport post-fiscal point | D197: $mm const | F197: =CHOOSE($G$193,F212,F224,F236) -> 0 | G197: 0 | H197: 0 | I197: 0 | J197: 0 | K197: 0 | L197: 0 | M197: 0 | N197: 0 | O197: 0 | P197: 0 | Q197: 0 | R197: 0 | S197: 0 | T197: 0 | U197: 0 | V197: 0 | W197: 0 | X197: 0 | Y197: 0 | Z197: 0 | AA197: 0 | AB197: 0 | AC197: 0 | AD197: 0 | AE197: 0 | AF197: 0 | AG197: 0 | AH197: 0 | AI197: 0 | AJ197: 0 | AK197: 0 | AL197: 0 | AM197: 0 | AN197: 0 | AO197: 0 | AP197: 0 | AQ197: 0 | AR197: 0 | AS197: 0 | AT197: 0 | AU197: 0 | AV197: 0 | AW197: 0 | AX197: 0 | AY197: 0 | AZ197: 0 | BA197: 0 | BB197: 0 | BC197: 0
B198: 30 | C198: Processing and refining post-fiscal point | D198: $mm const | F198: =CHOOSE($G$193,F213,F225,F237) -> 0 | G198: 0 | H198: 0.625 | I198: 1.25 | J198: 1.25 | K198: 1.25 | L198: 1.25 | M198: 1.25 | N198: 1.25 | O198: 1.25 | P198: 1.25 | Q198: 1.25 | R198: 1.25 | S198: 1.25 | T198: 1.25 | U198: 1.25 | V198: 1.25 | W198: 1.25 | X198: 1.25 | Y198: 1.25 | Z198: 1.25 | AA198: 1.25 | AB198: 1.25 | AC198: 1.25 | AD198: 1.25 | AE198: 1.25 | AF198: 0.625 | AG198: 0 | AH198: 0 | AI198: 0 | AJ198: 0 | AK198: 0 | AL198: 0 | AM198: 0 | AN198: 0 | AO198: 0 | AP198: 0 | AQ198: 0 | AR198: 0 | AS198: 0 | AT198: 0 | AU198: 0 | AV198: 0 | AW198: 0 | AX198: 0 | AY198: 0 | AZ198: 0 | BA198: 0 | BB198: 0 | BC198: 0
B199: 0 | C199: Exploration costs (expensable) | D199: $mm const | F199: =CHOOSE($G$193,F214,F226,F238) -> 0 | G199: 0 | H199: 0 | I199: 0 | J199: 0 | K199: 0 | L199: 0 | M199: 0 | N199: 0 | O199: 0 | P199: 0 | Q199: 0 | R199: 0 | S199: 0 | T199: 0 | U199: 0 | V199: 0 | W199: 0 | X199: 0 | Y199: 0 | Z199: 0 | AA199: 0 | AB199: 0 | AC199: 0 | AD199: 0 | AE199: 0 | AF199: 0 | AG199: 0 | AH199: 0 | AI199: 0 | AJ199: 0 | AK199: 0 | AL199: 0 | AM199: 0 | AN199: 0 | AO199: 0 | AP199: 0 | AQ199: 0 | AR199: 0 | AS199: 0 | AT199: 0 | AU199: 0 | AV199: 0 | AW199: 0 | AX199: 0 | AY199: 0 | AZ199: 0 | BA199: 0 | BB199: 0 | BC199: 0
B200: 0 | C200: Development costs - intangibles (expensable) | D200: $mm const | F200: =CHOOSE($G$193,F215,F227,F239) -> 0 | G200: 0 | H200: 0 | I200: 0 | J200: 0 | K200: 0 | L200: 0 | M200: 0 | N200: 0 | O200: 0 | P200: 0 | Q200: 0 | R200: 0 | S200: 0 | T200: 0 | U200: 0 | V200: 0 | W200: 0 | X200: 0 | Y200: 0 | Z200: 0 | AA200: 0 | AB200: 0 | AC200: 0 | AD200: 0 | AE200: 0 | AF200: 0 | AG200: 0 | AH200: 0 | AI200: 0 | AJ200: 0 | AK200: 0 | AL200: 0 | AM200: 0 | AN200: 0 | AO200: 0 | AP200: 0 | AQ200: 0 | AR200: 0 | AS200: 0 | AT200: 0 | AU200: 0 | AV200: 0 | AW200: 0 | AX200: 0 | AY200: 0 | AZ200: 0 | BA200: 0 | BB200: 0 | BC200: 0
B201: 420 | C201: Development costs - tangibles (depreciable) | D201: $mm const | F201: =CHOOSE($G$193,F216,F228,F240) -> 80 | G201: 160 | H201: 80 | I201: 0 | J201: 0 | K201: 0 | L201: 0 | M201: 0 | N201: 0 | O201: 0 | P201: 0 | Q201: 0 | R201: 0 | S201: 50 | T201: 50 | U201: 0 | V201: 0 | W201: 0 | X201: 0 | Y201: 0 | Z201: 0 | AA201: 0 | AB201: 0 | AC201: 0 | AD201: 0 | AE201: 0 | AF201: 0 | AG201: 0 | AH201: 0 | AI201: 0 | AJ201: 0 | AK201: 0 | AL201: 0 | AM201: 0 | AN201: 0 | AO201: 0 | AP201: 0 | AQ201: 0 | AR201: 0 | AS201: 0 | AT201: 0 | AU201: 0 | AV201: 0 | AW201: 0 | AX201: 0 | AY201: 0 | AZ201: 0 | BA201: 0 | BB201: 0 | BC201: 0
B202: 105 | C202: Replacement capital costs (depreciable) | D202: $mm const | F202: =CHOOSE($G$193,F217,F229,F241) -> 0 | G202: 0 | H202: 4.2 | I202: 4.2 | J202: 4.2 | K202: 4.2 | L202: 4.2 | M202: 4.2 | N202: 4.2 | O202: 4.2 | P202: 4.2 | Q202: 4.2 | R202: 4.2 | S202: 4.2 | T202: 4.2 | U202: 4.2 | V202: 4.2 | W202: 4.2 | X202: 4.2 | Y202: 4.2 | Z202: 4.2 | AA202: 4.2 | AB202: 4.2 | AC202: 4.2 | AD202: 4.2 | AE202: 4.2 | AF202: 4.2 | AG202: 0 | AH202: 0 | AI202: 0 | AJ202: 0 | AK202: 0 | AL202: 0 | AM202: 0 | AN202: 0 | AO202: 0 | AP202: 0 | AQ202: 0 | AR202: 0 | AS202: 0 | AT202: 0 | AU202: 0 | AV202: 0 | AW202: 0 | AX202: 0 | AY202: 0 | AZ202: 0 | BA202: 0 | BB202: 0 | BC202: 0
B203: 0 | C203: Decommissioning costs | D203: $mm const | F203: =CHOOSE($G$193,F218,F230,F242) -> 0 | G203: 0 | H203: 0 | I203: 0 | J203: 0 | K203: 0 | L203: 0 | M203: 0 | N203: 0 | O203: 0 | P203: 0 | Q203: 0 | R203: 0 | S203: 0 | T203: 0 | U203: 0 | V203: 0 | W203: 0 | X203: 0 | Y203: 0 | Z203: 0 | AA203: 0 | AB203: 0 | AC203: 0 | AD203: 0 | AE203: 0 | AF203: 0 | AG203: 0 | AH203: 0 | AI203: 0 | AJ203: 0 | AK203: 0 | AL203: 0 | AM203: 0 | AN203: 0 | AO203: 0 | AP203: 0 | AQ203: 0 | AR203: 0 | AS203: 0 | AT203: 0 | AU203: 0 | AV203: 0 | AW203: 0 | AX203: 0 | AY203: 0 | AZ203: 0 | BA203: 0 | BB203: 0 | BC203: 0
C204: Associated mineral (proportion of Gold value) | D204: % | E204: =CHOOSE($G$193,E219,E231,E243) -> 0
C205: Operating costs | D205: $/ounce | E205: =CHOOSE($G$193,E220,E232,E244) -> 485
C208: MINE PROFILES TO SELECT FROM
C210: Large gold mine | F210: 1 | G210: 2 | H210: 3 | I210: 4 | J210: 5 | K210: 6 | L210: 7 | M210: 8 | N210: 9 | O210: 10 | P210: 11 | Q210: 12 | R210: 13 | S210: 14 | T210: 15 | U210: 16 | V210: 17 | W210: 18 | X210: 19 | Y210: 20 | Z210: 21 | AA210: 22 | AB210: 23 | AC210: 24 | AD210: 25 | AE210: 26 | AF210: 27 | AG210: 28 | AH210: 29 | AI210: 30 | AJ210: 31 | AK210: 32 | AL210: 33 | AM210: 34 | AN210: 35 | AO210: 36 | AP210: 37 | AQ210: 38 | AR210: 39 | AS210: 40 | AT210: 41 | AU210: 42 | AV210: 43 | AW210: 44 | AX210: 45 | AY210: 46 | AZ210: 47 | BA210: 48 | BB210: 49 | BC210: 50
C211: ="Production of "&C6 -> Production of Gold | D211: ounces | E211: =SUM(F211:BC211) -> 6000000 | F211: 0 | G211: 0 | H211: 125000 | I211: 250000 | J211: 250000 | K211: 250000 | L211: 250000 | M211: 250000 | N211: 250000 | O211: 250000 | P211: 250000 | Q211: 250000 | R211: 250000 | S211: 250000 | T211: 250000 | U211: 250000 | V211: 250000 | W211: 250000 | X211: 250000 | Y211: 250000 | Z211: 250000 | AA211: 250000 | AB211: 250000 | AC211: 250000 | AD211: 250000 | AE211: 250000 | AF211: 125000 | AG211: 0 | AH211: 0 | AI211: 0 | AJ211: 0 | AK211: 0 | AL211: 0 | AM211: 0 | AN211: 0 | AO211: 0 | AP211: 0 | AQ211: 0 | AR211: 0 | AS211: 0 | AT211: 0 | AU211: 0 | AV211: 0 | AW211: 0 | AX211: 0 | AY211: 0 | AZ211: 0 | BA211: 0 | BB211: 0 | BC211: 0
C212: Transport post-fiscal point | D212: $mm const | E212: =SUM(F212:BC212) -> 0 | F212: 0 | G212: 0 | H212: 0 | I212: 0 | J212: 0 | K212: 0 | L212: 0 | M212: 0 | N212: 0 | O212: 0 | P212: 0 | Q212: 0 | R212: 0 | S212: 0 | T212: 0 | U212: 0 | V212: 0 | W212: 0 | X212: 0 | Y212: 0 | Z212: 0 | AA212: 0 | AB212: 0 | AC212: 0 | AD212: 0 | AE212: 0 | AF212: 0 | AG212: 0 | AH212: 0 | AI212: 0 | AJ212: 0 | AK212: 0 | AL212: 0 | AM212: 0 | AN212: 0 | AO212: 0 | AP212: 0 | AQ212: 0 | AR212: 0 | AS212: 0 | AT212: 0 | AU212: 0 | AV212: 0 | AW212: 0 | AX212: 0 | AY212: 0 | AZ212: 0 | BA212: 0 | BB212: 0 | BC212: 0
C213: Processing and refining post-fiscal point | D213: $mm const | E213: 30 | F213: 0 | G213: 0 | H213: 0.625 | I213: 1.25 | J213: 1.25 | K213: 1.25 | L213: 1.25 | M213: 1.25 | N213: 1.25 | O213: 1.25 | P213: 1.25 | Q213: 1.25 | R213: 1.25 | S213: 1.25 | T213: 1.25 | U213: 1.25 | V213: 1.25 | W213: 1.25 | X213: 1.25 | Y213: 1.25 | Z213: 1.25 | AA213: 1.25 | AB213: 1.25 | AC213: 1.25 | AD213: 1.25 | AE213: 1.25 | AF213: 0.625 | AG213: 0 | AH213: 0 | AI213: 0 | AJ213: 0 | AK213: 0 | AL213: 0 | AM213: 0 | AN213: 0 | AO213: 0 | AP213: 0 | AQ213: 0 | AR213: 0 | AS213: 0 | AT213: 0 | AU213: 0 | AV213: 0 | AW213: 0 | AX213: 0 | AY213: 0 | AZ213: 0 | BA213: 0 | BB213: 0 | BC213: 0
C214: Exploration costs (expensable) | D214: $mm const | E214: 0 | F214: 0 | G214: 0 | H214: 0 | I214: 0 | J214: 0 | K214: 0 | L214: 0 | M214: 0 | N214: 0 | O214: 0 | P214: 0 | Q214: 0 | R214: 0 | S214: 0 | T214: 0 | U214: 0 | V214: 0 | W214: 0 | X214: 0 | Y214: 0 | Z214: 0 | AA214: 0 | AB214: 0 | AC214: 0 | AD214: 0 | AE214: 0 | AF214: 0 | AG214: 0 | AH214: 0 | AI214: 0 | AJ214: 0 | AK214: 0 | AL214: 0 | AM214: 0 | AN214: 0 | AO214: 0 | AP214: 0 | AQ214: 0 | AR214: 0 | AS214: 0 | AT214: 0 | AU214: 0 | AV214: 0 | AW214: 0 | AX214: 0 | AY214: 0 | AZ214: 0 | BA214: 0 | BB214: 0 | BC214: 0
C215: Development costs - intangibles (expensable) | D215: $mm const | E215: 0 | F215: 0 | G215: 0 | H215: 0 | I215: 0 | J215: 0 | K215: 0 | L215: 0 | M215: 0 | N215: 0 | O215: 0 | P215: 0 | Q215: 0 | R215: 0 | S215: 0 | T215: 0 | U215: 0 | V215: 0 | W215: 0 | X215: 0 | Y215: 0 | Z215: 0 | AA215: 0 | AB215: 0 | AC215: 0 | AD215: 0 | AE215: 0 | AF215: 0 | AG215: 0 | AH215: 0 | AI215: 0 | AJ215: 0 | AK215: 0 | AL215: 0 | AM215: 0 | AN215: 0 | AO215: 0 | AP215: 0 | AQ215: 0 | AR215: 0 | AS215: 0 | AT215: 0 | AU215: 0 | AV215: 0 | AW215: 0 | AX215: 0 | AY215: 0 | AZ215: 0 | BA215: 0 | BB215: 0 | BC215: 0
C216: Development costs - tangibles (depreciable) | D216: $mm const | E216: =SUM(F216:BC216) -> 420 | F216: 80 | G216: 160 | H216: 80 | I216: 0 | J216: 0 | K216: 0 | L216: 0 | M216: 0 | N216: 0 | O216: 0 | P216: 0 | Q216: 0 | R216: 0 | S216: 50 | T216: 50 | U216: 0 | V216: 0 | W216: 0 | X216: 0 | Y216: 0 | Z216: 0 | AA216: 0 | AB216: 0 | AC216: 0 | AD216: 0 | AE216: 0 | AF216: 0 | AG216: 0 | AH216: 0 | AI216: 0 | AJ216: 0 | AK216: 0 | AL216: 0 | AM216: 0 | AN216: 0 | AO216: 0 | AP216: 0 | AQ216: 0 | AR216: 0 | AS216: 0 | AT216: 0 | AU216: 0 | AV216: 0 | AW216: 0 | AX216: 0 | AY216: 0 | AZ216: 0 | BA216: 0 | BB216: 0 | BC216: 0
C217: Replacement capital costs (depreciable) | D217: $mm const | E217: =SUM(F217:BC217) -> 105 | F217: 0 | G217: 0 | H217: 4.2 | I217: 4.2 | J217: 4.2 | K217: 4.2 | L217: 4.2 | M217: 4.2 | N217: 4.2 | O217: 4.2 | P217: 4.2 | Q217: 4.2 | R217: 4.2 | S217: 4.2 | T217: 4.2 | U217: 4.2 | V217: 4.2 | W217: 4.2 | X217: 4.2 | Y217: 4.2 | Z217: 4.2 | AA217: 4.2 | AB217: 4.2 | AC217: 4.2 | AD217: 4.2 | AE217: 4.2 | AF217: 4.2 | AG217: 0 | AH217: 0 | AI217: 0 | AJ217: 0 | AK217: 0 | AL217: 0 | AM217: 0 | AN217: 0 | AO217: 0 | AP217: 0 | AQ217: 0 | AR217: 0 | AS217: 0 | AT217: 0 | AU217: 0 | AV217: 0 | AW217: 0 | AX217: 0 | AY217: 0 | AZ217: 0 | BA217: 0 | BB217: 0 | BC217: 0
C218: Decommissioning costs | D218: $mm const | E218: 0 | F218: 0 | G218: 0 | H218: 0 | I218: 0 | J218: 0 | K218: 0 | L218: 0 | M218: 0 | N218: 0 | O218: 0 | P218: 0 | Q218: 0 | R218: 0 | S218: 0 | T218: 0 | U218: 0 | V218: 0 | W218: 0 | X218: 0 | Y218: 0 | Z218: 0 | AA218: 0 | AB218: 0 | AC218: 0 | AD218: 0 | AE218: 0 | AF218: 0 | AG218: 0 | AH218: 0 | AI218: 0 | AJ218: 0 | AK218: 0 | AL218: 0 | AM218: 0 | AN218: 0 | AO218: 0 | AP218: 0 | AQ218: 0 | AR218: 0 | AS218: 0 | AT218: 0 | AU218: 0 | AV218: 0 | AW218: 0 | AX218: 0 | AY218: 0 | AZ218: 0 | BA218: 0 | BB218: 0 | BC218: 0
C219: ="Associated mineral (proportion of "&C6&" value)" -> Associated mineral (proportion of Gold value) | D219: % | E219: 0
C220: Operating costs | D220: $/ounce | E220: 485
C222: Small gold mine | F222: 1 | G222: 2 | H222: 3 | I222: 4 | J222: 5 | K222: 6 | L222: 7 | M222: 8 | N222: 9 | O222: 10 | P222: 11 | Q222: 12 | R222: 13 | S222: 14 | T222: 15 | U222: 16 | V222: 17 | W222: 18 | X222: 19 | Y222: 20 | Z222: 21 | AA222: 22 | AB222: 23 | AC222: 24 | AD222: 25 | AE222: 26 | AF222: 27 | AG222: 28 | AH222: 29 | AI222: 30 | AJ222: 31 | AK222: 32 | AL222: 33 | AM222: 34 | AN222: 35 | AO222: 36 | AP222: 37 | AQ222: 38 | AR222: 39 | AS222: 40 | AT222: 41 | AU222: 42 | AV222: 43 | AW222: 44 | AX222: 45 | AY222: 46 | AZ222: 47 | BA222: 48 | BB222: 49 | BC222: 50
C223: ="Production of "&C6 -> Production of Gold | D223: ounces | E223: =SUM(F223:BC223) -> 800000 | F223: 0 | G223: 0 | H223: 40000 | I223: 80000 | J223: 80000 | K223: 80000 | L223: 80000 | M223: 80000 | N223: 80000 | O223: 80000 | P223: 80000 | Q223: 80000 | R223: 40000 | S223: 0 | T223: 0 | U223: 0 | V223: 0 | W223: 0 | X223: 0 | Y223: 0 | Z223: 0 | AA223: 0 | AB223: 0 | AC223: 0 | AD223: 0 | AE223: 0 | AF223: 0 | AG223: 0 | AH223: 0 | AI223: 0 | AJ223: 0 | AK223: 0 | AL223: 0 | AM223: 0 | AN223: 0 | AO223: 0 | AP223: 0 | AQ223: 0 | AR223: 0 | AS223: 0 | AT223: 0 | AU223: 0 | AV223: 0 | AW223: 0 | AX223: 0 | AY223: 0 | AZ223: 0 | BA223: 0 | BB223: 0 | BC223: 0
C224: Transport post-fiscal point | D224: $mm const | E224: 0 | F224: 0 | G224: 0 | H224: 0 | I224: 0 | J224: 0 | K224: 0 | L224: 0 | M224: 0 | N224: 0 | O224: 0 | P224: 0 | Q224: 0 | R224: 0 | S224: 0 | T224: 0 | U224: 0 | V224: 0 | W224: 0 | X224: 0 | Y224: 0 | Z224: 0 | AA224: 0 | AB224: 0 | AC224: 0 | AD224: 0 | AE224: 0 | AF224: 0 | AG224: 0 | AH224: 0 | AI224: 0 | AJ224: 0 | AK224: 0 | AL224: 0 | AM224: 0 | AN224: 0 | AO224: 0 | AP224: 0 | AQ224: 0 | AR224: 0 | AS224: 0 | AT224: 0 | AU224: 0 | AV224: 0 | AW224: 0 | AX224: 0 | AY224: 0 | AZ224: 0 | BA224: 0 | BB224: 0 | BC224: 0
C225: Processing and refining post-fiscal point | D225: $mm const | E225: 4 | F225: 0 | G225: 0 | H225: 0.2 | I225: 0.4 | J225: 0.4 | K225: 0.4 | L225: 0.4 | M225: 0.4 | N225: 0.4 | O225: 0.4 | P225: 0.4 | Q225: 0.4 | R225: 0.2 | S225: 0 | T225: 0 | U225: 0 | V225: 0 | W225: 0 | X225: 0 | Y225: 0 | Z225: 0 | AA225: 0 | AB225: 0 | AC225: 0 | AD225: 0 | AE225: 0 | AF225: 0 | AG225: 0 | AH225: 0 | AI225: 0 | AJ225: 0 | AK225: 0 | AL225: 0 | AM225: 0 | AN225: 0 | AO225: 0 | AP225: 0 | AQ225: 0 | AR225: 0 | AS225: 0 | AT225: 0 | AU225: 0 | AV225: 0 | AW225: 0 | AX225: 0 | AY225: 0 | AZ225: 0 | BA225: 0 | BB225: 0 | BC225: 0
C226: Exploration costs (expensable) | D226: $mm const | E226: 0 | F226: 0 | G226: 0 | H226: 0 | I226: 0 | J226: 0 | K226: 0 | L226: 0 | M226: 0 | N226: 0 | O226: 0 | P226: 0 | Q226: 0 | R226: 0 | S226: 0 | T226: 0 | U226: 0 | V226: 0 | W226: 0 | X226: 0 | Y226: 0 | Z226: 0 | AA226: 0 | AB226: 0 | AC226: 0 | AD226: 0 | AE226: 0 | AF226: 0 | AG226: 0 | AH226: 0 | AI226: 0 | AJ226: 0 | AK226: 0 | AL226: 0 | AM226: 0 | AN226: 0 | AO226: 0 | AP226: 0 | AQ226: 0 | AR226: 0 | AS226: 0 | AT226: 0 | AU226: 0 | AV226: 0 | AW226: 0 | AX226: 0 | AY226: 0 | AZ226: 0 | BA226: 0 | BB226: 0 | BC226: 0
... 24 more rows

Sheet Model
B2: Model
A5: Error check:
A6: =AND(A$9:A$1048576) -> TRUE | E6: year | G6: 1 | H6: =G6+1 -> 2 | I6: 3 | J6: 4 | K6: 5 | L6: 6 | M6: 7 | N6: 8 | O6: 9 | P6: 10 | Q6: 11 | R6: 12 | S6: 13 | T6: 14 | U6: 15 | V6: 16 | W6: 17 | X6: 18 | Y6: 19 | Z6: 20 | AA6: 21 | AB6: 22 | AC6: 23 | AD6: 24 | AE6: 25 | AF6: 26 | AG6: 27 | AH6: 28 | AI6: 29 | AJ6: 30 | AK6: 31 | AL6: 32 | AM6: 33 | AN6: =AM6+1 -> 34 | AO6: 35 | AP6: 36 | AQ6: 37 | AR6: 38 | AS6: 39 | AT6: 40 | AU6: 41 | AV6: 42 | AW6: 43 | AX6: 44 | AY6: 45 | AZ6: 46 | BA6: 47 | BB6: 48 | BC6: 49 | BD6: 50
B8: Project cashflow
D11: Project Pre-Tax Cash Flow: Real | E11: year | G11: =G$6 -> 1 | H11: 2 | I11: 3 | J11: 4 | K11: 5 | L11: 6 | M11: 7 | N11: 8 | O11: 9 | P11: 10 | Q11: 11 | R11: 12 | S11: 13 | T11: 14 | U11: 15 | V11: 16 | W11: 17 | X11: 18 | Y11: 19 | Z11: 20 | AA11: 21 | AB11: 22 | AC11: 23 | AD11: 24 | AE11: 25 | AF11: 26 | AG11: 27 | AH11: 28 | AI11: 29 | AJ11: 30 | AK11: 31 | AL11: 32 | AM11: =AM$6 -> 33 | AN11: 34 | AO11: 35 | AP11: 36 | AQ11: 37 | AR11: 38 | AS11: 39 | AT11: 40 | AU11: 41 | AV11: 42 | AW11: 43 | AX11: 44 | AY11: 45 | AZ11: 46 | BA11: 47 | BB11: 48 | BC11: 49 | BD11: 50
C12: =SUM(G12:BD12) -> 6000000 | D12: Production | E12: =Inputs!D196 -> ounces | G12: =Inputs!F196 -> 0 | H12: =Inputs!G196 -> 0 | I12: =Inputs!H196 -> 125000 | J12: =Inputs!I196 -> 250000 | K12: =Inputs!J196 -> 250000 | L12: =Inputs!K196 -> 250000 | M12: =Inputs!L196 -> 250000 | N12: =Inputs!M196 -> 250000 | O12: =Inputs!N196 -> 250000 | P12: =Inputs!O196 -> 250000 | Q12: =Inputs!P196 -> 250000 | R12: =Inputs!Q196 -> 250000 | S12: =Inputs!R196 -> 250000 | T12: =Inputs!S196 -> 250000 | U12: =Inputs!T196 -> 250000 | V12: =Inputs!U196 -> 250000 | W12: =Inputs!V196 -> 250000 | X12: =Inputs!W196 -> 250000 | Y12: =Inputs!X196 -> 250000 | Z12: =Inputs!Y196 -> 250000 | AA12: =Inputs!Z196 -> 250000 | AB12: =Inputs!AA196 -> 250000 | AC12: =Inputs!AB196 -> 250000 | AD12: =Inputs!AC196 -> 250000 | AE12: =Inputs!AD196 -> 250000 | AF12: =Inputs!AE196 -> 250000 | AG12: =Inputs!AF196 -> 125000 | AH12: =Inputs!AG196 -> 0 | AI12: =Inputs!AH196 -> 0 | AJ12: =Inputs!AI196 -> 0 | AK12: =Inputs!AJ196 -> 0 | AL12: =Inputs!AK196 -> 0 | AM12: =Inputs!AL196 -> 0 | AN12: =Inputs!AM196 -> 0 | AO12: =Inputs!AN196 -> 0 | AP12: =Inputs!AO196 -> 0 | AQ12: =Inputs!AP196 -> 0 | AR12: =Inputs!AQ196 -> 0 | AS12: =Inputs!AR196 -> 0 | AT12: =Inputs!AS196 -> 0 | AU12: =Inputs!AT196 -> 0 | AV12: =Inputs!AU196 -> 0 | AW12: =Inputs!AV196 -> 0 | AX12: =Inputs!AW196 -> 0 | AY12: =Inputs!AX196 -> 0 | AZ12: =Inputs!AY196 -> 0 | BA12: =Inputs!AZ196 -> 0 | BB12: =Inputs!BA196 -> 0 | BC12: =Inputs!BB196 -> 0 | BD12: =Inputs!BC196 -> 0
C13: 8400 | D13: Primary revenue | E13: $mm const | G13: =G12*Inputs!F187/1000000 -> 0 | H13: =H12*Inputs!G187/1000000 -> 0 | I13: =I12*Inputs!H187/1000000 -> 175 | J13: =J12*Inputs!I187/1000000 -> 350 | K13: =K12*Inputs!J187/1000000 -> 350 | L13: =L12*Inputs!K187/1000000 -> 350 | M13: =M12*Inputs!L187/1000000 -> 350 | N13: =N12*Inputs!M187/1000000 -> 350 | O13: =O12*Inputs!N187/1000000 -> 350 | P13: =P12*Inputs!O187/1000000 -> 350 | Q13: =Q12*Inputs!P187/1000000 -> 350 | R13: =R12*Inputs!Q187/1000000 -> 350 | S13: =S12*Inputs!R187/1000000 -> 350 | T13: =T12*Inputs!S187/1000000 -> 350 | U13: =U12*Inputs!T187/1000000 -> 350 | V13: =V12*Inputs!U187/1000000 -> 350 | W13: =W12*Inputs!V187/1000000 -> 350 | X13: =X12*Inputs!W187/1000000 -> 350 | Y13: =Y12*Inputs!X187/1000000 -> 350 | Z13: =Z12*Inputs!Y187/1000000 -> 350 | AA13: =AA12*Inputs!Z187/1000000 -> 350 | AB13: =AB12*Inputs!AA187/1000000 -> 350 | AC13: =AC12*Inputs!AB187/1000000 -> 350 | AD13: =AD12*Inputs!AC187/1000000 -> 350 | AE13: =AE12*Inputs!AD187/1000000 -> 350 | AF13: =AF12*Inputs!AE187/1000000 -> 350 | AG13: =AG12*Inputs!AF187/1000000 -> 175 | AH13: =AH12*Inputs!AG187/1000000 -> 0 | AI13: =AI12*Inputs!AH187/1000000 -> 0 | AJ13: =AJ12*Inputs!AI187/1000000 -> 0 | AK13: =AK12*Inputs!AJ187/1000000 -> 0 | AL13: =AL12*Inputs!AK187/1000000 -> 0 | AM13: =AM12*Inputs!AL187/1000000 -> 0 | AN13: =AN12*Inputs!AM187/1000000 -> 0 | AO13: =AO12*Inputs!AN187/1000000 -> 0 | AP13: =AP12*Inputs!AO187/1000000 -> 0 | AQ13: =AQ12*Inputs!AP187/1000000 -> 0 | AR13: =AR12*Inputs!AQ187/1000000 -> 0 | AS13: =AS12*Inputs!AR187/1000000 -> 0 | AT13: =AT12*Inputs!AS187/1000000 -> 0 | AU13: =AU12*Inputs!AT187/1000000 -> 0 | AV13: =AV12*Inputs!AU187/1000000 -> 0 | AW13: =AW12*Inputs!AV187/1000000 -> 0 | AX13: =AX12*Inputs!AW187/1000000 -> 0 | AY13: =AY12*Inputs!AX187/1000000 -> 0 | AZ13: =AZ12*Inputs!AY187/1000000 -> 0 | BA13: =BA12*Inputs!AZ187/1000000 -> 0 | BB13: =BB12*Inputs!BA187/1000000 -> 0 | BC13: =BC12*Inputs!BB187/1000000 -> 0 | BD13: =BD12*Inputs!BC187/1000000 -> 0
C14: 0 | D14: Co-produce revenue | E14: $mm const | G14: =G13*Inputs!$E$204 -> 0 | H14: =H13*Inputs!$E$204 -> 0 | I14: =I13*Inputs!$E$204 -> 0 | J14: =J13*Inputs!$E$204 -> 0 | K14: =K13*Inputs!$E$204 -> 0 | L14: =L13*Inputs!$E$204 -> 0 | M14: =M13*Inputs!$E$204 -> 0 | N14: =N13*Inputs!$E$204 -> 0 | O14: =O13*Inputs!$E$204 -> 0 | P14: =P13*Inputs!$E$204 -> 0 | Q14: =Q13*Inputs!$E$204 -> 0 | R14: =R13*Inputs!$E$204 -> 0 | S14: =S13*Inputs!$E$204 -> 0 | T14: =T13*Inputs!$E$204 -> 0 | U14: =U13*Inputs!$E$204 -> 0 | V14: =V13*Inputs!$E$204 -> 0 | W14: =W13*Inputs!$E$204 -> 0 | X14: =X13*Inputs!$E$204 -> 0 | Y14: =Y13*Inputs!$E$204 -> 0 | Z14: =Z13*Inputs!$E$204 -> 0 | AA14: =AA13*Inputs!$E$204 -> 0 | AB14: =AB13*Inputs!$E$204 -> 0 | AC14: =AC13*Inputs!$E$204 -> 0 | AD14: =AD13*Inputs!$E$204 -> 0 | AE14: =AE13*Inputs!$E$204 -> 0 | AF14: =AF13*Inputs!$E$204 -> 0 | AG14: =AG13*Inputs!$E$204 -> 0 | AH14: =AH13*Inputs!$E$204 -> 0 | AI14: =AI13*Inputs!$E$204 -> 0 | AJ14: =AJ13*Inputs!$E$204 -> 0 | AK14: =AK13*Inputs!$E$204 -> 0 | AL14: =AL13*Inputs!$E$204 -> 0 | AM14: =AM13*Inputs!$E$204 -> 0 | AN14: =AN13*Inputs!$E$204 -> 0 | AO14: =AO13*Inputs!$E$204 -> 0 | AP14: =AP13*Inputs!$E$204 -> 0 | AQ14: =AQ13*Inputs!$E$204 -> 0 | AR14: =AR13*Inputs!$E$204 -> 0 | AS14: =AS13*Inputs!$E$204 -> 0 | AT14: =AT13*Inputs!$E$204 -> 0 | AU14: =AU13*Inputs!$E$204 -> 0 | AV14: =AV13*Inputs!$E$204 -> 0 | AW14: =AW13*Inputs!$E$204 -> 0 | AX14: =AX13*Inputs!$E$204 -> 0 | AY14: =AY13*Inputs!$E$204 -> 0 | AZ14: =AZ13*Inputs!$E$204 -> 0 | BA14: =BA13*Inputs!$E$204 -> 0 | BB14: =BB13*Inputs!$E$204 -> 0 | BC14: =BC13*Inputs!$E$204 -> 0 | BD14: =BD13*Inputs!$E$204 -> 0
C15: 8400 | D15: Total gross revenue | E15: $mm const | G15: =SUM(G13:G14) -> 0 | H15: =SUM(H13:H14) -> 0 | I15: 175 | J15: 350 | K15: 350 | L15: 350 | M15: 350 | N15: 350 | O15: 350 | P15: 350 | Q15: 350 | R15: 350 | S15: 350 | T15: 350 | U15: 350 | V15: 350 | W15: 350 | X15: 350 | Y15: 350 | Z15: 350 | AA15: 350 | AB15: 350 | AC15: 350 | AD15: 350 | AE15: 350 | AF15: 350 | AG15: 175 | AH15: 0 | AI15: 0 | AJ15: 0 | AK15: 0 | AL15: 0 | AM15: 0 | AN15: 0 | AO15: 0 | AP15: 0 | AQ15: 0 | AR15: 0 | AS15: 0 | AT15: 0 | AU15: 0 | AV15: 0 | AW15: 0 | AX15: 0 | AY15: 0 | AZ15: 0 | BA15: 0 | BB15: 0 | BC15: 0 | BD15: 0
C16: 30 | D16: Transport and processing post-fiscal point | E16: $mm const | G16: =Inputs!F197+Inputs!F198 -> 0 | H16: =Inputs!G197+Inputs!G198 -> 0 | I16: =Inputs!H197+Inputs!H198 -> 0.625 | J16: =Inputs!I197+Inputs!I198 -> 1.25 | K16: =Inputs!J197+Inputs!J198 -> 1.25 | L16: =Inputs!K197+Inputs!K198 -> 1.25 | M16: =Inputs!L197+Inputs!L198 -> 1.25 | N16: =Inputs!M197+Inputs!M198 -> 1.25 | O16: =Inputs!N197+Inputs!N198 -> 1.25 | P16: =Inputs!O197+Inputs!O198 -> 1.25 | Q16: =Inputs!P197+Inputs!P198 -> 1.25 | R16: =Inputs!Q197+Inputs!Q198 -> 1.25 | S16: =Inputs!R197+Inputs!R198 -> 1.25 | T16: =Inputs!S197+Inputs!S198 -> 1.25 | U16: =Inputs!T197+Inputs!T198 -> 1.25 | V16: =Inputs!U197+Inputs!U198 -> 1.25 | W16: =Inputs!V197+Inputs!V198 -> 1.25 | X16: =Inputs!W197+Inputs!W198 -> 1.25 | Y16: =Inputs!X197+Inputs!X198 -> 1.25 | Z16: =Inputs!Y197+Inputs!Y198 -> 1.25 | AA16: =Inputs!Z197+Inputs!Z198 -> 1.25 | AB16: =Inputs!AA197+Inputs!AA198 -> 1.25 | AC16: =Inputs!AB197+Inputs!AB198 -> 1.25 | AD16: =Inputs!AC197+Inputs!AC198 -> 1.25 | AE16: =Inputs!AD197+Inputs!AD198 -> 1.25 | AF16: =Inputs!AE197+Inputs!AE198 -> 1.25 | AG16: =Inputs!AF197+Inputs!AF198 -> 0.625 | AH16: =Inputs!AG197+Inputs!AG198 -> 0 | AI16: =Inputs!AH197+Inputs!AH198 -> 0 | AJ16: =Inputs!AI197+Inputs!AI198 -> 0 | AK16: =Inputs!AJ197+Inputs!AJ198 -> 0 | AL16: =Inputs!AK197+Inputs!AK198 -> 0 | AM16: =Inputs!AL197+Inputs!AL198 -> 0 | AN16: =Inputs!AM197+Inputs!AM198 -> 0 | AO16: =Inputs!AN197+Inputs!AN198 -> 0 | AP16: =Inputs!AO197+Inputs!AO198 -> 0 | AQ16: =Inputs!AP197+Inputs!AP198 -> 0 | AR16: =Inputs!AQ197+Inputs!AQ198 -> 0 | AS16: =Inputs!AR197+Inputs!AR198 -> 0 | AT16: =Inputs!AS197+Inputs!AS198 -> 0 | AU16: =Inputs!AT197+Inputs!AT198 -> 0 | AV16: =Inputs!AU197+Inputs!AU198 -> 0 | AW16: =Inputs!AV197+Inputs!AV198 -> 0 | AX16: =Inputs!AW197+Inputs!AW198 -> 0 | AY16: =Inputs!AX197+Inputs!AX198 -> 0 | AZ16: =Inputs!AY197+Inputs!AY198 -> 0 | BA16: =Inputs!AZ197+Inputs!AZ198 -> 0 | BB16: =Inputs!BA197+Inputs!BA198 -> 0 | BC16: =Inputs!BB197+Inputs!BB198 -> 0 | BD16: =Inputs!BC197+Inputs!BC198 -> 0
A17: =ROUND(C17-(C15-C16),5)=0 -> TRUE | C17: =SUM(G17:BD17) -> 8370 | D17: Net revenue | E17: $mm const | G17: =G15-G16 -> 0 | H17: =H15-H16 -> 0 | I17: 174.375 | J17: 348.75 | K17: 348.75 | L17: 348.75 | M17: 348.75 | N17: 348.75 | O17: 348.75 | P17: 348.75 | Q17: 348.75 | R17: 348.75 | S17: 348.75 | T17: 348.75 | U17: 348.75 | V17: 348.75 | W17: 348.75 | X17: 348.75 | Y17: 348.75 | Z17: 348.75 | AA17: 348.75 | AB17: 348.75 | AC17: 348.75 | AD17: 348.75 | AE17: 348.75 | AF17: 348.75 | AG17: 174.375 | AH17: 0 | AI17: 0 | AJ17: 0 | AK17: 0 | AL17: 0 | AM17: 0 | AN17: 0 | AO17: 0 | AP17: 0 | AQ17: 0 | AR17: 0 | AS17: 0 | AT17: 0 | AU17: 0 | AV17: 0 | AW17: 0 | AX17: 0 | AY17: 0 | AZ17: 0 | BA17: 0 | BB17: 0 | BC17: 0 | BD17: 0
C18: 0 | D18: Exploration costs (expensed) | E18: $mm const | G18: =Inputs!F199 -> 0 | H18: =Inputs!G199 -> 0 | I18: =Inputs!H199 -> 0 | J18: =Inputs!I199 -> 0 | K18: =Inputs!J199 -> 0 | L18: =Inputs!K199 -> 0 | M18: =Inputs!L199 -> 0 | N18: =Inputs!M199 -> 0 | O18: =Inputs!N199 -> 0 | P18: =Inputs!O199 -> 0 | Q18: =Inputs!P199 -> 0 | R18: =Inputs!Q199 -> 0 | S18: =Inputs!R199 -> 0 | T18: =Inputs!S199 -> 0 | U18: =Inputs!T199 -> 0 | V18: =Inputs!U199 -> 0 | W18: =Inputs!V199 -> 0 | X18: =Inputs!W199 -> 0 | Y18: =Inputs!X199 -> 0 | Z18: =Inputs!Y199 -> 0 | AA18: =Inputs!Z199 -> 0 | AB18: =Inputs!AA199 -> 0 | AC18: =Inputs!AB199 -> 0 | AD18: =Inputs!AC199 -> 0 | AE18: =Inputs!AD199 -> 0 | AF18: =Inputs!AE199 -> 0 | AG18: =Inputs!AF199 -> 0 | AH18: =Inputs!AG199 -> 0 | AI18: =Inputs!AH199 -> 0 | AJ18: =Inputs!AI199 -> 0 | AK18: =Inputs!AJ199 -> 0 | AL18: =Inputs!AK199 -> 0 | AM18: =Inputs!AL199 -> 0 | AN18: =Inputs!AM199 -> 0 | AO18: =Inputs!AN199 -> 0 | AP18: =Inputs!AO199 -> 0 | AQ18: =Inputs!AP199 -> 0 | AR18: =Inputs!AQ199 -> 0 | AS18: =Inputs!AR199 -> 0 | AT18: =Inputs!AS199 -> 0 | AU18: =Inputs!AT199 -> 0 | AV18: =Inputs!AU199 -> 0 | AW18: =Inputs!AV199 -> 0 | AX18: =Inputs!AW199 -> 0 | AY18: =Inputs!AX199 -> 0 | AZ18: =Inputs!AY199 -> 0 | BA18: =Inputs!AZ199 -> 0 | BB18: =Inputs!BA199 -> 0 | BC18: =Inputs!BB199 -> 0 | BD18: =Inputs!BC199 -> 0
C19: 0 | D19: Development costs - intangibles (expensable) | E19: $mm const | G19: =Inputs!F200 -> 0 | H19: =Inputs!G200 -> 0 | I19: =Inputs!H200 -> 0 | J19: =Inputs!I200 -> 0 | K19: =Inputs!J200 -> 0 | L19: =Inputs!K200 -> 0 | M19: =Inputs!L200 -> 0 | N19: =Inputs!M200 -> 0 | O19: =Inputs!N200 -> 0 | P19: =Inputs!O200 -> 0 | Q19: =Inputs!P200 -> 0 | R19: =Inputs!Q200 -> 0 | S19: =Inputs!R200 -> 0 | T19: =Inputs!S200 -> 0 | U19: =Inputs!T200 -> 0 | V19: =Inputs!U200 -> 0 | W19: =Inputs!V200 -> 0 | X19: =Inputs!W200 -> 0 | Y19: =Inputs!X200 -> 0 | Z19: =Inputs!Y200 -> 0 | AA19: =Inputs!Z200 -> 0 | AB19: =Inputs!AA200 -> 0 | AC19: =Inputs!AB200 -> 0 | AD19: =Inputs!AC200 -> 0 | AE19: =Inputs!AD200 -> 0 | AF19: =Inputs!AE200 -> 0 | AG19: =Inputs!AF200 -> 0 | AH19: =Inputs!AG200 -> 0 | AI19: =Inputs!AH200 -> 0 | AJ19: =Inputs!AI200 -> 0 | AK19: =Inputs!AJ200 -> 0 | AL19: =Inputs!AK200 -> 0 | AM19: =Inputs!AL200 -> 0 | AN19: =Inputs!AM200 -> 0 | AO19: =Inputs!AN200 -> 0 | AP19: =Inputs!AO200 -> 0 | AQ19: =Inputs!AP200 -> 0 | AR19: =Inputs!AQ200 -> 0 | AS19: =Inputs!AR200 -> 0 | AT19: =Inputs!AS200 -> 0 | AU19: =Inputs!AT200 -> 0 | AV19: =Inputs!AU200 -> 0 | AW19: =Inputs!AV200 -> 0 | AX19: =Inputs!AW200 -> 0 | AY19: =Inputs!AX200 -> 0 | AZ19: =Inputs!AY200 -> 0 | BA19: =Inputs!AZ200 -> 0 | BB19: =Inputs!BA200 -> 0 | BC19: =Inputs!BB200 -> 0 | BD19: =Inputs!BC200 -> 0
C20: 420 | D20: Development costs - tangibles (depreciable) | E20: $mm const | G20: =Inputs!F201 -> 80 | H20: =Inputs!G201 -> 160 | I20: =Inputs!H201 -> 80 | J20: =Inputs!I201 -> 0 | K20: =Inputs!J201 -> 0 | L20: =Inputs!K201 -> 0 | M20: =Inputs!L201 -> 0 | N20: =Inputs!M201 -> 0 | O20: =Inputs!N201 -> 0 | P20: =Inputs!O201 -> 0 | Q20: =Inputs!P201 -> 0 | R20: =Inputs!Q201 -> 0 | S20: =Inputs!R201 -> 0 | T20: =Inputs!S201 -> 50 | U20: =Inputs!T201 -> 50 | V20: =Inputs!U201 -> 0 | W20: =Inputs!V201 -> 0 | X20: =Inputs!W201 -> 0 | Y20: =Inputs!X201 -> 0 | Z20: =Inputs!Y201 -> 0 | AA20: =Inputs!Z201 -> 0 | AB20: =Inputs!AA201 -> 0 | AC20: =Inputs!AB201 -> 0 | AD20: =Inputs!AC201 -> 0 | AE20: =Inputs!AD201 -> 0 | AF20: =Inputs!AE201 -> 0 | AG20: =Inputs!AF201 -> 0 | AH20: =Inputs!AG201 -> 0 | AI20: =Inputs!AH201 -> 0 | AJ20: =Inputs!AI201 -> 0 | AK20: =Inputs!AJ201 -> 0 | AL20: =Inputs!AK201 -> 0 | AM20: =Inputs!AL201 -> 0 | AN20: =Inputs!AM201 -> 0 | AO20: =Inputs!AN201 -> 0 | AP20: =Inputs!AO201 -> 0 | AQ20: =Inputs!AP201 -> 0 | AR20: =Inputs!AQ201 -> 0 | AS20: =Inputs!AR201 -> 0 | AT20: =Inputs!AS201 -> 0 | AU20: =Inputs!AT201 -> 0 | AV20: =Inputs!AU201 -> 0 | AW20: =Inputs!AV201 -> 0 | AX20: =Inputs!AW201 -> 0 | AY20: =Inputs!AX201 -> 0 | AZ20: =Inputs!AY201 -> 0 | BA20: =Inputs!AZ201 -> 0 | BB20: =Inputs!BA201 -> 0 | BC20: =Inputs!BB201 -> 0 | BD20: =Inputs!BC201 -> 0
C21: 105 | D21: Replacement capital costs (depreciable) | E21: $mm const | G21: =Inputs!F202 -> 0 | H21: =Inputs!G202 -> 0 | I21: =Inputs!H202 -> 4.2 | J21: =Inputs!I202 -> 4.2 | K21: =Inputs!J202 -> 4.2 | L21: =Inputs!K202 -> 4.2 | M21: =Inputs!L202 -> 4.2 | N21: =Inputs!M202 -> 4.2 | O21: =Inputs!N202 -> 4.2 | P21: =Inputs!O202 -> 4.2 | Q21: =Inputs!P202 -> 4.2 | R21: =Inputs!Q202 -> 4.2 | S21: =Inputs!R202 -> 4.2 | T21: =Inputs!S202 -> 4.2 | U21: =Inputs!T202 -> 4.2 | V21: =Inputs!U202 -> 4.2 | W21: =Inputs!V202 -> 4.2 | X21: =Inputs!W202 -> 4.2 | Y21: =Inputs!X202 -> 4.2 | Z21: =Inputs!Y202 -> 4.2 | AA21: =Inputs!Z202 -> 4.2 | AB21: =Inputs!AA202 -> 4.2 | AC21: =Inputs!AB202 -> 4.2 | AD21: =Inputs!AC202 -> 4.2 | AE21: =Inputs!AD202 -> 4.2 | AF21: =Inputs!AE202 -> 4.2 | AG21: =Inputs!AF202 -> 4.2 | AH21: =Inputs!AG202 -> 0 | AI21: =Inputs!AH202 -> 0 | AJ21: =Inputs!AI202 -> 0 | AK21: =Inputs!AJ202 -> 0 | AL21: =Inputs!AK202 -> 0 | AM21: =Inputs!AL202 -> 0 | AN21: =Inputs!AM202 -> 0 | AO21: =Inputs!AN202 -> 0 | AP21: =Inputs!AO202 -> 0 | AQ21: =Inputs!AP202 -> 0 | AR21: =Inputs!AQ202 -> 0 | AS21: =Inputs!AR202 -> 0 | AT21: =Inputs!AS202 -> 0 | AU21: =Inputs!AT202 -> 0 | AV21: =Inputs!AU202 -> 0 | AW21: =Inputs!AV202 -> 0 | AX21: =Inputs!AW202 -> 0 | AY21: =Inputs!AX202 -> 0 | AZ21: =Inputs!AY202 -> 0 | BA21: =Inputs!AZ202 -> 0 | BB21: =Inputs!BA202 -> 0 | BC21: =Inputs!BB202 -> 0 | BD21: =Inputs!BC202 -> 0
C22: =SUM(G22:BD22) -> 2910 | D22: Operating costs | E22: $mm const | G22: =$E$885*G$12/1000000 -> 0 | H22: 0 | I22: 60.625 | J22: 121.25 | K22: 121.25 | L22: 121.25 | M22: 121.25 | N22: 121.25 | O22: 121.25 | P22: 121.25 | Q22: 121.25 | R22: 121.25 | S22: 121.25 | T22: 121.25 | U22: 121.25 | V22: 121.25 | W22: 121.25 | X22: 121.25 | Y22: 121.25 | Z22: 121.25 | AA22: 121.25 | AB22: 121.25 | AC22: 121.25 | AD22: 121.25 | AE22: 121.25 | AF22: 121.25 | AG22: 60.625 | AH22: 0 | AI22: 0 | AJ22: 0 | AK22: 0 | AL22: 0 | AM22: =$E$885*AM$12/1000000 -> 0 | AN22: 0 | AO22: 0 | AP22: 0 | AQ22: 0 | AR22: 0 | AS22: 0 | AT22: 0 | AU22: 0 | AV22: 0 | AW22: 0 | AX22: 0 | AY22: 0 | AZ22: 0 | BA22: 0 | BB22: 0 | BC22: 0 | BD22: 0
C23: 0 | D23: Decommissioning costs | E23: $mm const | G23: =Inputs!F203 -> 0 | H23: =Inputs!G203 -> 0 | I23: =Inputs!H203 -> 0 | J23: =Inputs!I203 -> 0 | K23: =Inputs!J203 -> 0 | L23: =Inputs!K203 -> 0 | M23: =Inputs!L203 -> 0 | N23: =Inputs!M203 -> 0 | O23: =Inputs!N203 -> 0 | P23: =Inputs!O203 -> 0 | Q23: =Inputs!P203 -> 0 | R23: =Inputs!Q203 -> 0 | S23: =Inputs!R203 -> 0 | T23: =Inputs!S203 -> 0 | U23: =Inputs!T203 -> 0 | V23: =Inputs!U203 -> 0 | W23: =Inputs!V203 -> 0 | X23: =Inputs!W203 -> 0 | Y23: =Inputs!X203 -> 0 | Z23: =Inputs!Y203 -> 0 | AA23: =Inputs!Z203 -> 0 | AB23: =Inputs!AA203 -> 0 | AC23: =Inputs!AB203 -> 0 | AD23: =Inputs!AC203 -> 0 | AE23: =Inputs!AD203 -> 0 | AF23: =Inputs!AE203 -> 0 | AG23: =Inputs!AF203 -> 0 | AH23: =Inputs!AG203 -> 0 | AI23: =Inputs!AH203 -> 0 | AJ23: =Inputs!AI203 -> 0 | AK23: =Inputs!AJ203 -> 0 | AL23: =Inputs!AK203 -> 0 | AM23: =Inputs!AL203 -> 0 | AN23: =Inputs!AM203 -> 0 | AO23: =Inputs!AN203 -> 0 | AP23: =Inputs!AO203 -> 0 | AQ23: =Inputs!AP203 -> 0 | AR23: =Inputs!AQ203 -> 0 | AS23: =Inputs!AR203 -> 0 | AT23: =Inputs!AS203 -> 0 | AU23: =Inputs!AT203 -> 0 | AV23: =Inputs!AU203 -> 0 | AW23: =Inputs!AV203 -> 0 | AX23: =Inputs!AW203 -> 0 | AY23: =Inputs!AX203 -> 0 | AZ23: =Inputs!AY203 -> 0 | BA23: =Inputs!AZ203 -> 0 | BB23: =Inputs!BA203 -> 0 | BC23: =Inputs!BB203 -> 0 | BD23: =Inputs!BC203 -> 0
C24: =SUM(G24:BD24) -> 3435 | D24: Total costs | E24: $mm const | G24: =SUM(G18:G23) -> 80 | H24: =SUM(H18:H23) -> 160 | I24: 144.825 | J24: 125.45 | K24: 125.45 | L24: 125.45 | M24: 125.45 | N24: 125.45 | O24: 125.45 | P24: 125.45 | Q24: 125.45 | R24: 125.45 | S24: 125.45 | T24: 175.45 | U24: 175.45 | V24: 125.45 | W24: 125.45 | X24: 125.45 | Y24: 125.45 | Z24: 125.45 | AA24: 125.45 | AB24: 125.45 | AC24: 125.45 | AD24: 125.45 | AE24: 125.45 | AF24: 125.45 | AG24: 64.825 | AH24: 0 | AI24: 0 | AJ24: 0 | AK24: 0 | AL24: 0 | AM24: 0 | AN24: 0 | AO24: 0 | AP24: 0 | AQ24: 0 | AR24: 0 | AS24: 0 | AT24: 0 | AU24: 0 | AV24: 0 | AW24: 0 | AX24: 0 | AY24: 0 | AZ24: 0 | BA24: 0 | BB24: 0 | BC24: 0 | BD24: 0
A25: =ROUND(C25-(C17-SUM(C18:C23)),5)=0 -> TRUE | C25: =SUM(G25:BD25) -> 4935 | D25: Project pre-tax, pre-royalty, customs cash flows | E25: $mm const | G25: =G17-G24 -> -80 | H25: -160 | I25: 29.55 | J25: 223.3 | K25: 223.3 | L25: 223.3 | M25: 223.3 | N25: 223.3 | O25: 223.3 | P25: 223.3 | Q25: 223.3 | R25: 223.3 | S25: 223.3 | T25: 173.3 | U25: 173.3 | V25: 223.3 | W25: 223.3 | X25: 223.3 | Y25: 223.3 | Z25: 223.3 | AA25: 223.3 | AB25: 223.3 | AC25: 223.3 | AD25: 223.3 | AE25: 223.3 | AF25: 223.3 | AG25: 109.55 | AH25: 0 | AI25: 0 | AJ25: 0 | AK25: 0 | AL25: 0 | AM25: =AM17-AM24 -> 0 | AN25: 0 | AO25: 0 | AP25: 0 | AQ25: 0 | AR25: 0 | AS25: 0 | AT25: 0 | AU25: 0 | AV25: 0 | AW25: 0 | AX25: 0 | AY25: 0 | AZ25: 0 | BA25: 0 | BB25: 0 | BC25: 0 | BD25: 0
C27: =IFERROR(IRR($G25:BD25),0) -> 0.5453551743 | D27: Internal rate of return (real) | E27: % | G27: =IFERROR(IRR($G25:G25),"--") -> -- | H27: =IFERROR(IRR($G25:H25),"--") -> -- | I27: =IFERROR(IRR($G25:I25),"--") -> -- | J27: =IFERROR(IRR($G25:J25),"--") -> 0.02379569797 | K27: =IFERROR(IRR($G25:K25),"--") -> 0.2862085373 | L27: =IFERROR(IRR($G25:L25),"--") -> 0.4042677207 | M27: =IFERROR(IRR($G25:M25),"--") -> 0.4643630132 | N27: =IFERROR(IRR($G25:N25),"--") -> 0.4972880582 | O27: =IFERROR(IRR($G25:O25),"--") -> 0.5162257794 | P27: =IFERROR(IRR($G25:P25),"--") -> 0.5274905216 | Q27: =IFERROR(IRR($G25:Q25),"--") -> 0.5343522701 | R27: =IFERROR(IRR($G25:R25),"--") -> 0.5386037156 | S27: =IFERROR(IRR($G25:S25),"--") -> 0.5412703168 | T27: =IFERROR(IRR($G25:T25),"--") -> 0.5425828933 | U27: =IFERROR(IRR($G25:U25),"--") -> 0.5434222114 | V27: =IFERROR(IRR($G25:V25),"--") -> 0.5441154006 | W27: =IFERROR(IRR($G25:W25),"--") -> 0.5445604478 | X27: =IFERROR(IRR($G25:X25),"--") -> 0.5448468527 | Y27: =IFERROR(IRR($G25:Y25),"--") -> 0.5450314721 | Z27: =IFERROR(IRR($G25:Z25),"--") -> 0.5451506192 | AA27: =IFERROR(IRR($G25:AA25),"--") -> 0.5452275761 | AB27: =IFERROR(IRR($G25:AB25),"--") -> 0.5452773108 | AC27: =IFERROR(IRR($G25:AC25),"--") -> 0.5453094657 | AD27: =IFERROR(IRR($G25:AD25),"--") -> 0.5453302604 | AE27: =IFERROR(IRR($G25:AE25),"--") -> 0.545343711 | AF27: =IFERROR(IRR($G25:AF25),"--") -> 0.5453524124 | AG27: =IFERROR(IRR($G25:AG25),"--") -> 0.5453551743 | AH27: =IFERROR(IRR($G25:AH25),"--") -> 0.5453551743 | AI27: =IFERROR(IRR($G25:AI25),"--") -> 0.5453551743 | AJ27: =IFERROR(IRR($G25:AJ25),"--") -> 0.5453551743 | AK27: =IFERROR(IRR($G25:AK25),"--") -> 0.5453551743 | AL27: =IFERROR(IRR($G25:AL25),"--") -> 0.5453551743 | AM27: =IFERROR(IRR($G25:AM25),"--") -> 0.5453551743 | AN27: =IFERROR(IRR($G25:AN25),"--") -> 0.5453551743 | AO27: =IFERROR(IRR($G25:AO25),"--") -> 0.5453551743 | AP27: =IFERROR(IRR($G25:AP25),"--") -> 0.5453551743 | AQ27: =IFERROR(IRR($G25:AQ25),"--") -> 0.5453551743 | AR27: =IFERROR(IRR($G25:AR25),"--") -> 0.5453551743 | AS27: =IFERROR(IRR($G25:AS25),"--") -> 0.5453551743 | AT27: =IFERROR(IRR($G25:AT25),"--") -> 0.5453551743 | AU27: =IFERROR(IRR($G25:AU25),"--") -> 0.5453551743 | AV27: =IFERROR(IRR($G25:AV25),"--") -> 0.5453551743 | AW27: =IFERROR(IRR($G25:AW25),"--") -> 0.5453551743 | AX27: =IFERROR(IRR($G25:AX25),"--") -> 0.5453551743 | AY27: =IFERROR(IRR($G25:AY25),"--") -> 0.5453551743 | AZ27: =IFERROR(IRR($G25:AZ25),"--") -> 0.5453551743 | BA27: =IFERROR(IRR($G25:BA25),"--") -> 0.5453551743 | BB27: =IFERROR(IRR($G25:BB25),"--") -> 0.5453551743 | BC27: =IFERROR(IRR($G25:BC25),"--") -> 0.5453551743 | BD27: =IFERROR(IRR($G25:BD25),"--") -> 0.5453551743
C28: =NPV(Inputs!$E$178,$H$25:$BD$25)+$G$25 -> 1419.866584 | D28: ="Project pre-tax cash flows NPV"&Inputs!$E$178*100 -> Project pre-tax cash flows NPV10 | E28: $mm const
D30: Flags
C31: =MAX(G31:BD31) -> 50 | D31: Project years | E31: years | G31: =(SUM($G$12:G24)>0)*1+F31 -> 1 | H31: =(SUM($G$12:H24)>0)*1+G31 -> 2 | I31: =(SUM($G$12:I24)>0)*1+H31 -> 3 | J31: =(SUM($G$12:J24)>0)*1+I31 -> 4 | K31: =(SUM($G$12:K24)>0)*1+J31 -> 5 | L31: =(SUM($G$12:L24)>0)*1+K31 -> 6 | M31: =(SUM($G$12:M24)>0)*1+L31 -> 7 | N31: =(SUM($G$12:N24)>0)*1+M31 -> 8 | O31: =(SUM($G$12:O24)>0)*1+N31 -> 9 | P31: =(SUM($G$12:P24)>0)*1+O31 -> 10 | Q31: =(SUM($G$12:Q24)>0)*1+P31 -> 11 | R31: =(SUM($G$12:R24)>0)*1+Q31 -> 12 | S31: =(SUM($G$12:S24)>0)*1+R31 -> 13 | T31: =(SUM($G$12:T24)>0)*1+S31 -> 14 | U31: =(SUM($G$12:U24)>0)*1+T31 -> 15 | V31: =(SUM($G$12:V24)>0)*1+U31 -> 16 | W31: =(SUM($G$12:W24)>0)*1+V31 -> 17 | X31: =(SUM($G$12:X24)>0)*1+W31 -> 18 | Y31: =(SUM($G$12:Y24)>0)*1+X31 -> 19 | Z31: =(SUM($G$12:Z24)>0)*1+Y31 -> 20 | AA31: =(SUM($G$12:AA24)>0)*1+Z31 -> 21 | AB31: =(SUM($G$12:AB24)>0)*1+AA31 -> 22 | AC31: =(SUM($G$12:AC24)>0)*1+AB31 -> 23 | AD31: =(SUM($G$12:AD24)>0)*1+AC31 -> 24 | AE31: =(SUM($G$12:AE24)>0)*1+AD31 -> 25 | AF31: =(SUM($G$12:AF24)>0)*1+AE31 -> 26 | AG31: =(SUM($G$12:AG24)>0)*1+AF31 -> 27 | AH31: =(SUM($G$12:AH24)>0)*1+AG31 -> 28 | AI31: =(SUM($G$12:AI24)>0)*1+AH31 -> 29 | AJ31: =(SUM($G$12:AJ24)>0)*1+AI31 -> 30 | AK31: =(SUM($G$12:AK24)>0)*1+AJ31 -> 31 | AL31: =(SUM($G$12:AL24)>0)*1+AK31 -> 32 | AM31: =(SUM($G$12:AM24)>0)*1+AL31 -> 33 | AN31: =(SUM($G$12:AN24)>0)*1+AM31 -> 34 | AO31: =(SUM($G$12:AO24)>0)*1+AN31 -> 35 | AP31: =(SUM($G$12:AP24)>0)*1+AO31 -> 36 | AQ31: =(SUM($G$12:AQ24)>0)*1+AP31 -> 37 | AR31: =(SUM($G$12:AR24)>0)*1+AQ31 -> 38 | AS31: =(SUM($G$12:AS24)>0)*1+AR31 -> 39 | AT31: =(SUM($G$12:AT24)>0)*1+AS31 -> 40 | AU31: =(SUM($G$12:AU24)>0)*1+AT31 -> 41 | AV31: =(SUM($G$12:AV24)>0)*1+AU31 -> 42 | AW31: =(SUM($G$12:AW24)>0)*1+AV31 -> 43 | AX31: =(SUM($G$12:AX24)>0)*1+AW31 -> 44 | AY31: =(SUM($G$12:AY24)>0)*1+AX31 -> 45 | AZ31: =(SUM($G$12:AZ24)>0)*1+AY31 -> 46 | BA31: =(SUM($G$12:BA24)>0)*1+AZ31 -> 47 | BB31: =(SUM($G$12:BB24)>0)*1+BA31 -> 48 | BC31: =(SUM($G$12:BC24)>0)*1+BB31 -> 49 | BD31: =(SUM($G$12:BD24)>0)*1+BC31 -> 50
C32: =MAX(G32:BD32) -> 25 | D32: Production year | E32: years | G32: =OR(G12>0,AND(SUM($G$12:G12)>0,SUM(H12:$BD$12)>0))*(1+F32) -> 0 | H32: =OR(H12>0,AND(SUM($G$12:H12)>0,SUM(I12:$BD$12)>0))*(1+G32) -> 0 | I32: =OR(I12>0,AND(SUM($G$12:I12)>0,SUM(J12:$BD$12)>0))*(1+H32) -> 1 | J32: =OR(J12>0,AND(SUM($G$12:J12)>0,SUM(K12:$BD$12)>0))*(1+I32) -> 2 | K32: =OR(K12>0,AND(SUM($G$12:K12)>0,SUM(L12:$BD$12)>0))*(1+J32) -> 3 | L32: =OR(L12>0,AND(SUM($G$12:L12)>0,SUM(M12:$BD$12)>0))*(1+K32) -> 4 | M32: =OR(M12>0,AND(SUM($G$12:M12)>0,SUM(N12:$BD$12)>0))*(1+L32) -> 5 | N32: =OR(N12>0,AND(SUM($G$12:N12)>0,SUM(O12:$BD$12)>0))*(1+M32) -> 6 | O32: =OR(O12>0,AND(SUM($G$12:O12)>0,SUM(P12:$BD$12)>0))*(1+N32) -> 7 | P32: =OR(P12>0,AND(SUM($G$12:P12)>0,SUM(Q12:$BD$12)>0))*(1+O32) -> 8 | Q32: =OR(Q12>0,AND(SUM($G$12:Q12)>0,SUM(R12:$BD$12)>0))*(1+P32) -> 9 | R32: =OR(R12>0,AND(SUM($G$12:R12)>0,SUM(S12:$BD$12)>0))*(1+Q32) -> 10 | S32: =OR(S12>0,AND(SUM($G$12:S12)>0,SUM(T12:$BD$12)>0))*(1+R32) -> 11 | T32: =OR(T12>0,AND(SUM($G$12:T12)>0,SUM(U12:$BD$12)>0))*(1+S32) -> 12 | U32: =OR(U12>0,AND(SUM($G$12:U12)>0,SUM(V12:$BD$12)>0))*(1+T32) -> 13 | V32: =OR(V12>0,AND(SUM($G$12:V12)>0,SUM(W12:$BD$12)>0))*(1+U32) -> 14 | W32: =OR(W12>0,AND(SUM($G$12:W12)>0,SUM(X12:$BD$12)>0))*(1+V32) -> 15 | X32: =OR(X12>0,AND(SUM($G$12:X12)>0,SUM(Y12:$BD$12)>0))*(1+W32) -> 16 | Y32: =OR(Y12>0,AND(SUM($G$12:Y12)>0,SUM(Z12:$BD$12)>0))*(1+X32) -> 17 | Z32: =OR(Z12>0,AND(SUM($G$12:Z12)>0,SUM(AA12:$BD$12)>0))*(1+Y32) -> 18 | AA32: =OR(AA12>0,AND(SUM($G$12:AA12)>0,SUM(AB12:$BD$12)>0))*(1+Z32) -> 19 | AB32: =OR(AB12>0,AND(SUM($G$12:AB12)>0,SUM(AC12:$BD$12)>0))*(1+AA32) -> 20 | AC32: =OR(AC12>0,AND(SUM($G$12:AC12)>0,SUM(AD12:$BD$12)>0))*(1+AB32) -> 21 | AD32: =OR(AD12>0,AND(SUM($G$12:AD12)>0,SUM(AE12:$BD$12)>0))*(1+AC32) -> 22 | AE32: =OR(AE12>0,AND(SUM($G$12:AE12)>0,SUM(AF12:$BD$12)>0))*(1+AD32) -> 23 | AF32: =OR(AF12>0,AND(SUM($G$12:AF12)>0,SUM(AG12:$BD$12)>0))*(1+AE32) -> 24 | AG32: =OR(AG12>0,AND(SUM($G$12:AG12)>0,SUM(AH12:$BD$12)>0))*(1+AF32) -> 25 | AH32: =OR(AH12>0,AND(SUM($G$12:AH12)>0,SUM(AI12:$BD$12)>0))*(1+AG32) -> 0 | AI32: =OR(AI12>0,AND(SUM($G$12:AI12)>0,SUM(AJ12:$BD$12)>0))*(1+AH32) -> 0 | AJ32: =OR(AJ12>0,AND(SUM($G$12:AJ12)>0,SUM(AK12:$BD$12)>0))*(1+AI32) -> 0 | AK32: =OR(AK12>0,AND(SUM($G$12:AK12)>0,SUM(AL12:$BD$12)>0))*(1+AJ32) -> 0 | AL32: =OR(AL12>0,AND(SUM($G$12:AL12)>0,SUM(AM12:$BD$12)>0))*(1+AK32) -> 0 | AM32: =OR(AM12>0,AND(SUM($G$12:AM12)>0,SUM(AN12:$BD$12)>0))*(1+AL32) -> 0 | AN32: =OR(AN12>0,AND(SUM($G$12:AN12)>0,SUM(AO12:$BD$12)>0))*(1+AM32) -> 0 | AO32: =OR(AO12>0,AND(SUM($G$12:AO12)>0,SUM(AP12:$BD$12)>0))*(1+AN32) -> 0 | AP32: =OR(AP12>0,AND(SUM($G$12:AP12)>0,SUM(AQ12:$BD$12)>0))*(1+AO32) -> 0 | AQ32: =OR(AQ12>0,AND(SUM($G$12:AQ12)>0,SUM(AR12:$BD$12)>0))*(1+AP32) -> 0 | AR32: =OR(AR12>0,AND(SUM($G$12:AR12)>0,SUM(AS12:$BD$12)>0))*(1+AQ32) -> 0 | AS32: =OR(AS12>0,AND(SUM($G$12:AS12)>0,SUM(AT12:$BD$12)>0))*(1+AR32) -> 0 | AT32: =OR(AT12>0,AND(SUM($G$12:AT12)>0,SUM(AU12:$BD$12)>0))*(1+AS32) -> 0 | AU32: =OR(AU12>0,AND(SUM($G$12:AU12)>0,SUM(AV12:$BD$12)>0))*(1+AT32) -> 0 | AV32: =OR(AV12>0,AND(SUM($G$12:AV12)>0,SUM(AW12:$BD$12)>0))*(1+AU32) -> 0 | AW32: =OR(AW12>0,AND(SUM($G$12:AW12)>0,SUM(AX12:$BD$12)>0))*(1+AV32) -> 0 | AX32: =OR(AX12>0,AND(SUM($G$12:AX12)>0,SUM(AY12:$BD$12)>0))*(1+AW32) -> 0 | AY32: =OR(AY12>0,AND(SUM($G$12:AY12)>0,SUM(AZ12:$BD$12)>0))*(1+AX32) -> 0 | AZ32: =OR(AZ12>0,AND(SUM($G$12:AZ12)>0,SUM(BA12:$BD$12)>0))*(1+AY32) -> 0 | BA32: =OR(BA12>0,AND(SUM($G$12:BA12)>0,SUM(BB12:$BD$12)>0))*(1+AZ32) -> 0 | BB32: =OR(BB12>0,AND(SUM($G$12:BB12)>0,SUM(BC12:$BD$12)>0))*(1+BA32) -> 0 | BC32: =OR(BC12>0,AND(SUM($G$12:BC12)>0,SUM(BD12:$BD$12)>0))*(1+BB32) -> 0 | BD32: =OR(BD12>0,AND(SUM($G$12:BD12)>0,SUM($BD12:BE$12)>0))*(1+BC32) -> 0
C33: =MAX(G33:BD33) -> 25 | D33: Remaining production years | E33: years | G33: =($C$32-G32+1)*(G12>0) -> 0 | H33: 0 | I33: 25 | J33: 24 | K33: 23 | L33: 22 | M33: 21 | N33: 20 | O33: 19 | P33: 18 | Q33: 17 | R33: 16 | S33: 15 | T33: 14 | U33: =($C$32-U32+1)*(U12>0) -> 13 | V33: 12 | W33: 11 | X33: 10 | Y33: 9 | Z33: 8 | AA33: 7 | AB33: 6 | AC33: 5 | AD33: 4 | AE33: 3 | AF33: 2 | AG33: 1 | AH33: 0 | AI33: 0 | AJ33: 0 | AK33: 0 | AL33: 0 | AM33: =($C$32-AM32+1)*(AM12>0) -> 0 | AN33: 0 | AO33: 0 | AP33: 0 | AQ33: 0 | AR33: 0 | AS33: 0 | AT33: 0 | AU33: 0 | AV33: 0 | AW33: 0 | AX33: 0 | AY33: 0 | AZ33: 0 | BA33: 0 | BB33: 0 | BC33: 0 | BD33: 0
C34: =SUM(G34:BD34) -> 3 | D34: Year production starts | E34: years | G34: =IF(G32=1,G31,0) -> 0 | H34: =IF(H32=1,H31,0) -> 0 | I34: 3 | J34: 0 | K34: 0 | L34: 0 | M34: 0 | N34: 0 | O34: 0 | P34: 0 | Q34: 0 | R34: 0 | S34: 0 | T34: 0 | U34: 0 | V34: 0 | W34: 0 | X34: 0 | Y34: 0 | Z34: 0 | AA34: 0 | AB34: 0 | AC34: 0 | AD34: 0 | AE34: 0 | AF34: 0 | AG34: 0 | AH34: 0 | AI34: 0 | AJ34: 0 | AK34: 0 | AL34: 0 | AM34: 0 | AN34: 0 | AO34: 0 | AP34: 0 | AQ34: 0 | AR34: 0 | AS34: 0 | AT34: 0 | AU34: 0 | AV34: 0 | AW34: 0 | AX34: 0 | AY34: 0 | AZ34: 0 | BA34: 0 | BB34: 0 | BC34: 0 | BD34: 0
D36: Payback period
C37: =MAX(G37:BD37) -> 223.3 | D37: Project pre-tax cash flow | E37: $mm const | G37: =G25 -> -80 | H37: -160 | I37: 29.55 | J37: 223.3 | K37: 223.3 | L37: 223.3 | M37: 223.3 | N37: 223.3 | O37: 223.3 | P37: 223.3 | Q37: 223.3 | R37: 223.3 | S37: 223.3 | T37: 173.3 | U37: 173.3 | V37: 223.3 | W37: 223.3 | X37: 223.3 | Y37: 223.3 | Z37: 223.3 | AA37: 223.3 | AB37: 223.3 | AC37: 223.3 | AD37: 223.3 | AE37: 223.3 | AF37: 223.3 | AG37: 109.55 | AH37: 0 | AI37: 0 | AJ37: 0 | AK37: 0 | AL37: 0 | AM37: =AM25 -> 0 | AN37: 0 | AO37: 0 | AP37: 0 | AQ37: 0 | AR37: 0 | AS37: 0 | AT37: 0 | AU37: 0 | AV37: 0 | AW37: 0 | AX37: 0 | AY37: 0 | AZ37: 0 | BA37: 0 | BB37: 0 | BC37: 0 | BD37: 0
C38: =MAX(G38:BD38) -> 4935 | D38: Cumulative project pre-tax cash flow | E38: $mm const | G38: =G37+F38 -> -80 | H38: -240 | I38: -210.45 | J38: 12.85 | K38: 236.15 | L38: 459.45 | M38: 682.75 | N38: 906.05 | O38: 1129.35 | P38: 1352.65 | Q38: 1575.95 | R38: 1799.25 | S38: 2022.55 | T38: 2195.85 | U38: 2369.15 | V38: 2592.45 | W38: 2815.75 | X38: 3039.05 | Y38: 3262.35 | Z38: 3485.65 | AA38: 3708.95 | AB38: 3932.25 | AC38: 4155.55 | AD38: 4378.85 | AE38: 4602.15 | AF38: 4825.45 | AG38: 4935 | AH38: 4935 | AI38: 4935 | AJ38: 4935 | AK38: 4935 | AL38: 4935 | AM38: =AM37+AL38 -> 4935 | AN38: 4935 | AO38: 4935 | AP38: 4935 | AQ38: 4935 | AR38: 4935 | AS38: 4935 | AT38: 4935 | AU38: 4935 | AV38: 4935 | AW38: 4935 | AX38: 4935 | AY38: 4935 | AZ38: 4935 | BA38: 4935 | BB38: 4935 | BC38: 4935 | BD38: 4935
C39: =MAX(G39:BD39) -> 3.942454098 | D39: Payback period | E39: years | G39: =IF(AND(G38<=0,H38>0),G31+(-G38/H37),0) -> 0 | H39: 0 | I39: 3.942454098 | J39: 0 | K39: 0 | L39: 0 | M39: 0 | N39: 0 | O39: 0 | P39: 0 | Q39: 0 | R39: 0 | S39: 0 | T39: 0 | U39: 0 | V39: 0 | W39: 0 | X39: 0 | Y39: 0 | Z39: 0 | AA39: 0 | AB39: 0 | AC39: 0 | AD39: 0 | AE39: 0 | AF39: 0 | AG39: 0 | AH39: 0 | AI39: 0 | AJ39: 0 | AK39: 0 | AL39: 0 | AM39: =IF(AND(AM38<=0,AN38>0),AM31+(-AM38/AN37),0) -> 0 | AN39: 0 | AO39: 0 | AP39: 0 | AQ39: 0 | AR39: 0 | AS39: 0 | AT39: 0 | AU39: 0 | AV39: 0 | AW39: 0 | AX39: 0 | AY39: 0 | AZ39: 0 | BA39: 0 | BB39: 0 | BC39: 0 | BD39: 0
D41: Inflation
D42: Inflation index | E42: index | G42: =IF(Inputs!F$195=1,1,(1+Inputs!$E$180)^(Inputs!F$195-1)) -> 1 | H42: =IF(Inputs!G$195=1,1,(1+Inputs!$E$180)^(Inputs!G$195-1)) -> 1.02 | I42: =IF(Inputs!H$195=1,1,(1+Inputs!$E$180)^(Inputs!H$195-1)) -> 1.0404 | J42: =IF(Inputs!I$195=1,1,(1+Inputs!$E$180)^(Inputs!I$195-1)) -> 1.061208 | K42: =IF(Inputs!J$195=1,1,(1+Inputs!$E$180)^(Inputs!J$195-1)) -> 1.08243216 | L42: =IF(Inputs!K$195=1,1,(1+Inputs!$E$180)^(Inputs!K$195-1)) -> 1.104080803 | M42: =IF(Inputs!L$195=1,1,(1+Inputs!$E$180)^(Inputs!L$195-1)) -> 1.126162419 | N42: =IF(Inputs!M$195=1,1,(1+Inputs!$E$180)^(Inputs!M$195-1)) -> 1.148685668 | O42: =IF(Inputs!N$195=1,1,(1+Inputs!$E$180)^(Inputs!N$195-1)) -> 1.171659381 | P42: =IF(Inputs!O$195=1,1,(1+Inputs!$E$180)^(Inputs!O$195-1)) -> 1.195092569 | Q42: =IF(Inputs!P$195=1,1,(1+Inputs!$E$180)^(Inputs!P$195-1)) -> 1.21899442 | R42: =IF(Inputs!Q$195=1,1,(1+Inputs!$E$180)^(Inputs!Q$195-1)) -> 1.243374308 | S42: =IF(Inputs!R$195=1,1,(1+Inputs!$E$180)^(Inputs!R$195-1)) -> 1.268241795 | T42: =IF(Inputs!S$195=1,1,(1+Inputs!$E$180)^(Inputs!S$195-1)) -> 1.29360663 | U42: =IF(Inputs!T$195=1,1,(1+Inputs!$E$180)^(Inputs!T$195-1)) -> 1.319478763 | V42: =IF(Inputs!U$195=1,1,(1+Inputs!$E$180)^(Inputs!U$195-1)) -> 1.345868338 | W42: =IF(Inputs!V$195=1,1,(1+Inputs!$E$180)^(Inputs!V$195-1)) -> 1.372785705 | X42: =IF(Inputs!W$195=1,1,(1+Inputs!$E$180)^(Inputs!W$195-1)) -> 1.400241419 | Y42: =IF(Inputs!X$195=1,1,(1+Inputs!$E$180)^(Inputs!X$195-1)) -> 1.428246248 | Z42: =IF(Inputs!Y$195=1,1,(1+Inputs!$E$180)^(Inputs!Y$195-1)) -> 1.456811173 | AA42: =IF(Inputs!Z$195=1,1,(1+Inputs!$E$180)^(Inputs!Z$195-1)) -> 1.485947396 | AB42: =IF(Inputs!AA$195=1,1,(1+Inputs!$E$180)^(Inputs!AA$195-1)) -> 1.515666344 | AC42: =IF(Inputs!AB$195=1,1,(1+Inputs!$E$180)^(Inputs!AB$195-1)) -> 1.545979671 | AD42: =IF(Inputs!AC$195=1,1,(1+Inputs!$E$180)^(Inputs!AC$195-1)) -> 1.576899264 | AE42: =IF(Inputs!AD$195=1,1,(1+Inputs!$E$180)^(Inputs!AD$195-1)) -> 1.608437249 | AF42: =IF(Inputs!AE$195=1,1,(1+Inputs!$E$180)^(Inputs!AE$195-1)) -> 1.640605994 | AG42: =IF(Inputs!AF$195=1,1,(1+Inputs!$E$180)^(Inputs!AF$195-1)) -> 1.673418114 | AH42: =IF(Inputs!AG$195=1,1,(1+Inputs!$E$180)^(Inputs!AG$195-1)) -> 1.706886477 | AI42: =IF(Inputs!AH$195=1,1,(1+Inputs!$E$180)^(Inputs!AH$195-1)) -> 1.741024206 | AJ42: =IF(Inputs!AI$195=1,1,(1+Inputs!$E$180)^(Inputs!AI$195-1)) -> 1.77584469 | AK42: =IF(Inputs!AJ$195=1,1,(1+Inputs!$E$180)^(Inputs!AJ$195-1)) -> 1.811361584 | AL42: =IF(Inputs!AK$195=1,1,(1+Inputs!$E$180)^(Inputs!AK$195-1)) -> 1.847588816 | AM42: =IF(Inputs!AL$195=1,1,(1+Inputs!$E$180)^(Inputs!AL$195-1)) -> 1.884540592 | AN42: =IF(Inputs!AM$195=1,1,(1+Inputs!$E$180)^(Inputs!AM$195-1)) -> 1.922231404 | AO42: =IF(Inputs!AN$195=1,1,(1+Inputs!$E$180)^(Inputs!AN$195-1)) -> 1.960676032 | AP42: =IF(Inputs!AO$195=1,1,(1+Inputs!$E$180)^(Inputs!AO$195-1)) -> 1.999889553 | AQ42: =IF(Inputs!AP$195=1,1,(1+Inputs!$E$180)^(Inputs!AP$195-1)) -> 2.039887344 | AR42: =IF(Inputs!AQ$195=1,1,(1+Inputs!$E$180)^(Inputs!AQ$195-1)) -> 2.080685091 | AS42: =IF(Inputs!AR$195=1,1,(1+Inputs!$E$180)^(Inputs!AR$195-1)) -> 2.122298792 | AT42: =IF(Inputs!AS$195=1,1,(1+Inputs!$E$180)^(Inputs!AS$195-1)) -> 2.164744768 | AU42: =IF(Inputs!AT$195=1,1,(1+Inputs!$E$180)^(Inputs!AT$195-1)) -> 2.208039664 | AV42: =IF(Inputs!AU$195=1,1,(1+Inputs!$E$180)^(Inputs!AU$195-1)) -> 2.252200457 | AW42: =IF(Inputs!AV$195=1,1,(1+Inputs!$E$180)^(Inputs!AV$195-1)) -> 2.297244466 | AX42: =IF(Inputs!AW$195=1,1,(1+Inputs!$E$180)^(Inputs!AW$195-1)) -> 2.343189355 | AY42: =IF(Inputs!AX$195=1,1,(1+Inputs!$E$180)^(Inputs!AX$195-1)) -> 2.390053142 | AZ42: =IF(Inputs!AY$195=1,1,(1+Inputs!$E$180)^(Inputs!AY$195-1)) -> 2.437854205 | BA42: =IF(Inputs!AZ$195=1,1,(1+Inputs!$E$180)^(Inputs!AZ$195-1)) -> 2.486611289 | BB42: =IF(Inputs!BA$195=1,1,(1+Inputs!$E$180)^(Inputs!BA$195-1)) -> 2.536343515 | BC42: =IF(Inputs!BB$195=1,1,(1+Inputs!$E$180)^(Inputs!BB$195-1)) -> 2.587070385 | BD42: =IF(Inputs!BC$195=1,1,(1+Inputs!$E$180)^(Inputs!BC$195-1)) -> 2.638811793
D44: Project Pre-Tax Cash Flow: Nominal | E44: year | G44: =G$6 -> 1 | H44: 2 | I44: 3 | J44: 4 | K44: 5 | L44: 6 | M44: 7 | N44: 8 | O44: 9 | P44: 10 | Q44: 11 | R44: 12 | S44: 13 | T44: 14 | U44: 15 | V44: 16 | W44: 17 | X44: 18 | Y44: 19 | Z44: 20 | AA44: 21 | AB44: 22 | AC44: 23 | AD44: 24 | AE44: 25 | AF44: 26 | AG44: 27 | AH44: 28 | AI44: 29 | AJ44: 30 | AK44: 31 | AL44: 32 | AM44: =AM$6 -> 33 | AN44: 34 | AO44: 35 | AP44: 36 | AQ44: 37 | AR44: 38 | AS44: 39 | AT44: 40 | AU44: 41 | AV44: 42 | AW44: 43 | AX44: 44 | AY44: 45 | AZ44: 46 | BA44: 47 | BB44: 48 | BC44: 49 | BD44: 50
C45: =SUM(G45:BD45) -> 11188.59517 | D45: Primary revenue | E45: $mm const | G45: =G13*G$42 -> 0 | H45: 0 | I45: 182.07 | J45: 371.4228 | K45: 378.851256 | L45: 386.4282811 | M45: 394.1568467 | N45: 402.0399837 | O45: 410.0807834 | P45: 418.282399 | Q45: 426.648047 | R45: 435.1810079 | S45: 443.8846281 | T45: 452.7623207 | U45: 461.8175671 | V45: 471.0539184 | W45: 480.4749968 | X45: 490.0844967 | Y45: 499.8861867 | Z45: 509.8839104 | AA45: 520.0815886 | AB45: 530.4832204 | AC45: 541.0928848 | AD45: 551.9147425 | AE45: 562.9530373 | AF45: 574.2120981 | AG45: 292.84817 | AH45: 0 | AI45: 0 | AJ45: 0 | AK45: 0 | AL45: 0 | AM45: =AM13*AM$42 -> 0 | AN45: 0 | AO45: 0 | AP45: 0 | AQ45: 0 | AR45: 0 | AS45: 0 | AT45: 0 | AU45: 0 | AV45: 0 | AW45: 0 | AX45: 0 | AY45: 0 | AZ45: 0 | BA45: 0 | BB45: 0 | BC45: 0 | BD45: 0
C46: =SUM(G46:BD46) -> 0 | D46: Co-produce revenue | E46: $mm const | G46: =G14*G$42 -> 0 | H46: 0 | I46: 0 | J46: 0 | K46: 0 | L46: 0 | M46: 0 | N46: 0 | O46: 0 | P46: 0 | Q46: 0 | R46: 0 | S46: 0 | T46: 0 | U46: 0 | V46: 0 | W46: 0 | X46: 0 | Y46: 0 | Z46: 0 | AA46: 0 | AB46: 0 | AC46: 0 | AD46: 0 | AE46: 0 | AF46: 0 | AG46: 0 | AH46: 0 | AI46: 0 | AJ46: 0 | AK46: 0 | AL46: 0 | AM46: =AM14*AM$42 -> 0 | AN46: 0 | AO46: 0 | AP46: 0 | AQ46: 0 | AR46: 0 | AS46: 0 | AT46: 0 | AU46: 0 | AV46: 0 | AW46: 0 | AX46: 0 | AY46: 0 | AZ46: 0 | BA46: 0 | BB46: 0 | BC46: 0 | BD46: 0
C47: =SUM(G47:BD47) -> 11188.59517 | D47: Total gross revenue | E47: $mm const | G47: =G15*G$42 -> 0 | H47: 0 | I47: 182.07 | J47: 371.4228 | K47: 378.851256 | L47: 386.4282811 | M47: 394.1568467 | N47: 402.0399837 | O47: 410.0807834 | P47: 418.282399 | Q47: 426.648047 | R47: 435.1810079 | S47: 443.8846281 | T47: 452.7623207 | U47: 461.8175671 | V47: 471.0539184 | W47: 480.4749968 | X47: 490.0844967 | Y47: 499.8861867 | Z47: 509.8839104 | AA47: 520.0815886 | AB47: 530.4832204 | AC47: 541.0928848 | AD47: 551.9147425 | AE47: 562.9530373 | AF47: 574.2120981 | AG47: 292.84817 | AH47: 0 | AI47: 0 | AJ47: 0 | AK47: 0 | AL47: 0 | AM47: =AM15*AM$42 -> 0 | AN47: 0 | AO47: 0 | AP47: 0 | AQ47: 0 | AR47: 0 | AS47: 0 | AT47: 0 | AU47: 0 | AV47: 0 | AW47: 0 | AX47: 0 | AY47: 0 | AZ47: 0 | BA47: 0 | BB47: 0 | BC47: 0 | BD47: 0
C48: =SUM(G48:BD48) -> 39.95926847 | D48: Transport and processing post-fiscal point | E48: $mm nominal | G48: =G16*G$42 -> 0 | H48: 0 | I48: 0.65025 | J48: 1.32651 | K48: 1.3530402 | L48: 1.380101004 | M48: 1.407703024 | N48: 1.435857085 | O48: 1.464574226 | P48: 1.493865711 | Q48: 1.523743025 | R48: 1.554217885 | S48: 1.585302243 | T48: 1.617008288 | U48: 1.649348454 | V48: 1.682335423 | W48: 1.715982131 | X48: 1.750301774 | Y48: 1.785307809 | Z48: 1.821013966 | AA48: 1.857434245 | AB48: 1.89458293 | AC48: 1.932474588 | AD48: 1.97112408 | AE48: 2.010546562 | AF48: 2.050757493 | AG48: 1.045886321 | AH48: 0 | AI48: 0 | AJ48: 0 | AK48: 0 | AL48: 0 | AM48: =AM16*AM$42 -> 0 | AN48: 0 | AO48: 0 | AP48: 0 | AQ48: 0 | AR48: 0 | AS48: 0 | AT48: 0 | AU48: 0 | AV48: 0 | AW48: 0 | AX48: 0 | AY48: 0 | AZ48: 0 | BA48: 0 | BB48: 0 | BC48: 0 | BD48: 0
A49: =ROUND(C49-(C47-C48),5)=0 -> TRUE | C49: =SUM(G49:BD49) -> 11148.6359 | D49: Net revenue | E49: $mm nominal | G49: =G17*G$42 -> 0 | H49: 0 | I49: 181.41975 | J49: 370.09629 | K49: 377.4982158 | L49: 385.0481801 | M49: 392.7491437 | N49: 400.6041266 | O49: 408.6162091 | P49: 416.7885333 | Q49: 425.124304 | R49: 433.6267901 | S49: 442.2993259 | T49: 451.1453124 | U49: 460.1682186 | V49: 469.371583 | W49: 478.7590147 | X49: 488.3341949 | Y49: 498.1008788 | Z49: 508.0628964 | AA49: 518.2241543 | AB49: 528.5886374 | AC49: 539.1604102 | AD49: 549.9436184 | AE49: 560.9424908 | AF49: 572.1613406 | AG49: 291.8022837 | AH49: 0 | AI49: 0 | AJ49: 0 | AK49: 0 | AL49: 0 | AM49: =AM17*AM$42 -> 0 | AN49: 0 | AO49: 0 | AP49: 0 | AQ49: 0 | AR49: 0 | AS49: 0 | AT49: 0 | AU49: 0 | AV49: 0 | AW49: 0 | AX49: 0 | AY49: 0 | AZ49: 0 | BA49: 0 | BB49: 0 | BC49: 0 | BD49: 0
C50: 0 | D50: Exploration costs (expensed) | E50: $mm nominal | G50: =G18*G$42 -> 0 | H50: 0 | I50: 0 | J50: 0 | K50: 0 | L50: 0 | M50: 0 | N50: 0 | O50: 0 | P50: 0 | Q50: 0 | R50: 0 | S50: 0 | T50: 0 | U50: 0 | V50: 0 | W50: 0 | X50: 0 | Y50: 0 | Z50: 0 | AA50: 0 | AB50: 0 | AC50: 0 | AD50: 0 | AE50: 0 | AF50: 0 | AG50: 0 | AH50: 0 | AI50: 0 | AJ50: 0 | AK50: 0 | AL50: 0 | AM50: =AM18*AM$42 -> 0 | AN50: 0 | AO50: 0 | AP50: 0 | AQ50: 0 | AR50: 0 | AS50: 0 | AT50: 0 | AU50: 0 | AV50: 0 | AW50: 0 | AX50: 0 | AY50: 0 | AZ50: 0 | BA50: 0 | BB50: 0 | BC50: 0 | BD50: 0
C51: 0 | D51: Development costs - intangibles (expensed) | E51: $mm nominal | G51: =G19*G$42 -> 0 | H51: 0 | I51: 0 | J51: 0 | K51: 0 | L51: 0 | M51: 0 | N51: 0 | O51: 0 | P51: 0 | Q51: 0 | R51: 0 | S51: 0 | T51: 0 | U51: 0 | V51: 0 | W51: 0 | X51: 0 | Y51: 0 | Z51: 0 | AA51: 0 | AB51: 0 | AC51: 0 | AD51: 0 | AE51: 0 | AF51: 0 | AG51: 0 | AH51: 0 | AI51: 0 | AJ51: 0 | AK51: 0 | AL51: 0 | AM51: =AM19*AM$42 -> 0 | AN51: 0 | AO51: 0 | AP51: 0 | AQ51: 0 | AR51: 0 | AS51: 0 | AT51: 0 | AU51: 0 | AV51: 0 | AW51: 0 | AX51: 0 | AY51: 0 | AZ51: 0 | BA51: 0 | BB51: 0 | BC51: 0 | BD51: 0
C52: 457.0862697 | D52: Development costs - tangibles (depreciable) | E52: $mm nominal | G52: =G20*G$42 -> 80 | H52: 163.2 | I52: 83.232 | J52: 0 | K52: 0 | L52: 0 | M52: 0 | N52: 0 | O52: 0 | P52: 0 | Q52: 0 | R52: 0 | S52: 0 | T52: 64.68033152 | U52: 65.97393815 | V52: 0 | W52: 0 | X52: 0 | Y52: 0 | Z52: 0 | AA52: 0 | AB52: 0 | AC52: 0 | AD52: 0 | AE52: 0 | AF52: 0 | AG52: 0 | AH52: 0 | AI52: 0 | AJ52: 0 | AK52: 0 | AL52: 0 | AM52: =AM20*AM$42 -> 0 | AN52: 0 | AO52: 0 | AP52: 0 | AQ52: 0 | AR52: 0 | AS52: 0 | AT52: 0 | AU52: 0 | AV52: 0 | AW52: 0 | AX52: 0 | AY52: 0 | AZ52: 0 | BA52: 0 | BB52: 0 | BC52: 0 | BD52: 0
C53: 139.9621601 | D53: Replacement capital costs (depreciable) | E53: $mm nominal | G53: =G21*G$42 -> 0 | H53: 0 | I53: 4.36968 | J53: 4.4570736 | K53: 4.546215072 | L53: 4.637139373 | M53: 4.729882161 | N53: 4.824479804 | O53: 4.9209694 | P53: 5.019388788 | Q53: 5.119776564 | R53: 5.222172095 | S53: 5.326615537 | T53: 5.433147848 | U53: 5.541810805 | V53: 5.652647021 | W53: 5.765699961 | X53: 5.881013961 | Y53: 5.99863424 | Z53: 6.118606925 | AA53: 6.240979063 | AB53: 6.365798644 | AC53: 6.493114617 | AD53: 6.62297691 | AE53: 6.755436448 | AF53: 6.890545177 | AG53: 7.02835608 | AH53: 0 | AI53: 0 | AJ53: 0 | AK53: 0 | AL53: 0 | AM53: =AM21*AM$42 -> 0 | AN53: 0 | AO53: 0 | AP53: 0 | AQ53: 0 | AR53: 0 | AS53: 0 | AT53: 0 | AU53: 0 | AV53: 0 | AW53: 0 | AX53: 0 | AY53: 0 | AZ53: 0 | BA53: 0 | BB53: 0 | BC53: 0 | BD53: 0
C54: =SUM(G54:BD54) -> 3876.049041 | D54: Operating costs | E54: $mm nominal | G54: =G22*G$42 -> 0 | H54: 0 | I54: 63.07425 | J54: 128.67147 | K54: 131.2448994 | L54: 133.8697974 | M54: 136.5471933 | N54: 139.2781372 | O54: 142.0636999 | P54: 144.9049739 | Q54: 147.8030734 | R54: 150.7591349 | S54: 153.7743176 | T54: 156.8498039 | U54: 159.9868 | V54: 163.186536 | W54: 166.4502667 | X54: 169.7792721 | Y54: 173.1748575 | Z54: 176.6383547 | AA54: 180.1711218 | AB54: 183.7745442 | AC54: 187.4500351 | AD54: 191.1990358 | AE54: 195.0230165 | AF54: 198.9234768 | AG54: 101.4509732 | AH54: 0 | AI54: 0 | AJ54: 0 | AK54: 0 | AL54: 0 | AM54: =AM22*AM$42 -> 0 | AN54: 0 | AO54: 0 | AP54: 0 | AQ54: 0 | AR54: 0 | AS54: 0 | AT54: 0 | AU54: 0 | AV54: 0 | AW54: 0 | AX54: 0 | AY54: 0 | AZ54: 0 | BA54: 0 | BB54: 0 | BC54: 0 | BD54: 0
C55: 0 | D55: Decommissioning costs | E55: $mm nominal | G55: =G23*G$42 -> 0 | H55: 0 | I55: 0 | J55: 0 | K55: 0 | L55: 0 | M55: 0 | N55: 0 | O55: 0 | P55: 0 | Q55: 0 | R55: 0 | S55: 0 | T55: 0 | U55: 0 | V55: 0 | W55: 0 | X55: 0 | Y55: 0 | Z55: 0 | AA55: 0 | AB55: 0 | AC55: 0 | AD55: 0 | AE55: 0 | AF55: 0 | AG55: 0 | AH55: 0 | AI55: 0 | AJ55: 0 | AK55: 0 | AL55: 0 | AM55: =AM23*AM$42 -> 0 | AN55: 0 | AO55: 0 | AP55: 0 | AQ55: 0 | AR55: 0 | AS55: 0 | AT55: 0 | AU55: 0 | AV55: 0 | AW55: 0 | AX55: 0 | AY55: 0 | AZ55: 0 | BA55: 0 | BB55: 0 | BC55: 0 | BD55: 0
C56: =SUM(G56:BD56) -> 4473.097471 | D56: Total costs | E56: $mm nominal | G56: =SUM(G50:G55) -> 80 | H56: 163.2 | I56: 150.67593 | J56: 133.1285436 | K56: 135.7911145 | L56: 138.5069368 | M56: 141.2770755 | N56: 144.102617 | O56: 146.9846693 | P56: 149.9243627 | Q56: 152.92285 | R56: 155.981307 | S56: 159.1009331 | T56: 226.9632833 | U56: 231.502549 | V56: 168.839183 | W56: 172.2159667 | X56: 175.660286 | Y56: 179.1734918 | Z56: 182.7569616 | AA56: 186.4121008 | AB56: 190.1403428 | AC56: 193.9431497 | AD56: 197.8220127 | AE56: 201.7784529 | AF56: 205.814022 | AG56: 108.4793293 | AH56: 0 | AI56: 0 | AJ56: 0 | AK56: 0 | AL56: 0 | AM56: =SUM(AM50:AM55) -> 0 | AN56: 0 | AO56: 0 | AP56: 0 | AQ56: 0 | AR56: 0 | AS56: 0 | AT56: 0 | AU56: 0 | AV56: 0 | AW56: 0 | AX56: 0 | AY56: 0 | AZ56: 0 | BA56: 0 | BB56: 0 | BC56: 0 | BD56: 0
A57: =ROUND(C57-(C49-SUM(C50:C55)),5)=0 -> TRUE | C57: =SUM(G57:BD57) -> 6675.538432 | D57: Project pre-tax, pre-royalty, customs cash flows | E57: $mm nominal | G57: =G49-G56 -> -80 | H57: -163.2 | I57: 30.74382 | J57: 236.9677464 | K57: 241.7071013 | L57: 246.5412434 | M57: 251.4720682 | N57: 256.5015096 | O57: 261.6315398 | P57: 266.8641706 | Q57: 272.201454 | R57: 277.6454831 | S57: 283.1983927 | T57: 224.1820291 | U57: 228.6656696 | V57: 300.5323999 | W57: 306.5430479 | X57: 312.6739089 | Y57: 318.9273871 | Z57: 325.3059348 | AA57: 331.8120535 | AB57: 338.4482946 | AC57: 345.2172605 | AD57: 352.1216057 | AE57: 359.1640378 | AF57: 366.3473186 | AG57: 183.3229544 | AH57: 0 | AI57: 0 | AJ57: 0 | AK57: 0 | AL57: 0 | AM57: =AM49-AM56 -> 0 | AN57: 0 | AO57: 0 | AP57: 0 | AQ57: 0 | AR57: 0 | AS57: 0 | AT57: 0 | AU57: 0 | AV57: 0 | AW57: 0 | AX57: 0 | AY57: 0 | AZ57: 0 | BA57: 0 | BB57: 0 | BC57: 0 | BD57: 0
C60: =IFERROR(IRR($G57:BD57),0) -> 0.5762622778 | D60: Internal rate of return (nominal) | E60: % | G60: =IFERROR(IRR($G57:G57),"--") -> -- | H60: =IFERROR(IRR($G57:H57),"--") -> -- | I60: =IFERROR(IRR($G57:I57),"--") -> -- | J60: =IFERROR(IRR($G57:J57),"--") -> 0.04427161193 | K60: =IFERROR(IRR($G57:K57),"--") -> 0.311932708 | L60: =IFERROR(IRR($G57:L57),"--") -> 0.4323530751 | M60: =IFERROR(IRR($G57:M57),"--") -> 0.4936502735 | N60: =IFERROR(IRR($G57:N57),"--") -> 0.5272338194 | O60: =IFERROR(IRR($G57:O57),"--") -> 0.5465502949 | P60: =IFERROR(IRR($G57:P57),"--") -> 0.558040332 | Q60: =IFERROR(IRR($G57:Q57),"--") -> 0.5650393156 | R60: =IFERROR(IRR($G57:R57),"--") -> 0.56937579 | S60: =IFERROR(IRR($G57:S57),"--") -> 0.5720957232 | T60: =IFERROR(IRR($G57:T57),"--") -> 0.5734345511 | U60: =IFERROR(IRR($G57:U57),"--") -> 0.5742906556 | V60: =IFERROR(IRR($G57:V57),"--") -> 0.5749977086 | W60: =IFERROR(IRR($G57:W57),"--") -> 0.5754516567 | X60: =IFERROR(IRR($G57:X57),"--") -> 0.5757437897 | Y60: =IFERROR(IRR($G57:Y57),"--") -> 0.5759321015 | Z60: =IFERROR(IRR($G57:Z57),"--") -> 0.5760536316 | AA60: =IFERROR(IRR($G57:AA57),"--") -> 0.5761321276 | AB60: =IFERROR(IRR($G57:AB57),"--") -> 0.576182857 | AC60: =IFERROR(IRR($G57:AC57),"--") -> 0.576215655 | AD60: =IFERROR(IRR($G57:AD57),"--") -> 0.5762368656 | AE60: =IFERROR(IRR($G57:AE57),"--") -> 0.5762505852 | AF60: =IFERROR(IRR($G57:AF57),"--") -> 0.5762594606 | AG60: =IFERROR(IRR($G57:AG57),"--") -> 0.5762622778 | AH60: =IFERROR(IRR($G57:AH57),"--") -> 0.5762622778 | AI60: =IFERROR(IRR($G57:AI57),"--") -> 0.5762622778 | AJ60: =IFERROR(IRR($G57:AJ57),"--") -> 0.5762622778 | AK60: =IFERROR(IRR($G57:AK57),"--") -> 0.5762622778 | AL60: =IFERROR(IRR($G57:AL57),"--") -> 0.5762622778 | AM60: =IFERROR(IRR($G57:AM57),"--") -> 0.5762622778 | AN60: =IFERROR(IRR($G57:AN57),"--") -> 0.5762622778 | AO60: =IFERROR(IRR($G57:AO57),"--") -> 0.5762622778 | AP60: =IFERROR(IRR($G57:AP57),"--") -> 0.5762622778 | AQ60: =IFERROR(IRR($G57:AQ57),"--") -> 0.5762622778 | AR60: =IFERROR(IRR($G57:AR57),"--") -> 0.5762622778 | AS60: =IFERROR(IRR($G57:AS57),"--") -> 0.5762622778 | AT60: =IFERROR(IRR($G57:AT57),"--") -> 0.5762622778 | AU60: =IFERROR(IRR($G57:AU57),"--") -> 0.5762622778 | AV60: =IFERROR(IRR($G57:AV57),"--") -> 0.5762622778 | AW60: =IFERROR(IRR($G57:AW57),"--") -> 0.5762622778 | AX60: =IFERROR(IRR($G57:AX57),"--") -> 0.5762622778 | AY60: =IFERROR(IRR($G57:AY57),"--") -> 0.5762622778 | AZ60: =IFERROR(IRR($G57:AZ57),"--") -> 0.5762622778 | BA60: =IFERROR(IRR($G57:BA57),"--") -> 0.5762622778 | BB60: =IFERROR(IRR($G57:BB57),"--") -> 0.5762622778 | BC60: =IFERROR(IRR($G57:BC57),"--") -> 0.5762622778 | BD60: =IFERROR(IRR($G57:BD57),"--") -> 0.5762622778
C61: =NPV(Inputs!$E$178,$H$57:$BD$57)+$G$57 -> 1793.223605 | D61: ="Project pre-tax cash flows NPV"&Inputs!$E$178*100 -> Project pre-tax cash flows NPV10 | E61: $mm nominal
B64: Tax calculations
D66: Decommissioning
C67: =SUM(G67:BD67) -> 0 | D67: Decommissioning year | E67: years | G67: =Inputs!F195*(G68>0) -> 0 | H67: =Inputs!G195*(H68>0) -> 0 | I67: =Inputs!H195*(I68>0) -> 0 | J67: =Inputs!I195*(J68>0) -> 0 | K67: =Inputs!J195*(K68>0) -> 0 | L67: =Inputs!K195*(L68>0) -> 0 | M67: =Inputs!L195*(M68>0) -> 0 | N67: =Inputs!M195*(N68>0) -> 0 | O67: =Inputs!N195*(O68>0) -> 0 | P67: =Inputs!O195*(P68>0) -> 0 | Q67: =Inputs!P195*(Q68>0) -> 0 | R67: =Inputs!Q195*(R68>0) -> 0 | S67: =Inputs!R195*(S68>0) -> 0 | T67: =Inputs!S195*(T68>0) -> 0 | U67: =Inputs!T195*(U68>0) -> 0 | V67: =Inputs!U195*(V68>0) -> 0 | W67: =Inputs!V195*(W68>0) -> 0 | X67: =Inputs!W195*(X68>0) -> 0 | Y67: =Inputs!X195*(Y68>0) -> 0 | Z67: =Inputs!Y195*(Z68>0) -> 0 | AA67: =Inputs!Z195*(AA68>0) -> 0 | AB67: =Inputs!AA195*(AB68>0) -> 0 | AC67: =Inputs!AB195*(AC68>0) -> 0 | AD67: =Inputs!AC195*(AD68>0) -> 0 | AE67: =Inputs!AD195*(AE68>0) -> 0 | AF67: =Inputs!AE195*(AF68>0) -> 0 | AG67: =Inputs!AF195*(AG68>0) -> 0 | AH67: =Inputs!AG195*(AH68>0) -> 0 | AI67: =Inputs!AH195*(AI68>0) -> 0 | AJ67: =Inputs!AI195*(AJ68>0) -> 0 | AK67: =Inputs!AJ195*(AK68>0) -> 0 | AL67: =Inputs!AK195*(AL68>0) -> 0 | AM67: =Inputs!AL195*(AM68>0) -> 0 | AN67: =Inputs!AM195*(AN68>0) -> 0 | AO67: =Inputs!AN195*(AO68>0) -> 0 | AP67: =Inputs!AO195*(AP68>0) -> 0 | AQ67: =Inputs!AP195*(AQ68>0) -> 0 | AR67: =Inputs!AQ195*(AR68>0) -> 0 | AS67: =Inputs!AR195*(AS68>0) -> 0 | AT67: =Inputs!AS195*(AT68>0) -> 0 | AU67: =Inputs!AT195*(AU68>0) -> 0 | AV67: =Inputs!AU195*(AV68>0) -> 0 | AW67: =Inputs!AV195*(AW68>0) -> 0 | AX67: =Inputs!AW195*(AX68>0) -> 0 | AY67: =Inputs!AX195*(AY68>0) -> 0 | AZ67: =Inputs!AY195*(AZ68>0) -> 0 | BA67: =Inputs!AZ195*(BA68>0) -> 0 | BB67: =Inputs!BA195*(BB68>0) -> 0 | BC67: =Inputs!BB195*(BC68>0) -> 0 | BD67: =Inputs!BC195*(BD68>0) -> 0
C68: =SUM(G68:BD68) -> 0 | D68: Decommissioning costs spent | E68: $mm nominal | G68: =G55 -> 0 | H68: =H55 -> 0 | I68: 0 | J68: 0 | K68: 0 | L68: 0 | M68: 0 | N68: 0 | O68: 0 | P68: 0 | Q68: 0 | R68: 0 | S68: 0 | T68: =T55 -> 0 | U68: 0 | V68: 0 | W68: 0 | X68: 0 | Y68: 0 | Z68: 0 | AA68: 0 | AB68: 0 | AC68: 0 | AD68: 0 | AE68: 0 | AF68: 0 | AG68: 0 | AH68: 0 | AI68: 0 | AJ68: 0 | AK68: 0 | AL68: 0 | AM68: =AM55 -> 0 | AN68: 0 | AO68: 0 | AP68: 0 | AQ68: 0 | AR68: 0 | AS68: 0 | AT68: 0 | AU68: 0 | AV68: 0 | AW68: 0 | AX68: 0 | AY68: 0 | AZ68: 0 | BA68: 0 | BB68: 0 | BC68: 0 | BD68: 0
C69: =SUM(G69:BD69) -> 0 | D69: Decommissioning costs real terms | E69: $mm const | G69: =G68/G42 -> 0 | H69: =H68/H42 -> 0 | I69: 0 | J69: 0 | K69: 0 | L69: 0 | M69: 0 | N69: 0 | O69: 0 | P69: 0 | Q69: 0 | R69: 0 | S69: 0 | T69: 0 | U69: 0 | V69: 0 | W69: 0 | X69: 0 | Y69: 0 | Z69: 0 | AA69: 0 | AB69: 0 | AC69: 0 | AD69: 0 | AE69: 0 | AF69: 0 | AG69: 0 | AH69: 0 | AI69: 0 | AJ69: 0 | AK69: 0 | AL69: 0 | AM69: =AM68/AM42 -> 0 | AN69: 0 | AO69: 0 | AP69: 0 | AQ69: 0 | AR69: 0 | AS69: 0 | AT69: 0 | AU69: 0 | AV69: 0 | AW69: 0 | AX69: 0 | AY69: 0 | AZ69: 0 | BA69: 0 | BB69: 0 | BC69: 0 | BD69: 0
D70: Escalated decommissioning costs, end of year | E70: $mm nominal | G70: =$C$69*G42*(Inputs!F195<=$C$67) -> 0 | H70: =$C$69*H42*(Inputs!G195<=$C$67) -> 0 | I70: =$C$69*I42*(Inputs!H195<=$C$67) -> 0 | J70: =$C$69*J42*(Inputs!I195<=$C$67) -> 0 | K70: =$C$69*K42*(Inputs!J195<=$C$67) -> 0 | L70: =$C$69*L42*(Inputs!K195<=$C$67) -> 0 | M70: =$C$69*M42*(Inputs!L195<=$C$67) -> 0 | N70: =$C$69*N42*(Inputs!M195<=$C$67) -> 0 | O70: =$C$69*O42*(Inputs!N195<=$C$67) -> 0 | P70: =$C$69*P42*(Inputs!O195<=$C$67) -> 0 | Q70: =$C$69*Q42*(Inputs!P195<=$C$67) -> 0 | R70: =$C$69*R42*(Inputs!Q195<=$C$67) -> 0 | S70: =$C$69*S42*(Inputs!R195<=$C$67) -> 0 | T70: =$C$69*T42*(Inputs!S195<=$C$67) -> 0 | U70: =$C$69*U42*(Inputs!T195<=$C$67) -> 0 | V70: =$C$69*V42*(Inputs!U195<=$C$67) -> 0 | W70: =$C$69*W42*(Inputs!V195<=$C$67) -> 0 | X70: =$C$69*X42*(Inputs!W195<=$C$67) -> 0 | Y70: =$C$69*Y42*(Inputs!X195<=$C$67) -> 0 | Z70: =$C$69*Z42*(Inputs!Y195<=$C$67) -> 0 | AA70: =$C$69*AA42*(Inputs!Z195<=$C$67) -> 0 | AB70: =$C$69*AB42*(Inputs!AA195<=$C$67) -> 0 | AC70: =$C$69*AC42*(Inputs!AB195<=$C$67) -> 0 | AD70: =$C$69*AD42*(Inputs!AC195<=$C$67) -> 0 | AE70: =$C$69*AE42*(Inputs!AD195<=$C$67) -> 0 | AF70: =$C$69*AF42*(Inputs!AE195<=$C$67) -> 0 | AG70: =$C$69*AG42*(Inputs!AF195<=$C$67) -> 0 | AH70: =$C$69*AH42*(Inputs!AG195<=$C$67) -> 0 | AI70: =$C$69*AI42*(Inputs!AH195<=$C$67) -> 0 | AJ70: =$C$69*AJ42*(Inputs!AI195<=$C$67) -> 0 | AK70: =$C$69*AK42*(Inputs!AJ195<=$C$67) -> 0 | AL70: =$C$69*AL42*(Inputs!AK195<=$C$67) -> 0 | AM70: =$C$69*AM42*(Inputs!AL195<=$C$67) -> 0 | AN70: =$C$69*AN42*(Inputs!AM195<=$C$67) -> 0 | AO70: =$C$69*AO42*(Inputs!AN195<=$C$67) -> 0 | AP70: =$C$69*AP42*(Inputs!AO195<=$C$67) -> 0 | AQ70: =$C$69*AQ42*(Inputs!AP195<=$C$67) -> 0 | AR70: =$C$69*AR42*(Inputs!AQ195<=$C$67) -> 0 | AS70: =$C$69*AS42*(Inputs!AR195<=$C$67) -> 0 | AT70: =$C$69*AT42*(Inputs!AS195<=$C$67) -> 0 | AU70: =$C$69*AU42*(Inputs!AT195<=$C$67) -> 0 | AV70: =$C$69*AV42*(Inputs!AU195<=$C$67) -> 0 | AW70: =$C$69*AW42*(Inputs!AV195<=$C$67) -> 0 | AX70: =$C$69*AX42*(Inputs!AW195<=$C$67) -> 0 | AY70: =$C$69*AY42*(Inputs!AX195<=$C$67) -> 0 | AZ70: =$C$69*AZ42*(Inputs!AY195<=$C$67) -> 0 | BA70: =$C$69*BA42*(Inputs!AZ195<=$C$67) -> 0 | BB70: =$C$69*BB42*(Inputs!BA195<=$C$67) -> 0 | BC70: =$C$69*BC42*(Inputs!BB195<=$C$67) -> 0 | BD70: =$C$69*BD42*(Inputs!BC195<=$C$67) -> 0
D72: % reserves produced, end of year | E72: % | G72: =SUM(Inputs!$F$196:F196)/Inputs!$B$196 -> 0 | H72: =SUM(Inputs!$F$196:G196)/Inputs!$B$196 -> 0 | I72: =SUM(Inputs!$F$196:H196)/Inputs!$B$196 -> 0.02083333333 | J72: =SUM(Inputs!$F$196:I196)/Inputs!$B$196 -> 0.0625 | K72: =SUM(Inputs!$F$196:J196)/Inputs!$B$196 -> 0.1041666667 | L72: =SUM(Inputs!$F$196:K196)/Inputs!$B$196 -> 0.1458333333 | M72: =SUM(Inputs!$F$196:L196)/Inputs!$B$196 -> 0.1875 | N72: =SUM(Inputs!$F$196:M196)/Inputs!$B$196 -> 0.2291666667 | O72: =SUM(Inputs!$F$196:N196)/Inputs!$B$196 -> 0.2708333333 | P72: =SUM(Inputs!$F$196:O196)/Inputs!$B$196 -> 0.3125 | Q72: =SUM(Inputs!$F$196:P196)/Inputs!$B$196 -> 0.3541666667 | R72: =SUM(Inputs!$F$196:Q196)/Inputs!$B$196 -> 0.3958333333 | S72: =SUM(Inputs!$F$196:R196)/Inputs!$B$196 -> 0.4375 | T72: =SUM(Inputs!$F$196:S196)/Inputs!$B$196 -> 0.4791666667 | U72: =SUM(Inputs!$F$196:T196)/Inputs!$B$196 -> 0.5208333333 | V72: =SUM(Inputs!$F$196:U196)/Inputs!$B$196 -> 0.5625 | W72: =SUM(Inputs!$F$196:V196)/Inputs!$B$196 -> 0.6041666667 | X72: =SUM(Inputs!$F$196:W196)/Inputs!$B$196 -> 0.6458333333 | Y72: =SUM(Inputs!$F$196:X196)/Inputs!$B$196 -> 0.6875 | Z72: =SUM(Inputs!$F$196:Y196)/Inputs!$B$196 -> 0.7291666667 | AA72: =SUM(Inputs!$F$196:Z196)/Inputs!$B$196 -> 0.7708333333 | AB72: =SUM(Inputs!$F$196:AA196)/Inputs!$B$196 -> 0.8125 | AC72: =SUM(Inputs!$F$196:AB196)/Inputs!$B$196 -> 0.8541666667 | AD72: =SUM(Inputs!$F$196:AC196)/Inputs!$B$196 -> 0.8958333333 | AE72: =SUM(Inputs!$F$196:AD196)/Inputs!$B$196 -> 0.9375 | AF72: =SUM(Inputs!$F$196:AE196)/Inputs!$B$196 -> 0.9791666667 | AG72: =SUM(Inputs!$F$196:AF196)/Inputs!$B$196 -> 1 | AH72: =SUM(Inputs!$F$196:AG196)/Inputs!$B$196 -> 1 | AI72: =SUM(Inputs!$F$196:AH196)/Inputs!$B$196 -> 1 | AJ72: =SUM(Inputs!$F$196:AI196)/Inputs!$B$196 -> 1 | AK72: =SUM(Inputs!$F$196:AJ196)/Inputs!$B$196 -> 1 | AL72: =SUM(Inputs!$F$196:AK196)/Inputs!$B$196 -> 1 | AM72: =SUM(Inputs!$F$196:AL196)/Inputs!$B$196 -> 1 | AN72: =SUM(Inputs!$F$196:AM196)/Inputs!$B$196 -> 1 | AO72: =SUM(Inputs!$F$196:AN196)/Inputs!$B$196 -> 1 | AP72: =SUM(Inputs!$F$196:AO196)/Inputs!$B$196 -> 1 | AQ72: =SUM(Inputs!$F$196:AP196)/Inputs!$B$196 -> 1 | AR72: =SUM(Inputs!$F$196:AQ196)/Inputs!$B$196 -> 1 | AS72: =SUM(Inputs!$F$196:AR196)/Inputs!$B$196 -> 1 | AT72: =SUM(Inputs!$F$196:AS196)/Inputs!$B$196 -> 1 | AU72: =SUM(Inputs!$F$196:AT196)/Inputs!$B$196 -> 1 | AV72: =SUM(Inputs!$F$196:AU196)/Inputs!$B$196 -> 1 | AW72: =SUM(Inputs!$F$196:AV196)/Inputs!$B$196 -> 1 | AX72: =SUM(Inputs!$F$196:AW196)/Inputs!$B$196 -> 1 | AY72: =SUM(Inputs!$F$196:AX196)/Inputs!$B$196 -> 1 | AZ72: =SUM(Inputs!$F$196:AY196)/Inputs!$B$196 -> 1 | BA72: =SUM(Inputs!$F$196:AZ196)/Inputs!$B$196 -> 1 | BB72: =SUM(Inputs!$F$196:BA196)/Inputs!$B$196 -> 1 | BC72: =SUM(Inputs!$F$196:BB196)/Inputs!$B$196 -> 1 | BD72: =SUM(Inputs!$F$196:BC196)/Inputs!$B$196 -> 1
D73: Remaining recoverable reserves, end of year | E73: =Inputs!D196 -> ounces | G73: =Inputs!$B$196-SUM(Inputs!$F$196:F196) -> 6000000 | H73: =Inputs!$B$196-SUM(Inputs!$F$196:G196) -> 6000000 | I73: =Inputs!$B$196-SUM(Inputs!$F$196:H196) -> 5875000 | J73: =Inputs!$B$196-SUM(Inputs!$F$196:I196) -> 5625000 | K73: =Inputs!$B$196-SUM(Inputs!$F$196:J196) -> 5375000 | L73: =Inputs!$B$196-SUM(Inputs!$F$196:K196) -> 5125000 | M73: =Inputs!$B$196-SUM(Inputs!$F$196:L196) -> 4875000 | N73: =Inputs!$B$196-SUM(Inputs!$F$196:M196) -> 4625000 | O73: =Inputs!$B$196-SUM(Inputs!$F$196:N196) -> 4375000 | P73: =Inputs!$B$196-SUM(Inputs!$F$196:O196) -> 4125000 | Q73: =Inputs!$B$196-SUM(Inputs!$F$196:P196) -> 3875000 | R73: =Inputs!$B$196-SUM(Inputs!$F$196:Q196) -> 3625000 | S73: =Inputs!$B$196-SUM(Inputs!$F$196:R196) -> 3375000 | T73: =Inputs!$B$196-SUM(Inputs!$F$196:S196) -> 3125000 | U73: =Inputs!$B$196-SUM(Inputs!$F$196:T196) -> 2875000 | V73: =Inputs!$B$196-SUM(Inputs!$F$196:U196) -> 2625000 | W73: =Inputs!$B$196-SUM(Inputs!$F$196:V196) -> 2375000 | X73: =Inputs!$B$196-SUM(Inputs!$F$196:W196) -> 2125000 | Y73: =Inputs!$B$196-SUM(Inputs!$F$196:X196) -> 1875000 | Z73: =Inputs!$B$196-SUM(Inputs!$F$196:Y196) -> 1625000 | AA73: =Inputs!$B$196-SUM(Inputs!$F$196:Z196) -> 1375000 | AB73: =Inputs!$B$196-SUM(Inputs!$F$196:AA196) -> 1125000 | AC73: =Inputs!$B$196-SUM(Inputs!$F$196:AB196) -> 875000 | AD73: =Inputs!$B$196-SUM(Inputs!$F$196:AC196) -> 625000 | AE73: =Inputs!$B$196-SUM(Inputs!$F$196:AD196) -> 375000 | AF73: =Inputs!$B$196-SUM(Inputs!$F$196:AE196) -> 125000 | AG73: =Inputs!$B$196-SUM(Inputs!$F$196:AF196) -> 0 | AH73: =Inputs!$B$196-SUM(Inputs!$F$196:AG196) -> 0 | AI73: =Inputs!$B$196-SUM(Inputs!$F$196:AH196) -> 0 | AJ73: =Inputs!$B$196-SUM(Inputs!$F$196:AI196) -> 0 | AK73: =Inputs!$B$196-SUM(Inputs!$F$196:AJ196) -> 0 | AL73: =Inputs!$B$196-SUM(Inputs!$F$196:AK196) -> 0 | AM73: =Inputs!$B$196-SUM(Inputs!$F$196:AL196) -> 0 | AN73: =Inputs!$B$196-SUM(Inputs!$F$196:AM196) -> 0 | AO73: =Inputs!$B$196-SUM(Inputs!$F$196:AN196) -> 0 | AP73: =Inputs!$B$196-SUM(Inputs!$F$196:AO196) -> 0 | AQ73: =Inputs!$B$196-SUM(Inputs!$F$196:AP196) -> 0 | AR73: =Inputs!$B$196-SUM(Inputs!$F$196:AQ196) -> 0 | AS73: =Inputs!$B$196-SUM(Inputs!$F$196:AR196) -> 0 | AT73: =Inputs!$B$196-SUM(Inputs!$F$196:AS196) -> 0 | AU73: =Inputs!$B$196-SUM(Inputs!$F$196:AT196) -> 0 | AV73: =Inputs!$B$196-SUM(Inputs!$F$196:AU196) -> 0 | AW73: =Inputs!$B$196-SUM(Inputs!$F$196:AV196) -> 0 | AX73: =Inputs!$B$196-SUM(Inputs!$F$196:AW196) -> 0 | AY73: =Inputs!$B$196-SUM(Inputs!$F$196:AX196) -> 0 | AZ73: =Inputs!$B$196-SUM(Inputs!$F$196:AY196) -> 0 | BA73: =Inputs!$B$196-SUM(Inputs!$F$196:AZ196) -> 0 | BB73: =Inputs!$B$196-SUM(Inputs!$F$196:BA196) -> 0 | BC73: =Inputs!$B$196-SUM(Inputs!$F$196:BB196) -> 0 | BD73: =Inputs!$B$196-SUM(Inputs!$F$196:BC196) -> 0
D74: Decommissioning fund flag | E74: flag | G74: =1*(G72>Inputs!$E$76)*(Inputs!F196>0) -> 0 | H74: =1*(H72>Inputs!$E$76)*(Inputs!G196>0) -> 0 | I74: =1*(I72>Inputs!$E$76)*(Inputs!H196>0) -> 1 | J74: =1*(J72>Inputs!$E$76)*(Inputs!I196>0) -> 1 | K74: =1*(K72>Inputs!$E$76)*(Inputs!J196>0) -> 1 | L74: =1*(L72>Inputs!$E$76)*(Inputs!K196>0) -> 1 | M74: =1*(M72>Inputs!$E$76)*(Inputs!L196>0) -> 1 | N74: =1*(N72>Inputs!$E$76)*(Inputs!M196>0) -> 1 | O74: =1*(O72>Inputs!$E$76)*(Inputs!N196>0) -> 1 | P74: =1*(P72>Inputs!$E$76)*(Inputs!O196>0) -> 1 | Q74: =1*(Q72>Inputs!$E$76)*(Inputs!P196>0) -> 1 | R74: =1*(R72>Inputs!$E$76)*(Inputs!Q196>0) -> 1 | S74: =1*(S72>Inputs!$E$76)*(Inputs!R196>0) -> 1 | T74: =1*(T72>Inputs!$E$76)*(Inputs!S196>0) -> 1 | U74: =1*(U72>Inputs!$E$76)*(Inputs!T196>0) -> 1 | V74: =1*(V72>Inputs!$E$76)*(Inputs!U196>0) -> 1 | W74: =1*(W72>Inputs!$E$76)*(Inputs!V196>0) -> 1 | X74: =1*(X72>Inputs!$E$76)*(Inputs!W196>0) -> 1 | Y74: =1*(Y72>Inputs!$E$76)*(Inputs!X196>0) -> 1 | Z74: =1*(Z72>Inputs!$E$76)*(Inputs!Y196>0) -> 1 | AA74: =1*(AA72>Inputs!$E$76)*(Inputs!Z196>0) -> 1 | AB74: =1*(AB72>Inputs!$E$76)*(Inputs!AA196>0) -> 1 | AC74: =1*(AC72>Inputs!$E$76)*(Inputs!AB196>0) -> 1 | AD74: =1*(AD72>Inputs!$E$76)*(Inputs!AC196>0) -> 1 | AE74: =1*(AE72>Inputs!$E$76)*(Inputs!AD196>0) -> 1 | AF74: =1*(AF72>Inputs!$E$76)*(Inputs!AE196>0) -> 1 | AG74: =1*(AG72>Inputs!$E$76)*(Inputs!AF196>0) -> 1 | AH74: =1*(AH72>Inputs!$E$76)*(Inputs!AG196>0) -> 0 | AI74: =1*(AI72>Inputs!$E$76)*(Inputs!AH196>0) -> 0 | AJ74: =1*(AJ72>Inputs!$E$76)*(Inputs!AI196>0) -> 0 | AK74: =1*(AK72>Inputs!$E$76)*(Inputs!AJ196>0) -> 0 | AL74: =1*(AL72>Inputs!$E$76)*(Inputs!AK196>0) -> 0 | AM74: =1*(AM72>Inputs!$E$76)*(Inputs!AL196>0) -> 0 | AN74: =1*(AN72>Inputs!$E$76)*(Inputs!AM196>0) -> 0 | AO74: =1*(AO72>Inputs!$E$76)*(Inputs!AN196>0) -> 0 | AP74: =1*(AP72>Inputs!$E$76)*(Inputs!AO196>0) -> 0 | AQ74: =1*(AQ72>Inputs!$E$76)*(Inputs!AP196>0) -> 0 | AR74: =1*(AR72>Inputs!$E$76)*(Inputs!AQ196>0) -> 0 | AS74: =1*(AS72>Inputs!$E$76)*(Inputs!AR196>0) -> 0 | AT74: =1*(AT72>Inputs!$E$76)*(Inputs!AS196>0) -> 0 | AU74: =1*(AU72>Inputs!$E$76)*(Inputs!AT196>0) -> 0 | AV74: =1*(AV72>Inputs!$E$76)*(Inputs!AU196>0) -> 0 | AW74: =1*(AW72>Inputs!$E$76)*(Inputs!AV196>0) -> 0 | AX74: =1*(AX72>Inputs!$E$76)*(Inputs!AW196>0) -> 0 | AY74: =1*(AY72>Inputs!$E$76)*(Inputs!AX196>0) -> 0 | AZ74: =1*(AZ72>Inputs!$E$76)*(Inputs!AY196>0) -> 0 | BA74: =1*(BA72>Inputs!$E$76)*(Inputs!AZ196>0) -> 0 | BB74: =1*(BB72>Inputs!$E$76)*(Inputs!BA196>0) -> 0 | BC74: =1*(BC72>Inputs!$E$76)*(Inputs!BB196>0) -> 0 | BD74: =1*(BD72>Inputs!$E$76)*(Inputs!BC196>0) -> 0
C75: =SUM(G75:BD75) -> 6000000 | D75: Production during decommissioning period | E75: =Inputs!D196 -> ounces | G75: =G74*Inputs!F196 -> 0 | H75: =H74*Inputs!G196 -> 0 | I75: =I74*Inputs!H196 -> 125000 | J75: =J74*Inputs!I196 -> 250000 | K75: =K74*Inputs!J196 -> 250000 | L75: =L74*Inputs!K196 -> 250000 | M75: =M74*Inputs!L196 -> 250000 | N75: =N74*Inputs!M196 -> 250000 | O75: =O74*Inputs!N196 -> 250000 | P75: =P74*Inputs!O196 -> 250000 | Q75: =Q74*Inputs!P196 -> 250000 | R75: =R74*Inputs!Q196 -> 250000 | S75: =S74*Inputs!R196 -> 250000 | T75: =T74*Inputs!S196 -> 250000 | U75: =U74*Inputs!T196 -> 250000 | V75: =V74*Inputs!U196 -> 250000 | W75: =W74*Inputs!V196 -> 250000 | X75: =X74*Inputs!W196 -> 250000 | Y75: =Y74*Inputs!X196 -> 250000 | Z75: =Z74*Inputs!Y196 -> 250000 | AA75: =AA74*Inputs!Z196 -> 250000 | AB75: =AB74*Inputs!AA196 -> 250000 | AC75: =AC74*Inputs!AB196 -> 250000 | AD75: =AD74*Inputs!AC196 -> 250000 | AE75: =AE74*Inputs!AD196 -> 250000 | AF75: =AF74*Inputs!AE196 -> 250000 | AG75: =AG74*Inputs!AF196 -> 125000 | AH75: =AH74*Inputs!AG196 -> 0 | AI75: =AI74*Inputs!AH196 -> 0 | AJ75: =AJ74*Inputs!AI196 -> 0 | AK75: =AK74*Inputs!AJ196 -> 0 | AL75: =AL74*Inputs!AK196 -> 0 | AM75: =AM74*Inputs!AL196 -> 0 | AN75: =AN74*Inputs!AM196 -> 0 | AO75: =AO74*Inputs!AN196 -> 0 | AP75: =AP74*Inputs!AO196 -> 0 | AQ75: =AQ74*Inputs!AP196 -> 0 | AR75: =AR74*Inputs!AQ196 -> 0 | AS75: =AS74*Inputs!AR196 -> 0 | AT75: =AT74*Inputs!AS196 -> 0 | AU75: =AU74*Inputs!AT196 -> 0 | AV75: =AV74*Inputs!AU196 -> 0 | AW75: =AW74*Inputs!AV196 -> 0 | AX75: =AX74*Inputs!AW196 -> 0 | AY75: =AY74*Inputs!AX196 -> 0 | AZ75: =AZ74*Inputs!AY196 -> 0 | BA75: =BA74*Inputs!AZ196 -> 0 | BB75: =BB74*Inputs!BA196 -> 0 | BC75: =BC74*Inputs!BB196 -> 0 | BD75: =BD74*Inputs!BC196 -> 0
C76: 78000000 | D76: Cumulative production during decommissioning period | E76: =Inputs!D196 -> ounces | G76: =(G75+F76)*G74 -> 0 | H76: 0 | I76: 125000 | J76: 375000 | K76: 625000 | L76: 875000 | M76: 1125000 | N76: 1375000 | O76: 1625000 | P76: 1875000 | Q76: 2125000 | R76: 2375000 | S76: 2625000 | T76: 2875000 | U76: 3125000 | V76: 3375000 | W76: 3625000 | X76: 3875000 | Y76: 4125000 | Z76: 4375000 | AA76: 4625000 | AB76: 4875000 | AC76: 5125000 | AD76: 5375000 | AE76: 5625000 | AF76: 5875000 | AG76: 6000000 | AH76: 0 | AI76: 0 | AJ76: 0 | AK76: 0 | AL76: 0 | AM76: =(AM75+AL76)*AM74 -> 0 | AN76: 0 | AO76: 0 | AP76: 0 | AQ76: 0 | AR76: 0 | AS76: 0 | AT76: 0 | AU76: 0 | AV76: 0 | AW76: 0 | AX76: 0 | AY76: 0 | AZ76: 0 | BA76: 0 | BB76: 0 | BC76: 0 | BD76: 0
C77: 0 | D77: Decommissioning fund opening balance | E77: $mm nominal | G77: =F81 -> 0 | H77: =G81 -> 0 | I77: =H81 -> 0 | J77: =I81 -> 0 | K77: 0 | L77: 0 | M77: 0 | N77: 0 | O77: 0 | P77: =O81 -> 0 | Q77: 0 | R77: 0 | S77: 0 | T77: 0 | U77: 0 | V77: 0 | W77: 0 | X77: 0 | Y77: 0 | Z77: 0 | AA77: 0 | AB77: 0 | AC77: 0 | AD77: 0 | AE77: 0 | AF77: 0 | AG77: 0 | AH77: 0 | AI77: 0 | AJ77: 0 | AK77: 0 | AL77: 0 | AM77: =AL81 -> 0 | AN77: 0 | AO77: 0 | AP77: 0 | AQ77: 0 | AR77: 0 | AS77: 0 | AT77: 0 | AU77: 0 | AV77: 0 | AW77: 0 | AX77: 0 | AY77: 0 | AZ77: 0 | BA77: 0 | BB77: 0 | BC77: 0 | BD77: 0
C78: 0 | D78: Deposit required | E78: $mm nominal | G78: =IF(AND(G74<>0,SUM(H33:$BD$33)>0),(G70-G77)*IFERROR(G75/F73,1)*(Inputs!$E$75=1),0) -> 0 | H78: =IF(AND(H74<>0,SUM(I33:$BD$33)>0),(H70-H77)*IFERROR(H75/G73,1)*(Inputs!$E$75=1),0) -> 0 | I78: =IF(AND(I74<>0,SUM(J33:$BD$33)>0),(I70-I77)*IFERROR(I75/H73,1)*(Inputs!$E$75=1),0) -> 0 | J78: =IF(AND(J74<>0,SUM(K33:$BD$33)>0),(J70-J77)*IFERROR(J75/I73,1)*(Inputs!$E$75=1),0) -> 0 | K78: =IF(AND(K74<>0,SUM(L33:$BD$33)>0),(K70-K77)*IFERROR(K75/J73,1)*(Inputs!$E$75=1),0) -> 0 | L78: =IF(AND(L74<>0,SUM(M33:$BD$33)>0),(L70-L77)*IFERROR(L75/K73,1)*(Inputs!$E$75=1),0) -> 0 | M78: =IF(AND(M74<>0,SUM(N33:$BD$33)>0),(M70-M77)*IFERROR(M75/L73,1)*(Inputs!$E$75=1),0) -> 0 | N78: =IF(AND(N74<>0,SUM(O33:$BD$33)>0),(N70-N77)*IFERROR(N75/M73,1)*(Inputs!$E$75=1),0) -> 0 | O78: =IF(AND(O74<>0,SUM(P33:$BD$33)>0),(O70-O77)*IFERROR(O75/N73,1)*(Inputs!$E$75=1),0) -> 0 | P78: =IF(AND(P74<>0,SUM(Q33:$BD$33)>0),(P70-P77)*IFERROR(P75/O73,1)*(Inputs!$E$75=1),0) -> 0 | Q78: =IF(AND(Q74<>0,SUM(R33:$BD$33)>0),(Q70-Q77)*IFERROR(Q75/P73,1)*(Inputs!$E$75=1),0) -> 0 | R78: =IF(AND(R74<>0,SUM(S33:$BD$33)>0),(R70-R77)*IFERROR(R75/Q73,1)*(Inputs!$E$75=1),0) -> 0 | S78: =IF(AND(S74<>0,SUM(T33:$BD$33)>0),(S70-S77)*IFERROR(S75/R73,1)*(Inputs!$E$75=1),0) -> 0 | T78: =IF(AND(T74<>0,SUM(U33:$BD$33)>0),(T70-T77)*IFERROR(T75/S73,1)*(Inputs!$E$75=1),0) -> 0 | U78: =IF(AND(U74<>0,SUM(V33:$BD$33)>0),(U70-U77)*IFERROR(U75/T73,1)*(Inputs!$E$75=1),0) -> 0 | V78: =IF(AND(V74<>0,SUM(W33:$BD$33)>0),(V70-V77)*IFERROR(V75/U73,1)*(Inputs!$E$75=1),0) -> 0 | W78: =IF(AND(W74<>0,SUM(X33:$BD$33)>0),(W70-W77)*IFERROR(W75/V73,1)*(Inputs!$E$75=1),0) -> 0 | X78: =IF(AND(X74<>0,SUM(Y33:$BD$33)>0),(X70-X77)*IFERROR(X75/W73,1)*(Inputs!$E$75=1),0) -> 0 | Y78: =IF(AND(Y74<>0,SUM(Z33:$BD$33)>0),(Y70-Y77)*IFERROR(Y75/X73,1)*(Inputs!$E$75=1),0) -> 0 | Z78: =IF(AND(Z74<>0,SUM(AA33:$BD$33)>0),(Z70-Z77)*IFERROR(Z75/Y73,1)*(Inputs!$E$75=1),0) -> 0 | AA78: =IF(AND(AA74<>0,SUM(AB33:$BD$33)>0),(AA70-AA77)*IFERROR(AA75/Z73,1)*(Inputs!$E$75=1),0) -> 0 | AB78: =IF(AND(AB74<>0,SUM(AC33:$BD$33)>0),(AB70-AB77)*IFERROR(AB75/AA73,1)*(Inputs!$E$75=1),0) -> 0 | AC78: =IF(AND(AC74<>0,SUM(AD33:$BD$33)>0),(AC70-AC77)*IFERROR(AC75/AB73,1)*(Inputs!$E$75=1),0) -> 0 | AD78: =IF(AND(AD74<>0,SUM(AE33:$BD$33)>0),(AD70-AD77)*IFERROR(AD75/AC73,1)*(Inputs!$E$75=1),0) -> 0 | AE78: =IF(AND(AE74<>0,SUM(AF33:$BD$33)>0),(AE70-AE77)*IFERROR(AE75/AD73,1)*(Inputs!$E$75=1),0) -> 0 | AF78: =IF(AND(AF74<>0,SUM(AG33:$BD$33)>0),(AF70-AF77)*IFERROR(AF75/AE73,1)*(Inputs!$E$75=1),0) -> 0 | AG78: =IF(AND(AG74<>0,SUM(AH33:$BD$33)>0),(AG70-AG77)*IFERROR(AG75/AF73,1)*(Inputs!$E$75=1),0) -> 0 | AH78: =IF(AND(AH74<>0,SUM(AI33:$BD$33)>0),(AH70-AH77)*IFERROR(AH75/AG73,1)*(Inputs!$E$75=1),0) -> 0 | AI78: =IF(AND(AI74<>0,SUM(AJ33:$BD$33)>0),(AI70-AI77)*IFERROR(AI75/AH73,1)*(Inputs!$E$75=1),0) -> 0 | AJ78: =IF(AND(AJ74<>0,SUM(AK33:$BD$33)>0),(AJ70-AJ77)*IFERROR(AJ75/AI73,1)*(Inputs!$E$75=1),0) -> 0 | AK78: =IF(AND(AK74<>0,SUM(AL33:$BD$33)>0),(AK70-AK77)*IFERROR(AK75/AJ73,1)*(Inputs!$E$75=1),0) -> 0 | AL78: =IF(AND(AL74<>0,SUM(AM33:$BD$33)>0),(AL70-AL77)*IFERROR(AL75/AK73,1)*(Inputs!$E$75=1),0) -> 0 | AM78: =IF(AND(AM74<>0,SUM(AN33:$BD$33)>0),(AM70-AM77)*IFERROR(AM75/AL73,1)*(Inputs!$E$75=1),0) -> 0 | AN78: =IF(AND(AN74<>0,SUM(AO33:$BD$33)>0),(AN70-AN77)*IFERROR(AN75/AM73,1)*(Inputs!$E$75=1),0) -> 0 | AO78: =IF(AND(AO74<>0,SUM(AP33:$BD$33)>0),(AO70-AO77)*IFERROR(AO75/AN73,1)*(Inputs!$E$75=1),0) -> 0 | AP78: =IF(AND(AP74<>0,SUM(AQ33:$BD$33)>0),(AP70-AP77)*IFERROR(AP75/AO73,1)*(Inputs!$E$75=1),0) -> 0 | AQ78: =IF(AND(AQ74<>0,SUM(AR33:$BD$33)>0),(AQ70-AQ77)*IFERROR(AQ75/AP73,1)*(Inputs!$E$75=1),0) -> 0 | AR78: =IF(AND(AR74<>0,SUM(AS33:$BD$33)>0),(AR70-AR77)*IFERROR(AR75/AQ73,1)*(Inputs!$E$75=1),0) -> 0 | AS78: =IF(AND(AS74<>0,SUM(AT33:$BD$33)>0),(AS70-AS77)*IFERROR(AS75/AR73,1)*(Inputs!$E$75=1),0) -> 0 | AT78: =IF(AND(AT74<>0,SUM(AU33:$BD$33)>0),(AT70-AT77)*IFERROR(AT75/AS73,1)*(Inputs!$E$75=1),0) -> 0 | AU78: =IF(AND(AU74<>0,SUM(AV33:$BD$33)>0),(AU70-AU77)*IFERROR(AU75/AT73,1)*(Inputs!$E$75=1),0) -> 0 | AV78: =IF(AND(AV74<>0,SUM(AW33:$BD$33)>0),(AV70-AV77)*IFERROR(AV75/AU73,1)*(Inputs!$E$75=1),0) -> 0 | AW78: =IF(AND(AW74<>0,SUM(AX33:$BD$33)>0),(AW70-AW77)*IFERROR(AW75/AV73,1)*(Inputs!$E$75=1),0) -> 0 | AX78: =IF(AND(AX74<>0,SUM(AY33:$BD$33)>0),(AX70-AX77)*IFERROR(AX75/AW73,1)*(Inputs!$E$75=1),0) -> 0 | AY78: =IF(AND(AY74<>0,SUM(AZ33:$BD$33)>0),(AY70-AY77)*IFERROR(AY75/AX73,1)*(Inputs!$E$75=1),0) -> 0 | AZ78: =IF(AND(AZ74<>0,SUM(BA33:$BD$33)>0),(AZ70-AZ77)*IFERROR(AZ75/AY73,1)*(Inputs!$E$75=1),0) -> 0 | BA78: =IF(AND(BA74<>0,SUM(BB33:$BD$33)>0),(BA70-BA77)*IFERROR(BA75/AZ73,1)*(Inputs!$E$75=1),0) -> 0 | BB78: =IF(AND(BB74<>0,SUM(BC33:$BD$33)>0),(BB70-BB77)*IFERROR(BB75/BA73,1)*(Inputs!$E$75=1),0) -> 0 | BC78: =IF(AND(BC74<>0,SUM(BD33:$BD$33)>0),(BC70-BC77)*IFERROR(BC75/BB73,1)*(Inputs!$E$75=1),0) -> 0 | BD78: =IF(AND(BD74<>0,SUM($BD33:BE$33)>0),(BD70-BD77)*IFERROR(BD75/BC73,1)*(Inputs!$E$75=1),0) -> 0
C79: 0 | D79: Withdrawal to meet decommissioning costs | E79: $mm nominal | G79: =MIN(G68,F81)*-1 -> 0 | H79: 0 | I79: 0 | J79: =MIN(J68,I81)*-1 -> 0 | K79: 0 | L79: 0 | M79: 0 | N79: 0 | O79: 0 | P79: =MIN(P68,O81)*-1 -> 0 | Q79: 0 | R79: 0 | S79: 0 | T79: =MIN(T68,S81)*-1 -> 0 | U79: =MIN(U68,T81)*-1 -> 0 | V79: =MIN(V68,U81)*-1 -> 0 | W79: 0 | X79: 0 | Y79: 0 | Z79: 0 | AA79: 0 | AB79: 0 | AC79: 0 | AD79: 0 | AE79: 0 | AF79: 0 | AG79: 0 | AH79: 0 | AI79: 0 | AJ79: 0 | AK79: 0 | AL79: 0 | AM79: =MIN(AM68,AL81)*-1 -> 0 | AN79: 0 | AO79: 0 | AP79: 0 | AQ79: 0 | AR79: 0 | AS79: 0 | AT79: 0 | AU79: 0 | AV79: 0 | AW79: 0 | AX79: 0 | AY79: 0 | AZ79: 0 | BA79: 0 | BB79: 0 | BC79: 0 | BD79: 0
C80: 0 | D80: Surplus balance | E80: $mm nominal | G80: =AND(G79<>0,SUM(H33:$BD$33)=0)*(G77+G79)*-1 -> 0 | H80: =AND(H79<>0,SUM(I33:$BD$33)=0)*(H77+H79)*-1 -> 0 | I80: =AND(I79<>0,SUM(J33:$BD$33)=0)*(I77+I79)*-1 -> 0 | J80: =AND(J79<>0,SUM(K33:$BD$33)=0)*(J77+J79)*-1 -> 0 | K80: =AND(K79<>0,SUM(L33:$BD$33)=0)*(K77+K79)*-1 -> 0 | L80: =AND(L79<>0,SUM(M33:$BD$33)=0)*(L77+L79)*-1 -> 0 | M80: =AND(M79<>0,SUM(N33:$BD$33)=0)*(M77+M79)*-1 -> 0 | N80: =AND(N79<>0,SUM(O33:$BD$33)=0)*(N77+N79)*-1 -> 0 | O80: =AND(O79<>0,SUM(P33:$BD$33)=0)*(O77+O79)*-1 -> 0 | P80: =AND(P79<>0,SUM(Q33:$BD$33)=0)*(P77+P79)*-1 -> 0 | Q80: =AND(Q79<>0,SUM(R33:$BD$33)=0)*(Q77+Q79)*-1 -> 0 | R80: =AND(R79<>0,SUM(S33:$BD$33)=0)*(R77+R79)*-1 -> 0 | S80: =AND(S79<>0,SUM(T33:$BD$33)=0)*(S77+S79)*-1 -> 0 | T80: =AND(T79<>0,SUM(U33:$BD$33)=0)*(T77+T79)*-1 -> 0 | U80: =AND(U79<>0,SUM(V33:$BD$33)=0)*(U77+U79)*-1 -> 0 | V80: =AND(V79<>0,SUM(W33:$BD$33)=0)*(V77+V79)*-1 -> 0 | W80: =AND(W79<>0,SUM(X33:$BD$33)=0)*(W77+W79)*-1 -> 0 | X80: =AND(X79<>0,SUM(Y33:$BD$33)=0)*(X77+X79)*-1 -> 0 | Y80: =AND(Y79<>0,SUM(Z33:$BD$33)=0)*(Y77+Y79)*-1 -> 0 | Z80: =AND(Z79<>0,SUM(AA33:$BD$33)=0)*(Z77+Z79)*-1 -> 0 | AA80: =AND(AA79<>0,SUM(AB33:$BD$33)=0)*(AA77+AA79)*-1 -> 0 | AB80: =AND(AB79<>0,SUM(AC33:$BD$33)=0)*(AB77+AB79)*-1 -> 0 | AC80: =AND(AC79<>0,SUM(AD33:$BD$33)=0)*(AC77+AC79)*-1 -> 0 | AD80: =AND(AD79<>0,SUM(AE33:$BD$33)=0)*(AD77+AD79)*-1 -> 0 | AE80: =AND(AE79<>0,SUM(AF33:$BD$33)=0)*(AE77+AE79)*-1 -> 0 | AF80: =AND(AF79<>0,SUM(AG33:$BD$33)=0)*(AF77+AF79)*-1 -> 0 | AG80: =AND(AG79<>0,SUM(AH33:$BD$33)=0)*(AG77+AG79)*-1 -> 0 | AH80: =AND(AH79<>0,SUM(AI33:$BD$33)=0)*(AH77+AH79)*-1 -> 0 | AI80: =AND(AI79<>0,SUM(AJ33:$BD$33)=0)*(AI77+AI79)*-1 -> 0 | AJ80: =AND(AJ79<>0,SUM(AK33:$BD$33)=0)*(AJ77+AJ79)*-1 -> 0 | AK80: =AND(AK79<>0,SUM(AL33:$BD$33)=0)*(AK77+AK79)*-1 -> 0 | AL80: =AND(AL79<>0,SUM(AM33:$BD$33)=0)*(AL77+AL79)*-1 -> 0 | AM80: =AND(AM79<>0,SUM(AN33:$BD$33)=0)*(AM77+AM79)*-1 -> 0 | AN80: =AND(AN79<>0,SUM(AO33:$BD$33)=0)*(AN77+AN79)*-1 -> 0 | AO80: =AND(AO79<>0,SUM(AP33:$BD$33)=0)*(AO77+AO79)*-1 -> 0 | AP80: =AND(AP79<>0,SUM(AQ33:$BD$33)=0)*(AP77+AP79)*-1 -> 0 | AQ80: =AND(AQ79<>0,SUM(AR33:$BD$33)=0)*(AQ77+AQ79)*-1 -> 0 | AR80: =AND(AR79<>0,SUM(AS33:$BD$33)=0)*(AR77+AR79)*-1 -> 0 | AS80: =AND(AS79<>0,SUM(AT33:$BD$33)=0)*(AS77+AS79)*-1 -> 0 | AT80: =AND(AT79<>0,SUM(AU33:$BD$33)=0)*(AT77+AT79)*-1 -> 0 | AU80: =AND(AU79<>0,SUM(AV33:$BD$33)=0)*(AU77+AU79)*-1 -> 0 | AV80: =AND(AV79<>0,SUM(AW33:$BD$33)=0)*(AV77+AV79)*-1 -> 0 | AW80: =AND(AW79<>0,SUM(AX33:$BD$33)=0)*(AW77+AW79)*-1 -> 0 | AX80: =AND(AX79<>0,SUM(AY33:$BD$33)=0)*(AX77+AX79)*-1 -> 0 | AY80: =AND(AY79<>0,SUM(AZ33:$BD$33)=0)*(AY77+AY79)*-1 -> 0 | AZ80: =AND(AZ79<>0,SUM(BA33:$BD$33)=0)*(AZ77+AZ79)*-1 -> 0 | BA80: =AND(BA79<>0,SUM(BB33:$BD$33)=0)*(BA77+BA79)*-1 -> 0 | BB80: =AND(BB79<>0,SUM(BC33:$BD$33)=0)*(BB77+BB79)*-1 -> 0 | BC80: =AND(BC79<>0,SUM(BD33:$BD$33)=0)*(BC77+BC79)*-1 -> 0 | BD80: =AND(BD79<>0,SUM($BD33:BE$33)=0)*(BD77+BD79)*-1 -> 0
D81: Closing balance | E81: $mm nominal | G81: =SUM(G77:G80) -> 0 | H81: 0 | I81: =SUM(I77:I80) -> 0 | J81: 0 | K81: 0 | L81: 0 | M81: 0 | N81: 0 | O81: 0 | P81: =SUM(P77:P80) -> 0 | Q81: 0 | R81: 0 | S81: 0 | T81: =SUM(T77:T80) -> 0 | U81: 0 | V81: 0 | W81: 0 | X81: 0 | Y81: 0 | Z81: 0 | AA81: 0 | AB81: 0 | AC81: 0 | AD81: 0 | AE81: 0 | AF81: 0 | AG81: 0 | AH81: 0 | AI81: 0 | AJ81: 0 | AK81: 0 | AL81: 0 | AM81: =SUM(AM77:AM80) -> 0 | AN81: 0 | AO81: 0 | AP81: 0 | AQ81: 0 | AR81: 0 | AS81: 0 | AT81: 0 | AU81: 0 | AV81: 0 | AW81: 0 | AX81: 0 | AY81: 0 | AZ81: 0 | BA81: 0 | BB81: 0 | BC81: 0 | BD81: 0
D84: MISCELLANEOUS TAXES AND FEES
D86: Bonus
C87: =SUM(G87:BD87) -> 0 | D87: Signature bonus | E87: $mm nominal | G87: =(G31=1)*Inputs!$E$17 -> 0 | H87: =(H31=1)*Inputs!$E$17 -> 0 | I87: =(I31=1)*Inputs!$E$17 -> 0 | J87: =(J31=1)*Inputs!$E$17 -> 0 | K87: =(K31=1)*Inputs!$E$17 -> 0 | L87: =(L31=1)*Inputs!$E$17 -> 0 | M87: =(M31=1)*Inputs!$E$17 -> 0 | N87: =(N31=1)*Inputs!$E$17 -> 0 | O87: =(O31=1)*Inputs!$E$17 -> 0 | P87: =(P31=1)*Inputs!$E$17 -> 0 | Q87: =(Q31=1)*Inputs!$E$17 -> 0 | R87: =(R31=1)*Inputs!$E$17 -> 0 | S87: =(S31=1)*Inputs!$E$17 -> 0 | T87: =(T31=1)*Inputs!$E$17 -> 0 | U87: =(U31=1)*Inputs!$E$17 -> 0 | V87: =(V31=1)*Inputs!$E$17 -> 0 | W87: =(W31=1)*Inputs!$E$17 -> 0 | X87: =(X31=1)*Inputs!$E$17 -> 0 | Y87: =(Y31=1)*Inputs!$E$17 -> 0 | Z87: =(Z31=1)*Inputs!$E$17 -> 0 | AA87: =(AA31=1)*Inputs!$E$17 -> 0 | AB87: =(AB31=1)*Inputs!$E$17 -> 0 | AC87: =(AC31=1)*Inputs!$E$17 -> 0 | AD87: =(AD31=1)*Inputs!$E$17 -> 0 | AE87: =(AE31=1)*Inputs!$E$17 -> 0 | AF87: =(AF31=1)*Inputs!$E$17 -> 0 | AG87: =(AG31=1)*Inputs!$E$17 -> 0 | AH87: =(AH31=1)*Inputs!$E$17 -> 0 | AI87: =(AI31=1)*Inputs!$E$17 -> 0 | AJ87: =(AJ31=1)*Inputs!$E$17 -> 0 | AK87: =(AK31=1)*Inputs!$E$17 -> 0 | AL87: =(AL31=1)*Inputs!$E$17 -> 0 | AM87: =(AM31=1)*Inputs!$E$17 -> 0 | AN87: =(AN31=1)*Inputs!$E$17 -> 0 | AO87: =(AO31=1)*Inputs!$E$17 -> 0 | AP87: =(AP31=1)*Inputs!$E$17 -> 0 | AQ87: =(AQ31=1)*Inputs!$E$17 -> 0 | AR87: =(AR31=1)*Inputs!$E$17 -> 0 | AS87: =(AS31=1)*Inputs!$E$17 -> 0 | AT87: =(AT31=1)*Inputs!$E$17 -> 0 | AU87: =(AU31=1)*Inputs!$E$17 -> 0 | AV87: =(AV31=1)*Inputs!$E$17 -> 0 | AW87: =(AW31=1)*Inputs!$E$17 -> 0 | AX87: =(AX31=1)*Inputs!$E$17 -> 0 | AY87: =(AY31=1)*Inputs!$E$17 -> 0 | AZ87: =(AZ31=1)*Inputs!$E$17 -> 0 | BA87: =(BA31=1)*Inputs!$E$17 -> 0 | BB87: =(BB31=1)*Inputs!$E$17 -> 0 | BC87: =(BC31=1)*Inputs!$E$17 -> 0 | BD87: =(BD31=1)*Inputs!$E$17 -> 0
D90: INPUT TAXES
D92: Import duty
C93: =SUM(G93:BD93) -> 119.2905422 | D93: Import duty payable | E93: $mm nominal | G93: =((G54*Inputs!$E$250)+(SUM(G52:G53)*Inputs!$E$251))*IF(Inputs!$E$21=0,Inputs!$E$19,IF(G32<Inputs!$E$21,Inputs!$E$19,Inputs!$E$20)) -> 3 | H93: =((H54*Inputs!$E$250)+(SUM(H52:H53)*Inputs!$E$251))*IF(Inputs!$E$21=0,Inputs!$E$19,IF(H32<Inputs!$E$21,Inputs!$E$19,Inputs!$E$20)) -> 6.12 | I93: =((I54*Inputs!$E$250)+(SUM(I52:I53)*Inputs!$E$251))*IF(Inputs!$E$21=0,Inputs!$E$19,IF(I32<Inputs!$E$21,Inputs!$E$19,Inputs!$E$20)) -> 4.86191925 | J93: =((J54*Inputs!$E$250)+(SUM(J52:J53)*Inputs!$E$251))*IF(Inputs!$E$21=0,Inputs!$E$19,IF(J32<Inputs!$E$21,Inputs!$E$19,Inputs!$E$20)) -> 3.38392701 | K93: =((K54*Inputs!$E$250)+(SUM(K52:K53)*Inputs!$E$251))*IF(Inputs!$E$21=0,Inputs!$E$19,IF(K32<Inputs!$E$21,Inputs!$E$19,Inputs!$E$20)) -> 3.45160555 | L93: =((L54*Inputs!$E$250)+(SUM(L52:L53)*Inputs!$E$251))*IF(Inputs!$E$21=0,Inputs!$E$19,IF(L32<Inputs!$E$21,Inputs!$E$19,Inputs!$E$20)) -> 3.520637661 | M93: =((M54*Inputs!$E$250)+(SUM(M52:M53)*Inputs!$E$251))*IF(Inputs!$E$21=0,Inputs!$E$19,IF(M32<Inputs!$E$21,Inputs!$E$19,Inputs!$E$20)) -> 3.591050414 | N93: =((N54*Inputs!$E$250)+(SUM(N52:N53)*Inputs!$E$251))*IF(Inputs!$E$21=0,Inputs!$E$19,IF(N32<Inputs!$E$21,Inputs!$E$19,Inputs!$E$20)) -> 3.662871423 | O93: =((O54*Inputs!$E$250)+(SUM(O52:O53)*Inputs!$E$251))*IF(Inputs!$E$21=0,Inputs!$E$19,IF(O32<Inputs!$E$21,Inputs!$E$19,Inputs!$E$20)) -> 3.736128851 | P93: =((P54*Inputs!$E$250)+(SUM(P52:P53)*Inputs!$E$251))*IF(Inputs!$E$21=0,Inputs!$E$19,IF(P32<Inputs!$E$21,Inputs!$E$19,Inputs!$E$20)) -> 3.810851428 | Q93: =((Q54*Inputs!$E$250)+(SUM(Q52:Q53)*Inputs!$E$251))*IF(Inputs!$E$21=0,Inputs!$E$19,IF(Q32<Inputs!$E$21,Inputs!$E$19,Inputs!$E$20)) -> 3.887068457 | R93: =((R54*Inputs!$E$250)+(SUM(R52:R53)*Inputs!$E$251))*IF(Inputs!$E$21=0,Inputs!$E$19,IF(R32<Inputs!$E$21,Inputs!$E$19,Inputs!$E$20)) -> 3.964809826 | S93: =((S54*Inputs!$E$250)+(SUM(S52:S53)*Inputs!$E$251))*IF(Inputs!$E$21=0,Inputs!$E$19,IF(S32<Inputs!$E$21,Inputs!$E$19,Inputs!$E$20)) -> 4.044106022 | T93: =((T54*Inputs!$E$250)+(SUM(T52:T53)*Inputs!$E$251))*IF(Inputs!$E$21=0,Inputs!$E$19,IF(T32<Inputs!$E$21,Inputs!$E$19,Inputs!$E$20)) -> 6.550500575 | U93: =((U54*Inputs!$E$250)+(SUM(U52:U53)*Inputs!$E$251))*IF(Inputs!$E$21=0,Inputs!$E$19,IF(U32<Inputs!$E$21,Inputs!$E$19,Inputs!$E$20)) -> 6.681510586 | V93: =((V54*Inputs!$E$250)+(SUM(V52:V53)*Inputs!$E$251))*IF(Inputs!$E$21=0,Inputs!$E$19,IF(V32<Inputs!$E$21,Inputs!$E$19,Inputs!$E$20)) -> 4.291637664 | W93: =((W54*Inputs!$E$250)+(SUM(W52:W53)*Inputs!$E$251))*IF(Inputs!$E$21=0,Inputs!$E$19,IF(W32<Inputs!$E$21,Inputs!$E$19,Inputs!$E$20)) -> 4.377470417 | X93: =((X54*Inputs!$E$250)+(SUM(X52:X53)*Inputs!$E$251))*IF(Inputs!$E$21=0,Inputs!$E$19,IF(X32<Inputs!$E$21,Inputs!$E$19,Inputs!$E$20)) -> 4.465019825 | Y93: =((Y54*Inputs!$E$250)+(SUM(Y52:Y53)*Inputs!$E$251))*IF(Inputs!$E$21=0,Inputs!$E$19,IF(Y32<Inputs!$E$21,Inputs!$E$19,Inputs!$E$20)) -> 4.554320222 | Z93: =((Z54*Inputs!$E$250)+(SUM(Z52:Z53)*Inputs!$E$251))*IF(Inputs!$E$21=0,Inputs!$E$19,IF(Z32<Inputs!$E$21,Inputs!$E$19,Inputs!$E$20)) -> 4.645406626 | AA93: =((AA54*Inputs!$E$250)+(SUM(AA52:AA53)*Inputs!$E$251))*IF(Inputs!$E$21=0,Inputs!$E$19,IF(AA32<Inputs!$E$21,Inputs!$E$19,Inputs!$E$20)) -> 4.738314759 | AB93: =((AB54*Inputs!$E$250)+(SUM(AB52:AB53)*Inputs!$E$251))*IF(Inputs!$E$21=0,Inputs!$E$19,IF(AB32<Inputs!$E$21,Inputs!$E$19,Inputs!$E$20)) -> 4.833081054 | AC93: =((AC54*Inputs!$E$250)+(SUM(AC52:AC53)*Inputs!$E$251))*IF(Inputs!$E$21=0,Inputs!$E$19,IF(AC32<Inputs!$E$21,Inputs!$E$19,Inputs!$E$20)) -> 4.929742675 | AD93: =((AD54*Inputs!$E$250)+(SUM(AD52:AD53)*Inputs!$E$251))*IF(Inputs!$E$21=0,Inputs!$E$19,IF(AD32<Inputs!$E$21,Inputs!$E$19,Inputs!$E$20)) -> 5.028337529 | AE93: =((AE54*Inputs!$E$250)+(SUM(AE52:AE53)*Inputs!$E$251))*IF(Inputs!$E$21=0,Inputs!$E$19,IF(AE32<Inputs!$E$21,Inputs!$E$19,Inputs!$E$20)) -> 5.128904279 | AF93: =((AF54*Inputs!$E$250)+(SUM(AF52:AF53)*Inputs!$E$251))*IF(Inputs!$E$21=0,Inputs!$E$19,IF(AF32<Inputs!$E$21,Inputs!$E$19,Inputs!$E$20)) -> 5.231482365 | AG93: =((AG54*Inputs!$E$250)+(SUM(AG52:AG53)*Inputs!$E$251))*IF(Inputs!$E$21=0,Inputs!$E$19,IF(AG32<Inputs!$E$21,Inputs!$E$19,Inputs!$E$20)) -> 2.799837683 | AH93: =((AH54*Inputs!$E$250)+(SUM(AH52:AH53)*Inputs!$E$251))*IF(Inputs!$E$21=0,Inputs!$E$19,IF(AH32<Inputs!$E$21,Inputs!$E$19,Inputs!$E$20)) -> 0 | AI93: =((AI54*Inputs!$E$250)+(SUM(AI52:AI53)*Inputs!$E$251))*IF(Inputs!$E$21=0,Inputs!$E$19,IF(AI32<Inputs!$E$21,Inputs!$E$19,Inputs!$E$20)) -> 0 | AJ93: =((AJ54*Inputs!$E$250)+(SUM(AJ52:AJ53)*Inputs!$E$251))*IF(Inputs!$E$21=0,Inputs!$E$19,IF(AJ32<Inputs!$E$21,Inputs!$E$19,Inputs!$E$20)) -> 0 | AK93: =((AK54*Inputs!$E$250)+(SUM(AK52:AK53)*Inputs!$E$251))*IF(Inputs!$E$21=0,Inputs!$E$19,IF(AK32<Inputs!$E$21,Inputs!$E$19,Inputs!$E$20)) -> 0 | AL93: =((AL54*Inputs!$E$250)+(SUM(AL52:AL53)*Inputs!$E$251))*IF(Inputs!$E$21=0,Inputs!$E$19,IF(AL32<Inputs!$E$21,Inputs!$E$19,Inputs!$E$20)) -> 0 | AM93: =((AM54*Inputs!$E$250)+(SUM(AM52:AM53)*Inputs!$E$251))*IF(Inputs!$E$21=0,Inputs!$E$19,IF(AM32<Inputs!$E$21,Inputs!$E$19,Inputs!$E$20)) -> 0 | AN93: =((AN54*Inputs!$E$250)+(SUM(AN52:AN53)*Inputs!$E$251))*IF(Inputs!$E$21=0,Inputs!$E$19,IF(AN32<Inputs!$E$21,Inputs!$E$19,Inputs!$E$20)) -> 0 | AO93: =((AO54*Inputs!$E$250)+(SUM(AO52:AO53)*Inputs!$E$251))*IF(Inputs!$E$21=0,Inputs!$E$19,IF(AO32<Inputs!$E$21,Inputs!$E$19,Inputs!$E$20)) -> 0 | AP93: =((AP54*Inputs!$E$250)+(SUM(AP52:AP53)*Inputs!$E$251))*IF(Inputs!$E$21=0,Inputs!$E$19,IF(AP32<Inputs!$E$21,Inputs!$E$19,Inputs!$E$20)) -> 0 | AQ93: =((AQ54*Inputs!$E$250)+(SUM(AQ52:AQ53)*Inputs!$E$251))*IF(Inputs!$E$21=0,Inputs!$E$19,IF(AQ32<Inputs!$E$21,Inputs!$E$19,Inputs!$E$20)) -> 0 | AR93: =((AR54*Inputs!$E$250)+(SUM(AR52:AR53)*Inputs!$E$251))*IF(Inputs!$E$21=0,Inputs!$E$19,IF(AR32<Inputs!$E$21,Inputs!$E$19,Inputs!$E$20)) -> 0 | AS93: =((AS54*Inputs!$E$250)+(SUM(AS52:AS53)*Inputs!$E$251))*IF(Inputs!$E$21=0,Inputs!$E$19,IF(AS32<Inputs!$E$21,Inputs!$E$19,Inputs!$E$20)) -> 0 | AT93: =((AT54*Inputs!$E$250)+(SUM(AT52:AT53)*Inputs!$E$251))*IF(Inputs!$E$21=0,Inputs!$E$19,IF(AT32<Inputs!$E$21,Inputs!$E$19,Inputs!$E$20)) -> 0 | AU93: =((AU54*Inputs!$E$250)+(SUM(AU52:AU53)*Inputs!$E$251))*IF(Inputs!$E$21=0,Inputs!$E$19,IF(AU32<Inputs!$E$21,Inputs!$E$19,Inputs!$E$20)) -> 0 | AV93: =((AV54*Inputs!$E$250)+(SUM(AV52:AV53)*Inputs!$E$251))*IF(Inputs!$E$21=0,Inputs!$E$19,IF(AV32<Inputs!$E$21,Inputs!$E$19,Inputs!$E$20)) -> 0 | AW93: =((AW54*Inputs!$E$250)+(SUM(AW52:AW53)*Inputs!$E$251))*IF(Inputs!$E$21=0,Inputs!$E$19,IF(AW32<Inputs!$E$21,Inputs!$E$19,Inputs!$E$20)) -> 0 | AX93: =((AX54*Inputs!$E$250)+(SUM(AX52:AX53)*Inputs!$E$251))*IF(Inputs!$E$21=0,Inputs!$E$19,IF(AX32<Inputs!$E$21,Inputs!$E$19,Inputs!$E$20)) -> 0 | AY93: =((AY54*Inputs!$E$250)+(SUM(AY52:AY53)*Inputs!$E$251))*IF(Inputs!$E$21=0,Inputs!$E$19,IF(AY32<Inputs!$E$21,Inputs!$E$19,Inputs!$E$20)) -> 0 | AZ93: =((AZ54*Inputs!$E$250)+(SUM(AZ52:AZ53)*Inputs!$E$251))*IF(Inputs!$E$21=0,Inputs!$E$19,IF(AZ32<Inputs!$E$21,Inputs!$E$19,Inputs!$E$20)) -> 0 | BA93: =((BA54*Inputs!$E$250)+(SUM(BA52:BA53)*Inputs!$E$251))*IF(Inputs!$E$21=0,Inputs!$E$19,IF(BA32<Inputs!$E$21,Inputs!$E$19,Inputs!$E$20)) -> 0 | BB93: =((BB54*Inputs!$E$250)+(SUM(BB52:BB53)*Inputs!$E$251))*IF(Inputs!$E$21=0,Inputs!$E$19,IF(BB32<Inputs!$E$21,Inputs!$E$19,Inputs!$E$20)) -> 0 | BC93: =((BC54*Inputs!$E$250)+(SUM(BC52:BC53)*Inputs!$E$251))*IF(Inputs!$E$21=0,Inputs!$E$19,IF(BC32<Inputs!$E$21,Inputs!$E$19,Inputs!$E$20)) -> 0 | BD93: =((BD54*Inputs!$E$250)+(SUM(BD52:BD53)*Inputs!$E$251))*IF(Inputs!$E$21=0,Inputs!$E$19,IF(BD32<Inputs!$E$21,Inputs!$E$19,Inputs!$E$20)) -> 0
D95: VAT
D96: VAT-able costs | E96: $mm nominal | G96: =(SUM(G52:G53)*Inputs!$E$253)+(Model!G54*Inputs!$E$252) -> 80 | H96: =(SUM(H52:H53)*Inputs!$E$253)+(Model!H54*Inputs!$E$252) -> 163.2 | I96: =(SUM(I52:I53)*Inputs!$E$253)+(Model!I54*Inputs!$E$252) -> 119.138805 | J96: =(SUM(J52:J53)*Inputs!$E$253)+(Model!J54*Inputs!$E$252) -> 68.7928086 | K96: =(SUM(K52:K53)*Inputs!$E$253)+(Model!K54*Inputs!$E$252) -> 70.16866477 | L96: =(SUM(L52:L53)*Inputs!$E$253)+(Model!L54*Inputs!$E$252) -> 71.57203807 | M96: =(SUM(M52:M53)*Inputs!$E$253)+(Model!M54*Inputs!$E$252) -> 73.00347883 | N96: =(SUM(N52:N53)*Inputs!$E$253)+(Model!N54*Inputs!$E$252) -> 74.46354841 | O96: =(SUM(O52:O53)*Inputs!$E$253)+(Model!O54*Inputs!$E$252) -> 75.95281937 | P96: =(SUM(P52:P53)*Inputs!$E$253)+(Model!P54*Inputs!$E$252) -> 77.47187576 | Q96: =(SUM(Q52:Q53)*Inputs!$E$253)+(Model!Q54*Inputs!$E$252) -> 79.02131328 | R96: =(SUM(R52:R53)*Inputs!$E$253)+(Model!R54*Inputs!$E$252) -> 80.60173954 | S96: =(SUM(S52:S53)*Inputs!$E$253)+(Model!S54*Inputs!$E$252) -> 82.21377433 | T96: =(SUM(T52:T53)*Inputs!$E$253)+(Model!T54*Inputs!$E$252) -> 148.5383813 | U96: =(SUM(U52:U53)*Inputs!$E$253)+(Model!U54*Inputs!$E$252) -> 151.509149 | V96: =(SUM(V52:V53)*Inputs!$E$253)+(Model!V54*Inputs!$E$252) -> 87.24591503 | W96: =(SUM(W52:W53)*Inputs!$E$253)+(Model!W54*Inputs!$E$252) -> 88.99083333 | X96: =(SUM(X52:X53)*Inputs!$E$253)+(Model!X54*Inputs!$E$252) -> 90.77065 | Y96: =(SUM(Y52:Y53)*Inputs!$E$253)+(Model!Y54*Inputs!$E$252) -> 92.586063 | Z96: =(SUM(Z52:Z53)*Inputs!$E$253)+(Model!Z54*Inputs!$E$252) -> 94.43778426 | AA96: =(SUM(AA52:AA53)*Inputs!$E$253)+(Model!AA54*Inputs!$E$252) -> 96.32653994 | AB96: =(SUM(AB52:AB53)*Inputs!$E$253)+(Model!AB54*Inputs!$E$252) -> 98.25307074 | AC96: =(SUM(AC52:AC53)*Inputs!$E$253)+(Model!AC54*Inputs!$E$252) -> 100.2181322 | AD96: =(SUM(AD52:AD53)*Inputs!$E$253)+(Model!AD54*Inputs!$E$252) -> 102.2224948 | AE96: =(SUM(AE52:AE53)*Inputs!$E$253)+(Model!AE54*Inputs!$E$252) -> 104.2669447 | AF96: =(SUM(AF52:AF53)*Inputs!$E$253)+(Model!AF54*Inputs!$E$252) -> 106.3522836 | AG96: =(SUM(AG52:AG53)*Inputs!$E$253)+(Model!AG54*Inputs!$E$252) -> 57.75384267 | AH96: =(SUM(AH52:AH53)*Inputs!$E$253)+(Model!AH54*Inputs!$E$252) -> 0 | AI96: =(SUM(AI52:AI53)*Inputs!$E$253)+(Model!AI54*Inputs!$E$252) -> 0 | AJ96: =(SUM(AJ52:AJ53)*Inputs!$E$253)+(Model!AJ54*Inputs!$E$252) -> 0 | AK96: =(SUM(AK52:AK53)*Inputs!$E$253)+(Model!AK54*Inputs!$E$252) -> 0 | AL96: =(SUM(AL52:AL53)*Inputs!$E$253)+(Model!AL54*Inputs!$E$252) -> 0 | AM96: =(SUM(AM52:AM53)*Inputs!$E$253)+(Model!AM54*Inputs!$E$252) -> 0 | AN96: =(SUM(AN52:AN53)*Inputs!$E$253)+(Model!AN54*Inputs!$E$252) -> 0 | AO96: =(SUM(AO52:AO53)*Inputs!$E$253)+(Model!AO54*Inputs!$E$252) -> 0 | AP96: =(SUM(AP52:AP53)*Inputs!$E$253)+(Model!AP54*Inputs!$E$252) -> 0 | AQ96: =(SUM(AQ52:AQ53)*Inputs!$E$253)+(Model!AQ54*Inputs!$E$252) -> 0 | AR96: =(SUM(AR52:AR53)*Inputs!$E$253)+(Model!AR54*Inputs!$E$252) -> 0 | AS96: =(SUM(AS52:AS53)*Inputs!$E$253)+(Model!AS54*Inputs!$E$252) -> 0 | AT96: =(SUM(AT52:AT53)*Inputs!$E$253)+(Model!AT54*Inputs!$E$252) -> 0 | AU96: =(SUM(AU52:AU53)*Inputs!$E$253)+(Model!AU54*Inputs!$E$252) -> 0 | AV96: =(SUM(AV52:AV53)*Inputs!$E$253)+(Model!AV54*Inputs!$E$252) -> 0 | AW96: =(SUM(AW52:AW53)*Inputs!$E$253)+(Model!AW54*Inputs!$E$252) -> 0 | AX96: =(SUM(AX52:AX53)*Inputs!$E$253)+(Model!AX54*Inputs!$E$252) -> 0 | AY96: =(SUM(AY52:AY53)*Inputs!$E$253)+(Model!AY54*Inputs!$E$252) -> 0 | AZ96: =(SUM(AZ52:AZ53)*Inputs!$E$253)+(Model!AZ54*Inputs!$E$252) -> 0 | BA96: =(SUM(BA52:BA53)*Inputs!$E$253)+(Model!BA54*Inputs!$E$252) -> 0 | BB96: =(SUM(BB52:BB53)*Inputs!$E$253)+(Model!BB54*Inputs!$E$252) -> 0 | BC96: =(SUM(BC52:BC53)*Inputs!$E$253)+(Model!BC54*Inputs!$E$252) -> 0 | BD96: =(SUM(BD52:BD53)*Inputs!$E$253)+(Model!BD54*Inputs!$E$252) -> 0
C97: =SUM(G97:BD97) -> 0 | D97: VAT payable | E97: $mm nominal | G97: =G96*Inputs!$E$22 -> 0 | H97: =H96*Inputs!$E$22 -> 0 | I97: =I96*Inputs!$E$22 -> 0 | J97: =J96*Inputs!$E$22 -> 0 | K97: =K96*Inputs!$E$22 -> 0 | L97: =L96*Inputs!$E$22 -> 0 | M97: =M96*Inputs!$E$22 -> 0 | N97: =N96*Inputs!$E$22 -> 0 | O97: =O96*Inputs!$E$22 -> 0 | P97: =P96*Inputs!$E$22 -> 0 | Q97: =Q96*Inputs!$E$22 -> 0 | R97: =R96*Inputs!$E$22 -> 0 | S97: =S96*Inputs!$E$22 -> 0 | T97: =T96*Inputs!$E$22 -> 0 | U97: =U96*Inputs!$E$22 -> 0 | V97: =V96*Inputs!$E$22 -> 0 | W97: =W96*Inputs!$E$22 -> 0 | X97: =X96*Inputs!$E$22 -> 0 | Y97: =Y96*Inputs!$E$22 -> 0 | Z97: =Z96*Inputs!$E$22 -> 0 | AA97: =AA96*Inputs!$E$22 -> 0 | AB97: =AB96*Inputs!$E$22 -> 0 | AC97: =AC96*Inputs!$E$22 -> 0 | AD97: =AD96*Inputs!$E$22 -> 0 | AE97: =AE96*Inputs!$E$22 -> 0 | AF97: =AF96*Inputs!$E$22 -> 0 | AG97: =AG96*Inputs!$E$22 -> 0 | AH97: =AH96*Inputs!$E$22 -> 0 | AI97: =AI96*Inputs!$E$22 -> 0 | AJ97: =AJ96*Inputs!$E$22 -> 0 | AK97: =AK96*Inputs!$E$22 -> 0 | AL97: =AL96*Inputs!$E$22 -> 0 | AM97: =AM96*Inputs!$E$22 -> 0 | AN97: =AN96*Inputs!$E$22 -> 0 | AO97: =AO96*Inputs!$E$22 -> 0 | AP97: =AP96*Inputs!$E$22 -> 0 | AQ97: =AQ96*Inputs!$E$22 -> 0 | AR97: =AR96*Inputs!$E$22 -> 0 | AS97: =AS96*Inputs!$E$22 -> 0 | AT97: =AT96*Inputs!$E$22 -> 0 | AU97: =AU96*Inputs!$E$22 -> 0 | AV97: =AV96*Inputs!$E$22 -> 0 | AW97: =AW96*Inputs!$E$22 -> 0 | AX97: =AX96*Inputs!$E$22 -> 0 | AY97: =AY96*Inputs!$E$22 -> 0 | AZ97: =AZ96*Inputs!$E$22 -> 0 | BA97: =BA96*Inputs!$E$22 -> 0 | BB97: =BB96*Inputs!$E$22 -> 0 | BC97: =BC96*Inputs!$E$22 -> 0 | BD97: =BD96*Inputs!$E$22 -> 0
D99: Skills development levy
D100: Payroll costs | E100: $mm nominal | G100: =G54*Inputs!$E$254 -> 0 | H100: =H54*Inputs!$E$254 -> 0 | I100: =I54*Inputs!$E$254 -> 22.0759875 | J100: =J54*Inputs!$E$254 -> 45.0350145 | K100: =K54*Inputs!$E$254 -> 45.93571479 | L100: =L54*Inputs!$E$254 -> 46.85442909 | M100: =M54*Inputs!$E$254 -> 47.79151767 | N100: =N54*Inputs!$E$254 -> 48.74734802 | O100: =O54*Inputs!$E$254 -> 49.72229498 | P100: =P54*Inputs!$E$254 -> 50.71674088 | Q100: =Q54*Inputs!$E$254 -> 51.7310757 | R100: =R54*Inputs!$E$254 -> 52.76569721 | S100: =S54*Inputs!$E$254 -> 53.82101116 | T100: =T54*Inputs!$E$254 -> 54.89743138 | U100: =U54*Inputs!$E$254 -> 55.99538001 | V100: =V54*Inputs!$E$254 -> 57.11528761 | W100: =W54*Inputs!$E$254 -> 58.25759336 | X100: =X54*Inputs!$E$254 -> 59.42274523 | Y100: =Y54*Inputs!$E$254 -> 60.61120013 | Z100: =Z54*Inputs!$E$254 -> 61.82342413 | AA100: =AA54*Inputs!$E$254 -> 63.05989262 | AB100: =AB54*Inputs!$E$254 -> 64.32109047 | AC100: =AC54*Inputs!$E$254 -> 65.60751228 | AD100: =AD54*Inputs!$E$254 -> 66.91966252 | AE100: =AE54*Inputs!$E$254 -> 68.25805577 | AF100: =AF54*Inputs!$E$254 -> 69.62321689 | AG100: =AG54*Inputs!$E$254 -> 35.50784061 | AH100: =AH54*Inputs!$E$254 -> 0 | AI100: =AI54*Inputs!$E$254 -> 0 | AJ100: =AJ54*Inputs!$E$254 -> 0 | AK100: =AK54*Inputs!$E$254 -> 0 | AL100: =AL54*Inputs!$E$254 -> 0 | AM100: =AM54*Inputs!$E$254 -> 0 | AN100: =AN54*Inputs!$E$254 -> 0 | AO100: =AO54*Inputs!$E$254 -> 0 | AP100: =AP54*Inputs!$E$254 -> 0 | AQ100: =AQ54*Inputs!$E$254 -> 0 | AR100: =AR54*Inputs!$E$254 -> 0 | AS100: =AS54*Inputs!$E$254 -> 0 | AT100: =AT54*Inputs!$E$254 -> 0 | AU100: =AU54*Inputs!$E$254 -> 0 | AV100: =AV54*Inputs!$E$254 -> 0 | AW100: =AW54*Inputs!$E$254 -> 0 | AX100: =AX54*Inputs!$E$254 -> 0 | AY100: =AY54*Inputs!$E$254 -> 0 | AZ100: =AZ54*Inputs!$E$254 -> 0 | BA100: =BA54*Inputs!$E$254 -> 0 | BB100: =BB54*Inputs!$E$254 -> 0 | BC100: =BC54*Inputs!$E$254 -> 0 | BD100: =BD54*Inputs!$E$254 -> 0
C101: =SUM(G101:BD101) -> 61.0477724 | D101: Skills development levy payable | E101: $mm nominal | G101: =G100*IF(Inputs!$E$25=0,Inputs!$E$23,IF(G32<Inputs!$E$25,Inputs!$E$23,Inputs!$E$24)) -> 0 | H101: =H100*IF(Inputs!$E$25=0,Inputs!$E$23,IF(H32<Inputs!$E$25,Inputs!$E$23,Inputs!$E$24)) -> 0 | I101: =I100*IF(Inputs!$E$25=0,Inputs!$E$23,IF(I32<Inputs!$E$25,Inputs!$E$23,Inputs!$E$24)) -> 0.9934194375 | J101: =J100*IF(Inputs!$E$25=0,Inputs!$E$23,IF(J32<Inputs!$E$25,Inputs!$E$23,Inputs!$E$24)) -> 2.026575652 | K101: =K100*IF(Inputs!$E$25=0,Inputs!$E$23,IF(K32<Inputs!$E$25,Inputs!$E$23,Inputs!$E$24)) -> 2.067107166 | L101: =L100*IF(Inputs!$E$25=0,Inputs!$E$23,IF(L32<Inputs!$E$25,Inputs!$E$23,Inputs!$E$24)) -> 2.108449309 | M101: =M100*IF(Inputs!$E$25=0,Inputs!$E$23,IF(M32<Inputs!$E$25,Inputs!$E$23,Inputs!$E$24)) -> 2.150618295 | N101: =N100*IF(Inputs!$E$25=0,Inputs!$E$23,IF(N32<Inputs!$E$25,Inputs!$E$23,Inputs!$E$24)) -> 2.193630661 | O101: =O100*IF(Inputs!$E$25=0,Inputs!$E$23,IF(O32<Inputs!$E$25,Inputs!$E$23,Inputs!$E$24)) -> 2.237503274 | P101: =P100*IF(Inputs!$E$25=0,Inputs!$E$23,IF(P32<Inputs!$E$25,Inputs!$E$23,Inputs!$E$24)) -> 2.28225334 | Q101: =Q100*IF(Inputs!$E$25=0,Inputs!$E$23,IF(Q32<Inputs!$E$25,Inputs!$E$23,Inputs!$E$24)) -> 2.327898406 | R101: =R100*IF(Inputs!$E$25=0,Inputs!$E$23,IF(R32<Inputs!$E$25,Inputs!$E$23,Inputs!$E$24)) -> 2.374456375 | S101: =S100*IF(Inputs!$E$25=0,Inputs!$E$23,IF(S32<Inputs!$E$25,Inputs!$E$23,Inputs!$E$24)) -> 2.421945502 | T101: =T100*IF(Inputs!$E$25=0,Inputs!$E$23,IF(T32<Inputs!$E$25,Inputs!$E$23,Inputs!$E$24)) -> 2.470384412 | U101: =U100*IF(Inputs!$E$25=0,Inputs!$E$23,IF(U32<Inputs!$E$25,Inputs!$E$23,Inputs!$E$24)) -> 2.5197921 | V101: =V100*IF(Inputs!$E$25=0,Inputs!$E$23,IF(V32<Inputs!$E$25,Inputs!$E$23,Inputs!$E$24)) -> 2.570187942 | W101: =W100*IF(Inputs!$E$25=0,Inputs!$E$23,IF(W32<Inputs!$E$25,Inputs!$E$23,Inputs!$E$24)) -> 2.621591701 | X101: =X100*IF(Inputs!$E$25=0,Inputs!$E$23,IF(X32<Inputs!$E$25,Inputs!$E$23,Inputs!$E$24)) -> 2.674023535 | Y101: =Y100*IF(Inputs!$E$25=0,Inputs!$E$23,IF(Y32<Inputs!$E$25,Inputs!$E$23,Inputs!$E$24)) -> 2.727504006 | Z101: =Z100*IF(Inputs!$E$25=0,Inputs!$E$23,IF(Z32<Inputs!$E$25,Inputs!$E$23,Inputs!$E$24)) -> 2.782054086 | AA101: =AA100*IF(Inputs!$E$25=0,Inputs!$E$23,IF(AA32<Inputs!$E$25,Inputs!$E$23,Inputs!$E$24)) -> 2.837695168 | AB101: =AB100*IF(Inputs!$E$25=0,Inputs!$E$23,IF(AB32<Inputs!$E$25,Inputs!$E$23,Inputs!$E$24)) -> 2.894449071 | AC101: =AC100*IF(Inputs!$E$25=0,Inputs!$E$23,IF(AC32<Inputs!$E$25,Inputs!$E$23,Inputs!$E$24)) -> 2.952338053 | AD101: =AD100*IF(Inputs!$E$25=0,Inputs!$E$23,IF(AD32<Inputs!$E$25,Inputs!$E$23,Inputs!$E$24)) -> 3.011384814 | AE101: =AE100*IF(Inputs!$E$25=0,Inputs!$E$23,IF(AE32<Inputs!$E$25,Inputs!$E$23,Inputs!$E$24)) -> 3.07161251 | AF101: =AF100*IF(Inputs!$E$25=0,Inputs!$E$23,IF(AF32<Inputs!$E$25,Inputs!$E$23,Inputs!$E$24)) -> 3.13304476 | AG101: =AG100*IF(Inputs!$E$25=0,Inputs!$E$23,IF(AG32<Inputs!$E$25,Inputs!$E$23,Inputs!$E$24)) -> 1.597852828 | AH101: =AH100*IF(Inputs!$E$25=0,Inputs!$E$23,IF(AH32<Inputs!$E$25,Inputs!$E$23,Inputs!$E$24)) -> 0 | AI101: =AI100*IF(Inputs!$E$25=0,Inputs!$E$23,IF(AI32<Inputs!$E$25,Inputs!$E$23,Inputs!$E$24)) -> 0 | AJ101: =AJ100*IF(Inputs!$E$25=0,Inputs!$E$23,IF(AJ32<Inputs!$E$25,Inputs!$E$23,Inputs!$E$24)) -> 0 | AK101: =AK100*IF(Inputs!$E$25=0,Inputs!$E$23,IF(AK32<Inputs!$E$25,Inputs!$E$23,Inputs!$E$24)) -> 0 | AL101: =AL100*IF(Inputs!$E$25=0,Inputs!$E$23,IF(AL32<Inputs!$E$25,Inputs!$E$23,Inputs!$E$24)) -> 0 | AM101: =AM100*IF(Inputs!$E$25=0,Inputs!$E$23,IF(AM32<Inputs!$E$25,Inputs!$E$23,Inputs!$E$24)) -> 0 | AN101: =AN100*IF(Inputs!$E$25=0,Inputs!$E$23,IF(AN32<Inputs!$E$25,Inputs!$E$23,Inputs!$E$24)) -> 0 | AO101: =AO100*IF(Inputs!$E$25=0,Inputs!$E$23,IF(AO32<Inputs!$E$25,Inputs!$E$23,Inputs!$E$24)) -> 0 | AP101: =AP100*IF(Inputs!$E$25=0,Inputs!$E$23,IF(AP32<Inputs!$E$25,Inputs!$E$23,Inputs!$E$24)) -> 0 | AQ101: =AQ100*IF(Inputs!$E$25=0,Inputs!$E$23,IF(AQ32<Inputs!$E$25,Inputs!$E$23,Inputs!$E$24)) -> 0 | AR101: =AR100*IF(Inputs!$E$25=0,Inputs!$E$23,IF(AR32<Inputs!$E$25,Inputs!$E$23,Inputs!$E$24)) -> 0 | AS101: =AS100*IF(Inputs!$E$25=0,Inputs!$E$23,IF(AS32<Inputs!$E$25,Inputs!$E$23,Inputs!$E$24)) -> 0 | AT101: =AT100*IF(Inputs!$E$25=0,Inputs!$E$23,IF(AT32<Inputs!$E$25,Inputs!$E$23,Inputs!$E$24)) -> 0 | AU101: =AU100*IF(Inputs!$E$25=0,Inputs!$E$23,IF(AU32<Inputs!$E$25,Inputs!$E$23,Inputs!$E$24)) -> 0 | AV101: =AV100*IF(Inputs!$E$25=0,Inputs!$E$23,IF(AV32<Inputs!$E$25,Inputs!$E$23,Inputs!$E$24)) -> 0 | AW101: =AW100*IF(Inputs!$E$25=0,Inputs!$E$23,IF(AW32<Inputs!$E$25,Inputs!$E$23,Inputs!$E$24)) -> 0 | AX101: =AX100*IF(Inputs!$E$25=0,Inputs!$E$23,IF(AX32<Inputs!$E$25,Inputs!$E$23,Inputs!$E$24)) -> 0 | AY101: =AY100*IF(Inputs!$E$25=0,Inputs!$E$23,IF(AY32<Inputs!$E$25,Inputs!$E$23,Inputs!$E$24)) -> 0 | AZ101: =AZ100*IF(Inputs!$E$25=0,Inputs!$E$23,IF(AZ32<Inputs!$E$25,Inputs!$E$23,Inputs!$E$24)) -> 0 | BA101: =BA100*IF(Inputs!$E$25=0,Inputs!$E$23,IF(BA32<Inputs!$E$25,Inputs!$E$23,Inputs!$E$24)) -> 0 | BB101: =BB100*IF(Inputs!$E$25=0,Inputs!$E$23,IF(BB32<Inputs!$E$25,Inputs!$E$23,Inputs!$E$24)) -> 0 | BC101: =BC100*IF(Inputs!$E$25=0,Inputs!$E$23,IF(BC32<Inputs!$E$25,Inputs!$E$23,Inputs!$E$24)) -> 0 | BD101: =BD100*IF(Inputs!$E$25=0,Inputs!$E$23,IF(BD32<Inputs!$E$25,Inputs!$E$23,Inputs!$E$24)) -> 0
D104: ROYALTIES
D106: Royalty
C107: =SUM(G107:BD107) -> 11188.59517 | D107: Primary gross revenue | E107: $mm nominal | G107: =G45 -> 0 | H107: 0 | I107: 182.07 | J107: 371.4228 | K107: 378.851256 | L107: 386.4282811 | M107: 394.1568467 | N107: 402.0399837 | O107: 410.0807834 | P107: 418.282399 | Q107: 426.648047 | R107: 435.1810079 | S107: 443.8846281 | T107: 452.7623207 | U107: 461.8175671 | V107: 471.0539184 | W107: 480.4749968 | X107: 490.0844967 | Y107: 499.8861867 | Z107: 509.8839104 | AA107: 520.0815886 | AB107: 530.4832204 | AC107: 541.0928848 | AD107: 551.9147425 | AE107: 562.9530373 | AF107: 574.2120981 | AG107: 292.84817 | AH107: 0 | AI107: 0 | AJ107: 0 | AK107: 0 | AL107: 0 | AM107: =AM45 -> 0 | AN107: 0 | AO107: 0 | AP107: 0 | AQ107: 0 | AR107: 0 | AS107: 0 | AT107: 0 | AU107: 0 | AV107: 0 | AW107: 0 | AX107: 0 | AY107: 0 | AZ107: 0 | BA107: 0 | BB107: 0 | BC107: 0 | BD107: 0
C108: =SUM(G108:BD108) -> 11148.6359 | D108: Net revenue (net backed) | E108: $mm nominal | G108: =G49*(1-Inputs!$E$204) -> 0 | H108: =H49*(1-Inputs!$E$204) -> 0 | I108: =I49*(1-Inputs!$E$204) -> 181.41975 | J108: =J49*(1-Inputs!$E$204) -> 370.09629 | K108: =K49*(1-Inputs!$E$204) -> 377.4982158 | L108: =L49*(1-Inputs!$E$204) -> 385.0481801 | M108: =M49*(1-Inputs!$E$204) -> 392.7491437 | N108: =N49*(1-Inputs!$E$204) -> 400.6041266 | O108: =O49*(1-Inputs!$E$204) -> 408.6162091 | P108: =P49*(1-Inputs!$E$204) -> 416.7885333 | Q108: =Q49*(1-Inputs!$E$204) -> 425.124304 | R108: =R49*(1-Inputs!$E$204) -> 433.6267901 | S108: =S49*(1-Inputs!$E$204) -> 442.2993259 | T108: =T49*(1-Inputs!$E$204) -> 451.1453124 | U108: =U49*(1-Inputs!$E$204) -> 460.1682186 | V108: =V49*(1-Inputs!$E$204) -> 469.371583 | W108: =W49*(1-Inputs!$E$204) -> 478.7590147 | X108: =X49*(1-Inputs!$E$204) -> 488.3341949 | Y108: =Y49*(1-Inputs!$E$204) -> 498.1008788 | Z108: =Z49*(1-Inputs!$E$204) -> 508.0628964 | AA108: =AA49*(1-Inputs!$E$204) -> 518.2241543 | AB108: =AB49*(1-Inputs!$E$204) -> 528.5886374 | AC108: =AC49*(1-Inputs!$E$204) -> 539.1604102 | AD108: =AD49*(1-Inputs!$E$204) -> 549.9436184 | AE108: =AE49*(1-Inputs!$E$204) -> 560.9424908 | AF108: =AF49*(1-Inputs!$E$204) -> 572.1613406 | AG108: =AG49*(1-Inputs!$E$204) -> 291.8022837 | AH108: =AH49*(1-Inputs!$E$204) -> 0 | AI108: =AI49*(1-Inputs!$E$204) -> 0 | AJ108: =AJ49*(1-Inputs!$E$204) -> 0 | AK108: =AK49*(1-Inputs!$E$204) -> 0 | AL108: =AL49*(1-Inputs!$E$204) -> 0 | AM108: =AM49*(1-Inputs!$E$204) -> 0 | AN108: =AN49*(1-Inputs!$E$204) -> 0 | AO108: =AO49*(1-Inputs!$E$204) -> 0 | AP108: =AP49*(1-Inputs!$E$204) -> 0 | AQ108: =AQ49*(1-Inputs!$E$204) -> 0 | AR108: =AR49*(1-Inputs!$E$204) -> 0 | AS108: =AS49*(1-Inputs!$E$204) -> 0 | AT108: =AT49*(1-Inputs!$E$204) -> 0 | AU108: =AU49*(1-Inputs!$E$204) -> 0 | AV108: =AV49*(1-Inputs!$E$204) -> 0 | AW108: =AW49*(1-Inputs!$E$204) -> 0 | AX108: =AX49*(1-Inputs!$E$204) -> 0 | AY108: =AY49*(1-Inputs!$E$204) -> 0 | AZ108: =AZ49*(1-Inputs!$E$204) -> 0 | BA108: =BA49*(1-Inputs!$E$204) -> 0 | BB108: =BB49*(1-Inputs!$E$204) -> 0 | BC108: =BC49*(1-Inputs!$E$204) -> 0 | BD108: =BD49*(1-Inputs!$E$204) -> 0
C109: =SUM(G109:BD109) -> 11188.59517 | D109: Royalty base | E109: $mm nominal | G109: =IF(G$32=0,0,IF(Inputs!$E$31="gross",G107,G108)) -> 0 | H109: =IF(H$32=0,0,IF(Inputs!$E$31="gross",H107,H108)) -> 0 | I109: =IF(I$32=0,0,IF(Inputs!$E$31="gross",I107,I108)) -> 182.07 | J109: =IF(J$32=0,0,IF(Inputs!$E$31="gross",J107,J108)) -> 371.4228 | K109: =IF(K$32=0,0,IF(Inputs!$E$31="gross",K107,K108)) -> 378.851256 | L109: =IF(L$32=0,0,IF(Inputs!$E$31="gross",L107,L108)) -> 386.4282811 | M109: =IF(M$32=0,0,IF(Inputs!$E$31="gross",M107,M108)) -> 394.1568467 | N109: =IF(N$32=0,0,IF(Inputs!$E$31="gross",N107,N108)) -> 402.0399837 | O109: =IF(O$32=0,0,IF(Inputs!$E$31="gross",O107,O108)) -> 410.0807834 | P109: =IF(P$32=0,0,IF(Inputs!$E$31="gross",P107,P108)) -> 418.282399 | Q109: =IF(Q$32=0,0,IF(Inputs!$E$31="gross",Q107,Q108)) -> 426.648047 | R109: =IF(R$32=0,0,IF(Inputs!$E$31="gross",R107,R108)) -> 435.1810079 | S109: =IF(S$32=0,0,IF(Inputs!$E$31="gross",S107,S108)) -> 443.8846281 | T109: =IF(T$32=0,0,IF(Inputs!$E$31="gross",T107,T108)) -> 452.7623207 | U109: =IF(U$32=0,0,IF(Inputs!$E$31="gross",U107,U108)) -> 461.8175671 | V109: =IF(V$32=0,0,IF(Inputs!$E$31="gross",V107,V108)) -> 471.0539184 | W109: =IF(W$32=0,0,IF(Inputs!$E$31="gross",W107,W108)) -> 480.4749968 | X109: =IF(X$32=0,0,IF(Inputs!$E$31="gross",X107,X108)) -> 490.0844967 | Y109: =IF(Y$32=0,0,IF(Inputs!$E$31="gross",Y107,Y108)) -> 499.8861867 | Z109: =IF(Z$32=0,0,IF(Inputs!$E$31="gross",Z107,Z108)) -> 509.8839104 | AA109: =IF(AA$32=0,0,IF(Inputs!$E$31="gross",AA107,AA108)) -> 520.0815886 | AB109: =IF(AB$32=0,0,IF(Inputs!$E$31="gross",AB107,AB108)) -> 530.4832204 | AC109: =IF(AC$32=0,0,IF(Inputs!$E$31="gross",AC107,AC108)) -> 541.0928848 | AD109: =IF(AD$32=0,0,IF(Inputs!$E$31="gross",AD107,AD108)) -> 551.9147425 | AE109: =IF(AE$32=0,0,IF(Inputs!$E$31="gross",AE107,AE108)) -> 562.9530373 | AF109: =IF(AF$32=0,0,IF(Inputs!$E$31="gross",AF107,AF108)) -> 574.2120981 | AG109: =IF(AG$32=0,0,IF(Inputs!$E$31="gross",AG107,AG108)) -> 292.84817 | AH109: =IF(AH$32=0,0,IF(Inputs!$E$31="gross",AH107,AH108)) -> 0 | AI109: =IF(AI$32=0,0,IF(Inputs!$E$31="gross",AI107,AI108)) -> 0 | AJ109: =IF(AJ$32=0,0,IF(Inputs!$E$31="gross",AJ107,AJ108)) -> 0 | AK109: =IF(AK$32=0,0,IF(Inputs!$E$31="gross",AK107,AK108)) -> 0 | AL109: =IF(AL$32=0,0,IF(Inputs!$E$31="gross",AL107,AL108)) -> 0 | AM109: =IF(AM$32=0,0,IF(Inputs!$E$31="gross",AM107,AM108)) -> 0 | AN109: =IF(AN$32=0,0,IF(Inputs!$E$31="gross",AN107,AN108)) -> 0 | AO109: =IF(AO$32=0,0,IF(Inputs!$E$31="gross",AO107,AO108)) -> 0 | AP109: =IF(AP$32=0,0,IF(Inputs!$E$31="gross",AP107,AP108)) -> 0 | AQ109: =IF(AQ$32=0,0,IF(Inputs!$E$31="gross",AQ107,AQ108)) -> 0 | AR109: =IF(AR$32=0,0,IF(Inputs!$E$31="gross",AR107,AR108)) -> 0 | AS109: =IF(AS$32=0,0,IF(Inputs!$E$31="gross",AS107,AS108)) -> 0 | AT109: =IF(AT$32=0,0,IF(Inputs!$E$31="gross",AT107,AT108)) -> 0 | AU109: =IF(AU$32=0,0,IF(Inputs!$E$31="gross",AU107,AU108)) -> 0 | AV109: =IF(AV$32=0,0,IF(Inputs!$E$31="gross",AV107,AV108)) -> 0 | AW109: =IF(AW$32=0,0,IF(Inputs!$E$31="gross",AW107,AW108)) -> 0 | AX109: =IF(AX$32=0,0,IF(Inputs!$E$31="gross",AX107,AX108)) -> 0 | AY109: =IF(AY$32=0,0,IF(Inputs!$E$31="gross",AY107,AY108)) -> 0 | AZ109: =IF(AZ$32=0,0,IF(Inputs!$E$31="gross",AZ107,AZ108)) -> 0 | BA109: =IF(BA$32=0,0,IF(Inputs!$E$31="gross",BA107,BA108)) -> 0 | BB109: =IF(BB$32=0,0,IF(Inputs!$E$31="gross",BB107,BB108)) -> 0 | BC109: =IF(BC$32=0,0,IF(Inputs!$E$31="gross",BC107,BC108)) -> 0 | BD109: =IF(BD$32=0,0,IF(Inputs!$E$31="gross",BD107,BD108)) -> 0
D110: Rate | E110: % | G110: =CHOOSE(Inputs!$D$6,Inputs!$E$27,Inputs!$E$28,Inputs!$E$29,Inputs!$E$30)+Inputs!$E$37 -> 0.04 | H110: =CHOOSE(Inputs!$D$6,Inputs!$E$27,Inputs!$E$28,Inputs!$E$29,Inputs!$E$30)+Inputs!$E$37 -> 0.04 | I110: =CHOOSE(Inputs!$D$6,Inputs!$E$27,Inputs!$E$28,Inputs!$E$29,Inputs!$E$30)+Inputs!$E$37 -> 0.04 | J110: =CHOOSE(Inputs!$D$6,Inputs!$E$27,Inputs!$E$28,Inputs!$E$29,Inputs!$E$30)+Inputs!$E$37 -> 0.04 | K110: =CHOOSE(Inputs!$D$6,Inputs!$E$27,Inputs!$E$28,Inputs!$E$29,Inputs!$E$30)+Inputs!$E$37 -> 0.04 | L110: =CHOOSE(Inputs!$D$6,Inputs!$E$27,Inputs!$E$28,Inputs!$E$29,Inputs!$E$30)+Inputs!$E$37 -> 0.04 | M110: =CHOOSE(Inputs!$D$6,Inputs!$E$27,Inputs!$E$28,Inputs!$E$29,Inputs!$E$30)+Inputs!$E$37 -> 0.04 | N110: =CHOOSE(Inputs!$D$6,Inputs!$E$27,Inputs!$E$28,Inputs!$E$29,Inputs!$E$30)+Inputs!$E$37 -> 0.04 | O110: =CHOOSE(Inputs!$D$6,Inputs!$E$27,Inputs!$E$28,Inputs!$E$29,Inputs!$E$30)+Inputs!$E$37 -> 0.04 | P110: =CHOOSE(Inputs!$D$6,Inputs!$E$27,Inputs!$E$28,Inputs!$E$29,Inputs!$E$30)+Inputs!$E$37 -> 0.04 | Q110: =CHOOSE(Inputs!$D$6,Inputs!$E$27,Inputs!$E$28,Inputs!$E$29,Inputs!$E$30)+Inputs!$E$37 -> 0.04 | R110: =CHOOSE(Inputs!$D$6,Inputs!$E$27,Inputs!$E$28,Inputs!$E$29,Inputs!$E$30)+Inputs!$E$37 -> 0.04 | S110: =CHOOSE(Inputs!$D$6,Inputs!$E$27,Inputs!$E$28,Inputs!$E$29,Inputs!$E$30)+Inputs!$E$37 -> 0.04 | T110: =CHOOSE(Inputs!$D$6,Inputs!$E$27,Inputs!$E$28,Inputs!$E$29,Inputs!$E$30)+Inputs!$E$37 -> 0.04 | U110: =CHOOSE(Inputs!$D$6,Inputs!$E$27,Inputs!$E$28,Inputs!$E$29,Inputs!$E$30)+Inputs!$E$37 -> 0.04 | V110: =CHOOSE(Inputs!$D$6,Inputs!$E$27,Inputs!$E$28,Inputs!$E$29,Inputs!$E$30)+Inputs!$E$37 -> 0.04 | W110: =CHOOSE(Inputs!$D$6,Inputs!$E$27,Inputs!$E$28,Inputs!$E$29,Inputs!$E$30)+Inputs!$E$37 -> 0.04 | X110: =CHOOSE(Inputs!$D$6,Inputs!$E$27,Inputs!$E$28,Inputs!$E$29,Inputs!$E$30)+Inputs!$E$37 -> 0.04 | Y110: =CHOOSE(Inputs!$D$6,Inputs!$E$27,Inputs!$E$28,Inputs!$E$29,Inputs!$E$30)+Inputs!$E$37 -> 0.04 | Z110: =CHOOSE(Inputs!$D$6,Inputs!$E$27,Inputs!$E$28,Inputs!$E$29,Inputs!$E$30)+Inputs!$E$37 -> 0.04 | AA110: =CHOOSE(Inputs!$D$6,Inputs!$E$27,Inputs!$E$28,Inputs!$E$29,Inputs!$E$30)+Inputs!$E$37 -> 0.04 | AB110: =CHOOSE(Inputs!$D$6,Inputs!$E$27,Inputs!$E$28,Inputs!$E$29,Inputs!$E$30)+Inputs!$E$37 -> 0.04 | AC110: =CHOOSE(Inputs!$D$6,Inputs!$E$27,Inputs!$E$28,Inputs!$E$29,Inputs!$E$30)+Inputs!$E$37 -> 0.04 | AD110: =CHOOSE(Inputs!$D$6,Inputs!$E$27,Inputs!$E$28,Inputs!$E$29,Inputs!$E$30)+Inputs!$E$37 -> 0.04 | AE110: =CHOOSE(Inputs!$D$6,Inputs!$E$27,Inputs!$E$28,Inputs!$E$29,Inputs!$E$30)+Inputs!$E$37 -> 0.04 | AF110: =CHOOSE(Inputs!$D$6,Inputs!$E$27,Inputs!$E$28,Inputs!$E$29,Inputs!$E$30)+Inputs!$E$37 -> 0.04 | AG110: =CHOOSE(Inputs!$D$6,Inputs!$E$27,Inputs!$E$28,Inputs!$E$29,Inputs!$E$30)+Inputs!$E$37 -> 0.04 | AH110: =CHOOSE(Inputs!$D$6,Inputs!$E$27,Inputs!$E$28,Inputs!$E$29,Inputs!$E$30)+Inputs!$E$37 -> 0.04 | AI110: =CHOOSE(Inputs!$D$6,Inputs!$E$27,Inputs!$E$28,Inputs!$E$29,Inputs!$E$30)+Inputs!$E$37 -> 0.04 | AJ110: =CHOOSE(Inputs!$D$6,Inputs!$E$27,Inputs!$E$28,Inputs!$E$29,Inputs!$E$30)+Inputs!$E$37 -> 0.04 | AK110: =CHOOSE(Inputs!$D$6,Inputs!$E$27,Inputs!$E$28,Inputs!$E$29,Inputs!$E$30)+Inputs!$E$37 -> 0.04 | AL110: =CHOOSE(Inputs!$D$6,Inputs!$E$27,Inputs!$E$28,Inputs!$E$29,Inputs!$E$30)+Inputs!$E$37 -> 0.04 | AM110: =CHOOSE(Inputs!$D$6,Inputs!$E$27,Inputs!$E$28,Inputs!$E$29,Inputs!$E$30)+Inputs!$E$37 -> 0.04 | AN110: =CHOOSE(Inputs!$D$6,Inputs!$E$27,Inputs!$E$28,Inputs!$E$29,Inputs!$E$30)+Inputs!$E$37 -> 0.04 | AO110: =CHOOSE(Inputs!$D$6,Inputs!$E$27,Inputs!$E$28,Inputs!$E$29,Inputs!$E$30)+Inputs!$E$37 -> 0.04 | AP110: =CHOOSE(Inputs!$D$6,Inputs!$E$27,Inputs!$E$28,Inputs!$E$29,Inputs!$E$30)+Inputs!$E$37 -> 0.04 | AQ110: =CHOOSE(Inputs!$D$6,Inputs!$E$27,Inputs!$E$28,Inputs!$E$29,Inputs!$E$30)+Inputs!$E$37 -> 0.04 | AR110: =CHOOSE(Inputs!$D$6,Inputs!$E$27,Inputs!$E$28,Inputs!$E$29,Inputs!$E$30)+Inputs!$E$37 -> 0.04 | AS110: =CHOOSE(Inputs!$D$6,Inputs!$E$27,Inputs!$E$28,Inputs!$E$29,Inputs!$E$30)+Inputs!$E$37 -> 0.04 | AT110: =CHOOSE(Inputs!$D$6,Inputs!$E$27,Inputs!$E$28,Inputs!$E$29,Inputs!$E$30)+Inputs!$E$37 -> 0.04 | AU110: =CHOOSE(Inputs!$D$6,Inputs!$E$27,Inputs!$E$28,Inputs!$E$29,Inputs!$E$30)+Inputs!$E$37 -> 0.04 | AV110: =CHOOSE(Inputs!$D$6,Inputs!$E$27,Inputs!$E$28,Inputs!$E$29,Inputs!$E$30)+Inputs!$E$37 -> 0.04 | AW110: =CHOOSE(Inputs!$D$6,Inputs!$E$27,Inputs!$E$28,Inputs!$E$29,Inputs!$E$30)+Inputs!$E$37 -> 0.04 | AX110: =CHOOSE(Inputs!$D$6,Inputs!$E$27,Inputs!$E$28,Inputs!$E$29,Inputs!$E$30)+Inputs!$E$37 -> 0.04 | AY110: =CHOOSE(Inputs!$D$6,Inputs!$E$27,Inputs!$E$28,Inputs!$E$29,Inputs!$E$30)+Inputs!$E$37 -> 0.04 | AZ110: =CHOOSE(Inputs!$D$6,Inputs!$E$27,Inputs!$E$28,Inputs!$E$29,Inputs!$E$30)+Inputs!$E$37 -> 0.04 | BA110: =CHOOSE(Inputs!$D$6,Inputs!$E$27,Inputs!$E$28,Inputs!$E$29,Inputs!$E$30)+Inputs!$E$37 -> 0.04 | BB110: =CHOOSE(Inputs!$D$6,Inputs!$E$27,Inputs!$E$28,Inputs!$E$29,Inputs!$E$30)+Inputs!$E$37 -> 0.04 | BC110: =CHOOSE(Inputs!$D$6,Inputs!$E$27,Inputs!$E$28,Inputs!$E$29,Inputs!$E$30)+Inputs!$E$37 -> 0.04 | BD110: =CHOOSE(Inputs!$D$6,Inputs!$E$27,Inputs!$E$28,Inputs!$E$29,Inputs!$E$30)+Inputs!$E$37 -> 0.04
C111: =SUM(G111:BD111) -> 447.5438068 | D111: Royalty payable (primary mineral) | E111: $mm nominal | G111: =G109*G110 -> 0 | H111: =H109*H110 -> 0 | I111: =I109*I110 -> 7.2828 | J111: =J109*J110 -> 14.856912 | K111: 15.15405024 | L111: 15.45713124 | M111: 15.76627387 | N111: 16.08159935 | O111: 16.40323133 | P111: 16.73129596 | Q111: 17.06592188 | R111: 17.40724032 | S111: 17.75538512 | T111: 18.11049283 | U111: 18.47270268 | V111: 18.84215674 | W111: 19.21899987 | X111: 19.60337987 | Y111: 19.99544747 | Z111: 20.39535642 | AA111: 20.80326354 | AB111: 21.21932881 | AC111: 21.64371539 | AD111: 22.0765897 | AE111: 22.51812149 | AF111: 22.96848392 | AG111: 11.7139268 | AH111: 0 | AI111: 0 | AJ111: 0 | AK111: 0 | AL111: 0 | AM111: =AM109*AM110 -> 0 | AN111: 0 | AO111: 0 | AP111: 0 | AQ111: 0 | AR111: 0 | AS111: 0 | AT111: 0 | AU111: 0 | AV111: 0 | AW111: 0 | AX111: 0 | AY111: 0 | AZ111: 0 | BA111: 0 | BB111: 0 | BC111: 0 | BD111: 0
C114: =SUM(G114:BD114) -> 0 | D114: Co-product gross revenue | E114: $mm nominal | G114: =G46 -> 0 | H114: 0 | I114: 0 | J114: 0 | K114: 0 | L114: 0 | M114: 0 | N114: 0 | O114: 0 | P114: 0 | Q114: 0 | R114: 0 | S114: 0 | T114: 0 | U114: 0 | V114: 0 | W114: 0 | X114: 0 | Y114: 0 | Z114: 0 | AA114: 0 | AB114: 0 | AC114: 0 | AD114: 0 | AE114: 0 | AF114: 0 | AG114: 0 | AH114: 0 | AI114: 0 | AJ114: 0 | AK114: 0 | AL114: 0 | AM114: =AM46 -> 0 | AN114: 0 | AO114: 0 | AP114: 0 | AQ114: 0 | AR114: 0 | AS114: 0 | AT114: 0 | AU114: 0 | AV114: 0 | AW114: 0 | AX114: 0 | AY114: 0 | AZ114: 0 | BA114: 0 | BB114: 0 | BC114: 0 | BD114: 0
C115: =SUM(G115:BD115) -> 0 | D115: Net revenue (net backed) | E115: $mm nominal | G115: =G48*Inputs!$E$204 -> 0 | H115: =H48*Inputs!$E$204 -> 0 | I115: =I48*Inputs!$E$204 -> 0 | J115: =J48*Inputs!$E$204 -> 0 | K115: =K48*Inputs!$E$204 -> 0 | L115: =L48*Inputs!$E$204 -> 0 | M115: =M48*Inputs!$E$204 -> 0 | N115: =N48*Inputs!$E$204 -> 0 | O115: =O48*Inputs!$E$204 -> 0 | P115: =P48*Inputs!$E$204 -> 0 | Q115: =Q48*Inputs!$E$204 -> 0 | R115: =R48*Inputs!$E$204 -> 0 | S115: =S48*Inputs!$E$204 -> 0 | T115: =T48*Inputs!$E$204 -> 0 | U115: =U48*Inputs!$E$204 -> 0 | V115: =V48*Inputs!$E$204 -> 0 | W115: =W48*Inputs!$E$204 -> 0 | X115: =X48*Inputs!$E$204 -> 0 | Y115: =Y48*Inputs!$E$204 -> 0 | Z115: =Z48*Inputs!$E$204 -> 0 | AA115: =AA48*Inputs!$E$204 -> 0 | AB115: =AB48*Inputs!$E$204 -> 0 | AC115: =AC48*Inputs!$E$204 -> 0 | AD115: =AD48*Inputs!$E$204 -> 0 | AE115: =AE48*Inputs!$E$204 -> 0 | AF115: =AF48*Inputs!$E$204 -> 0 | AG115: =AG48*Inputs!$E$204 -> 0 | AH115: =AH48*Inputs!$E$204 -> 0 | AI115: =AI48*Inputs!$E$204 -> 0 | AJ115: =AJ48*Inputs!$E$204 -> 0 | AK115: =AK48*Inputs!$E$204 -> 0 | AL115: =AL48*Inputs!$E$204 -> 0 | AM115: =AM48*Inputs!$E$204 -> 0 | AN115: =AN48*Inputs!$E$204 -> 0 | AO115: =AO48*Inputs!$E$204 -> 0 | AP115: =AP48*Inputs!$E$204 -> 0 | AQ115: =AQ48*Inputs!$E$204 -> 0 | AR115: =AR48*Inputs!$E$204 -> 0 | AS115: =AS48*Inputs!$E$204 -> 0 | AT115: =AT48*Inputs!$E$204 -> 0 | AU115: =AU48*Inputs!$E$204 -> 0 | AV115: =AV48*Inputs!$E$204 -> 0 | AW115: =AW48*Inputs!$E$204 -> 0 | AX115: =AX48*Inputs!$E$204 -> 0 | AY115: =AY48*Inputs!$E$204 -> 0 | AZ115: =AZ48*Inputs!$E$204 -> 0 | BA115: =BA48*Inputs!$E$204 -> 0 | BB115: =BB48*Inputs!$E$204 -> 0 | BC115: =BC48*Inputs!$E$204 -> 0 | BD115: =BD48*Inputs!$E$204 -> 0
C116: =SUM(G116:BD116) -> 0 | D116: Royalty base | E116: $mm nominal | G116: =IF(G$32=0,0,IF(Inputs!$E$31="gross",G114,G115)) -> 0 | H116: =IF(H$32=0,0,IF(Inputs!$E$31="gross",H114,H115)) -> 0 | I116: =IF(I$32=0,0,IF(Inputs!$E$31="gross",I114,I115)) -> 0 | J116: =IF(J$32=0,0,IF(Inputs!$E$31="gross",J114,J115)) -> 0 | K116: =IF(K$32=0,0,IF(Inputs!$E$31="gross",K114,K115)) -> 0 | L116: =IF(L$32=0,0,IF(Inputs!$E$31="gross",L114,L115)) -> 0 | M116: =IF(M$32=0,0,IF(Inputs!$E$31="gross",M114,M115)) -> 0 | N116: =IF(N$32=0,0,IF(Inputs!$E$31="gross",N114,N115)) -> 0 | O116: =IF(O$32=0,0,IF(Inputs!$E$31="gross",O114,O115)) -> 0 | P116: =IF(P$32=0,0,IF(Inputs!$E$31="gross",P114,P115)) -> 0 | Q116: =IF(Q$32=0,0,IF(Inputs!$E$31="gross",Q114,Q115)) -> 0 | R116: =IF(R$32=0,0,IF(Inputs!$E$31="gross",R114,R115)) -> 0 | S116: =IF(S$32=0,0,IF(Inputs!$E$31="gross",S114,S115)) -> 0 | T116: =IF(T$32=0,0,IF(Inputs!$E$31="gross",T114,T115)) -> 0 | U116: =IF(U$32=0,0,IF(Inputs!$E$31="gross",U114,U115)) -> 0 | V116: =IF(V$32=0,0,IF(Inputs!$E$31="gross",V114,V115)) -> 0 | W116: =IF(W$32=0,0,IF(Inputs!$E$31="gross",W114,W115)) -> 0 | X116: =IF(X$32=0,0,IF(Inputs!$E$31="gross",X114,X115)) -> 0 | Y116: =IF(Y$32=0,0,IF(Inputs!$E$31="gross",Y114,Y115)) -> 0 | Z116: =IF(Z$32=0,0,IF(Inputs!$E$31="gross",Z114,Z115)) -> 0 | AA116: =IF(AA$32=0,0,IF(Inputs!$E$31="gross",AA114,AA115)) -> 0 | AB116: =IF(AB$32=0,0,IF(Inputs!$E$31="gross",AB114,AB115)) -> 0 | AC116: =IF(AC$32=0,0,IF(Inputs!$E$31="gross",AC114,AC115)) -> 0 | AD116: =IF(AD$32=0,0,IF(Inputs!$E$31="gross",AD114,AD115)) -> 0 | AE116: =IF(AE$32=0,0,IF(Inputs!$E$31="gross",AE114,AE115)) -> 0 | AF116: =IF(AF$32=0,0,IF(Inputs!$E$31="gross",AF114,AF115)) -> 0 | AG116: =IF(AG$32=0,0,IF(Inputs!$E$31="gross",AG114,AG115)) -> 0 | AH116: =IF(AH$32=0,0,IF(Inputs!$E$31="gross",AH114,AH115)) -> 0 | AI116: =IF(AI$32=0,0,IF(Inputs!$E$31="gross",AI114,AI115)) -> 0 | AJ116: =IF(AJ$32=0,0,IF(Inputs!$E$31="gross",AJ114,AJ115)) -> 0 | AK116: =IF(AK$32=0,0,IF(Inputs!$E$31="gross",AK114,AK115)) -> 0 | AL116: =IF(AL$32=0,0,IF(Inputs!$E$31="gross",AL114,AL115)) -> 0 | AM116: =IF(AM$32=0,0,IF(Inputs!$E$31="gross",AM114,AM115)) -> 0 | AN116: =IF(AN$32=0,0,IF(Inputs!$E$31="gross",AN114,AN115)) -> 0 | AO116: =IF(AO$32=0,0,IF(Inputs!$E$31="gross",AO114,AO115)) -> 0 | AP116: =IF(AP$32=0,0,IF(Inputs!$E$31="gross",AP114,AP115)) -> 0 | AQ116: =IF(AQ$32=0,0,IF(Inputs!$E$31="gross",AQ114,AQ115)) -> 0 | AR116: =IF(AR$32=0,0,IF(Inputs!$E$31="gross",AR114,AR115)) -> 0 | AS116: =IF(AS$32=0,0,IF(Inputs!$E$31="gross",AS114,AS115)) -> 0 | AT116: =IF(AT$32=0,0,IF(Inputs!$E$31="gross",AT114,AT115)) -> 0 | AU116: =IF(AU$32=0,0,IF(Inputs!$E$31="gross",AU114,AU115)) -> 0 | AV116: =IF(AV$32=0,0,IF(Inputs!$E$31="gross",AV114,AV115)) -> 0 | AW116: =IF(AW$32=0,0,IF(Inputs!$E$31="gross",AW114,AW115)) -> 0 | AX116: =IF(AX$32=0,0,IF(Inputs!$E$31="gross",AX114,AX115)) -> 0 | AY116: =IF(AY$32=0,0,IF(Inputs!$E$31="gross",AY114,AY115)) -> 0 | AZ116: =IF(AZ$32=0,0,IF(Inputs!$E$31="gross",AZ114,AZ115)) -> 0 | BA116: =IF(BA$32=0,0,IF(Inputs!$E$31="gross",BA114,BA115)) -> 0 | BB116: =IF(BB$32=0,0,IF(Inputs!$E$31="gross",BB114,BB115)) -> 0 | BC116: =IF(BC$32=0,0,IF(Inputs!$E$31="gross",BC114,BC115)) -> 0 | BD116: =IF(BD$32=0,0,IF(Inputs!$E$31="gross",BD114,BD115)) -> 0
D117: Rate | E117: % | G117: =CHOOSE(Inputs!$D$8,Inputs!$E$27,Inputs!$E$28,Inputs!$E$29,Inputs!$E$30)+Inputs!$E$37 -> 0.04 | H117: =CHOOSE(Inputs!$D$8,Inputs!$E$27,Inputs!$E$28,Inputs!$E$29,Inputs!$E$30)+Inputs!$E$37 -> 0.04 | I117: =CHOOSE(Inputs!$D$8,Inputs!$E$27,Inputs!$E$28,Inputs!$E$29,Inputs!$E$30)+Inputs!$E$37 -> 0.04 | J117: =CHOOSE(Inputs!$D$8,Inputs!$E$27,Inputs!$E$28,Inputs!$E$29,Inputs!$E$30)+Inputs!$E$37 -> 0.04 | K117: =CHOOSE(Inputs!$D$8,Inputs!$E$27,Inputs!$E$28,Inputs!$E$29,Inputs!$E$30)+Inputs!$E$37 -> 0.04 | L117: =CHOOSE(Inputs!$D$8,Inputs!$E$27,Inputs!$E$28,Inputs!$E$29,Inputs!$E$30)+Inputs!$E$37 -> 0.04 | M117: =CHOOSE(Inputs!$D$8,Inputs!$E$27,Inputs!$E$28,Inputs!$E$29,Inputs!$E$30)+Inputs!$E$37 -> 0.04 | N117: =CHOOSE(Inputs!$D$8,Inputs!$E$27,Inputs!$E$28,Inputs!$E$29,Inputs!$E$30)+Inputs!$E$37 -> 0.04 | O117: =CHOOSE(Inputs!$D$8,Inputs!$E$27,Inputs!$E$28,Inputs!$E$29,Inputs!$E$30)+Inputs!$E$37 -> 0.04 | P117: =CHOOSE(Inputs!$D$8,Inputs!$E$27,Inputs!$E$28,Inputs!$E$29,Inputs!$E$30)+Inputs!$E$37 -> 0.04 | Q117: =CHOOSE(Inputs!$D$8,Inputs!$E$27,Inputs!$E$28,Inputs!$E$29,Inputs!$E$30)+Inputs!$E$37 -> 0.04 | R117: =CHOOSE(Inputs!$D$8,Inputs!$E$27,Inputs!$E$28,Inputs!$E$29,Inputs!$E$30)+Inputs!$E$37 -> 0.04 | S117: =CHOOSE(Inputs!$D$8,Inputs!$E$27,Inputs!$E$28,Inputs!$E$29,Inputs!$E$30)+Inputs!$E$37 -> 0.04 | T117: =CHOOSE(Inputs!$D$8,Inputs!$E$27,Inputs!$E$28,Inputs!$E$29,Inputs!$E$30)+Inputs!$E$37 -> 0.04 | U117: =CHOOSE(Inputs!$D$8,Inputs!$E$27,Inputs!$E$28,Inputs!$E$29,Inputs!$E$30)+Inputs!$E$37 -> 0.04 | V117: =CHOOSE(Inputs!$D$8,Inputs!$E$27,Inputs!$E$28,Inputs!$E$29,Inputs!$E$30)+Inputs!$E$37 -> 0.04 | W117: =CHOOSE(Inputs!$D$8,Inputs!$E$27,Inputs!$E$28,Inputs!$E$29,Inputs!$E$30)+Inputs!$E$37 -> 0.04 | X117: =CHOOSE(Inputs!$D$8,Inputs!$E$27,Inputs!$E$28,Inputs!$E$29,Inputs!$E$30)+Inputs!$E$37 -> 0.04 | Y117: =CHOOSE(Inputs!$D$8,Inputs!$E$27,Inputs!$E$28,Inputs!$E$29,Inputs!$E$30)+Inputs!$E$37 -> 0.04 | Z117: =CHOOSE(Inputs!$D$8,Inputs!$E$27,Inputs!$E$28,Inputs!$E$29,Inputs!$E$30)+Inputs!$E$37 -> 0.04 | AA117: =CHOOSE(Inputs!$D$8,Inputs!$E$27,Inputs!$E$28,Inputs!$E$29,Inputs!$E$30)+Inputs!$E$37 -> 0.04 | AB117: =CHOOSE(Inputs!$D$8,Inputs!$E$27,Inputs!$E$28,Inputs!$E$29,Inputs!$E$30)+Inputs!$E$37 -> 0.04 | AC117: =CHOOSE(Inputs!$D$8,Inputs!$E$27,Inputs!$E$28,Inputs!$E$29,Inputs!$E$30)+Inputs!$E$37 -> 0.04 | AD117: =CHOOSE(Inputs!$D$8,Inputs!$E$27,Inputs!$E$28,Inputs!$E$29,Inputs!$E$30)+Inputs!$E$37 -> 0.04 | AE117: =CHOOSE(Inputs!$D$8,Inputs!$E$27,Inputs!$E$28,Inputs!$E$29,Inputs!$E$30)+Inputs!$E$37 -> 0.04 | AF117: =CHOOSE(Inputs!$D$8,Inputs!$E$27,Inputs!$E$28,Inputs!$E$29,Inputs!$E$30)+Inputs!$E$37 -> 0.04 | AG117: =CHOOSE(Inputs!$D$8,Inputs!$E$27,Inputs!$E$28,Inputs!$E$29,Inputs!$E$30)+Inputs!$E$37 -> 0.04 | AH117: =CHOOSE(Inputs!$D$8,Inputs!$E$27,Inputs!$E$28,Inputs!$E$29,Inputs!$E$30)+Inputs!$E$37 -> 0.04 | AI117: =CHOOSE(Inputs!$D$8,Inputs!$E$27,Inputs!$E$28,Inputs!$E$29,Inputs!$E$30)+Inputs!$E$37 -> 0.04 | AJ117: =CHOOSE(Inputs!$D$8,Inputs!$E$27,Inputs!$E$28,Inputs!$E$29,Inputs!$E$30)+Inputs!$E$37 -> 0.04 | AK117: =CHOOSE(Inputs!$D$8,Inputs!$E$27,Inputs!$E$28,Inputs!$E$29,Inputs!$E$30)+Inputs!$E$37 -> 0.04 | AL117: =CHOOSE(Inputs!$D$8,Inputs!$E$27,Inputs!$E$28,Inputs!$E$29,Inputs!$E$30)+Inputs!$E$37 -> 0.04 | AM117: =CHOOSE(Inputs!$D$8,Inputs!$E$27,Inputs!$E$28,Inputs!$E$29,Inputs!$E$30)+Inputs!$E$37 -> 0.04 | AN117: =CHOOSE(Inputs!$D$8,Inputs!$E$27,Inputs!$E$28,Inputs!$E$29,Inputs!$E$30)+Inputs!$E$37 -> 0.04 | AO117: =CHOOSE(Inputs!$D$8,Inputs!$E$27,Inputs!$E$28,Inputs!$E$29,Inputs!$E$30)+Inputs!$E$37 -> 0.04 | AP117: =CHOOSE(Inputs!$D$8,Inputs!$E$27,Inputs!$E$28,Inputs!$E$29,Inputs!$E$30)+Inputs!$E$37 -> 0.04 | AQ117: =CHOOSE(Inputs!$D$8,Inputs!$E$27,Inputs!$E$28,Inputs!$E$29,Inputs!$E$30)+Inputs!$E$37 -> 0.04 | AR117: =CHOOSE(Inputs!$D$8,Inputs!$E$27,Inputs!$E$28,Inputs!$E$29,Inputs!$E$30)+Inputs!$E$37 -> 0.04 | AS117: =CHOOSE(Inputs!$D$8,Inputs!$E$27,Inputs!$E$28,Inputs!$E$29,Inputs!$E$30)+Inputs!$E$37 -> 0.04 | AT117: =CHOOSE(Inputs!$D$8,Inputs!$E$27,Inputs!$E$28,Inputs!$E$29,Inputs!$E$30)+Inputs!$E$37 -> 0.04 | AU117: =CHOOSE(Inputs!$D$8,Inputs!$E$27,Inputs!$E$28,Inputs!$E$29,Inputs!$E$30)+Inputs!$E$37 -> 0.04 | AV117: =CHOOSE(Inputs!$D$8,Inputs!$E$27,Inputs!$E$28,Inputs!$E$29,Inputs!$E$30)+Inputs!$E$37 -> 0.04 | AW117: =CHOOSE(Inputs!$D$8,Inputs!$E$27,Inputs!$E$28,Inputs!$E$29,Inputs!$E$30)+Inputs!$E$37 -> 0.04 | AX117: =CHOOSE(Inputs!$D$8,Inputs!$E$27,Inputs!$E$28,Inputs!$E$29,Inputs!$E$30)+Inputs!$E$37 -> 0.04 | AY117: =CHOOSE(Inputs!$D$8,Inputs!$E$27,Inputs!$E$28,Inputs!$E$29,Inputs!$E$30)+Inputs!$E$37 -> 0.04 | AZ117: =CHOOSE(Inputs!$D$8,Inputs!$E$27,Inputs!$E$28,Inputs!$E$29,Inputs!$E$30)+Inputs!$E$37 -> 0.04 | BA117: =CHOOSE(Inputs!$D$8,Inputs!$E$27,Inputs!$E$28,Inputs!$E$29,Inputs!$E$30)+Inputs!$E$37 -> 0.04 | BB117: =CHOOSE(Inputs!$D$8,Inputs!$E$27,Inputs!$E$28,Inputs!$E$29,Inputs!$E$30)+Inputs!$E$37 -> 0.04 | BC117: =CHOOSE(Inputs!$D$8,Inputs!$E$27,Inputs!$E$28,Inputs!$E$29,Inputs!$E$30)+Inputs!$E$37 -> 0.04 | BD117: =CHOOSE(Inputs!$D$8,Inputs!$E$27,Inputs!$E$28,Inputs!$E$29,Inputs!$E$30)+Inputs!$E$37 -> 0.04
C118: =SUM(G118:BD118) -> 0 | D118: Royalty payable (co-product) | E118: $mm nominal | G118: =G116*G117 -> 0 | H118: =H116*H117 -> 0 | I118: =I116*I117 -> 0 | J118: =J116*J117 -> 0 | K118: 0 | L118: 0 | M118: 0 | N118: 0 | O118: 0 | P118: 0 | Q118: 0 | R118: 0 | S118: 0 | T118: 0 | U118: 0 | V118: 0 | W118: 0 | X118: 0 | Y118: 0 | Z118: 0 | AA118: 0 | AB118: 0 | AC118: 0 | AD118: 0 | AE118: 0 | AF118: 0 | AG118: 0 | AH118: 0 | AI118: 0 | AJ118: 0 | AK118: 0 | AL118: 0 | AM118: 0 | AN118: 0 | AO118: 0 | AP118: 0 | AQ118: 0 | AR118: 0 | AS118: 0 | AT118: 0 | AU118: 0 | AV118: 0 | AW118: 0 | AX118: 0 | AY118: 0 | AZ118: 0 | BA118: 0 | BB118: 0 | BC118: 0 | BD118: 0
D121: Variable rate royalty - revenue based (on primary product)
D122: Base | E122: $mm nominal | G122: =G109 -> 0 | H122: =H109 -> 0 | I122: 182.07 | J122: 371.4228 | K122: 378.851256 | L122: 386.4282811 | M122: 394.1568467 | N122: 402.0399837 | O122: 410.0807834 | P122: 418.282399 | Q122: 426.648047 | R122: 435.1810079 | S122: 443.8846281 | T122: 452.7623207 | U122: 461.8175671 | V122: 471.0539184 | W122: 480.4749968 | X122: 490.0844967 | Y122: 499.8861867 | Z122: 509.8839104 | AA122: 520.0815886 | AB122: 530.4832204 | AC122: 541.0928848 | AD122: 551.9147425 | AE122: 562.9530373 | AF122: 574.2120981 | AG122: 292.84817 | AH122: 0 | AI122: 0 | AJ122: 0 | AK122: 0 | AL122: 0 | AM122: =AM109 -> 0 | AN122: 0 | AO122: 0 | AP122: 0 | AQ122: 0 | AR122: 0 | AS122: 0 | AT122: 0 | AU122: 0 | AV122: 0 | AW122: 0 | AX122: 0 | AY122: 0 | AZ122: 0 | BA122: 0 | BB122: 0 | BC122: 0 | BD122: 0
D124: Bracket 1 | E124: $mm nominal | G124: =MIN(G122,Inputs!$D$112) -> 0 | H124: =MIN(H122,Inputs!$D$112) -> 0 | I124: =MIN(I122,Inputs!$D$112) -> 0 | J124: =MIN(J122,Inputs!$D$112) -> 0 | K124: =MIN(K122,Inputs!$D$112) -> 0 | L124: =MIN(L122,Inputs!$D$112) -> 0 | M124: =MIN(M122,Inputs!$D$112) -> 0 | N124: =MIN(N122,Inputs!$D$112) -> 0 | O124: =MIN(O122,Inputs!$D$112) -> 0 | P124: =MIN(P122,Inputs!$D$112) -> 0 | Q124: =MIN(Q122,Inputs!$D$112) -> 0 | R124: =MIN(R122,Inputs!$D$112) -> 0 | S124: =MIN(S122,Inputs!$D$112) -> 0 | T124: =MIN(T122,Inputs!$D$112) -> 0 | U124: =MIN(U122,Inputs!$D$112) -> 0 | V124: =MIN(V122,Inputs!$D$112) -> 0 | W124: =MIN(W122,Inputs!$D$112) -> 0 | X124: =MIN(X122,Inputs!$D$112) -> 0 | Y124: =MIN(Y122,Inputs!$D$112) -> 0 | Z124: =MIN(Z122,Inputs!$D$112) -> 0 | AA124: =MIN(AA122,Inputs!$D$112) -> 0 | AB124: =MIN(AB122,Inputs!$D$112) -> 0 | AC124: =MIN(AC122,Inputs!$D$112) -> 0 | AD124: =MIN(AD122,Inputs!$D$112) -> 0 | AE124: =MIN(AE122,Inputs!$D$112) -> 0 | AF124: =MIN(AF122,Inputs!$D$112) -> 0 | AG124: =MIN(AG122,Inputs!$D$112) -> 0 | AH124: =MIN(AH122,Inputs!$D$112) -> 0 | AI124: =MIN(AI122,Inputs!$D$112) -> 0 | AJ124: =MIN(AJ122,Inputs!$D$112) -> 0 | AK124: =MIN(AK122,Inputs!$D$112) -> 0 | AL124: =MIN(AL122,Inputs!$D$112) -> 0 | AM124: =MIN(AM122,Inputs!$D$112) -> 0 | AN124: =MIN(AN122,Inputs!$D$112) -> 0 | AO124: =MIN(AO122,Inputs!$D$112) -> 0 | AP124: =MIN(AP122,Inputs!$D$112) -> 0 | AQ124: =MIN(AQ122,Inputs!$D$112) -> 0 | AR124: =MIN(AR122,Inputs!$D$112) -> 0 | AS124: =MIN(AS122,Inputs!$D$112) -> 0 | AT124: =MIN(AT122,Inputs!$D$112) -> 0 | AU124: =MIN(AU122,Inputs!$D$112) -> 0 | AV124: =MIN(AV122,Inputs!$D$112) -> 0 | AW124: =MIN(AW122,Inputs!$D$112) -> 0 | AX124: =MIN(AX122,Inputs!$D$112) -> 0 | AY124: =MIN(AY122,Inputs!$D$112) -> 0 | AZ124: =MIN(AZ122,Inputs!$D$112) -> 0 | BA124: =MIN(BA122,Inputs!$D$112) -> 0 | BB124: =MIN(BB122,Inputs!$D$112) -> 0 | BC124: =MIN(BC122,Inputs!$D$112) -> 0 | BD124: =MIN(BD122,Inputs!$D$112) -> 0
D125: Bracket 2 | E125: $mm nominal | G125: =(G$122>Inputs!$D112)*(G$122-Inputs!$D112-G126-G127-G128-G129-G130-G131-G132-G133) -> 0 | H125: =(H$122>Inputs!$D112)*(H$122-Inputs!$D112-H126-H127-H128-H129-H130-H131-H132-H133) -> 0 | I125: =(I$122>Inputs!$D112)*(I$122-Inputs!$D112-I126-I127-I128-I129-I130-I131-I132-I133) -> 0 | J125: =(J$122>Inputs!$D112)*(J$122-Inputs!$D112-J126-J127-J128-J129-J130-J131-J132-J133) -> 0 | K125: =(K$122>Inputs!$D112)*(K$122-Inputs!$D112-K126-K127-K128-K129-K130-K131-K132-K133) -> 0 | L125: =(L$122>Inputs!$D112)*(L$122-Inputs!$D112-L126-L127-L128-L129-L130-L131-L132-L133) -> 0 | M125: =(M$122>Inputs!$D112)*(M$122-Inputs!$D112-M126-M127-M128-M129-M130-M131-M132-M133) -> 0 | N125: =(N$122>Inputs!$D112)*(N$122-Inputs!$D112-N126-N127-N128-N129-N130-N131-N132-N133) -> 0 | O125: =(O$122>Inputs!$D112)*(O$122-Inputs!$D112-O126-O127-O128-O129-O130-O131-O132-O133) -> 0 | P125: =(P$122>Inputs!$D112)*(P$122-Inputs!$D112-P126-P127-P128-P129-P130-P131-P132-P133) -> 0 | Q125: =(Q$122>Inputs!$D112)*(Q$122-Inputs!$D112-Q126-Q127-Q128-Q129-Q130-Q131-Q132-Q133) -> 0 | R125: =(R$122>Inputs!$D112)*(R$122-Inputs!$D112-R126-R127-R128-R129-R130-R131-R132-R133) -> 0 | S125: =(S$122>Inputs!$D112)*(S$122-Inputs!$D112-S126-S127-S128-S129-S130-S131-S132-S133) -> 0 | T125: =(T$122>Inputs!$D112)*(T$122-Inputs!$D112-T126-T127-T128-T129-T130-T131-T132-T133) -> 0 | U125: =(U$122>Inputs!$D112)*(U$122-Inputs!$D112-U126-U127-U128-U129-U130-U131-U132-U133) -> 0 | V125: =(V$122>Inputs!$D112)*(V$122-Inputs!$D112-V126-V127-V128-V129-V130-V131-V132-V133) -> 0 | W125: =(W$122>Inputs!$D112)*(W$122-Inputs!$D112-W126-W127-W128-W129-W130-W131-W132-W133) -> 0 | X125: =(X$122>Inputs!$D112)*(X$122-Inputs!$D112-X126-X127-X128-X129-X130-X131-X132-X133) -> 0 | Y125: =(Y$122>Inputs!$D112)*(Y$122-Inputs!$D112-Y126-Y127-Y128-Y129-Y130-Y131-Y132-Y133) -> 0 | Z125: =(Z$122>Inputs!$D112)*(Z$122-Inputs!$D112-Z126-Z127-Z128-Z129-Z130-Z131-Z132-Z133) -> 0 | AA125: =(AA$122>Inputs!$D112)*(AA$122-Inputs!$D112-AA126-AA127-AA128-AA129-AA130-AA131-AA132-AA133) -> 0 | AB125: =(AB$122>Inputs!$D112)*(AB$122-Inputs!$D112-AB126-AB127-AB128-AB129-AB130-AB131-AB132-AB133) -> 0 | AC125: =(AC$122>Inputs!$D112)*(AC$122-Inputs!$D112-AC126-AC127-AC128-AC129-AC130-AC131-AC132-AC133) -> 0 | AD125: =(AD$122>Inputs!$D112)*(AD$122-Inputs!$D112-AD126-AD127-AD128-AD129-AD130-AD131-AD132-AD133) -> 0 | AE125: =(AE$122>Inputs!$D112)*(AE$122-Inputs!$D112-AE126-AE127-AE128-AE129-AE130-AE131-AE132-AE133) -> 0 | AF125: =(AF$122>Inputs!$D112)*(AF$122-Inputs!$D112-AF126-AF127-AF128-AF129-AF130-AF131-AF132-AF133) -> 0 | AG125: =(AG$122>Inputs!$D112)*(AG$122-Inputs!$D112-AG126-AG127-AG128-AG129-AG130-AG131-AG132-AG133) -> 0 | AH125: =(AH$122>Inputs!$D112)*(AH$122-Inputs!$D112-AH126-AH127-AH128-AH129-AH130-AH131-AH132-AH133) -> 0 | AI125: =(AI$122>Inputs!$D112)*(AI$122-Inputs!$D112-AI126-AI127-AI128-AI129-AI130-AI131-AI132-AI133) -> 0 | AJ125: =(AJ$122>Inputs!$D112)*(AJ$122-Inputs!$D112-AJ126-AJ127-AJ128-AJ129-AJ130-AJ131-AJ132-AJ133) -> 0 | AK125: =(AK$122>Inputs!$D112)*(AK$122-Inputs!$D112-AK126-AK127-AK128-AK129-AK130-AK131-AK132-AK133) -> 0 | AL125: =(AL$122>Inputs!$D112)*(AL$122-Inputs!$D112-AL126-AL127-AL128-AL129-AL130-AL131-AL132-AL133) -> 0 | AM125: =(AM$122>Inputs!$D112)*(AM$122-Inputs!$D112-AM126-AM127-AM128-AM129-AM130-AM131-AM132-AM133) -> 0 | AN125: =(AN$122>Inputs!$D112)*(AN$122-Inputs!$D112-AN126-AN127-AN128-AN129-AN130-AN131-AN132-AN133) -> 0 | AO125: =(AO$122>Inputs!$D112)*(AO$122-Inputs!$D112-AO126-AO127-AO128-AO129-AO130-AO131-AO132-AO133) -> 0 | AP125: =(AP$122>Inputs!$D112)*(AP$122-Inputs!$D112-AP126-AP127-AP128-AP129-AP130-AP131-AP132-AP133) -> 0 | AQ125: =(AQ$122>Inputs!$D112)*(AQ$122-Inputs!$D112-AQ126-AQ127-AQ128-AQ129-AQ130-AQ131-AQ132-AQ133) -> 0 | AR125: =(AR$122>Inputs!$D112)*(AR$122-Inputs!$D112-AR126-AR127-AR128-AR129-AR130-AR131-AR132-AR133) -> 0 | AS125: =(AS$122>Inputs!$D112)*(AS$122-Inputs!$D112-AS126-AS127-AS128-AS129-AS130-AS131-AS132-AS133) -> 0 | AT125: =(AT$122>Inputs!$D112)*(AT$122-Inputs!$D112-AT126-AT127-AT128-AT129-AT130-AT131-AT132-AT133) -> 0 | AU125: =(AU$122>Inputs!$D112)*(AU$122-Inputs!$D112-AU126-AU127-AU128-AU129-AU130-AU131-AU132-AU133) -> 0 | AV125: =(AV$122>Inputs!$D112)*(AV$122-Inputs!$D112-AV126-AV127-AV128-AV129-AV130-AV131-AV132-AV133) -> 0 | AW125: =(AW$122>Inputs!$D112)*(AW$122-Inputs!$D112-AW126-AW127-AW128-AW129-AW130-AW131-AW132-AW133) -> 0 | AX125: =(AX$122>Inputs!$D112)*(AX$122-Inputs!$D112-AX126-AX127-AX128-AX129-AX130-AX131-AX132-AX133) -> 0 | AY125: =(AY$122>Inputs!$D112)*(AY$122-Inputs!$D112-AY126-AY127-AY128-AY129-AY130-AY131-AY132-AY133) -> 0 | AZ125: =(AZ$122>Inputs!$D112)*(AZ$122-Inputs!$D112-AZ126-AZ127-AZ128-AZ129-AZ130-AZ131-AZ132-AZ133) -> 0 | BA125: =(BA$122>Inputs!$D112)*(BA$122-Inputs!$D112-BA126-BA127-BA128-BA129-BA130-BA131-BA132-BA133) -> 0 | BB125: =(BB$122>Inputs!$D112)*(BB$122-Inputs!$D112-BB126-BB127-BB128-BB129-BB130-BB131-BB132-BB133) -> 0 | BC125: =(BC$122>Inputs!$D112)*(BC$122-Inputs!$D112-BC126-BC127-BC128-BC129-BC130-BC131-BC132-BC133) -> 0 | BD125: =(BD$122>Inputs!$D112)*(BD$122-Inputs!$D112-BD126-BD127-BD128-BD129-BD130-BD131-BD132-BD133) -> 0
D126: Bracket 3 | E126: $mm nominal | G126: =(G$122>Inputs!$D113)*(G$122-Inputs!$D113-G127-G128-G129-G130-G131-G132-G133) -> 0 | H126: =(H$122>Inputs!$D113)*(H$122-Inputs!$D113-H127-H128-H129-H130-H131-H132-H133) -> 0 | I126: =(I$122>Inputs!$D113)*(I$122-Inputs!$D113-I127-I128-I129-I130-I131-I132-I133) -> 0 | J126: =(J$122>Inputs!$D113)*(J$122-Inputs!$D113-J127-J128-J129-J130-J131-J132-J133) -> 0 | K126: =(K$122>Inputs!$D113)*(K$122-Inputs!$D113-K127-K128-K129-K130-K131-K132-K133) -> 0 | L126: =(L$122>Inputs!$D113)*(L$122-Inputs!$D113-L127-L128-L129-L130-L131-L132-L133) -> 0 | M126: =(M$122>Inputs!$D113)*(M$122-Inputs!$D113-M127-M128-M129-M130-M131-M132-M133) -> 0 | N126: =(N$122>Inputs!$D113)*(N$122-Inputs!$D113-N127-N128-N129-N130-N131-N132-N133) -> 0 | O126: =(O$122>Inputs!$D113)*(O$122-Inputs!$D113-O127-O128-O129-O130-O131-O132-O133) -> 0 | P126: =(P$122>Inputs!$D113)*(P$122-Inputs!$D113-P127-P128-P129-P130-P131-P132-P133) -> 0 | Q126: =(Q$122>Inputs!$D113)*(Q$122-Inputs!$D113-Q127-Q128-Q129-Q130-Q131-Q132-Q133) -> 0 | R126: =(R$122>Inputs!$D113)*(R$122-Inputs!$D113-R127-R128-R129-R130-R131-R132-R133) -> 0 | S126: =(S$122>Inputs!$D113)*(S$122-Inputs!$D113-S127-S128-S129-S130-S131-S132-S133) -> 0 | T126: =(T$122>Inputs!$D113)*(T$122-Inputs!$D113-T127-T128-T129-T130-T131-T132-T133) -> 0 | U126: =(U$122>Inputs!$D113)*(U$122-Inputs!$D113-U127-U128-U129-U130-U131-U132-U133) -> 0 | V126: =(V$122>Inputs!$D113)*(V$122-Inputs!$D113-V127-V128-V129-V130-V131-V132-V133) -> 0 | W126: =(W$122>Inputs!$D113)*(W$122-Inputs!$D113-W127-W128-W129-W130-W131-W132-W133) -> 0 | X126: =(X$122>Inputs!$D113)*(X$122-Inputs!$D113-X127-X128-X129-X130-X131-X132-X133) -> 0 | Y126: =(Y$122>Inputs!$D113)*(Y$122-Inputs!$D113-Y127-Y128-Y129-Y130-Y131-Y132-Y133) -> 0 | Z126: =(Z$122>Inputs!$D113)*(Z$122-Inputs!$D113-Z127-Z128-Z129-Z130-Z131-Z132-Z133) -> 0 | AA126: =(AA$122>Inputs!$D113)*(AA$122-Inputs!$D113-AA127-AA128-AA129-AA130-AA131-AA132-AA133) -> 0 | AB126: =(AB$122>Inputs!$D113)*(AB$122-Inputs!$D113-AB127-AB128-AB129-AB130-AB131-AB132-AB133) -> 0 | AC126: =(AC$122>Inputs!$D113)*(AC$122-Inputs!$D113-AC127-AC128-AC129-AC130-AC131-AC132-AC133) -> 0 | AD126: =(AD$122>Inputs!$D113)*(AD$122-Inputs!$D113-AD127-AD128-AD129-AD130-AD131-AD132-AD133) -> 0 | AE126: =(AE$122>Inputs!$D113)*(AE$122-Inputs!$D113-AE127-AE128-AE129-AE130-AE131-AE132-AE133) -> 0 | AF126: =(AF$122>Inputs!$D113)*(AF$122-Inputs!$D113-AF127-AF128-AF129-AF130-AF131-AF132-AF133) -> 0 | AG126: =(AG$122>Inputs!$D113)*(AG$122-Inputs!$D113-AG127-AG128-AG129-AG130-AG131-AG132-AG133) -> 0 | AH126: =(AH$122>Inputs!$D113)*(AH$122-Inputs!$D113-AH127-AH128-AH129-AH130-AH131-AH132-AH133) -> 0 | AI126: =(AI$122>Inputs!$D113)*(AI$122-Inputs!$D113-AI127-AI128-AI129-AI130-AI131-AI132-AI133) -> 0 | AJ126: =(AJ$122>Inputs!$D113)*(AJ$122-Inputs!$D113-AJ127-AJ128-AJ129-AJ130-AJ131-AJ132-AJ133) -> 0 | AK126: =(AK$122>Inputs!$D113)*(AK$122-Inputs!$D113-AK127-AK128-AK129-AK130-AK131-AK132-AK133) -> 0 | AL126: =(AL$122>Inputs!$D113)*(AL$122-Inputs!$D113-AL127-AL128-AL129-AL130-AL131-AL132-AL133) -> 0 | AM126: =(AM$122>Inputs!$D113)*(AM$122-Inputs!$D113-AM127-AM128-AM129-AM130-AM131-AM132-AM133) -> 0 | AN126: =(AN$122>Inputs!$D113)*(AN$122-Inputs!$D113-AN127-AN128-AN129-AN130-AN131-AN132-AN133) -> 0 | AO126: =(AO$122>Inputs!$D113)*(AO$122-Inputs!$D113-AO127-AO128-AO129-AO130-AO131-AO132-AO133) -> 0 | AP126: =(AP$122>Inputs!$D113)*(AP$122-Inputs!$D113-AP127-AP128-AP129-AP130-AP131-AP132-AP133) -> 0 | AQ126: =(AQ$122>Inputs!$D113)*(AQ$122-Inputs!$D113-AQ127-AQ128-AQ129-AQ130-AQ131-AQ132-AQ133) -> 0 | AR126: =(AR$122>Inputs!$D113)*(AR$122-Inputs!$D113-AR127-AR128-AR129-AR130-AR131-AR132-AR133) -> 0 | AS126: =(AS$122>Inputs!$D113)*(AS$122-Inputs!$D113-AS127-AS128-AS129-AS130-AS131-AS132-AS133) -> 0 | AT126: =(AT$122>Inputs!$D113)*(AT$122-Inputs!$D113-AT127-AT128-AT129-AT130-AT131-AT132-AT133) -> 0 | AU126: =(AU$122>Inputs!$D113)*(AU$122-Inputs!$D113-AU127-AU128-AU129-AU130-AU131-AU132-AU133) -> 0 | AV126: =(AV$122>Inputs!$D113)*(AV$122-Inputs!$D113-AV127-AV128-AV129-AV130-AV131-AV132-AV133) -> 0 | AW126: =(AW$122>Inputs!$D113)*(AW$122-Inputs!$D113-AW127-AW128-AW129-AW130-AW131-AW132-AW133) -> 0 | AX126: =(AX$122>Inputs!$D113)*(AX$122-Inputs!$D113-AX127-AX128-AX129-AX130-AX131-AX132-AX133) -> 0 | AY126: =(AY$122>Inputs!$D113)*(AY$122-Inputs!$D113-AY127-AY128-AY129-AY130-AY131-AY132-AY133) -> 0 | AZ126: =(AZ$122>Inputs!$D113)*(AZ$122-Inputs!$D113-AZ127-AZ128-AZ129-AZ130-AZ131-AZ132-AZ133) -> 0 | BA126: =(BA$122>Inputs!$D113)*(BA$122-Inputs!$D113-BA127-BA128-BA129-BA130-BA131-BA132-BA133) -> 0 | BB126: =(BB$122>Inputs!$D113)*(BB$122-Inputs!$D113-BB127-BB128-BB129-BB130-BB131-BB132-BB133) -> 0 | BC126: =(BC$122>Inputs!$D113)*(BC$122-Inputs!$D113-BC127-BC128-BC129-BC130-BC131-BC132-BC133) -> 0 | BD126: =(BD$122>Inputs!$D113)*(BD$122-Inputs!$D113-BD127-BD128-BD129-BD130-BD131-BD132-BD133) -> 0
D127: Bracket 4 | E127: $mm nominal | G127: =(G$122>Inputs!$D114)*(G$122-Inputs!$D114-G128-G129-G130-G131-G132-G133) -> 0 | H127: =(H$122>Inputs!$D114)*(H$122-Inputs!$D114-H128-H129-H130-H131-H132-H133) -> 0 | I127: =(I$122>Inputs!$D114)*(I$122-Inputs!$D114-I128-I129-I130-I131-I132-I133) -> 0 | J127: =(J$122>Inputs!$D114)*(J$122-Inputs!$D114-J128-J129-J130-J131-J132-J133) -> 0 | K127: =(K$122>Inputs!$D114)*(K$122-Inputs!$D114-K128-K129-K130-K131-K132-K133) -> 0 | L127: =(L$122>Inputs!$D114)*(L$122-Inputs!$D114-L128-L129-L130-L131-L132-L133) -> 0 | M127: =(M$122>Inputs!$D114)*(M$122-Inputs!$D114-M128-M129-M130-M131-M132-M133) -> 0 | N127: =(N$122>Inputs!$D114)*(N$122-Inputs!$D114-N128-N129-N130-N131-N132-N133) -> 0 | O127: =(O$122>Inputs!$D114)*(O$122-Inputs!$D114-O128-O129-O130-O131-O132-O133) -> 0 | P127: =(P$122>Inputs!$D114)*(P$122-Inputs!$D114-P128-P129-P130-P131-P132-P133) -> 0 | Q127: =(Q$122>Inputs!$D114)*(Q$122-Inputs!$D114-Q128-Q129-Q130-Q131-Q132-Q133) -> 0 | R127: =(R$122>Inputs!$D114)*(R$122-Inputs!$D114-R128-R129-R130-R131-R132-R133) -> 0 | S127: =(S$122>Inputs!$D114)*(S$122-Inputs!$D114-S128-S129-S130-S131-S132-S133) -> 0 | T127: =(T$122>Inputs!$D114)*(T$122-Inputs!$D114-T128-T129-T130-T131-T132-T133) -> 0 | U127: =(U$122>Inputs!$D114)*(U$122-Inputs!$D114-U128-U129-U130-U131-U132-U133) -> 0 | V127: =(V$122>Inputs!$D114)*(V$122-Inputs!$D114-V128-V129-V130-V131-V132-V133) -> 0 | W127: =(W$122>Inputs!$D114)*(W$122-Inputs!$D114-W128-W129-W130-W131-W132-W133) -> 0 | X127: =(X$122>Inputs!$D114)*(X$122-Inputs!$D114-X128-X129-X130-X131-X132-X133) -> 0 | Y127: =(Y$122>Inputs!$D114)*(Y$122-Inputs!$D114-Y128-Y129-Y130-Y131-Y132-Y133) -> 0 | Z127: =(Z$122>Inputs!$D114)*(Z$122-Inputs!$D114-Z128-Z129-Z130-Z131-Z132-Z133) -> 0 | AA127: =(AA$122>Inputs!$D114)*(AA$122-Inputs!$D114-AA128-AA129-AA130-AA131-AA132-AA133) -> 0 | AB127: =(AB$122>Inputs!$D114)*(AB$122-Inputs!$D114-AB128-AB129-AB130-AB131-AB132-AB133) -> 0 | AC127: =(AC$122>Inputs!$D114)*(AC$122-Inputs!$D114-AC128-AC129-AC130-AC131-AC132-AC133) -> 0 | AD127: =(AD$122>Inputs!$D114)*(AD$122-Inputs!$D114-AD128-AD129-AD130-AD131-AD132-AD133) -> 0 | AE127: =(AE$122>Inputs!$D114)*(AE$122-Inputs!$D114-AE128-AE129-AE130-AE131-AE132-AE133) -> 0 | AF127: =(AF$122>Inputs!$D114)*(AF$122-Inputs!$D114-AF128-AF129-AF130-AF131-AF132-AF133) -> 0 | AG127: =(AG$122>Inputs!$D114)*(AG$122-Inputs!$D114-AG128-AG129-AG130-AG131-AG132-AG133) -> 0 | AH127: =(AH$122>Inputs!$D114)*(AH$122-Inputs!$D114-AH128-AH129-AH130-AH131-AH132-AH133) -> 0 | AI127: =(AI$122>Inputs!$D114)*(AI$122-Inputs!$D114-AI128-AI129-AI130-AI131-AI132-AI133) -> 0 | AJ127: =(AJ$122>Inputs!$D114)*(AJ$122-Inputs!$D114-AJ128-AJ129-AJ130-AJ131-AJ132-AJ133) -> 0 | AK127: =(AK$122>Inputs!$D114)*(AK$122-Inputs!$D114-AK128-AK129-AK130-AK131-AK132-AK133) -> 0 | AL127: =(AL$122>Inputs!$D114)*(AL$122-Inputs!$D114-AL128-AL129-AL130-AL131-AL132-AL133) -> 0 | AM127: =(AM$122>Inputs!$D114)*(AM$122-Inputs!$D114-AM128-AM129-AM130-AM131-AM132-AM133) -> 0 | AN127: =(AN$122>Inputs!$D114)*(AN$122-Inputs!$D114-AN128-AN129-AN130-AN131-AN132-AN133) -> 0 | AO127: =(AO$122>Inputs!$D114)*(AO$122-Inputs!$D114-AO128-AO129-AO130-AO131-AO132-AO133) -> 0 | AP127: =(AP$122>Inputs!$D114)*(AP$122-Inputs!$D114-AP128-AP129-AP130-AP131-AP132-AP133) -> 0 | AQ127: =(AQ$122>Inputs!$D114)*(AQ$122-Inputs!$D114-AQ128-AQ129-AQ130-AQ131-AQ132-AQ133) -> 0 | AR127: =(AR$122>Inputs!$D114)*(AR$122-Inputs!$D114-AR128-AR129-AR130-AR131-AR132-AR133) -> 0 | AS127: =(AS$122>Inputs!$D114)*(AS$122-Inputs!$D114-AS128-AS129-AS130-AS131-AS132-AS133) -> 0 | AT127: =(AT$122>Inputs!$D114)*(AT$122-Inputs!$D114-AT128-AT129-AT130-AT131-AT132-AT133) -> 0 | AU127: =(AU$122>Inputs!$D114)*(AU$122-Inputs!$D114-AU128-AU129-AU130-AU131-AU132-AU133) -> 0 | AV127: =(AV$122>Inputs!$D114)*(AV$122-Inputs!$D114-AV128-AV129-AV130-AV131-AV132-AV133) -> 0 | AW127: =(AW$122>Inputs!$D114)*(AW$122-Inputs!$D114-AW128-AW129-AW130-AW131-AW132-AW133) -> 0 | AX127: =(AX$122>Inputs!$D114)*(AX$122-Inputs!$D114-AX128-AX129-AX130-AX131-AX132-AX133) -> 0 | AY127: =(AY$122>Inputs!$D114)*(AY$122-Inputs!$D114-AY128-AY129-AY130-AY131-AY132-AY133) -> 0 | AZ127: =(AZ$122>Inputs!$D114)*(AZ$122-Inputs!$D114-AZ128-AZ129-AZ130-AZ131-AZ132-AZ133) -> 0 | BA127: =(BA$122>Inputs!$D114)*(BA$122-Inputs!$D114-BA128-BA129-BA130-BA131-BA132-BA133) -> 0 | BB127: =(BB$122>Inputs!$D114)*(BB$122-Inputs!$D114-BB128-BB129-BB130-BB131-BB132-BB133) -> 0 | BC127: =(BC$122>Inputs!$D114)*(BC$122-Inputs!$D114-BC128-BC129-BC130-BC131-BC132-BC133) -> 0 | BD127: =(BD$122>Inputs!$D114)*(BD$122-Inputs!$D114-BD128-BD129-BD130-BD131-BD132-BD133) -> 0
D128: Bracket 5 | E128: $mm nominal | G128: =(G$122>Inputs!$D115)*(G$122-Inputs!$D115-G129-G130-G131-G132-G133) -> 0 | H128: =(H$122>Inputs!$D115)*(H$122-Inputs!$D115-H129-H130-H131-H132-H133) -> 0 | I128: =(I$122>Inputs!$D115)*(I$122-Inputs!$D115-I129-I130-I131-I132-I133) -> 0 | J128: =(J$122>Inputs!$D115)*(J$122-Inputs!$D115-J129-J130-J131-J132-J133) -> 0 | K128: =(K$122>Inputs!$D115)*(K$122-Inputs!$D115-K129-K130-K131-K132-K133) -> 0 | L128: =(L$122>Inputs!$D115)*(L$122-Inputs!$D115-L129-L130-L131-L132-L133) -> 0 | M128: =(M$122>Inputs!$D115)*(M$122-Inputs!$D115-M129-M130-M131-M132-M133) -> 0 | N128: =(N$122>Inputs!$D115)*(N$122-Inputs!$D115-N129-N130-N131-N132-N133) -> 0 | O128: =(O$122>Inputs!$D115)*(O$122-Inputs!$D115-O129-O130-O131-O132-O133) -> 0 | P128: =(P$122>Inputs!$D115)*(P$122-Inputs!$D115-P129-P130-P131-P132-P133) -> 0 | Q128: =(Q$122>Inputs!$D115)*(Q$122-Inputs!$D115-Q129-Q130-Q131-Q132-Q133) -> 0 | R128: =(R$122>Inputs!$D115)*(R$122-Inputs!$D115-R129-R130-R131-R132-R133) -> 0 | S128: =(S$122>Inputs!$D115)*(S$122-Inputs!$D115-S129-S130-S131-S132-S133) -> 0 | T128: =(T$122>Inputs!$D115)*(T$122-Inputs!$D115-T129-T130-T131-T132-T133) -> 0 | U128: =(U$122>Inputs!$D115)*(U$122-Inputs!$D115-U129-U130-U131-U132-U133) -> 0 | V128: =(V$122>Inputs!$D115)*(V$122-Inputs!$D115-V129-V130-V131-V132-V133) -> 0 | W128: =(W$122>Inputs!$D115)*(W$122-Inputs!$D115-W129-W130-W131-W132-W133) -> 0 | X128: =(X$122>Inputs!$D115)*(X$122-Inputs!$D115-X129-X130-X131-X132-X133) -> 0 | Y128: =(Y$122>Inputs!$D115)*(Y$122-Inputs!$D115-Y129-Y130-Y131-Y132-Y133) -> 0 | Z128: =(Z$122>Inputs!$D115)*(Z$122-Inputs!$D115-Z129-Z130-Z131-Z132-Z133) -> 0 | AA128: =(AA$122>Inputs!$D115)*(AA$122-Inputs!$D115-AA129-AA130-AA131-AA132-AA133) -> 0 | AB128: =(AB$122>Inputs!$D115)*(AB$122-Inputs!$D115-AB129-AB130-AB131-AB132-AB133) -> 0 | AC128: =(AC$122>Inputs!$D115)*(AC$122-Inputs!$D115-AC129-AC130-AC131-AC132-AC133) -> 0 | AD128: =(AD$122>Inputs!$D115)*(AD$122-Inputs!$D115-AD129-AD130-AD131-AD132-AD133) -> 0 | AE128: =(AE$122>Inputs!$D115)*(AE$122-Inputs!$D115-AE129-AE130-AE131-AE132-AE133) -> 0 | AF128: =(AF$122>Inputs!$D115)*(AF$122-Inputs!$D115-AF129-AF130-AF131-AF132-AF133) -> 0 | AG128: =(AG$122>Inputs!$D115)*(AG$122-Inputs!$D115-AG129-AG130-AG131-AG132-AG133) -> 0 | AH128: =(AH$122>Inputs!$D115)*(AH$122-Inputs!$D115-AH129-AH130-AH131-AH132-AH133) -> 0 | AI128: =(AI$122>Inputs!$D115)*(AI$122-Inputs!$D115-AI129-AI130-AI131-AI132-AI133) -> 0 | AJ128: =(AJ$122>Inputs!$D115)*(AJ$122-Inputs!$D115-AJ129-AJ130-AJ131-AJ132-AJ133) -> 0 | AK128: =(AK$122>Inputs!$D115)*(AK$122-Inputs!$D115-AK129-AK130-AK131-AK132-AK133) -> 0 | AL128: =(AL$122>Inputs!$D115)*(AL$122-Inputs!$D115-AL129-AL130-AL131-AL132-AL133) -> 0 | AM128: =(AM$122>Inputs!$D115)*(AM$122-Inputs!$D115-AM129-AM130-AM131-AM132-AM133) -> 0 | AN128: =(AN$122>Inputs!$D115)*(AN$122-Inputs!$D115-AN129-AN130-AN131-AN132-AN133) -> 0 | AO128: =(AO$122>Inputs!$D115)*(AO$122-Inputs!$D115-AO129-AO130-AO131-AO132-AO133) -> 0 | AP128: =(AP$122>Inputs!$D115)*(AP$122-Inputs!$D115-AP129-AP130-AP131-AP132-AP133) -> 0 | AQ128: =(AQ$122>Inputs!$D115)*(AQ$122-Inputs!$D115-AQ129-AQ130-AQ131-AQ132-AQ133) -> 0 | AR128: =(AR$122>Inputs!$D115)*(AR$122-Inputs!$D115-AR129-AR130-AR131-AR132-AR133) -> 0 | AS128: =(AS$122>Inputs!$D115)*(AS$122-Inputs!$D115-AS129-AS130-AS131-AS132-AS133) -> 0 | AT128: =(AT$122>Inputs!$D115)*(AT$122-Inputs!$D115-AT129-AT130-AT131-AT132-AT133) -> 0 | AU128: =(AU$122>Inputs!$D115)*(AU$122-Inputs!$D115-AU129-AU130-AU131-AU132-AU133) -> 0 | AV128: =(AV$122>Inputs!$D115)*(AV$122-Inputs!$D115-AV129-AV130-AV131-AV132-AV133) -> 0 | AW128: =(AW$122>Inputs!$D115)*(AW$122-Inputs!$D115-AW129-AW130-AW131-AW132-AW133) -> 0 | AX128: =(AX$122>Inputs!$D115)*(AX$122-Inputs!$D115-AX129-AX130-AX131-AX132-AX133) -> 0 | AY128: =(AY$122>Inputs!$D115)*(AY$122-Inputs!$D115-AY129-AY130-AY131-AY132-AY133) -> 0 | AZ128: =(AZ$122>Inputs!$D115)*(AZ$122-Inputs!$D115-AZ129-AZ130-AZ131-AZ132-AZ133) -> 0 | BA128: =(BA$122>Inputs!$D115)*(BA$122-Inputs!$D115-BA129-BA130-BA131-BA132-BA133) -> 0 | BB128: =(BB$122>Inputs!$D115)*(BB$122-Inputs!$D115-BB129-BB130-BB131-BB132-BB133) -> 0 | BC128: =(BC$122>Inputs!$D115)*(BC$122-Inputs!$D115-BC129-BC130-BC131-BC132-BC133) -> 0 | BD128: =(BD$122>Inputs!$D115)*(BD$122-Inputs!$D115-BD129-BD130-BD131-BD132-BD133) -> 0
D129: Bracket 6 | E129: $mm nominal | G129: =(G$122>Inputs!$D116)*(G$122-Inputs!$D116-G130-G131-G132-G133) -> 0 | H129: =(H$122>Inputs!$D116)*(H$122-Inputs!$D116-H130-H131-H132-H133) -> 0 | I129: =(I$122>Inputs!$D116)*(I$122-Inputs!$D116-I130-I131-I132-I133) -> 0 | J129: =(J$122>Inputs!$D116)*(J$122-Inputs!$D116-J130-J131-J132-J133) -> 0 | K129: =(K$122>Inputs!$D116)*(K$122-Inputs!$D116-K130-K131-K132-K133) -> 0 | L129: =(L$122>Inputs!$D116)*(L$122-Inputs!$D116-L130-L131-L132-L133) -> 0 | M129: =(M$122>Inputs!$D116)*(M$122-Inputs!$D116-M130-M131-M132-M133) -> 0 | N129: =(N$122>Inputs!$D116)*(N$122-Inputs!$D116-N130-N131-N132-N133) -> 0 | O129: =(O$122>Inputs!$D116)*(O$122-Inputs!$D116-O130-O131-O132-O133) -> 0 | P129: =(P$122>Inputs!$D116)*(P$122-Inputs!$D116-P130-P131-P132-P133) -> 0 | Q129: =(Q$122>Inputs!$D116)*(Q$122-Inputs!$D116-Q130-Q131-Q132-Q133) -> 0 | R129: =(R$122>Inputs!$D116)*(R$122-Inputs!$D116-R130-R131-R132-R133) -> 0 | S129: =(S$122>Inputs!$D116)*(S$122-Inputs!$D116-S130-S131-S132-S133) -> 0 | T129: =(T$122>Inputs!$D116)*(T$122-Inputs!$D116-T130-T131-T132-T133) -> 0 | U129: =(U$122>Inputs!$D116)*(U$122-Inputs!$D116-U130-U131-U132-U133) -> 0 | V129: =(V$122>Inputs!$D116)*(V$122-Inputs!$D116-V130-V131-V132-V133) -> 0 | W129: =(W$122>Inputs!$D116)*(W$122-Inputs!$D116-W130-W131-W132-W133) -> 0 | X129: =(X$122>Inputs!$D116)*(X$122-Inputs!$D116-X130-X131-X132-X133) -> 0 | Y129: =(Y$122>Inputs!$D116)*(Y$122-Inputs!$D116-Y130-Y131-Y132-Y133) -> 0 | Z129: =(Z$122>Inputs!$D116)*(Z$122-Inputs!$D116-Z130-Z131-Z132-Z133) -> 0 | AA129: =(AA$122>Inputs!$D116)*(AA$122-Inputs!$D116-AA130-AA131-AA132-AA133) -> 0 | AB129: =(AB$122>Inputs!$D116)*(AB$122-Inputs!$D116-AB130-AB131-AB132-AB133) -> 0 | AC129: =(AC$122>Inputs!$D116)*(AC$122-Inputs!$D116-AC130-AC131-AC132-AC133) -> 0 | AD129: =(AD$122>Inputs!$D116)*(AD$122-Inputs!$D116-AD130-AD131-AD132-AD133) -> 0 | AE129: =(AE$122>Inputs!$D116)*(AE$122-Inputs!$D116-AE130-AE131-AE132-AE133) -> 0 | AF129: =(AF$122>Inputs!$D116)*(AF$122-Inputs!$D116-AF130-AF131-AF132-AF133) -> 0 | AG129: =(AG$122>Inputs!$D116)*(AG$122-Inputs!$D116-AG130-AG131-AG132-AG133) -> 0 | AH129: =(AH$122>Inputs!$D116)*(AH$122-Inputs!$D116-AH130-AH131-AH132-AH133) -> 0 | AI129: =(AI$122>Inputs!$D116)*(AI$122-Inputs!$D116-AI130-AI131-AI132-AI133) -> 0 | AJ129: =(AJ$122>Inputs!$D116)*(AJ$122-Inputs!$D116-AJ130-AJ131-AJ132-AJ133) -> 0 | AK129: =(AK$122>Inputs!$D116)*(AK$122-Inputs!$D116-AK130-AK131-AK132-AK133) -> 0 | AL129: =(AL$122>Inputs!$D116)*(AL$122-Inputs!$D116-AL130-AL131-AL132-AL133) -> 0 | AM129: =(AM$122>Inputs!$D116)*(AM$122-Inputs!$D116-AM130-AM131-AM132-AM133) -> 0 | AN129: =(AN$122>Inputs!$D116)*(AN$122-Inputs!$D116-AN130-AN131-AN132-AN133) -> 0 | AO129: =(AO$122>Inputs!$D116)*(AO$122-Inputs!$D116-AO130-AO131-AO132-AO133) -> 0 | AP129: =(AP$122>Inputs!$D116)*(AP$122-Inputs!$D116-AP130-AP131-AP132-AP133) -> 0 | AQ129: =(AQ$122>Inputs!$D116)*(AQ$122-Inputs!$D116-AQ130-AQ131-AQ132-AQ133) -> 0 | AR129: =(AR$122>Inputs!$D116)*(AR$122-Inputs!$D116-AR130-AR131-AR132-AR133) -> 0 | AS129: =(AS$122>Inputs!$D116)*(AS$122-Inputs!$D116-AS130-AS131-AS132-AS133) -> 0 | AT129: =(AT$122>Inputs!$D116)*(AT$122-Inputs!$D116-AT130-AT131-AT132-AT133) -> 0 | AU129: =(AU$122>Inputs!$D116)*(AU$122-Inputs!$D116-AU130-AU131-AU132-AU133) -> 0 | AV129: =(AV$122>Inputs!$D116)*(AV$122-Inputs!$D116-AV130-AV131-AV132-AV133) -> 0 | AW129: =(AW$122>Inputs!$D116)*(AW$122-Inputs!$D116-AW130-AW131-AW132-AW133) -> 0 | AX129: =(AX$122>Inputs!$D116)*(AX$122-Inputs!$D116-AX130-AX131-AX132-AX133) -> 0 | AY129: =(AY$122>Inputs!$D116)*(AY$122-Inputs!$D116-AY130-AY131-AY132-AY133) -> 0 | AZ129: =(AZ$122>Inputs!$D116)*(AZ$122-Inputs!$D116-AZ130-AZ131-AZ132-AZ133) -> 0 | BA129: =(BA$122>Inputs!$D116)*(BA$122-Inputs!$D116-BA130-BA131-BA132-BA133) -> 0 | BB129: =(BB$122>Inputs!$D116)*(BB$122-Inputs!$D116-BB130-BB131-BB132-BB133) -> 0 | BC129: =(BC$122>Inputs!$D116)*(BC$122-Inputs!$D116-BC130-BC131-BC132-BC133) -> 0 | BD129: =(BD$122>Inputs!$D116)*(BD$122-Inputs!$D116-BD130-BD131-BD132-BD133) -> 0
D130: Bracket 7 | E130: $mm nominal | G130: =(G$122>Inputs!$D117)*(G$122-Inputs!$D117-G131-G132-G133) -> 0 | H130: =(H$122>Inputs!$D117)*(H$122-Inputs!$D117-H131-H132-H133) -> 0 | I130: =(I$122>Inputs!$D117)*(I$122-Inputs!$D117-I131-I132-I133) -> 0 | J130: =(J$122>Inputs!$D117)*(J$122-Inputs!$D117-J131-J132-J133) -> 0 | K130: =(K$122>Inputs!$D117)*(K$122-Inputs!$D117-K131-K132-K133) -> 0 | L130: =(L$122>Inputs!$D117)*(L$122-Inputs!$D117-L131-L132-L133) -> 0 | M130: =(M$122>Inputs!$D117)*(M$122-Inputs!$D117-M131-M132-M133) -> 0 | N130: =(N$122>Inputs!$D117)*(N$122-Inputs!$D117-N131-N132-N133) -> 0 | O130: =(O$122>Inputs!$D117)*(O$122-Inputs!$D117-O131-O132-O133) -> 0 | P130: =(P$122>Inputs!$D117)*(P$122-Inputs!$D117-P131-P132-P133) -> 0 | Q130: =(Q$122>Inputs!$D117)*(Q$122-Inputs!$D117-Q131-Q132-Q133) -> 0 | R130: =(R$122>Inputs!$D117)*(R$122-Inputs!$D117-R131-R132-R133) -> 0 | S130: =(S$122>Inputs!$D117)*(S$122-Inputs!$D117-S131-S132-S133) -> 0 | T130: =(T$122>Inputs!$D117)*(T$122-Inputs!$D117-T131-T132-T133) -> 0 | U130: =(U$122>Inputs!$D117)*(U$122-Inputs!$D117-U131-U132-U133) -> 0 | V130: =(V$122>Inputs!$D117)*(V$122-Inputs!$D117-V131-V132-V133) -> 0 | W130: =(W$122>Inputs!$D117)*(W$122-Inputs!$D117-W131-W132-W133) -> 0 | X130: =(X$122>Inputs!$D117)*(X$122-Inputs!$D117-X131-X132-X133) -> 0 | Y130: =(Y$122>Inputs!$D117)*(Y$122-Inputs!$D117-Y131-Y132-Y133) -> 0 | Z130: =(Z$122>Inputs!$D117)*(Z$122-Inputs!$D117-Z131-Z132-Z133) -> 0 | AA130: =(AA$122>Inputs!$D117)*(AA$122-Inputs!$D117-AA131-AA132-AA133) -> 0 | AB130: =(AB$122>Inputs!$D117)*(AB$122-Inputs!$D117-AB131-AB132-AB133) -> 0 | AC130: =(AC$122>Inputs!$D117)*(AC$122-Inputs!$D117-AC131-AC132-AC133) -> 0 | AD130: =(AD$122>Inputs!$D117)*(AD$122-Inputs!$D117-AD131-AD132-AD133) -> 0 | AE130: =(AE$122>Inputs!$D117)*(AE$122-Inputs!$D117-AE131-AE132-AE133) -> 0 | AF130: =(AF$122>Inputs!$D117)*(AF$122-Inputs!$D117-AF131-AF132-AF133) -> 0 | AG130: =(AG$122>Inputs!$D117)*(AG$122-Inputs!$D117-AG131-AG132-AG133) -> 0 | AH130: =(AH$122>Inputs!$D117)*(AH$122-Inputs!$D117-AH131-AH132-AH133) -> 0 | AI130: =(AI$122>Inputs!$D117)*(AI$122-Inputs!$D117-AI131-AI132-AI133) -> 0 | AJ130: =(AJ$122>Inputs!$D117)*(AJ$122-Inputs!$D117-AJ131-AJ132-AJ133) -> 0 | AK130: =(AK$122>Inputs!$D117)*(AK$122-Inputs!$D117-AK131-AK132-AK133) -> 0 | AL130: =(AL$122>Inputs!$D117)*(AL$122-Inputs!$D117-AL131-AL132-AL133) -> 0 | AM130: =(AM$122>Inputs!$D117)*(AM$122-Inputs!$D117-AM131-AM132-AM133) -> 0 | AN130: =(AN$122>Inputs!$D117)*(AN$122-Inputs!$D117-AN131-AN132-AN133) -> 0 | AO130: =(AO$122>Inputs!$D117)*(AO$122-Inputs!$D117-AO131-AO132-AO133) -> 0 | AP130: =(AP$122>Inputs!$D117)*(AP$122-Inputs!$D117-AP131-AP132-AP133) -> 0 | AQ130: =(AQ$122>Inputs!$D117)*(AQ$122-Inputs!$D117-AQ131-AQ132-AQ133) -> 0 | AR130: =(AR$122>Inputs!$D117)*(AR$122-Inputs!$D117-AR131-AR132-AR133) -> 0 | AS130: =(AS$122>Inputs!$D117)*(AS$122-Inputs!$D117-AS131-AS132-AS133) -> 0 | AT130: =(AT$122>Inputs!$D117)*(AT$122-Inputs!$D117-AT131-AT132-AT133) -> 0 | AU130: =(AU$122>Inputs!$D117)*(AU$122-Inputs!$D117-AU131-AU132-AU133) -> 0 | AV130: =(AV$122>Inputs!$D117)*(AV$122-Inputs!$D117-AV131-AV132-AV133) -> 0 | AW130: =(AW$122>Inputs!$D117)*(AW$122-Inputs!$D117-AW131-AW132-AW133) -> 0 | AX130: =(AX$122>Inputs!$D117)*(AX$122-Inputs!$D117-AX131-AX132-AX133) -> 0 | AY130: =(AY$122>Inputs!$D117)*(AY$122-Inputs!$D117-AY131-AY132-AY133) -> 0 | AZ130: =(AZ$122>Inputs!$D117)*(AZ$122-Inputs!$D117-AZ131-AZ132-AZ133) -> 0 | BA130: =(BA$122>Inputs!$D117)*(BA$122-Inputs!$D117-BA131-BA132-BA133) -> 0 | BB130: =(BB$122>Inputs!$D117)*(BB$122-Inputs!$D117-BB131-BB132-BB133) -> 0 | BC130: =(BC$122>Inputs!$D117)*(BC$122-Inputs!$D117-BC131-BC132-BC133) -> 0 | BD130: =(BD$122>Inputs!$D117)*(BD$122-Inputs!$D117-BD131-BD132-BD133) -> 0
D131: Bracket 8 | E131: $mm nominal | G131: =(G$122>Inputs!$D118)*(G$122-Inputs!$D118-G132-G133) -> 0 | H131: =(H$122>Inputs!$D118)*(H$122-Inputs!$D118-H132-H133) -> 0 | I131: =(I$122>Inputs!$D118)*(I$122-Inputs!$D118-I132-I133) -> 0 | J131: =(J$122>Inputs!$D118)*(J$122-Inputs!$D118-J132-J133) -> 0 | K131: =(K$122>Inputs!$D118)*(K$122-Inputs!$D118-K132-K133) -> 0 | L131: =(L$122>Inputs!$D118)*(L$122-Inputs!$D118-L132-L133) -> 0 | M131: =(M$122>Inputs!$D118)*(M$122-Inputs!$D118-M132-M133) -> 0 | N131: =(N$122>Inputs!$D118)*(N$122-Inputs!$D118-N132-N133) -> 0 | O131: =(O$122>Inputs!$D118)*(O$122-Inputs!$D118-O132-O133) -> 0 | P131: =(P$122>Inputs!$D118)*(P$122-Inputs!$D118-P132-P133) -> 0 | Q131: =(Q$122>Inputs!$D118)*(Q$122-Inputs!$D118-Q132-Q133) -> 0 | R131: =(R$122>Inputs!$D118)*(R$122-Inputs!$D118-R132-R133) -> 0 | S131: =(S$122>Inputs!$D118)*(S$122-Inputs!$D118-S132-S133) -> 0 | T131: =(T$122>Inputs!$D118)*(T$122-Inputs!$D118-T132-T133) -> 0 | U131: =(U$122>Inputs!$D118)*(U$122-Inputs!$D118-U132-U133) -> 0 | V131: =(V$122>Inputs!$D118)*(V$122-Inputs!$D118-V132-V133) -> 0 | W131: =(W$122>Inputs!$D118)*(W$122-Inputs!$D118-W132-W133) -> 0 | X131: =(X$122>Inputs!$D118)*(X$122-Inputs!$D118-X132-X133) -> 0 | Y131: =(Y$122>Inputs!$D118)*(Y$122-Inputs!$D118-Y132-Y133) -> 0 | Z131: =(Z$122>Inputs!$D118)*(Z$122-Inputs!$D118-Z132-Z133) -> 0 | AA131: =(AA$122>Inputs!$D118)*(AA$122-Inputs!$D118-AA132-AA133) -> 0 | AB131: =(AB$122>Inputs!$D118)*(AB$122-Inputs!$D118-AB132-AB133) -> 0 | AC131: =(AC$122>Inputs!$D118)*(AC$122-Inputs!$D118-AC132-AC133) -> 0 | AD131: =(AD$122>Inputs!$D118)*(AD$122-Inputs!$D118-AD132-AD133) -> 0 | AE131: =(AE$122>Inputs!$D118)*(AE$122-Inputs!$D118-AE132-AE133) -> 0 | AF131: =(AF$122>Inputs!$D118)*(AF$122-Inputs!$D118-AF132-AF133) -> 0 | AG131: =(AG$122>Inputs!$D118)*(AG$122-Inputs!$D118-AG132-AG133) -> 0 | AH131: =(AH$122>Inputs!$D118)*(AH$122-Inputs!$D118-AH132-AH133) -> 0 | AI131: =(AI$122>Inputs!$D118)*(AI$122-Inputs!$D118-AI132-AI133) -> 0 | AJ131: =(AJ$122>Inputs!$D118)*(AJ$122-Inputs!$D118-AJ132-AJ133) -> 0 | AK131: =(AK$122>Inputs!$D118)*(AK$122-Inputs!$D118-AK132-AK133) -> 0 | AL131: =(AL$122>Inputs!$D118)*(AL$122-Inputs!$D118-AL132-AL133) -> 0 | AM131: =(AM$122>Inputs!$D118)*(AM$122-Inputs!$D118-AM132-AM133) -> 0 | AN131: =(AN$122>Inputs!$D118)*(AN$122-Inputs!$D118-AN132-AN133) -> 0 | AO131: =(AO$122>Inputs!$D118)*(AO$122-Inputs!$D118-AO132-AO133) -> 0 | AP131: =(AP$122>Inputs!$D118)*(AP$122-Inputs!$D118-AP132-AP133) -> 0 | AQ131: =(AQ$122>Inputs!$D118)*(AQ$122-Inputs!$D118-AQ132-AQ133) -> 0 | AR131: =(AR$122>Inputs!$D118)*(AR$122-Inputs!$D118-AR132-AR133) -> 0 | AS131: =(AS$122>Inputs!$D118)*(AS$122-Inputs!$D118-AS132-AS133) -> 0 | AT131: =(AT$122>Inputs!$D118)*(AT$122-Inputs!$D118-AT132-AT133) -> 0 | AU131: =(AU$122>Inputs!$D118)*(AU$122-Inputs!$D118-AU132-AU133) -> 0 | AV131: =(AV$122>Inputs!$D118)*(AV$122-Inputs!$D118-AV132-AV133) -> 0 | AW131: =(AW$122>Inputs!$D118)*(AW$122-Inputs!$D118-AW132-AW133) -> 0 | AX131: =(AX$122>Inputs!$D118)*(AX$122-Inputs!$D118-AX132-AX133) -> 0 | AY131: =(AY$122>Inputs!$D118)*(AY$122-Inputs!$D118-AY132-AY133) -> 0 | AZ131: =(AZ$122>Inputs!$D118)*(AZ$122-Inputs!$D118-AZ132-AZ133) -> 0 | BA131: =(BA$122>Inputs!$D118)*(BA$122-Inputs!$D118-BA132-BA133) -> 0 | BB131: =(BB$122>Inputs!$D118)*(BB$122-Inputs!$D118-BB132-BB133) -> 0 | BC131: =(BC$122>Inputs!$D118)*(BC$122-Inputs!$D118-BC132-BC133) -> 0 | BD131: =(BD$122>Inputs!$D118)*(BD$122-Inputs!$D118-BD132-BD133) -> 0
D132: Bracket 9 | E132: $mm nominal | G132: =(G$122>Inputs!$D119)*(G$122-Inputs!$D119-G133) -> 0 | H132: =(H$122>Inputs!$D119)*(H$122-Inputs!$D119-H133) -> 0 | I132: =(I$122>Inputs!$D119)*(I$122-Inputs!$D119-I133) -> 0 | J132: =(J$122>Inputs!$D119)*(J$122-Inputs!$D119-J133) -> 0 | K132: =(K$122>Inputs!$D119)*(K$122-Inputs!$D119-K133) -> 0 | L132: =(L$122>Inputs!$D119)*(L$122-Inputs!$D119-L133) -> 0 | M132: =(M$122>Inputs!$D119)*(M$122-Inputs!$D119-M133) -> 0 | N132: =(N$122>Inputs!$D119)*(N$122-Inputs!$D119-N133) -> 0 | O132: =(O$122>Inputs!$D119)*(O$122-Inputs!$D119-O133) -> 0 | P132: =(P$122>Inputs!$D119)*(P$122-Inputs!$D119-P133) -> 0 | Q132: =(Q$122>Inputs!$D119)*(Q$122-Inputs!$D119-Q133) -> 0 | R132: =(R$122>Inputs!$D119)*(R$122-Inputs!$D119-R133) -> 0 | S132: =(S$122>Inputs!$D119)*(S$122-Inputs!$D119-S133) -> 0 | T132: =(T$122>Inputs!$D119)*(T$122-Inputs!$D119-T133) -> 0 | U132: =(U$122>Inputs!$D119)*(U$122-Inputs!$D119-U133) -> 0 | V132: =(V$122>Inputs!$D119)*(V$122-Inputs!$D119-V133) -> 0 | W132: =(W$122>Inputs!$D119)*(W$122-Inputs!$D119-W133) -> 0 | X132: =(X$122>Inputs!$D119)*(X$122-Inputs!$D119-X133) -> 0 | Y132: =(Y$122>Inputs!$D119)*(Y$122-Inputs!$D119-Y133) -> 0 | Z132: =(Z$122>Inputs!$D119)*(Z$122-Inputs!$D119-Z133) -> 0 | AA132: =(AA$122>Inputs!$D119)*(AA$122-Inputs!$D119-AA133) -> 0 | AB132: =(AB$122>Inputs!$D119)*(AB$122-Inputs!$D119-AB133) -> 0 | AC132: =(AC$122>Inputs!$D119)*(AC$122-Inputs!$D119-AC133) -> 0 | AD132: =(AD$122>Inputs!$D119)*(AD$122-Inputs!$D119-AD133) -> 0 | AE132: =(AE$122>Inputs!$D119)*(AE$122-Inputs!$D119-AE133) -> 0 | AF132: =(AF$122>Inputs!$D119)*(AF$122-Inputs!$D119-AF133) -> 0 | AG132: =(AG$122>Inputs!$D119)*(AG$122-Inputs!$D119-AG133) -> 0 | AH132: =(AH$122>Inputs!$D119)*(AH$122-Inputs!$D119-AH133) -> 0 | AI132: =(AI$122>Inputs!$D119)*(AI$122-Inputs!$D119-AI133) -> 0 | AJ132: =(AJ$122>Inputs!$D119)*(AJ$122-Inputs!$D119-AJ133) -> 0 | AK132: =(AK$122>Inputs!$D119)*(AK$122-Inputs!$D119-AK133) -> 0 | AL132: =(AL$122>Inputs!$D119)*(AL$122-Inputs!$D119-AL133) -> 0 | AM132: =(AM$122>Inputs!$D119)*(AM$122-Inputs!$D119-AM133) -> 0 | AN132: =(AN$122>Inputs!$D119)*(AN$122-Inputs!$D119-AN133) -> 0 | AO132: =(AO$122>Inputs!$D119)*(AO$122-Inputs!$D119-AO133) -> 0 | AP132: =(AP$122>Inputs!$D119)*(AP$122-Inputs!$D119-AP133) -> 0 | AQ132: =(AQ$122>Inputs!$D119)*(AQ$122-Inputs!$D119-AQ133) -> 0 | AR132: =(AR$122>Inputs!$D119)*(AR$122-Inputs!$D119-AR133) -> 0 | AS132: =(AS$122>Inputs!$D119)*(AS$122-Inputs!$D119-AS133) -> 0 | AT132: =(AT$122>Inputs!$D119)*(AT$122-Inputs!$D119-AT133) -> 0 | AU132: =(AU$122>Inputs!$D119)*(AU$122-Inputs!$D119-AU133) -> 0 | AV132: =(AV$122>Inputs!$D119)*(AV$122-Inputs!$D119-AV133) -> 0 | AW132: =(AW$122>Inputs!$D119)*(AW$122-Inputs!$D119-AW133) -> 0 | AX132: =(AX$122>Inputs!$D119)*(AX$122-Inputs!$D119-AX133) -> 0 | AY132: =(AY$122>Inputs!$D119)*(AY$122-Inputs!$D119-AY133) -> 0 | AZ132: =(AZ$122>Inputs!$D119)*(AZ$122-Inputs!$D119-AZ133) -> 0 | BA132: =(BA$122>Inputs!$D119)*(BA$122-Inputs!$D119-BA133) -> 0 | BB132: =(BB$122>Inputs!$D119)*(BB$122-Inputs!$D119-BB133) -> 0 | BC132: =(BC$122>Inputs!$D119)*(BC$122-Inputs!$D119-BC133) -> 0 | BD132: =(BD$122>Inputs!$D119)*(BD$122-Inputs!$D119-BD133) -> 0
D133: Bracket 10 | E133: $mm nominal | G133: =(G$122>Inputs!$D120)*(G$122-Inputs!$D120) -> 0 | H133: =(H$122>Inputs!$D120)*(H$122-Inputs!$D120) -> 0 | I133: =(I$122>Inputs!$D120)*(I$122-Inputs!$D120) -> 182.07 | J133: =(J$122>Inputs!$D120)*(J$122-Inputs!$D120) -> 371.4228 | K133: =(K$122>Inputs!$D120)*(K$122-Inputs!$D120) -> 378.851256 | L133: =(L$122>Inputs!$D120)*(L$122-Inputs!$D120) -> 386.4282811 | M133: =(M$122>Inputs!$D120)*(M$122-Inputs!$D120) -> 394.1568467 | N133: =(N$122>Inputs!$D120)*(N$122-Inputs!$D120) -> 402.0399837 | O133: =(O$122>Inputs!$D120)*(O$122-Inputs!$D120) -> 410.0807834 | P133: =(P$122>Inputs!$D120)*(P$122-Inputs!$D120) -> 418.282399 | Q133: =(Q$122>Inputs!$D120)*(Q$122-Inputs!$D120) -> 426.648047 | R133: =(R$122>Inputs!$D120)*(R$122-Inputs!$D120) -> 435.1810079 | S133: =(S$122>Inputs!$D120)*(S$122-Inputs!$D120) -> 443.8846281 | T133: =(T$122>Inputs!$D120)*(T$122-Inputs!$D120) -> 452.7623207 | U133: =(U$122>Inputs!$D120)*(U$122-Inputs!$D120) -> 461.8175671 | V133: =(V$122>Inputs!$D120)*(V$122-Inputs!$D120) -> 471.0539184 | W133: =(W$122>Inputs!$D120)*(W$122-Inputs!$D120) -> 480.4749968 | X133: =(X$122>Inputs!$D120)*(X$122-Inputs!$D120) -> 490.0844967 | Y133: =(Y$122>Inputs!$D120)*(Y$122-Inputs!$D120) -> 499.8861867 | Z133: =(Z$122>Inputs!$D120)*(Z$122-Inputs!$D120) -> 509.8839104 | AA133: =(AA$122>Inputs!$D120)*(AA$122-Inputs!$D120) -> 520.0815886 | AB133: =(AB$122>Inputs!$D120)*(AB$122-Inputs!$D120) -> 530.4832204 | AC133: =(AC$122>Inputs!$D120)*(AC$122-Inputs!$D120) -> 541.0928848 | AD133: =(AD$122>Inputs!$D120)*(AD$122-Inputs!$D120) -> 551.9147425 | AE133: =(AE$122>Inputs!$D120)*(AE$122-Inputs!$D120) -> 562.9530373 | AF133: =(AF$122>Inputs!$D120)*(AF$122-Inputs!$D120) -> 574.2120981 | AG133: =(AG$122>Inputs!$D120)*(AG$122-Inputs!$D120) -> 292.84817 | AH133: =(AH$122>Inputs!$D120)*(AH$122-Inputs!$D120) -> 0 | AI133: =(AI$122>Inputs!$D120)*(AI$122-Inputs!$D120) -> 0 | AJ133: =(AJ$122>Inputs!$D120)*(AJ$122-Inputs!$D120) -> 0 | AK133: =(AK$122>Inputs!$D120)*(AK$122-Inputs!$D120) -> 0 | AL133: =(AL$122>Inputs!$D120)*(AL$122-Inputs!$D120) -> 0 | AM133: =(AM$122>Inputs!$D120)*(AM$122-Inputs!$D120) -> 0 | AN133: =(AN$122>Inputs!$D120)*(AN$122-Inputs!$D120) -> 0 | AO133: =(AO$122>Inputs!$D120)*(AO$122-Inputs!$D120) -> 0 | AP133: =(AP$122>Inputs!$D120)*(AP$122-Inputs!$D120) -> 0 | AQ133: =(AQ$122>Inputs!$D120)*(AQ$122-Inputs!$D120) -> 0 | AR133: =(AR$122>Inputs!$D120)*(AR$122-Inputs!$D120) -> 0 | AS133: =(AS$122>Inputs!$D120)*(AS$122-Inputs!$D120) -> 0 | AT133: =(AT$122>Inputs!$D120)*(AT$122-Inputs!$D120) -> 0 | AU133: =(AU$122>Inputs!$D120)*(AU$122-Inputs!$D120) -> 0 | AV133: =(AV$122>Inputs!$D120)*(AV$122-Inputs!$D120) -> 0 | AW133: =(AW$122>Inputs!$D120)*(AW$122-Inputs!$D120) -> 0 | AX133: =(AX$122>Inputs!$D120)*(AX$122-Inputs!$D120) -> 0 | AY133: =(AY$122>Inputs!$D120)*(AY$122-Inputs!$D120) -> 0 | AZ133: =(AZ$122>Inputs!$D120)*(AZ$122-Inputs!$D120) -> 0 | BA133: =(BA$122>Inputs!$D120)*(BA$122-Inputs!$D120) -> 0 | BB133: =(BB$122>Inputs!$D120)*(BB$122-Inputs!$D120) -> 0 | BC133: =(BC$122>Inputs!$D120)*(BC$122-Inputs!$D120) -> 0 | BD133: =(BD$122>Inputs!$D120)*(BD$122-Inputs!$D120) -> 0
A135: =SUM(G135:BD135)=SUM(G122:BD122) -> TRUE | D135: Total | E135: $mm nominal | G135: =SUM(G124:G133) -> 0 | H135: 0 | I135: 182.07 | J135: 371.4228 | K135: 378.851256 | L135: 386.4282811 | M135: 394.1568467 | N135: 402.0399837 | O135: 410.0807834 | P135: 418.282399 | Q135: 426.648047 | R135: 435.1810079 | S135: 443.8846281 | T135: 452.7623207 | U135: 461.8175671 | V135: 471.0539184 | W135: 480.4749968 | X135: 490.0844967 | Y135: 499.8861867 | Z135: 509.8839104 | AA135: 520.0815886 | AB135: 530.4832204 | AC135: 541.0928848 | AD135: 551.9147425 | AE135: 562.9530373 | AF135: 574.2120981 | AG135: 292.84817 | AH135: 0 | AI135: 0 | AJ135: 0 | AK135: 0 | AL135: 0 | AM135: =SUM(AM124:AM133) -> 0 | AN135: 0 | AO135: 0 | AP135: 0 | AQ135: 0 | AR135: 0 | AS135: 0 | AT135: 0 | AU135: 0 | AV135: 0 | AW135: 0 | AX135: 0 | AY135: 0 | AZ135: 0 | BA135: 0 | BB135: 0 | BC135: 0 | BD135: 0
D137: Average royalty rate | E137: % | G137: =SUMPRODUCT(G124:G133,Inputs!$E$112:$E$121)/IF(Model!G122>0,Model!G122,1) -> 0 | H137: =SUMPRODUCT(H124:H133,Inputs!$E$112:$E$121)/IF(Model!H122>0,Model!H122,1) -> 0 | I137: =SUMPRODUCT(I124:I133,Inputs!$E$112:$E$121)/IF(Model!I122>0,Model!I122,1) -> 0 | J137: =SUMPRODUCT(J124:J133,Inputs!$E$112:$E$121)/IF(Model!J122>0,Model!J122,1) -> 0 | K137: =SUMPRODUCT(K124:K133,Inputs!$E$112:$E$121)/IF(Model!K122>0,Model!K122,1) -> 0 | L137: =SUMPRODUCT(L124:L133,Inputs!$E$112:$E$121)/IF(Model!L122>0,Model!L122,1) -> 0 | M137: =SUMPRODUCT(M124:M133,Inputs!$E$112:$E$121)/IF(Model!M122>0,Model!M122,1) -> 0 | N137: =SUMPRODUCT(N124:N133,Inputs!$E$112:$E$121)/IF(Model!N122>0,Model!N122,1) -> 0 | O137: =SUMPRODUCT(O124:O133,Inputs!$E$112:$E$121)/IF(Model!O122>0,Model!O122,1) -> 0 | P137: =SUMPRODUCT(P124:P133,Inputs!$E$112:$E$121)/IF(Model!P122>0,Model!P122,1) -> 0 | Q137: =SUMPRODUCT(Q124:Q133,Inputs!$E$112:$E$121)/IF(Model!Q122>0,Model!Q122,1) -> 0 | R137: =SUMPRODUCT(R124:R133,Inputs!$E$112:$E$121)/IF(Model!R122>0,Model!R122,1) -> 0 | S137: =SUMPRODUCT(S124:S133,Inputs!$E$112:$E$121)/IF(Model!S122>0,Model!S122,1) -> 0 | T137: =SUMPRODUCT(T124:T133,Inputs!$E$112:$E$121)/IF(Model!T122>0,Model!T122,1) -> 0 | U137: =SUMPRODUCT(U124:U133,Inputs!$E$112:$E$121)/IF(Model!U122>0,Model!U122,1) -> 0 | V137: =SUMPRODUCT(V124:V133,Inputs!$E$112:$E$121)/IF(Model!V122>0,Model!V122,1) -> 0 | W137: =SUMPRODUCT(W124:W133,Inputs!$E$112:$E$121)/IF(Model!W122>0,Model!W122,1) -> 0 | X137: =SUMPRODUCT(X124:X133,Inputs!$E$112:$E$121)/IF(Model!X122>0,Model!X122,1) -> 0 | Y137: =SUMPRODUCT(Y124:Y133,Inputs!$E$112:$E$121)/IF(Model!Y122>0,Model!Y122,1) -> 0 | Z137: =SUMPRODUCT(Z124:Z133,Inputs!$E$112:$E$121)/IF(Model!Z122>0,Model!Z122,1) -> 0 | AA137: =SUMPRODUCT(AA124:AA133,Inputs!$E$112:$E$121)/IF(Model!AA122>0,Model!AA122,1) -> 0 | AB137: =SUMPRODUCT(AB124:AB133,Inputs!$E$112:$E$121)/IF(Model!AB122>0,Model!AB122,1) -> 0 | AC137: =SUMPRODUCT(AC124:AC133,Inputs!$E$112:$E$121)/IF(Model!AC122>0,Model!AC122,1) -> 0 | AD137: =SUMPRODUCT(AD124:AD133,Inputs!$E$112:$E$121)/IF(Model!AD122>0,Model!AD122,1) -> 0 | AE137: =SUMPRODUCT(AE124:AE133,Inputs!$E$112:$E$121)/IF(Model!AE122>0,Model!AE122,1) -> 0 | AF137: =SUMPRODUCT(AF124:AF133,Inputs!$E$112:$E$121)/IF(Model!AF122>0,Model!AF122,1) -> 0 | AG137: =SUMPRODUCT(AG124:AG133,Inputs!$E$112:$E$121)/IF(Model!AG122>0,Model!AG122,1) -> 0 | AH137: =SUMPRODUCT(AH124:AH133,Inputs!$E$112:$E$121)/IF(Model!AH122>0,Model!AH122,1) -> 0 | AI137: =SUMPRODUCT(AI124:AI133,Inputs!$E$112:$E$121)/IF(Model!AI122>0,Model!AI122,1) -> 0 | AJ137: =SUMPRODUCT(AJ124:AJ133,Inputs!$E$112:$E$121)/IF(Model!AJ122>0,Model!AJ122,1) -> 0 | AK137: =SUMPRODUCT(AK124:AK133,Inputs!$E$112:$E$121)/IF(Model!AK122>0,Model!AK122,1) -> 0 | AL137: =SUMPRODUCT(AL124:AL133,Inputs!$E$112:$E$121)/IF(Model!AL122>0,Model!AL122,1) -> 0 | AM137: =SUMPRODUCT(AM124:AM133,Inputs!$E$112:$E$121)/IF(Model!AM122>0,Model!AM122,1) -> 0 | AN137: =SUMPRODUCT(AN124:AN133,Inputs!$E$112:$E$121)/IF(Model!AN122>0,Model!AN122,1) -> 0 | AO137: =SUMPRODUCT(AO124:AO133,Inputs!$E$112:$E$121)/IF(Model!AO122>0,Model!AO122,1) -> 0 | AP137: =SUMPRODUCT(AP124:AP133,Inputs!$E$112:$E$121)/IF(Model!AP122>0,Model!AP122,1) -> 0 | AQ137: =SUMPRODUCT(AQ124:AQ133,Inputs!$E$112:$E$121)/IF(Model!AQ122>0,Model!AQ122,1) -> 0 | AR137: =SUMPRODUCT(AR124:AR133,Inputs!$E$112:$E$121)/IF(Model!AR122>0,Model!AR122,1) -> 0 | AS137: =SUMPRODUCT(AS124:AS133,Inputs!$E$112:$E$121)/IF(Model!AS122>0,Model!AS122,1) -> 0 | AT137: =SUMPRODUCT(AT124:AT133,Inputs!$E$112:$E$121)/IF(Model!AT122>0,Model!AT122,1) -> 0 | AU137: =SUMPRODUCT(AU124:AU133,Inputs!$E$112:$E$121)/IF(Model!AU122>0,Model!AU122,1) -> 0 | AV137: =SUMPRODUCT(AV124:AV133,Inputs!$E$112:$E$121)/IF(Model!AV122>0,Model!AV122,1) -> 0 | AW137: =SUMPRODUCT(AW124:AW133,Inputs!$E$112:$E$121)/IF(Model!AW122>0,Model!AW122,1) -> 0 | AX137: =SUMPRODUCT(AX124:AX133,Inputs!$E$112:$E$121)/IF(Model!AX122>0,Model!AX122,1) -> 0 | AY137: =SUMPRODUCT(AY124:AY133,Inputs!$E$112:$E$121)/IF(Model!AY122>0,Model!AY122,1) -> 0 | AZ137: =SUMPRODUCT(AZ124:AZ133,Inputs!$E$112:$E$121)/IF(Model!AZ122>0,Model!AZ122,1) -> 0 | BA137: =SUMPRODUCT(BA124:BA133,Inputs!$E$112:$E$121)/IF(Model!BA122>0,Model!BA122,1) -> 0 | BB137: =SUMPRODUCT(BB124:BB133,Inputs!$E$112:$E$121)/IF(Model!BB122>0,Model!BB122,1) -> 0 | BC137: =SUMPRODUCT(BC124:BC133,Inputs!$E$112:$E$121)/IF(Model!BC122>0,Model!BC122,1) -> 0 | BD137: =SUMPRODUCT(BD124:BD133,Inputs!$E$112:$E$121)/IF(Model!BD122>0,Model!BD122,1) -> 0
C138: =SUM(G138:BD138) -> 0 | D138: Variable rate royalty (revenue) payable | E138: $mm nominal | G138: =G137*G122 -> 0 | H138: 0 | I138: 0 | J138: 0 | K138: 0 | L138: 0 | M138: 0 | N138: 0 | O138: 0 | P138: 0 | Q138: 0 | R138: 0 | S138: 0 | T138: 0 | U138: 0 | V138: 0 | W138: 0 | X138: 0 | Y138: 0 | Z138: 0 | AA138: 0 | AB138: 0 | AC138: 0 | AD138: 0 | AE138: 0 | AF138: 0 | AG138: 0 | AH138: 0 | AI138: 0 | AJ138: 0 | AK138: 0 | AL138: 0 | AM138: =AM137*AM122 -> 0 | AN138: 0 | AO138: 0 | AP138: 0 | AQ138: 0 | AR138: 0 | AS138: 0 | AT138: 0 | AU138: 0 | AV138: 0 | AW138: 0 | AX138: 0 | AY138: 0 | AZ138: 0 | BA138: 0 | BB138: 0 | BC138: 0 | BD138: 0
D141: Variable rate royalty - price based, non-marginal (on primary product)
D142: Base | G142: =G109 -> 0 | H142: 0 | I142: 182.07 | J142: 371.4228 | K142: 378.851256 | L142: 386.4282811 | M142: 394.1568467 | N142: 402.0399837 | O142: 410.0807834 | P142: 418.282399 | Q142: 426.648047 | R142: 435.1810079 | S142: 443.8846281 | T142: 452.7623207 | U142: 461.8175671 | V142: 471.0539184 | W142: 480.4749968 | X142: 490.0844967 | Y142: 499.8861867 | Z142: 509.8839104 | AA142: 520.0815886 | AB142: 530.4832204 | AC142: 541.0928848 | AD142: 551.9147425 | AE142: 562.9530373 | AF142: 574.2120981 | AG142: 292.84817 | AH142: 0 | AI142: 0 | AJ142: 0 | AK142: 0 | AL142: 0 | AM142: =AM109 -> 0 | AN142: 0 | AO142: 0 | AP142: 0 | AQ142: 0 | AR142: 0 | AS142: 0 | AT142: 0 | AU142: 0 | AV142: 0 | AW142: 0 | AX142: 0 | AY142: 0 | AZ142: 0 | BA142: 0 | BB142: 0 | BC142: 0 | BD142: 0
D144: Price bracket 1 | E144: % | G144: =IF(Inputs!F$187<Inputs!$D127,Inputs!$E126,"") ->  | H144: =IF(Inputs!G$187<Inputs!$D127,Inputs!$E126,"") ->  | I144: =IF(Inputs!H$187<Inputs!$D127,Inputs!$E126,"") ->  | J144: =IF(Inputs!I$187<Inputs!$D127,Inputs!$E126,"") ->  | K144: =IF(Inputs!J$187<Inputs!$D127,Inputs!$E126,"") ->  | L144: =IF(Inputs!K$187<Inputs!$D127,Inputs!$E126,"") ->  | M144: =IF(Inputs!L$187<Inputs!$D127,Inputs!$E126,"") ->  | N144: =IF(Inputs!M$187<Inputs!$D127,Inputs!$E126,"") ->  | O144: =IF(Inputs!N$187<Inputs!$D127,Inputs!$E126,"") ->  | P144: =IF(Inputs!O$187<Inputs!$D127,Inputs!$E126,"") ->  | Q144: =IF(Inputs!P$187<Inputs!$D127,Inputs!$E126,"") ->  | R144: =IF(Inputs!Q$187<Inputs!$D127,Inputs!$E126,"") ->  | S144: =IF(Inputs!R$187<Inputs!$D127,Inputs!$E126,"") ->  | T144: =IF(Inputs!S$187<Inputs!$D127,Inputs!$E126,"") ->  | U144: =IF(Inputs!T$187<Inputs!$D127,Inputs!$E126,"") ->  | V144: =IF(Inputs!U$187<Inputs!$D127,Inputs!$E126,"") ->  | W144: =IF(Inputs!V$187<Inputs!$D127,Inputs!$E126,"") ->  | X144: =IF(Inputs!W$187<Inputs!$D127,Inputs!$E126,"") ->  | Y144: =IF(Inputs!X$187<Inputs!$D127,Inputs!$E126,"") ->  | Z144: =IF(Inputs!Y$187<Inputs!$D127,Inputs!$E126,"") ->  | AA144: =IF(Inputs!Z$187<Inputs!$D127,Inputs!$E126,"") ->  | AB144: =IF(Inputs!AA$187<Inputs!$D127,Inputs!$E126,"") ->  | AC144: =IF(Inputs!AB$187<Inputs!$D127,Inputs!$E126,"") ->  | AD144: =IF(Inputs!AC$187<Inputs!$D127,Inputs!$E126,"") ->  | AE144: =IF(Inputs!AD$187<Inputs!$D127,Inputs!$E126,"") ->  | AF144: =IF(Inputs!AE$187<Inputs!$D127,Inputs!$E126,"") ->  | AG144: =IF(Inputs!AF$187<Inputs!$D127,Inputs!$E126,"") ->  | AH144: =IF(Inputs!AG$187<Inputs!$D127,Inputs!$E126,"") ->  | AI144: =IF(Inputs!AH$187<Inputs!$D127,Inputs!$E126,"") ->  | AJ144: =IF(Inputs!AI$187<Inputs!$D127,Inputs!$E126,"") ->  | AK144: =IF(Inputs!AJ$187<Inputs!$D127,Inputs!$E126,"") ->  | AL144: =IF(Inputs!AK$187<Inputs!$D127,Inputs!$E126,"") ->  | AM144: =IF(Inputs!AL$187<Inputs!$D127,Inputs!$E126,"") ->  | AN144: =IF(Inputs!AM$187<Inputs!$D127,Inputs!$E126,"") ->  | AO144: =IF(Inputs!AN$187<Inputs!$D127,Inputs!$E126,"") ->  | AP144: =IF(Inputs!AO$187<Inputs!$D127,Inputs!$E126,"") ->  | AQ144: =IF(Inputs!AP$187<Inputs!$D127,Inputs!$E126,"") ->  | AR144: =IF(Inputs!AQ$187<Inputs!$D127,Inputs!$E126,"") ->  | AS144: =IF(Inputs!AR$187<Inputs!$D127,Inputs!$E126,"") ->  | AT144: =IF(Inputs!AS$187<Inputs!$D127,Inputs!$E126,"") ->  | AU144: =IF(Inputs!AT$187<Inputs!$D127,Inputs!$E126,"") ->  | AV144: =IF(Inputs!AU$187<Inputs!$D127,Inputs!$E126,"") ->  | AW144: =IF(Inputs!AV$187<Inputs!$D127,Inputs!$E126,"") ->  | AX144: =IF(Inputs!AW$187<Inputs!$D127,Inputs!$E126,"") ->  | AY144: =IF(Inputs!AX$187<Inputs!$D127,Inputs!$E126,"") ->  | AZ144: =IF(Inputs!AY$187<Inputs!$D127,Inputs!$E126,"") ->  | BA144: =IF(Inputs!AZ$187<Inputs!$D127,Inputs!$E126,"") ->  | BB144: =IF(Inputs!BA$187<Inputs!$D127,Inputs!$E126,"") ->  | BC144: =IF(Inputs!BB$187<Inputs!$D127,Inputs!$E126,"") ->  | BD144: =IF(Inputs!BC$187<Inputs!$D127,Inputs!$E126,"") -> 
D145: Price bracket 2 | E145: % | G145: =IF(Inputs!F$187>=Inputs!$D127,IF(Inputs!F$187<Inputs!$D128,Inputs!$E127,""),"") ->  | H145: =IF(Inputs!G$187>=Inputs!$D127,IF(Inputs!G$187<Inputs!$D128,Inputs!$E127,""),"") ->  | I145: =IF(Inputs!H$187>=Inputs!$D127,IF(Inputs!H$187<Inputs!$D128,Inputs!$E127,""),"") ->  | J145: =IF(Inputs!I$187>=Inputs!$D127,IF(Inputs!I$187<Inputs!$D128,Inputs!$E127,""),"") ->  | K145: =IF(Inputs!J$187>=Inputs!$D127,IF(Inputs!J$187<Inputs!$D128,Inputs!$E127,""),"") ->  | L145: =IF(Inputs!K$187>=Inputs!$D127,IF(Inputs!K$187<Inputs!$D128,Inputs!$E127,""),"") ->  | M145: =IF(Inputs!L$187>=Inputs!$D127,IF(Inputs!L$187<Inputs!$D128,Inputs!$E127,""),"") ->  | N145: =IF(Inputs!M$187>=Inputs!$D127,IF(Inputs!M$187<Inputs!$D128,Inputs!$E127,""),"") ->  | O145: =IF(Inputs!N$187>=Inputs!$D127,IF(Inputs!N$187<Inputs!$D128,Inputs!$E127,""),"") ->  | P145: =IF(Inputs!O$187>=Inputs!$D127,IF(Inputs!O$187<Inputs!$D128,Inputs!$E127,""),"") ->  | Q145: =IF(Inputs!P$187>=Inputs!$D127,IF(Inputs!P$187<Inputs!$D128,Inputs!$E127,""),"") ->  | R145: =IF(Inputs!Q$187>=Inputs!$D127,IF(Inputs!Q$187<Inputs!$D128,Inputs!$E127,""),"") ->  | S145: =IF(Inputs!R$187>=Inputs!$D127,IF(Inputs!R$187<Inputs!$D128,Inputs!$E127,""),"") ->  | T145: =IF(Inputs!S$187>=Inputs!$D127,IF(Inputs!S$187<Inputs!$D128,Inputs!$E127,""),"") ->  | U145: =IF(Inputs!T$187>=Inputs!$D127,IF(Inputs!T$187<Inputs!$D128,Inputs!$E127,""),"") ->  | V145: =IF(Inputs!U$187>=Inputs!$D127,IF(Inputs!U$187<Inputs!$D128,Inputs!$E127,""),"") ->  | W145: =IF(Inputs!V$187>=Inputs!$D127,IF(Inputs!V$187<Inputs!$D128,Inputs!$E127,""),"") ->  | X145: =IF(Inputs!W$187>=Inputs!$D127,IF(Inputs!W$187<Inputs!$D128,Inputs!$E127,""),"") ->  | Y145: =IF(Inputs!X$187>=Inputs!$D127,IF(Inputs!X$187<Inputs!$D128,Inputs!$E127,""),"") ->  | Z145: =IF(Inputs!Y$187>=Inputs!$D127,IF(Inputs!Y$187<Inputs!$D128,Inputs!$E127,""),"") ->  | AA145: =IF(Inputs!Z$187>=Inputs!$D127,IF(Inputs!Z$187<Inputs!$D128,Inputs!$E127,""),"") ->  | AB145: =IF(Inputs!AA$187>=Inputs!$D127,IF(Inputs!AA$187<Inputs!$D128,Inputs!$E127,""),"") ->  | AC145: =IF(Inputs!AB$187>=Inputs!$D127,IF(Inputs!AB$187<Inputs!$D128,Inputs!$E127,""),"") ->  | AD145: =IF(Inputs!AC$187>=Inputs!$D127,IF(Inputs!AC$187<Inputs!$D128,Inputs!$E127,""),"") ->  | AE145: =IF(Inputs!AD$187>=Inputs!$D127,IF(Inputs!AD$187<Inputs!$D128,Inputs!$E127,""),"") ->  | AF145: =IF(Inputs!AE$187>=Inputs!$D127,IF(Inputs!AE$187<Inputs!$D128,Inputs!$E127,""),"") ->  | AG145: =IF(Inputs!AF$187>=Inputs!$D127,IF(Inputs!AF$187<Inputs!$D128,Inputs!$E127,""),"") ->  | AH145: =IF(Inputs!AG$187>=Inputs!$D127,IF(Inputs!AG$187<Inputs!$D128,Inputs!$E127,""),"") ->  | AI145: =IF(Inputs!AH$187>=Inputs!$D127,IF(Inputs!AH$187<Inputs!$D128,Inputs!$E127,""),"") ->  | AJ145: =IF(Inputs!AI$187>=Inputs!$D127,IF(Inputs!AI$187<Inputs!$D128,Inputs!$E127,""),"") ->  | AK145: =IF(Inputs!AJ$187>=Inputs!$D127,IF(Inputs!AJ$187<Inputs!$D128,Inputs!$E127,""),"") ->  | AL145: =IF(Inputs!AK$187>=Inputs!$D127,IF(Inputs!AK$187<Inputs!$D128,Inputs!$E127,""),"") ->  | AM145: =IF(Inputs!AL$187>=Inputs!$D127,IF(Inputs!AL$187<Inputs!$D128,Inputs!$E127,""),"") ->  | AN145: =IF(Inputs!AM$187>=Inputs!$D127,IF(Inputs!AM$187<Inputs!$D128,Inputs!$E127,""),"") ->  | AO145: =IF(Inputs!AN$187>=Inputs!$D127,IF(Inputs!AN$187<Inputs!$D128,Inputs!$E127,""),"") ->  | AP145: =IF(Inputs!AO$187>=Inputs!$D127,IF(Inputs!AO$187<Inputs!$D128,Inputs!$E127,""),"") ->  | AQ145: =IF(Inputs!AP$187>=Inputs!$D127,IF(Inputs!AP$187<Inputs!$D128,Inputs!$E127,""),"") ->  | AR145: =IF(Inputs!AQ$187>=Inputs!$D127,IF(Inputs!AQ$187<Inputs!$D128,Inputs!$E127,""),"") ->  | AS145: =IF(Inputs!AR$187>=Inputs!$D127,IF(Inputs!AR$187<Inputs!$D128,Inputs!$E127,""),"") ->  | AT145: =IF(Inputs!AS$187>=Inputs!$D127,IF(Inputs!AS$187<Inputs!$D128,Inputs!$E127,""),"") ->  | AU145: =IF(Inputs!AT$187>=Inputs!$D127,IF(Inputs!AT$187<Inputs!$D128,Inputs!$E127,""),"") ->  | AV145: =IF(Inputs!AU$187>=Inputs!$D127,IF(Inputs!AU$187<Inputs!$D128,Inputs!$E127,""),"") ->  | AW145: =IF(Inputs!AV$187>=Inputs!$D127,IF(Inputs!AV$187<Inputs!$D128,Inputs!$E127,""),"") ->  | AX145: =IF(Inputs!AW$187>=Inputs!$D127,IF(Inputs!AW$187<Inputs!$D128,Inputs!$E127,""),"") ->  | AY145: =IF(Inputs!AX$187>=Inputs!$D127,IF(Inputs!AX$187<Inputs!$D128,Inputs!$E127,""),"") ->  | AZ145: =IF(Inputs!AY$187>=Inputs!$D127,IF(Inputs!AY$187<Inputs!$D128,Inputs!$E127,""),"") ->  | BA145: =IF(Inputs!AZ$187>=Inputs!$D127,IF(Inputs!AZ$187<Inputs!$D128,Inputs!$E127,""),"") ->  | BB145: =IF(Inputs!BA$187>=Inputs!$D127,IF(Inputs!BA$187<Inputs!$D128,Inputs!$E127,""),"") ->  | BC145: =IF(Inputs!BB$187>=Inputs!$D127,IF(Inputs!BB$187<Inputs!$D128,Inputs!$E127,""),"") ->  | BD145: =IF(Inputs!BC$187>=Inputs!$D127,IF(Inputs!BC$187<Inputs!$D128,Inputs!$E127,""),"") -> 
D146: Price bracket 3 | E146: % | G146: =IF(Inputs!F$187>=Inputs!$D128,IF(Inputs!F$187<Inputs!$D129,Inputs!$E128,""),"") ->  | H146: =IF(Inputs!G$187>=Inputs!$D128,IF(Inputs!G$187<Inputs!$D129,Inputs!$E128,""),"") ->  | I146: =IF(Inputs!H$187>=Inputs!$D128,IF(Inputs!H$187<Inputs!$D129,Inputs!$E128,""),"") ->  | J146: =IF(Inputs!I$187>=Inputs!$D128,IF(Inputs!I$187<Inputs!$D129,Inputs!$E128,""),"") ->  | K146: =IF(Inputs!J$187>=Inputs!$D128,IF(Inputs!J$187<Inputs!$D129,Inputs!$E128,""),"") ->  | L146: =IF(Inputs!K$187>=Inputs!$D128,IF(Inputs!K$187<Inputs!$D129,Inputs!$E128,""),"") ->  | M146: =IF(Inputs!L$187>=Inputs!$D128,IF(Inputs!L$187<Inputs!$D129,Inputs!$E128,""),"") ->  | N146: =IF(Inputs!M$187>=Inputs!$D128,IF(Inputs!M$187<Inputs!$D129,Inputs!$E128,""),"") ->  | O146: =IF(Inputs!N$187>=Inputs!$D128,IF(Inputs!N$187<Inputs!$D129,Inputs!$E128,""),"") ->  | P146: =IF(Inputs!O$187>=Inputs!$D128,IF(Inputs!O$187<Inputs!$D129,Inputs!$E128,""),"") ->  | Q146: =IF(Inputs!P$187>=Inputs!$D128,IF(Inputs!P$187<Inputs!$D129,Inputs!$E128,""),"") ->  | R146: =IF(Inputs!Q$187>=Inputs!$D128,IF(Inputs!Q$187<Inputs!$D129,Inputs!$E128,""),"") ->  | S146: =IF(Inputs!R$187>=Inputs!$D128,IF(Inputs!R$187<Inputs!$D129,Inputs!$E128,""),"") ->  | T146: =IF(Inputs!S$187>=Inputs!$D128,IF(Inputs!S$187<Inputs!$D129,Inputs!$E128,""),"") ->  | U146: =IF(Inputs!T$187>=Inputs!$D128,IF(Inputs!T$187<Inputs!$D129,Inputs!$E128,""),"") ->  | V146: =IF(Inputs!U$187>=Inputs!$D128,IF(Inputs!U$187<Inputs!$D129,Inputs!$E128,""),"") ->  | W146: =IF(Inputs!V$187>=Inputs!$D128,IF(Inputs!V$187<Inputs!$D129,Inputs!$E128,""),"") ->  | X146: =IF(Inputs!W$187>=Inputs!$D128,IF(Inputs!W$187<Inputs!$D129,Inputs!$E128,""),"") ->  | Y146: =IF(Inputs!X$187>=Inputs!$D128,IF(Inputs!X$187<Inputs!$D129,Inputs!$E128,""),"") ->  | Z146: =IF(Inputs!Y$187>=Inputs!$D128,IF(Inputs!Y$187<Inputs!$D129,Inputs!$E128,""),"") ->  | AA146: =IF(Inputs!Z$187>=Inputs!$D128,IF(Inputs!Z$187<Inputs!$D129,Inputs!$E128,""),"") ->  | AB146: =IF(Inputs!AA$187>=Inputs!$D128,IF(Inputs!AA$187<Inputs!$D129,Inputs!$E128,""),"") ->  | AC146: =IF(Inputs!AB$187>=Inputs!$D128,IF(Inputs!AB$187<Inputs!$D129,Inputs!$E128,""),"") ->  | AD146: =IF(Inputs!AC$187>=Inputs!$D128,IF(Inputs!AC$187<Inputs!$D129,Inputs!$E128,""),"") ->  | AE146: =IF(Inputs!AD$187>=Inputs!$D128,IF(Inputs!AD$187<Inputs!$D129,Inputs!$E128,""),"") ->  | AF146: =IF(Inputs!AE$187>=Inputs!$D128,IF(Inputs!AE$187<Inputs!$D129,Inputs!$E128,""),"") ->  | AG146: =IF(Inputs!AF$187>=Inputs!$D128,IF(Inputs!AF$187<Inputs!$D129,Inputs!$E128,""),"") ->  | AH146: =IF(Inputs!AG$187>=Inputs!$D128,IF(Inputs!AG$187<Inputs!$D129,Inputs!$E128,""),"") ->  | AI146: =IF(Inputs!AH$187>=Inputs!$D128,IF(Inputs!AH$187<Inputs!$D129,Inputs!$E128,""),"") ->  | AJ146: =IF(Inputs!AI$187>=Inputs!$D128,IF(Inputs!AI$187<Inputs!$D129,Inputs!$E128,""),"") ->  | AK146: =IF(Inputs!AJ$187>=Inputs!$D128,IF(Inputs!AJ$187<Inputs!$D129,Inputs!$E128,""),"") ->  | AL146: =IF(Inputs!AK$187>=Inputs!$D128,IF(Inputs!AK$187<Inputs!$D129,Inputs!$E128,""),"") ->  | AM146: =IF(Inputs!AL$187>=Inputs!$D128,IF(Inputs!AL$187<Inputs!$D129,Inputs!$E128,""),"") ->  | AN146: =IF(Inputs!AM$187>=Inputs!$D128,IF(Inputs!AM$187<Inputs!$D129,Inputs!$E128,""),"") ->  | AO146: =IF(Inputs!AN$187>=Inputs!$D128,IF(Inputs!AN$187<Inputs!$D129,Inputs!$E128,""),"") ->  | AP146: =IF(Inputs!AO$187>=Inputs!$D128,IF(Inputs!AO$187<Inputs!$D129,Inputs!$E128,""),"") ->  | AQ146: =IF(Inputs!AP$187>=Inputs!$D128,IF(Inputs!AP$187<Inputs!$D129,Inputs!$E128,""),"") ->  | AR146: =IF(Inputs!AQ$187>=Inputs!$D128,IF(Inputs!AQ$187<Inputs!$D129,Inputs!$E128,""),"") ->  | AS146: =IF(Inputs!AR$187>=Inputs!$D128,IF(Inputs!AR$187<Inputs!$D129,Inputs!$E128,""),"") ->  | AT146: =IF(Inputs!AS$187>=Inputs!$D128,IF(Inputs!AS$187<Inputs!$D129,Inputs!$E128,""),"") ->  | AU146: =IF(Inputs!AT$187>=Inputs!$D128,IF(Inputs!AT$187<Inputs!$D129,Inputs!$E128,""),"") ->  | AV146: =IF(Inputs!AU$187>=Inputs!$D128,IF(Inputs!AU$187<Inputs!$D129,Inputs!$E128,""),"") ->  | AW146: =IF(Inputs!AV$187>=Inputs!$D128,IF(Inputs!AV$187<Inputs!$D129,Inputs!$E128,""),"") ->  | AX146: =IF(Inputs!AW$187>=Inputs!$D128,IF(Inputs!AW$187<Inputs!$D129,Inputs!$E128,""),"") ->  | AY146: =IF(Inputs!AX$187>=Inputs!$D128,IF(Inputs!AX$187<Inputs!$D129,Inputs!$E128,""),"") ->  | AZ146: =IF(Inputs!AY$187>=Inputs!$D128,IF(Inputs!AY$187<Inputs!$D129,Inputs!$E128,""),"") ->  | BA146: =IF(Inputs!AZ$187>=Inputs!$D128,IF(Inputs!AZ$187<Inputs!$D129,Inputs!$E128,""),"") ->  | BB146: =IF(Inputs!BA$187>=Inputs!$D128,IF(Inputs!BA$187<Inputs!$D129,Inputs!$E128,""),"") ->  | BC146: =IF(Inputs!BB$187>=Inputs!$D128,IF(Inputs!BB$187<Inputs!$D129,Inputs!$E128,""),"") ->  | BD146: =IF(Inputs!BC$187>=Inputs!$D128,IF(Inputs!BC$187<Inputs!$D129,Inputs!$E128,""),"") -> 
D147: Price bracket 4 | E147: % | G147: =IF(Inputs!F$187>=Inputs!$D129,IF(Inputs!F$187<Inputs!$D130,Inputs!$E129,""),"") ->  | H147: =IF(Inputs!G$187>=Inputs!$D129,IF(Inputs!G$187<Inputs!$D130,Inputs!$E129,""),"") ->  | I147: =IF(Inputs!H$187>=Inputs!$D129,IF(Inputs!H$187<Inputs!$D130,Inputs!$E129,""),"") ->  | J147: =IF(Inputs!I$187>=Inputs!$D129,IF(Inputs!I$187<Inputs!$D130,Inputs!$E129,""),"") ->  | K147: =IF(Inputs!J$187>=Inputs!$D129,IF(Inputs!J$187<Inputs!$D130,Inputs!$E129,""),"") ->  | L147: =IF(Inputs!K$187>=Inputs!$D129,IF(Inputs!K$187<Inputs!$D130,Inputs!$E129,""),"") ->  | M147: =IF(Inputs!L$187>=Inputs!$D129,IF(Inputs!L$187<Inputs!$D130,Inputs!$E129,""),"") ->  | N147: =IF(Inputs!M$187>=Inputs!$D129,IF(Inputs!M$187<Inputs!$D130,Inputs!$E129,""),"") ->  | O147: =IF(Inputs!N$187>=Inputs!$D129,IF(Inputs!N$187<Inputs!$D130,Inputs!$E129,""),"") ->  | P147: =IF(Inputs!O$187>=Inputs!$D129,IF(Inputs!O$187<Inputs!$D130,Inputs!$E129,""),"") ->  | Q147: =IF(Inputs!P$187>=Inputs!$D129,IF(Inputs!P$187<Inputs!$D130,Inputs!$E129,""),"") ->  | R147: =IF(Inputs!Q$187>=Inputs!$D129,IF(Inputs!Q$187<Inputs!$D130,Inputs!$E129,""),"") ->  | S147: =IF(Inputs!R$187>=Inputs!$D129,IF(Inputs!R$187<Inputs!$D130,Inputs!$E129,""),"") ->  | T147: =IF(Inputs!S$187>=Inputs!$D129,IF(Inputs!S$187<Inputs!$D130,Inputs!$E129,""),"") ->  | U147: =IF(Inputs!T$187>=Inputs!$D129,IF(Inputs!T$187<Inputs!$D130,Inputs!$E129,""),"") ->  | V147: =IF(Inputs!U$187>=Inputs!$D129,IF(Inputs!U$187<Inputs!$D130,Inputs!$E129,""),"") ->  | W147: =IF(Inputs!V$187>=Inputs!$D129,IF(Inputs!V$187<Inputs!$D130,Inputs!$E129,""),"") ->  | X147: =IF(Inputs!W$187>=Inputs!$D129,IF(Inputs!W$187<Inputs!$D130,Inputs!$E129,""),"") ->  | Y147: =IF(Inputs!X$187>=Inputs!$D129,IF(Inputs!X$187<Inputs!$D130,Inputs!$E129,""),"") ->  | Z147: =IF(Inputs!Y$187>=Inputs!$D129,IF(Inputs!Y$187<Inputs!$D130,Inputs!$E129,""),"") ->  | AA147: =IF(Inputs!Z$187>=Inputs!$D129,IF(Inputs!Z$187<Inputs!$D130,Inputs!$E129,""),"") ->  | AB147: =IF(Inputs!AA$187>=Inputs!$D129,IF(Inputs!AA$187<Inputs!$D130,Inputs!$E129,""),"") ->  | AC147: =IF(Inputs!AB$187>=Inputs!$D129,IF(Inputs!AB$187<Inputs!$D130,Inputs!$E129,""),"") ->  | AD147: =IF(Inputs!AC$187>=Inputs!$D129,IF(Inputs!AC$187<Inputs!$D130,Inputs!$E129,""),"") ->  | AE147: =IF(Inputs!AD$187>=Inputs!$D129,IF(Inputs!AD$187<Inputs!$D130,Inputs!$E129,""),"") ->  | AF147: =IF(Inputs!AE$187>=Inputs!$D129,IF(Inputs!AE$187<Inputs!$D130,Inputs!$E129,""),"") ->  | AG147: =IF(Inputs!AF$187>=Inputs!$D129,IF(Inputs!AF$187<Inputs!$D130,Inputs!$E129,""),"") ->  | AH147: =IF(Inputs!AG$187>=Inputs!$D129,IF(Inputs!AG$187<Inputs!$D130,Inputs!$E129,""),"") ->  | AI147: =IF(Inputs!AH$187>=Inputs!$D129,IF(Inputs!AH$187<Inputs!$D130,Inputs!$E129,""),"") ->  | AJ147: =IF(Inputs!AI$187>=Inputs!$D129,IF(Inputs!AI$187<Inputs!$D130,Inputs!$E129,""),"") ->  | AK147: =IF(Inputs!AJ$187>=Inputs!$D129,IF(Inputs!AJ$187<Inputs!$D130,Inputs!$E129,""),"") ->  | AL147: =IF(Inputs!AK$187>=Inputs!$D129,IF(Inputs!AK$187<Inputs!$D130,Inputs!$E129,""),"") ->  | AM147: =IF(Inputs!AL$187>=Inputs!$D129,IF(Inputs!AL$187<Inputs!$D130,Inputs!$E129,""),"") ->  | AN147: =IF(Inputs!AM$187>=Inputs!$D129,IF(Inputs!AM$187<Inputs!$D130,Inputs!$E129,""),"") ->  | AO147: =IF(Inputs!AN$187>=Inputs!$D129,IF(Inputs!AN$187<Inputs!$D130,Inputs!$E129,""),"") ->  | AP147: =IF(Inputs!AO$187>=Inputs!$D129,IF(Inputs!AO$187<Inputs!$D130,Inputs!$E129,""),"") ->  | AQ147: =IF(Inputs!AP$187>=Inputs!$D129,IF(Inputs!AP$187<Inputs!$D130,Inputs!$E129,""),"") ->  | AR147: =IF(Inputs!AQ$187>=Inputs!$D129,IF(Inputs!AQ$187<Inputs!$D130,Inputs!$E129,""),"") ->  | AS147: =IF(Inputs!AR$187>=Inputs!$D129,IF(Inputs!AR$187<Inputs!$D130,Inputs!$E129,""),"") ->  | AT147: =IF(Inputs!AS$187>=Inputs!$D129,IF(Inputs!AS$187<Inputs!$D130,Inputs!$E129,""),"") ->  | AU147: =IF(Inputs!AT$187>=Inputs!$D129,IF(Inputs!AT$187<Inputs!$D130,Inputs!$E129,""),"") ->  | AV147: =IF(Inputs!AU$187>=Inputs!$D129,IF(Inputs!AU$187<Inputs!$D130,Inputs!$E129,""),"") ->  | AW147: =IF(Inputs!AV$187>=Inputs!$D129,IF(Inputs!AV$187<Inputs!$D130,Inputs!$E129,""),"") ->  | AX147: =IF(Inputs!AW$187>=Inputs!$D129,IF(Inputs!AW$187<Inputs!$D130,Inputs!$E129,""),"") ->  | AY147: =IF(Inputs!AX$187>=Inputs!$D129,IF(Inputs!AX$187<Inputs!$D130,Inputs!$E129,""),"") ->  | AZ147: =IF(Inputs!AY$187>=Inputs!$D129,IF(Inputs!AY$187<Inputs!$D130,Inputs!$E129,""),"") ->  | BA147: =IF(Inputs!AZ$187>=Inputs!$D129,IF(Inputs!AZ$187<Inputs!$D130,Inputs!$E129,""),"") ->  | BB147: =IF(Inputs!BA$187>=Inputs!$D129,IF(Inputs!BA$187<Inputs!$D130,Inputs!$E129,""),"") ->  | BC147: =IF(Inputs!BB$187>=Inputs!$D129,IF(Inputs!BB$187<Inputs!$D130,Inputs!$E129,""),"") ->  | BD147: =IF(Inputs!BC$187>=Inputs!$D129,IF(Inputs!BC$187<Inputs!$D130,Inputs!$E129,""),"") -> 
D148: Price bracket 5 | E148: % | G148: =IF(Inputs!F$187>=Inputs!$D130,IF(Inputs!F$187<Inputs!$D131,Inputs!$E130,""),"") ->  | H148: =IF(Inputs!G$187>=Inputs!$D130,IF(Inputs!G$187<Inputs!$D131,Inputs!$E130,""),"") ->  | I148: =IF(Inputs!H$187>=Inputs!$D130,IF(Inputs!H$187<Inputs!$D131,Inputs!$E130,""),"") ->  | J148: =IF(Inputs!I$187>=Inputs!$D130,IF(Inputs!I$187<Inputs!$D131,Inputs!$E130,""),"") ->  | K148: =IF(Inputs!J$187>=Inputs!$D130,IF(Inputs!J$187<Inputs!$D131,Inputs!$E130,""),"") ->  | L148: =IF(Inputs!K$187>=Inputs!$D130,IF(Inputs!K$187<Inputs!$D131,Inputs!$E130,""),"") ->  | M148: =IF(Inputs!L$187>=Inputs!$D130,IF(Inputs!L$187<Inputs!$D131,Inputs!$E130,""),"") ->  | N148: =IF(Inputs!M$187>=Inputs!$D130,IF(Inputs!M$187<Inputs!$D131,Inputs!$E130,""),"") ->  | O148: =IF(Inputs!N$187>=Inputs!$D130,IF(Inputs!N$187<Inputs!$D131,Inputs!$E130,""),"") ->  | P148: =IF(Inputs!O$187>=Inputs!$D130,IF(Inputs!O$187<Inputs!$D131,Inputs!$E130,""),"") ->  | Q148: =IF(Inputs!P$187>=Inputs!$D130,IF(Inputs!P$187<Inputs!$D131,Inputs!$E130,""),"") ->  | R148: =IF(Inputs!Q$187>=Inputs!$D130,IF(Inputs!Q$187<Inputs!$D131,Inputs!$E130,""),"") ->  | S148: =IF(Inputs!R$187>=Inputs!$D130,IF(Inputs!R$187<Inputs!$D131,Inputs!$E130,""),"") ->  | T148: =IF(Inputs!S$187>=Inputs!$D130,IF(Inputs!S$187<Inputs!$D131,Inputs!$E130,""),"") ->  | U148: =IF(Inputs!T$187>=Inputs!$D130,IF(Inputs!T$187<Inputs!$D131,Inputs!$E130,""),"") ->  | V148: =IF(Inputs!U$187>=Inputs!$D130,IF(Inputs!U$187<Inputs!$D131,Inputs!$E130,""),"") ->  | W148: =IF(Inputs!V$187>=Inputs!$D130,IF(Inputs!V$187<Inputs!$D131,Inputs!$E130,""),"") ->  | X148: =IF(Inputs!W$187>=Inputs!$D130,IF(Inputs!W$187<Inputs!$D131,Inputs!$E130,""),"") ->  | Y148: =IF(Inputs!X$187>=Inputs!$D130,IF(Inputs!X$187<Inputs!$D131,Inputs!$E130,""),"") ->  | Z148: =IF(Inputs!Y$187>=Inputs!$D130,IF(Inputs!Y$187<Inputs!$D131,Inputs!$E130,""),"") ->  | AA148: =IF(Inputs!Z$187>=Inputs!$D130,IF(Inputs!Z$187<Inputs!$D131,Inputs!$E130,""),"") ->  | AB148: =IF(Inputs!AA$187>=Inputs!$D130,IF(Inputs!AA$187<Inputs!$D131,Inputs!$E130,""),"") ->  | AC148: =IF(Inputs!AB$187>=Inputs!$D130,IF(Inputs!AB$187<Inputs!$D131,Inputs!$E130,""),"") ->  | AD148: =IF(Inputs!AC$187>=Inputs!$D130,IF(Inputs!AC$187<Inputs!$D131,Inputs!$E130,""),"") ->  | AE148: =IF(Inputs!AD$187>=Inputs!$D130,IF(Inputs!AD$187<Inputs!$D131,Inputs!$E130,""),"") ->  | AF148: =IF(Inputs!AE$187>=Inputs!$D130,IF(Inputs!AE$187<Inputs!$D131,Inputs!$E130,""),"") ->  | AG148: =IF(Inputs!AF$187>=Inputs!$D130,IF(Inputs!AF$187<Inputs!$D131,Inputs!$E130,""),"") ->  | AH148: =IF(Inputs!AG$187>=Inputs!$D130,IF(Inputs!AG$187<Inputs!$D131,Inputs!$E130,""),"") ->  | AI148: =IF(Inputs!AH$187>=Inputs!$D130,IF(Inputs!AH$187<Inputs!$D131,Inputs!$E130,""),"") ->  | AJ148: =IF(Inputs!AI$187>=Inputs!$D130,IF(Inputs!AI$187<Inputs!$D131,Inputs!$E130,""),"") ->  | AK148: =IF(Inputs!AJ$187>=Inputs!$D130,IF(Inputs!AJ$187<Inputs!$D131,Inputs!$E130,""),"") ->  | AL148: =IF(Inputs!AK$187>=Inputs!$D130,IF(Inputs!AK$187<Inputs!$D131,Inputs!$E130,""),"") ->  | AM148: =IF(Inputs!AL$187>=Inputs!$D130,IF(Inputs!AL$187<Inputs!$D131,Inputs!$E130,""),"") ->  | AN148: =IF(Inputs!AM$187>=Inputs!$D130,IF(Inputs!AM$187<Inputs!$D131,Inputs!$E130,""),"") ->  | AO148: =IF(Inputs!AN$187>=Inputs!$D130,IF(Inputs!AN$187<Inputs!$D131,Inputs!$E130,""),"") ->  | AP148: =IF(Inputs!AO$187>=Inputs!$D130,IF(Inputs!AO$187<Inputs!$D131,Inputs!$E130,""),"") ->  | AQ148: =IF(Inputs!AP$187>=Inputs!$D130,IF(Inputs!AP$187<Inputs!$D131,Inputs!$E130,""),"") ->  | AR148: =IF(Inputs!AQ$187>=Inputs!$D130,IF(Inputs!AQ$187<Inputs!$D131,Inputs!$E130,""),"") ->  | AS148: =IF(Inputs!AR$187>=Inputs!$D130,IF(Inputs!AR$187<Inputs!$D131,Inputs!$E130,""),"") ->  | AT148: =IF(Inputs!AS$187>=Inputs!$D130,IF(Inputs!AS$187<Inputs!$D131,Inputs!$E130,""),"") ->  | AU148: =IF(Inputs!AT$187>=Inputs!$D130,IF(Inputs!AT$187<Inputs!$D131,Inputs!$E130,""),"") ->  | AV148: =IF(Inputs!AU$187>=Inputs!$D130,IF(Inputs!AU$187<Inputs!$D131,Inputs!$E130,""),"") ->  | AW148: =IF(Inputs!AV$187>=Inputs!$D130,IF(Inputs!AV$187<Inputs!$D131,Inputs!$E130,""),"") ->  | AX148: =IF(Inputs!AW$187>=Inputs!$D130,IF(Inputs!AW$187<Inputs!$D131,Inputs!$E130,""),"") ->  | AY148: =IF(Inputs!AX$187>=Inputs!$D130,IF(Inputs!AX$187<Inputs!$D131,Inputs!$E130,""),"") ->  | AZ148: =IF(Inputs!AY$187>=Inputs!$D130,IF(Inputs!AY$187<Inputs!$D131,Inputs!$E130,""),"") ->  | BA148: =IF(Inputs!AZ$187>=Inputs!$D130,IF(Inputs!AZ$187<Inputs!$D131,Inputs!$E130,""),"") ->  | BB148: =IF(Inputs!BA$187>=Inputs!$D130,IF(Inputs!BA$187<Inputs!$D131,Inputs!$E130,""),"") ->  | BC148: =IF(Inputs!BB$187>=Inputs!$D130,IF(Inputs!BB$187<Inputs!$D131,Inputs!$E130,""),"") ->  | BD148: =IF(Inputs!BC$187>=Inputs!$D130,IF(Inputs!BC$187<Inputs!$D131,Inputs!$E130,""),"") -> 
D149: Price bracket 6 | E149: % | G149: =IF(Inputs!F$187>=Inputs!$D131,IF(Inputs!F$187<Inputs!$D132,Inputs!$E131,""),"") ->  | H149: =IF(Inputs!G$187>=Inputs!$D131,IF(Inputs!G$187<Inputs!$D132,Inputs!$E131,""),"") ->  | I149: =IF(Inputs!H$187>=Inputs!$D131,IF(Inputs!H$187<Inputs!$D132,Inputs!$E131,""),"") ->  | J149: =IF(Inputs!I$187>=Inputs!$D131,IF(Inputs!I$187<Inputs!$D132,Inputs!$E131,""),"") ->  | K149: =IF(Inputs!J$187>=Inputs!$D131,IF(Inputs!J$187<Inputs!$D132,Inputs!$E131,""),"") ->  | L149: =IF(Inputs!K$187>=Inputs!$D131,IF(Inputs!K$187<Inputs!$D132,Inputs!$E131,""),"") ->  | M149: =IF(Inputs!L$187>=Inputs!$D131,IF(Inputs!L$187<Inputs!$D132,Inputs!$E131,""),"") ->  | N149: =IF(Inputs!M$187>=Inputs!$D131,IF(Inputs!M$187<Inputs!$D132,Inputs!$E131,""),"") ->  | O149: =IF(Inputs!N$187>=Inputs!$D131,IF(Inputs!N$187<Inputs!$D132,Inputs!$E131,""),"") ->  | P149: =IF(Inputs!O$187>=Inputs!$D131,IF(Inputs!O$187<Inputs!$D132,Inputs!$E131,""),"") ->  | Q149: =IF(Inputs!P$187>=Inputs!$D131,IF(Inputs!P$187<Inputs!$D132,Inputs!$E131,""),"") ->  | R149: =IF(Inputs!Q$187>=Inputs!$D131,IF(Inputs!Q$187<Inputs!$D132,Inputs!$E131,""),"") ->  | S149: =IF(Inputs!R$187>=Inputs!$D131,IF(Inputs!R$187<Inputs!$D132,Inputs!$E131,""),"") ->  | T149: =IF(Inputs!S$187>=Inputs!$D131,IF(Inputs!S$187<Inputs!$D132,Inputs!$E131,""),"") ->  | U149: =IF(Inputs!T$187>=Inputs!$D131,IF(Inputs!T$187<Inputs!$D132,Inputs!$E131,""),"") ->  | V149: =IF(Inputs!U$187>=Inputs!$D131,IF(Inputs!U$187<Inputs!$D132,Inputs!$E131,""),"") ->  | W149: =IF(Inputs!V$187>=Inputs!$D131,IF(Inputs!V$187<Inputs!$D132,Inputs!$E131,""),"") ->  | X149: =IF(Inputs!W$187>=Inputs!$D131,IF(Inputs!W$187<Inputs!$D132,Inputs!$E131,""),"") ->  | Y149: =IF(Inputs!X$187>=Inputs!$D131,IF(Inputs!X$187<Inputs!$D132,Inputs!$E131,""),"") ->  | Z149: =IF(Inputs!Y$187>=Inputs!$D131,IF(Inputs!Y$187<Inputs!$D132,Inputs!$E131,""),"") ->  | AA149: =IF(Inputs!Z$187>=Inputs!$D131,IF(Inputs!Z$187<Inputs!$D132,Inputs!$E131,""),"") ->  | AB149: =IF(Inputs!AA$187>=Inputs!$D131,IF(Inputs!AA$187<Inputs!$D132,Inputs!$E131,""),"") ->  | AC149: =IF(Inputs!AB$187>=Inputs!$D131,IF(Inputs!AB$187<Inputs!$D132,Inputs!$E131,""),"") ->  | AD149: =IF(Inputs!AC$187>=Inputs!$D131,IF(Inputs!AC$187<Inputs!$D132,Inputs!$E131,""),"") ->  | AE149: =IF(Inputs!AD$187>=Inputs!$D131,IF(Inputs!AD$187<Inputs!$D132,Inputs!$E131,""),"") ->  | AF149: =IF(Inputs!AE$187>=Inputs!$D131,IF(Inputs!AE$187<Inputs!$D132,Inputs!$E131,""),"") ->  | AG149: =IF(Inputs!AF$187>=Inputs!$D131,IF(Inputs!AF$187<Inputs!$D132,Inputs!$E131,""),"") ->  | AH149: =IF(Inputs!AG$187>=Inputs!$D131,IF(Inputs!AG$187<Inputs!$D132,Inputs!$E131,""),"") ->  | AI149: =IF(Inputs!AH$187>=Inputs!$D131,IF(Inputs!AH$187<Inputs!$D132,Inputs!$E131,""),"") ->  | AJ149: =IF(Inputs!AI$187>=Inputs!$D131,IF(Inputs!AI$187<Inputs!$D132,Inputs!$E131,""),"") ->  | AK149: =IF(Inputs!AJ$187>=Inputs!$D131,IF(Inputs!AJ$187<Inputs!$D132,Inputs!$E131,""),"") ->  | AL149: =IF(Inputs!AK$187>=Inputs!$D131,IF(Inputs!AK$187<Inputs!$D132,Inputs!$E131,""),"") ->  | AM149: =IF(Inputs!AL$187>=Inputs!$D131,IF(Inputs!AL$187<Inputs!$D132,Inputs!$E131,""),"") ->  | AN149: =IF(Inputs!AM$187>=Inputs!$D131,IF(Inputs!AM$187<Inputs!$D132,Inputs!$E131,""),"") ->  | AO149: =IF(Inputs!AN$187>=Inputs!$D131,IF(Inputs!AN$187<Inputs!$D132,Inputs!$E131,""),"") ->  | AP149: =IF(Inputs!AO$187>=Inputs!$D131,IF(Inputs!AO$187<Inputs!$D132,Inputs!$E131,""),"") ->  | AQ149: =IF(Inputs!AP$187>=Inputs!$D131,IF(Inputs!AP$187<Inputs!$D132,Inputs!$E131,""),"") ->  | AR149: =IF(Inputs!AQ$187>=Inputs!$D131,IF(Inputs!AQ$187<Inputs!$D132,Inputs!$E131,""),"") ->  | AS149: =IF(Inputs!AR$187>=Inputs!$D131,IF(Inputs!AR$187<Inputs!$D132,Inputs!$E131,""),"") ->  | AT149: =IF(Inputs!AS$187>=Inputs!$D131,IF(Inputs!AS$187<Inputs!$D132,Inputs!$E131,""),"") ->  | AU149: =IF(Inputs!AT$187>=Inputs!$D131,IF(Inputs!AT$187<Inputs!$D132,Inputs!$E131,""),"") ->  | AV149: =IF(Inputs!AU$187>=Inputs!$D131,IF(Inputs!AU$187<Inputs!$D132,Inputs!$E131,""),"") ->  | AW149: =IF(Inputs!AV$187>=Inputs!$D131,IF(Inputs!AV$187<Inputs!$D132,Inputs!$E131,""),"") ->  | AX149: =IF(Inputs!AW$187>=Inputs!$D131,IF(Inputs!AW$187<Inputs!$D132,Inputs!$E131,""),"") ->  | AY149: =IF(Inputs!AX$187>=Inputs!$D131,IF(Inputs!AX$187<Inputs!$D132,Inputs!$E131,""),"") ->  | AZ149: =IF(Inputs!AY$187>=Inputs!$D131,IF(Inputs!AY$187<Inputs!$D132,Inputs!$E131,""),"") ->  | BA149: =IF(Inputs!AZ$187>=Inputs!$D131,IF(Inputs!AZ$187<Inputs!$D132,Inputs!$E131,""),"") ->  | BB149: =IF(Inputs!BA$187>=Inputs!$D131,IF(Inputs!BA$187<Inputs!$D132,Inputs!$E131,""),"") ->  | BC149: =IF(Inputs!BB$187>=Inputs!$D131,IF(Inputs!BB$187<Inputs!$D132,Inputs!$E131,""),"") ->  | BD149: =IF(Inputs!BC$187>=Inputs!$D131,IF(Inputs!BC$187<Inputs!$D132,Inputs!$E131,""),"") -> 
D150: Price bracket 7 | E150: % | G150: =IF(Inputs!F$187>=Inputs!$D132,IF(Inputs!F$187<Inputs!$D133,Inputs!$E132,""),"") ->  | H150: =IF(Inputs!G$187>=Inputs!$D132,IF(Inputs!G$187<Inputs!$D133,Inputs!$E132,""),"") ->  | I150: =IF(Inputs!H$187>=Inputs!$D132,IF(Inputs!H$187<Inputs!$D133,Inputs!$E132,""),"") ->  | J150: =IF(Inputs!I$187>=Inputs!$D132,IF(Inputs!I$187<Inputs!$D133,Inputs!$E132,""),"") ->  | K150: =IF(Inputs!J$187>=Inputs!$D132,IF(Inputs!J$187<Inputs!$D133,Inputs!$E132,""),"") ->  | L150: =IF(Inputs!K$187>=Inputs!$D132,IF(Inputs!K$187<Inputs!$D133,Inputs!$E132,""),"") ->  | M150: =IF(Inputs!L$187>=Inputs!$D132,IF(Inputs!L$187<Inputs!$D133,Inputs!$E132,""),"") ->  | N150: =IF(Inputs!M$187>=Inputs!$D132,IF(Inputs!M$187<Inputs!$D133,Inputs!$E132,""),"") ->  | O150: =IF(Inputs!N$187>=Inputs!$D132,IF(Inputs!N$187<Inputs!$D133,Inputs!$E132,""),"") ->  | P150: =IF(Inputs!O$187>=Inputs!$D132,IF(Inputs!O$187<Inputs!$D133,Inputs!$E132,""),"") ->  | Q150: =IF(Inputs!P$187>=Inputs!$D132,IF(Inputs!P$187<Inputs!$D133,Inputs!$E132,""),"") ->  | R150: =IF(Inputs!Q$187>=Inputs!$D132,IF(Inputs!Q$187<Inputs!$D133,Inputs!$E132,""),"") ->  | S150: =IF(Inputs!R$187>=Inputs!$D132,IF(Inputs!R$187<Inputs!$D133,Inputs!$E132,""),"") ->  | T150: =IF(Inputs!S$187>=Inputs!$D132,IF(Inputs!S$187<Inputs!$D133,Inputs!$E132,""),"") ->  | U150: =IF(Inputs!T$187>=Inputs!$D132,IF(Inputs!T$187<Inputs!$D133,Inputs!$E132,""),"") ->  | V150: =IF(Inputs!U$187>=Inputs!$D132,IF(Inputs!U$187<Inputs!$D133,Inputs!$E132,""),"") ->  | W150: =IF(Inputs!V$187>=Inputs!$D132,IF(Inputs!V$187<Inputs!$D133,Inputs!$E132,""),"") ->  | X150: =IF(Inputs!W$187>=Inputs!$D132,IF(Inputs!W$187<Inputs!$D133,Inputs!$E132,""),"") ->  | Y150: =IF(Inputs!X$187>=Inputs!$D132,IF(Inputs!X$187<Inputs!$D133,Inputs!$E132,""),"") ->  | Z150: =IF(Inputs!Y$187>=Inputs!$D132,IF(Inputs!Y$187<Inputs!$D133,Inputs!$E132,""),"") ->  | AA150: =IF(Inputs!Z$187>=Inputs!$D132,IF(Inputs!Z$187<Inputs!$D133,Inputs!$E132,""),"") ->  | AB150: =IF(Inputs!AA$187>=Inputs!$D132,IF(Inputs!AA$187<Inputs!$D133,Inputs!$E132,""),"") ->  | AC150: =IF(Inputs!AB$187>=Inputs!$D132,IF(Inputs!AB$187<Inputs!$D133,Inputs!$E132,""),"") ->  | AD150: =IF(Inputs!AC$187>=Inputs!$D132,IF(Inputs!AC$187<Inputs!$D133,Inputs!$E132,""),"") ->  | AE150: =IF(Inputs!AD$187>=Inputs!$D132,IF(Inputs!AD$187<Inputs!$D133,Inputs!$E132,""),"") ->  | AF150: =IF(Inputs!AE$187>=Inputs!$D132,IF(Inputs!AE$187<Inputs!$D133,Inputs!$E132,""),"") ->  | AG150: =IF(Inputs!AF$187>=Inputs!$D132,IF(Inputs!AF$187<Inputs!$D133,Inputs!$E132,""),"") ->  | AH150: =IF(Inputs!AG$187>=Inputs!$D132,IF(Inputs!AG$187<Inputs!$D133,Inputs!$E132,""),"") ->  | AI150: =IF(Inputs!AH$187>=Inputs!$D132,IF(Inputs!AH$187<Inputs!$D133,Inputs!$E132,""),"") ->  | AJ150: =IF(Inputs!AI$187>=Inputs!$D132,IF(Inputs!AI$187<Inputs!$D133,Inputs!$E132,""),"") ->  | AK150: =IF(Inputs!AJ$187>=Inputs!$D132,IF(Inputs!AJ$187<Inputs!$D133,Inputs!$E132,""),"") ->  | AL150: =IF(Inputs!AK$187>=Inputs!$D132,IF(Inputs!AK$187<Inputs!$D133,Inputs!$E132,""),"") ->  | AM150: =IF(Inputs!AL$187>=Inputs!$D132,IF(Inputs!AL$187<Inputs!$D133,Inputs!$E132,""),"") ->  | AN150: =IF(Inputs!AM$187>=Inputs!$D132,IF(Inputs!AM$187<Inputs!$D133,Inputs!$E132,""),"") ->  | AO150: =IF(Inputs!AN$187>=Inputs!$D132,IF(Inputs!AN$187<Inputs!$D133,Inputs!$E132,""),"") ->  | AP150: =IF(Inputs!AO$187>=Inputs!$D132,IF(Inputs!AO$187<Inputs!$D133,Inputs!$E132,""),"") ->  | AQ150: =IF(Inputs!AP$187>=Inputs!$D132,IF(Inputs!AP$187<Inputs!$D133,Inputs!$E132,""),"") ->  | AR150: =IF(Inputs!AQ$187>=Inputs!$D132,IF(Inputs!AQ$187<Inputs!$D133,Inputs!$E132,""),"") ->  | AS150: =IF(Inputs!AR$187>=Inputs!$D132,IF(Inputs!AR$187<Inputs!$D133,Inputs!$E132,""),"") ->  | AT150: =IF(Inputs!AS$187>=Inputs!$D132,IF(Inputs!AS$187<Inputs!$D133,Inputs!$E132,""),"") ->  | AU150: =IF(Inputs!AT$187>=Inputs!$D132,IF(Inputs!AT$187<Inputs!$D133,Inputs!$E132,""),"") ->  | AV150: =IF(Inputs!AU$187>=Inputs!$D132,IF(Inputs!AU$187<Inputs!$D133,Inputs!$E132,""),"") ->  | AW150: =IF(Inputs!AV$187>=Inputs!$D132,IF(Inputs!AV$187<Inputs!$D133,Inputs!$E132,""),"") ->  | AX150: =IF(Inputs!AW$187>=Inputs!$D132,IF(Inputs!AW$187<Inputs!$D133,Inputs!$E132,""),"") ->  | AY150: =IF(Inputs!AX$187>=Inputs!$D132,IF(Inputs!AX$187<Inputs!$D133,Inputs!$E132,""),"") ->  | AZ150: =IF(Inputs!AY$187>=Inputs!$D132,IF(Inputs!AY$187<Inputs!$D133,Inputs!$E132,""),"") ->  | BA150: =IF(Inputs!AZ$187>=Inputs!$D132,IF(Inputs!AZ$187<Inputs!$D133,Inputs!$E132,""),"") ->  | BB150: =IF(Inputs!BA$187>=Inputs!$D132,IF(Inputs!BA$187<Inputs!$D133,Inputs!$E132,""),"") ->  | BC150: =IF(Inputs!BB$187>=Inputs!$D132,IF(Inputs!BB$187<Inputs!$D133,Inputs!$E132,""),"") ->  | BD150: =IF(Inputs!BC$187>=Inputs!$D132,IF(Inputs!BC$187<Inputs!$D133,Inputs!$E132,""),"") -> 
D151: Price bracket 8 | E151: % | G151: =IF(Inputs!F$187>=Inputs!$D133,IF(Inputs!F$187<Inputs!$D134,Inputs!$E133,""),"") ->  | H151: =IF(Inputs!G$187>=Inputs!$D133,IF(Inputs!G$187<Inputs!$D134,Inputs!$E133,""),"") ->  | I151: =IF(Inputs!H$187>=Inputs!$D133,IF(Inputs!H$187<Inputs!$D134,Inputs!$E133,""),"") ->  | J151: =IF(Inputs!I$187>=Inputs!$D133,IF(Inputs!I$187<Inputs!$D134,Inputs!$E133,""),"") ->  | K151: =IF(Inputs!J$187>=Inputs!$D133,IF(Inputs!J$187<Inputs!$D134,Inputs!$E133,""),"") ->  | L151: =IF(Inputs!K$187>=Inputs!$D133,IF(Inputs!K$187<Inputs!$D134,Inputs!$E133,""),"") ->  | M151: =IF(Inputs!L$187>=Inputs!$D133,IF(Inputs!L$187<Inputs!$D134,Inputs!$E133,""),"") ->  | N151: =IF(Inputs!M$187>=Inputs!$D133,IF(Inputs!M$187<Inputs!$D134,Inputs!$E133,""),"") ->  | O151: =IF(Inputs!N$187>=Inputs!$D133,IF(Inputs!N$187<Inputs!$D134,Inputs!$E133,""),"") ->  | P151: =IF(Inputs!O$187>=Inputs!$D133,IF(Inputs!O$187<Inputs!$D134,Inputs!$E133,""),"") ->  | Q151: =IF(Inputs!P$187>=Inputs!$D133,IF(Inputs!P$187<Inputs!$D134,Inputs!$E133,""),"") ->  | R151: =IF(Inputs!Q$187>=Inputs!$D133,IF(Inputs!Q$187<Inputs!$D134,Inputs!$E133,""),"") ->  | S151: =IF(Inputs!R$187>=Inputs!$D133,IF(Inputs!R$187<Inputs!$D134,Inputs!$E133,""),"") ->  | T151: =IF(Inputs!S$187>=Inputs!$D133,IF(Inputs!S$187<Inputs!$D134,Inputs!$E133,""),"") ->  | U151: =IF(Inputs!T$187>=Inputs!$D133,IF(Inputs!T$187<Inputs!$D134,Inputs!$E133,""),"") ->  | V151: =IF(Inputs!U$187>=Inputs!$D133,IF(Inputs!U$187<Inputs!$D134,Inputs!$E133,""),"") ->  | W151: =IF(Inputs!V$187>=Inputs!$D133,IF(Inputs!V$187<Inputs!$D134,Inputs!$E133,""),"") ->  | X151: =IF(Inputs!W$187>=Inputs!$D133,IF(Inputs!W$187<Inputs!$D134,Inputs!$E133,""),"") ->  | Y151: =IF(Inputs!X$187>=Inputs!$D133,IF(Inputs!X$187<Inputs!$D134,Inputs!$E133,""),"") ->  | Z151: =IF(Inputs!Y$187>=Inputs!$D133,IF(Inputs!Y$187<Inputs!$D134,Inputs!$E133,""),"") ->  | AA151: =IF(Inputs!Z$187>=Inputs!$D133,IF(Inputs!Z$187<Inputs!$D134,Inputs!$E133,""),"") ->  | AB151: =IF(Inputs!AA$187>=Inputs!$D133,IF(Inputs!AA$187<Inputs!$D134,Inputs!$E133,""),"") ->  | AC151: =IF(Inputs!AB$187>=Inputs!$D133,IF(Inputs!AB$187<Inputs!$D134,Inputs!$E133,""),"") ->  | AD151: =IF(Inputs!AC$187>=Inputs!$D133,IF(Inputs!AC$187<Inputs!$D134,Inputs!$E133,""),"") ->  | AE151: =IF(Inputs!AD$187>=Inputs!$D133,IF(Inputs!AD$187<Inputs!$D134,Inputs!$E133,""),"") ->  | AF151: =IF(Inputs!AE$187>=Inputs!$D133,IF(Inputs!AE$187<Inputs!$D134,Inputs!$E133,""),"") ->  | AG151: =IF(Inputs!AF$187>=Inputs!$D133,IF(Inputs!AF$187<Inputs!$D134,Inputs!$E133,""),"") ->  | AH151: =IF(Inputs!AG$187>=Inputs!$D133,IF(Inputs!AG$187<Inputs!$D134,Inputs!$E133,""),"") ->  | AI151: =IF(Inputs!AH$187>=Inputs!$D133,IF(Inputs!AH$187<Inputs!$D134,Inputs!$E133,""),"") ->  | AJ151: =IF(Inputs!AI$187>=Inputs!$D133,IF(Inputs!AI$187<Inputs!$D134,Inputs!$E133,""),"") ->  | AK151: =IF(Inputs!AJ$187>=Inputs!$D133,IF(Inputs!AJ$187<Inputs!$D134,Inputs!$E133,""),"") ->  | AL151: =IF(Inputs!AK$187>=Inputs!$D133,IF(Inputs!AK$187<Inputs!$D134,Inputs!$E133,""),"") ->  | AM151: =IF(Inputs!AL$187>=Inputs!$D133,IF(Inputs!AL$187<Inputs!$D134,Inputs!$E133,""),"") ->  | AN151: =IF(Inputs!AM$187>=Inputs!$D133,IF(Inputs!AM$187<Inputs!$D134,Inputs!$E133,""),"") ->  | AO151: =IF(Inputs!AN$187>=Inputs!$D133,IF(Inputs!AN$187<Inputs!$D134,Inputs!$E133,""),"") ->  | AP151: =IF(Inputs!AO$187>=Inputs!$D133,IF(Inputs!AO$187<Inputs!$D134,Inputs!$E133,""),"") ->  | AQ151: =IF(Inputs!AP$187>=Inputs!$D133,IF(Inputs!AP$187<Inputs!$D134,Inputs!$E133,""),"") ->  | AR151: =IF(Inputs!AQ$187>=Inputs!$D133,IF(Inputs!AQ$187<Inputs!$D134,Inputs!$E133,""),"") ->  | AS151: =IF(Inputs!AR$187>=Inputs!$D133,IF(Inputs!AR$187<Inputs!$D134,Inputs!$E133,""),"") ->  | AT151: =IF(Inputs!AS$187>=Inputs!$D133,IF(Inputs!AS$187<Inputs!$D134,Inputs!$E133,""),"") ->  | AU151: =IF(Inputs!AT$187>=Inputs!$D133,IF(Inputs!AT$187<Inputs!$D134,Inputs!$E133,""),"") ->  | AV151: =IF(Inputs!AU$187>=Inputs!$D133,IF(Inputs!AU$187<Inputs!$D134,Inputs!$E133,""),"") ->  | AW151: =IF(Inputs!AV$187>=Inputs!$D133,IF(Inputs!AV$187<Inputs!$D134,Inputs!$E133,""),"") ->  | AX151: =IF(Inputs!AW$187>=Inputs!$D133,IF(Inputs!AW$187<Inputs!$D134,Inputs!$E133,""),"") ->  | AY151: =IF(Inputs!AX$187>=Inputs!$D133,IF(Inputs!AX$187<Inputs!$D134,Inputs!$E133,""),"") ->  | AZ151: =IF(Inputs!AY$187>=Inputs!$D133,IF(Inputs!AY$187<Inputs!$D134,Inputs!$E133,""),"") ->  | BA151: =IF(Inputs!AZ$187>=Inputs!$D133,IF(Inputs!AZ$187<Inputs!$D134,Inputs!$E133,""),"") ->  | BB151: =IF(Inputs!BA$187>=Inputs!$D133,IF(Inputs!BA$187<Inputs!$D134,Inputs!$E133,""),"") ->  | BC151: =IF(Inputs!BB$187>=Inputs!$D133,IF(Inputs!BB$187<Inputs!$D134,Inputs!$E133,""),"") ->  | BD151: =IF(Inputs!BC$187>=Inputs!$D133,IF(Inputs!BC$187<Inputs!$D134,Inputs!$E133,""),"") -> 
D152: Price bracket 9 | E152: % | G152: =IF(Inputs!F$187>=Inputs!$D134,IF(Inputs!F$187<Inputs!$D135,Inputs!$E134,""),"") ->  | H152: =IF(Inputs!G$187>=Inputs!$D134,IF(Inputs!G$187<Inputs!$D135,Inputs!$E134,""),"") ->  | I152: =IF(Inputs!H$187>=Inputs!$D134,IF(Inputs!H$187<Inputs!$D135,Inputs!$E134,""),"") ->  | J152: =IF(Inputs!I$187>=Inputs!$D134,IF(Inputs!I$187<Inputs!$D135,Inputs!$E134,""),"") ->  | K152: =IF(Inputs!J$187>=Inputs!$D134,IF(Inputs!J$187<Inputs!$D135,Inputs!$E134,""),"") ->  | L152: =IF(Inputs!K$187>=Inputs!$D134,IF(Inputs!K$187<Inputs!$D135,Inputs!$E134,""),"") ->  | M152: =IF(Inputs!L$187>=Inputs!$D134,IF(Inputs!L$187<Inputs!$D135,Inputs!$E134,""),"") ->  | N152: =IF(Inputs!M$187>=Inputs!$D134,IF(Inputs!M$187<Inputs!$D135,Inputs!$E134,""),"") ->  | O152: =IF(Inputs!N$187>=Inputs!$D134,IF(Inputs!N$187<Inputs!$D135,Inputs!$E134,""),"") ->  | P152: =IF(Inputs!O$187>=Inputs!$D134,IF(Inputs!O$187<Inputs!$D135,Inputs!$E134,""),"") ->  | Q152: =IF(Inputs!P$187>=Inputs!$D134,IF(Inputs!P$187<Inputs!$D135,Inputs!$E134,""),"") ->  | R152: =IF(Inputs!Q$187>=Inputs!$D134,IF(Inputs!Q$187<Inputs!$D135,Inputs!$E134,""),"") ->  | S152: =IF(Inputs!R$187>=Inputs!$D134,IF(Inputs!R$187<Inputs!$D135,Inputs!$E134,""),"") ->  | T152: =IF(Inputs!S$187>=Inputs!$D134,IF(Inputs!S$187<Inputs!$D135,Inputs!$E134,""),"") ->  | U152: =IF(Inputs!T$187>=Inputs!$D134,IF(Inputs!T$187<Inputs!$D135,Inputs!$E134,""),"") ->  | V152: =IF(Inputs!U$187>=Inputs!$D134,IF(Inputs!U$187<Inputs!$D135,Inputs!$E134,""),"") ->  | W152: =IF(Inputs!V$187>=Inputs!$D134,IF(Inputs!V$187<Inputs!$D135,Inputs!$E134,""),"") ->  | X152: =IF(Inputs!W$187>=Inputs!$D134,IF(Inputs!W$187<Inputs!$D135,Inputs!$E134,""),"") ->  | Y152: =IF(Inputs!X$187>=Inputs!$D134,IF(Inputs!X$187<Inputs!$D135,Inputs!$E134,""),"") ->  | Z152: =IF(Inputs!Y$187>=Inputs!$D134,IF(Inputs!Y$187<Inputs!$D135,Inputs!$E134,""),"") ->  | AA152: =IF(Inputs!Z$187>=Inputs!$D134,IF(Inputs!Z$187<Inputs!$D135,Inputs!$E134,""),"") ->  | AB152: =IF(Inputs!AA$187>=Inputs!$D134,IF(Inputs!AA$187<Inputs!$D135,Inputs!$E134,""),"") ->  | AC152: =IF(Inputs!AB$187>=Inputs!$D134,IF(Inputs!AB$187<Inputs!$D135,Inputs!$E134,""),"") ->  | AD152: =IF(Inputs!AC$187>=Inputs!$D134,IF(Inputs!AC$187<Inputs!$D135,Inputs!$E134,""),"") ->  | AE152: =IF(Inputs!AD$187>=Inputs!$D134,IF(Inputs!AD$187<Inputs!$D135,Inputs!$E134,""),"") ->  | AF152: =IF(Inputs!AE$187>=Inputs!$D134,IF(Inputs!AE$187<Inputs!$D135,Inputs!$E134,""),"") ->  | AG152: =IF(Inputs!AF$187>=Inputs!$D134,IF(Inputs!AF$187<Inputs!$D135,Inputs!$E134,""),"") ->  | AH152: =IF(Inputs!AG$187>=Inputs!$D134,IF(Inputs!AG$187<Inputs!$D135,Inputs!$E134,""),"") ->  | AI152: =IF(Inputs!AH$187>=Inputs!$D134,IF(Inputs!AH$187<Inputs!$D135,Inputs!$E134,""),"") ->  | AJ152: =IF(Inputs!AI$187>=Inputs!$D134,IF(Inputs!AI$187<Inputs!$D135,Inputs!$E134,""),"") ->  | AK152: =IF(Inputs!AJ$187>=Inputs!$D134,IF(Inputs!AJ$187<Inputs!$D135,Inputs!$E134,""),"") ->  | AL152: =IF(Inputs!AK$187>=Inputs!$D134,IF(Inputs!AK$187<Inputs!$D135,Inputs!$E134,""),"") ->  | AM152: =IF(Inputs!AL$187>=Inputs!$D134,IF(Inputs!AL$187<Inputs!$D135,Inputs!$E134,""),"") ->  | AN152: =IF(Inputs!AM$187>=Inputs!$D134,IF(Inputs!AM$187<Inputs!$D135,Inputs!$E134,""),"") ->  | AO152: =IF(Inputs!AN$187>=Inputs!$D134,IF(Inputs!AN$187<Inputs!$D135,Inputs!$E134,""),"") ->  | AP152: =IF(Inputs!AO$187>=Inputs!$D134,IF(Inputs!AO$187<Inputs!$D135,Inputs!$E134,""),"") ->  | AQ152: =IF(Inputs!AP$187>=Inputs!$D134,IF(Inputs!AP$187<Inputs!$D135,Inputs!$E134,""),"") ->  | AR152: =IF(Inputs!AQ$187>=Inputs!$D134,IF(Inputs!AQ$187<Inputs!$D135,Inputs!$E134,""),"") ->  | AS152: =IF(Inputs!AR$187>=Inputs!$D134,IF(Inputs!AR$187<Inputs!$D135,Inputs!$E134,""),"") ->  | AT152: =IF(Inputs!AS$187>=Inputs!$D134,IF(Inputs!AS$187<Inputs!$D135,Inputs!$E134,""),"") ->  | AU152: =IF(Inputs!AT$187>=Inputs!$D134,IF(Inputs!AT$187<Inputs!$D135,Inputs!$E134,""),"") ->  | AV152: =IF(Inputs!AU$187>=Inputs!$D134,IF(Inputs!AU$187<Inputs!$D135,Inputs!$E134,""),"") ->  | AW152: =IF(Inputs!AV$187>=Inputs!$D134,IF(Inputs!AV$187<Inputs!$D135,Inputs!$E134,""),"") ->  | AX152: =IF(Inputs!AW$187>=Inputs!$D134,IF(Inputs!AW$187<Inputs!$D135,Inputs!$E134,""),"") ->  | AY152: =IF(Inputs!AX$187>=Inputs!$D134,IF(Inputs!AX$187<Inputs!$D135,Inputs!$E134,""),"") ->  | AZ152: =IF(Inputs!AY$187>=Inputs!$D134,IF(Inputs!AY$187<Inputs!$D135,Inputs!$E134,""),"") ->  | BA152: =IF(Inputs!AZ$187>=Inputs!$D134,IF(Inputs!AZ$187<Inputs!$D135,Inputs!$E134,""),"") ->  | BB152: =IF(Inputs!BA$187>=Inputs!$D134,IF(Inputs!BA$187<Inputs!$D135,Inputs!$E134,""),"") ->  | BC152: =IF(Inputs!BB$187>=Inputs!$D134,IF(Inputs!BB$187<Inputs!$D135,Inputs!$E134,""),"") ->  | BD152: =IF(Inputs!BC$187>=Inputs!$D134,IF(Inputs!BC$187<Inputs!$D135,Inputs!$E134,""),"") -> 
D153: Price bracket 10 | E153: % | G153: =IF(Inputs!F$187>=Inputs!$D135,IF(Inputs!F$187<Inputs!$D136,Inputs!$E135,""),"") ->  | H153: =IF(Inputs!G$187>=Inputs!$D135,IF(Inputs!G$187<Inputs!$D136,Inputs!$E135,""),"") ->  | I153: =IF(Inputs!H$187>=Inputs!$D135,IF(Inputs!H$187<Inputs!$D136,Inputs!$E135,""),"") ->  | J153: =IF(Inputs!I$187>=Inputs!$D135,IF(Inputs!I$187<Inputs!$D136,Inputs!$E135,""),"") ->  | K153: =IF(Inputs!J$187>=Inputs!$D135,IF(Inputs!J$187<Inputs!$D136,Inputs!$E135,""),"") ->  | L153: =IF(Inputs!K$187>=Inputs!$D135,IF(Inputs!K$187<Inputs!$D136,Inputs!$E135,""),"") ->  | M153: =IF(Inputs!L$187>=Inputs!$D135,IF(Inputs!L$187<Inputs!$D136,Inputs!$E135,""),"") ->  | N153: =IF(Inputs!M$187>=Inputs!$D135,IF(Inputs!M$187<Inputs!$D136,Inputs!$E135,""),"") ->  | O153: =IF(Inputs!N$187>=Inputs!$D135,IF(Inputs!N$187<Inputs!$D136,Inputs!$E135,""),"") ->  | P153: =IF(Inputs!O$187>=Inputs!$D135,IF(Inputs!O$187<Inputs!$D136,Inputs!$E135,""),"") ->  | Q153: =IF(Inputs!P$187>=Inputs!$D135,IF(Inputs!P$187<Inputs!$D136,Inputs!$E135,""),"") ->  | R153: =IF(Inputs!Q$187>=Inputs!$D135,IF(Inputs!Q$187<Inputs!$D136,Inputs!$E135,""),"") ->  | S153: =IF(Inputs!R$187>=Inputs!$D135,IF(Inputs!R$187<Inputs!$D136,Inputs!$E135,""),"") ->  | T153: =IF(Inputs!S$187>=Inputs!$D135,IF(Inputs!S$187<Inputs!$D136,Inputs!$E135,""),"") ->  | U153: =IF(Inputs!T$187>=Inputs!$D135,IF(Inputs!T$187<Inputs!$D136,Inputs!$E135,""),"") ->  | V153: =IF(Inputs!U$187>=Inputs!$D135,IF(Inputs!U$187<Inputs!$D136,Inputs!$E135,""),"") ->  | W153: =IF(Inputs!V$187>=Inputs!$D135,IF(Inputs!V$187<Inputs!$D136,Inputs!$E135,""),"") ->  | X153: =IF(Inputs!W$187>=Inputs!$D135,IF(Inputs!W$187<Inputs!$D136,Inputs!$E135,""),"") ->  | Y153: =IF(Inputs!X$187>=Inputs!$D135,IF(Inputs!X$187<Inputs!$D136,Inputs!$E135,""),"") ->  | Z153: =IF(Inputs!Y$187>=Inputs!$D135,IF(Inputs!Y$187<Inputs!$D136,Inputs!$E135,""),"") ->  | AA153: =IF(Inputs!Z$187>=Inputs!$D135,IF(Inputs!Z$187<Inputs!$D136,Inputs!$E135,""),"") ->  | AB153: =IF(Inputs!AA$187>=Inputs!$D135,IF(Inputs!AA$187<Inputs!$D136,Inputs!$E135,""),"") ->  | AC153: =IF(Inputs!AB$187>=Inputs!$D135,IF(Inputs!AB$187<Inputs!$D136,Inputs!$E135,""),"") ->  | AD153: =IF(Inputs!AC$187>=Inputs!$D135,IF(Inputs!AC$187<Inputs!$D136,Inputs!$E135,""),"") ->  | AE153: =IF(Inputs!AD$187>=Inputs!$D135,IF(Inputs!AD$187<Inputs!$D136,Inputs!$E135,""),"") ->  | AF153: =IF(Inputs!AE$187>=Inputs!$D135,IF(Inputs!AE$187<Inputs!$D136,Inputs!$E135,""),"") ->  | AG153: =IF(Inputs!AF$187>=Inputs!$D135,IF(Inputs!AF$187<Inputs!$D136,Inputs!$E135,""),"") ->  | AH153: =IF(Inputs!AG$187>=Inputs!$D135,IF(Inputs!AG$187<Inputs!$D136,Inputs!$E135,""),"") ->  | AI153: =IF(Inputs!AH$187>=Inputs!$D135,IF(Inputs!AH$187<Inputs!$D136,Inputs!$E135,""),"") ->  | AJ153: =IF(Inputs!AI$187>=Inputs!$D135,IF(Inputs!AI$187<Inputs!$D136,Inputs!$E135,""),"") ->  | AK153: =IF(Inputs!AJ$187>=Inputs!$D135,IF(Inputs!AJ$187<Inputs!$D136,Inputs!$E135,""),"") ->  | AL153: =IF(Inputs!AK$187>=Inputs!$D135,IF(Inputs!AK$187<Inputs!$D136,Inputs!$E135,""),"") ->  | AM153: =IF(Inputs!AL$187>=Inputs!$D135,IF(Inputs!AL$187<Inputs!$D136,Inputs!$E135,""),"") ->  | AN153: =IF(Inputs!AM$187>=Inputs!$D135,IF(Inputs!AM$187<Inputs!$D136,Inputs!$E135,""),"") ->  | AO153: =IF(Inputs!AN$187>=Inputs!$D135,IF(Inputs!AN$187<Inputs!$D136,Inputs!$E135,""),"") ->  | AP153: =IF(Inputs!AO$187>=Inputs!$D135,IF(Inputs!AO$187<Inputs!$D136,Inputs!$E135,""),"") ->  | AQ153: =IF(Inputs!AP$187>=Inputs!$D135,IF(Inputs!AP$187<Inputs!$D136,Inputs!$E135,""),"") ->  | AR153: =IF(Inputs!AQ$187>=Inputs!$D135,IF(Inputs!AQ$187<Inputs!$D136,Inputs!$E135,""),"") ->  | AS153: =IF(Inputs!AR$187>=Inputs!$D135,IF(Inputs!AR$187<Inputs!$D136,Inputs!$E135,""),"") ->  | AT153: =IF(Inputs!AS$187>=Inputs!$D135,IF(Inputs!AS$187<Inputs!$D136,Inputs!$E135,""),"") ->  | AU153: =IF(Inputs!AT$187>=Inputs!$D135,IF(Inputs!AT$187<Inputs!$D136,Inputs!$E135,""),"") ->  | AV153: =IF(Inputs!AU$187>=Inputs!$D135,IF(Inputs!AU$187<Inputs!$D136,Inputs!$E135,""),"") ->  | AW153: =IF(Inputs!AV$187>=Inputs!$D135,IF(Inputs!AV$187<Inputs!$D136,Inputs!$E135,""),"") ->  | AX153: =IF(Inputs!AW$187>=Inputs!$D135,IF(Inputs!AW$187<Inputs!$D136,Inputs!$E135,""),"") ->  | AY153: =IF(Inputs!AX$187>=Inputs!$D135,IF(Inputs!AX$187<Inputs!$D136,Inputs!$E135,""),"") ->  | AZ153: =IF(Inputs!AY$187>=Inputs!$D135,IF(Inputs!AY$187<Inputs!$D136,Inputs!$E135,""),"") ->  | BA153: =IF(Inputs!AZ$187>=Inputs!$D135,IF(Inputs!AZ$187<Inputs!$D136,Inputs!$E135,""),"") ->  | BB153: =IF(Inputs!BA$187>=Inputs!$D135,IF(Inputs!BA$187<Inputs!$D136,Inputs!$E135,""),"") ->  | BC153: =IF(Inputs!BB$187>=Inputs!$D135,IF(Inputs!BB$187<Inputs!$D136,Inputs!$E135,""),"") ->  | BD153: =IF(Inputs!BC$187>=Inputs!$D135,IF(Inputs!BC$187<Inputs!$D136,Inputs!$E135,""),"") -> 
D154: Price bracket 11 | E154: % | G154: =IF(Inputs!F$187>=Inputs!$D136,IF(Inputs!F$187<Inputs!$D137,Inputs!$E136,""),"") ->  | H154: =IF(Inputs!G$187>=Inputs!$D136,IF(Inputs!G$187<Inputs!$D137,Inputs!$E136,""),"") ->  | I154: =IF(Inputs!H$187>=Inputs!$D136,IF(Inputs!H$187<Inputs!$D137,Inputs!$E136,""),"") ->  | J154: =IF(Inputs!I$187>=Inputs!$D136,IF(Inputs!I$187<Inputs!$D137,Inputs!$E136,""),"") ->  | K154: =IF(Inputs!J$187>=Inputs!$D136,IF(Inputs!J$187<Inputs!$D137,Inputs!$E136,""),"") ->  | L154: =IF(Inputs!K$187>=Inputs!$D136,IF(Inputs!K$187<Inputs!$D137,Inputs!$E136,""),"") ->  | M154: =IF(Inputs!L$187>=Inputs!$D136,IF(Inputs!L$187<Inputs!$D137,Inputs!$E136,""),"") ->  | N154: =IF(Inputs!M$187>=Inputs!$D136,IF(Inputs!M$187<Inputs!$D137,Inputs!$E136,""),"") ->  | O154: =IF(Inputs!N$187>=Inputs!$D136,IF(Inputs!N$187<Inputs!$D137,Inputs!$E136,""),"") ->  | P154: =IF(Inputs!O$187>=Inputs!$D136,IF(Inputs!O$187<Inputs!$D137,Inputs!$E136,""),"") ->  | Q154: =IF(Inputs!P$187>=Inputs!$D136,IF(Inputs!P$187<Inputs!$D137,Inputs!$E136,""),"") ->  | R154: =IF(Inputs!Q$187>=Inputs!$D136,IF(Inputs!Q$187<Inputs!$D137,Inputs!$E136,""),"") ->  | S154: =IF(Inputs!R$187>=Inputs!$D136,IF(Inputs!R$187<Inputs!$D137,Inputs!$E136,""),"") ->  | T154: =IF(Inputs!S$187>=Inputs!$D136,IF(Inputs!S$187<Inputs!$D137,Inputs!$E136,""),"") ->  | U154: =IF(Inputs!T$187>=Inputs!$D136,IF(Inputs!T$187<Inputs!$D137,Inputs!$E136,""),"") ->  | V154: =IF(Inputs!U$187>=Inputs!$D136,IF(Inputs!U$187<Inputs!$D137,Inputs!$E136,""),"") ->  | W154: =IF(Inputs!V$187>=Inputs!$D136,IF(Inputs!V$187<Inputs!$D137,Inputs!$E136,""),"") ->  | X154: =IF(Inputs!W$187>=Inputs!$D136,IF(Inputs!W$187<Inputs!$D137,Inputs!$E136,""),"") ->  | Y154: =IF(Inputs!X$187>=Inputs!$D136,IF(Inputs!X$187<Inputs!$D137,Inputs!$E136,""),"") ->  | Z154: =IF(Inputs!Y$187>=Inputs!$D136,IF(Inputs!Y$187<Inputs!$D137,Inputs!$E136,""),"") ->  | AA154: =IF(Inputs!Z$187>=Inputs!$D136,IF(Inputs!Z$187<Inputs!$D137,Inputs!$E136,""),"") ->  | AB154: =IF(Inputs!AA$187>=Inputs!$D136,IF(Inputs!AA$187<Inputs!$D137,Inputs!$E136,""),"") ->  | AC154: =IF(Inputs!AB$187>=Inputs!$D136,IF(Inputs!AB$187<Inputs!$D137,Inputs!$E136,""),"") ->  | AD154: =IF(Inputs!AC$187>=Inputs!$D136,IF(Inputs!AC$187<Inputs!$D137,Inputs!$E136,""),"") ->  | AE154: =IF(Inputs!AD$187>=Inputs!$D136,IF(Inputs!AD$187<Inputs!$D137,Inputs!$E136,""),"") ->  | AF154: =IF(Inputs!AE$187>=Inputs!$D136,IF(Inputs!AE$187<Inputs!$D137,Inputs!$E136,""),"") ->  | AG154: =IF(Inputs!AF$187>=Inputs!$D136,IF(Inputs!AF$187<Inputs!$D137,Inputs!$E136,""),"") ->  | AH154: =IF(Inputs!AG$187>=Inputs!$D136,IF(Inputs!AG$187<Inputs!$D137,Inputs!$E136,""),"") ->  | AI154: =IF(Inputs!AH$187>=Inputs!$D136,IF(Inputs!AH$187<Inputs!$D137,Inputs!$E136,""),"") ->  | AJ154: =IF(Inputs!AI$187>=Inputs!$D136,IF(Inputs!AI$187<Inputs!$D137,Inputs!$E136,""),"") ->  | AK154: =IF(Inputs!AJ$187>=Inputs!$D136,IF(Inputs!AJ$187<Inputs!$D137,Inputs!$E136,""),"") ->  | AL154: =IF(Inputs!AK$187>=Inputs!$D136,IF(Inputs!AK$187<Inputs!$D137,Inputs!$E136,""),"") ->  | AM154: =IF(Inputs!AL$187>=Inputs!$D136,IF(Inputs!AL$187<Inputs!$D137,Inputs!$E136,""),"") ->  | AN154: =IF(Inputs!AM$187>=Inputs!$D136,IF(Inputs!AM$187<Inputs!$D137,Inputs!$E136,""),"") ->  | AO154: =IF(Inputs!AN$187>=Inputs!$D136,IF(Inputs!AN$187<Inputs!$D137,Inputs!$E136,""),"") ->  | AP154: =IF(Inputs!AO$187>=Inputs!$D136,IF(Inputs!AO$187<Inputs!$D137,Inputs!$E136,""),"") ->  | AQ154: =IF(Inputs!AP$187>=Inputs!$D136,IF(Inputs!AP$187<Inputs!$D137,Inputs!$E136,""),"") ->  | AR154: =IF(Inputs!AQ$187>=Inputs!$D136,IF(Inputs!AQ$187<Inputs!$D137,Inputs!$E136,""),"") ->  | AS154: =IF(Inputs!AR$187>=Inputs!$D136,IF(Inputs!AR$187<Inputs!$D137,Inputs!$E136,""),"") ->  | AT154: =IF(Inputs!AS$187>=Inputs!$D136,IF(Inputs!AS$187<Inputs!$D137,Inputs!$E136,""),"") ->  | AU154: =IF(Inputs!AT$187>=Inputs!$D136,IF(Inputs!AT$187<Inputs!$D137,Inputs!$E136,""),"") ->  | AV154: =IF(Inputs!AU$187>=Inputs!$D136,IF(Inputs!AU$187<Inputs!$D137,Inputs!$E136,""),"") ->  | AW154: =IF(Inputs!AV$187>=Inputs!$D136,IF(Inputs!AV$187<Inputs!$D137,Inputs!$E136,""),"") ->  | AX154: =IF(Inputs!AW$187>=Inputs!$D136,IF(Inputs!AW$187<Inputs!$D137,Inputs!$E136,""),"") ->  | AY154: =IF(Inputs!AX$187>=Inputs!$D136,IF(Inputs!AX$187<Inputs!$D137,Inputs!$E136,""),"") ->  | AZ154: =IF(Inputs!AY$187>=Inputs!$D136,IF(Inputs!AY$187<Inputs!$D137,Inputs!$E136,""),"") ->  | BA154: =IF(Inputs!AZ$187>=Inputs!$D136,IF(Inputs!AZ$187<Inputs!$D137,Inputs!$E136,""),"") ->  | BB154: =IF(Inputs!BA$187>=Inputs!$D136,IF(Inputs!BA$187<Inputs!$D137,Inputs!$E136,""),"") ->  | BC154: =IF(Inputs!BB$187>=Inputs!$D136,IF(Inputs!BB$187<Inputs!$D137,Inputs!$E136,""),"") ->  | BD154: =IF(Inputs!BC$187>=Inputs!$D136,IF(Inputs!BC$187<Inputs!$D137,Inputs!$E136,""),"") -> 
D155: Price bracket 12 | E155: % | G155: =IF(Inputs!F$187>=Inputs!$D137,IF(Inputs!F$187<Inputs!$D138,Inputs!$E137,""),"") ->  | H155: =IF(Inputs!G$187>=Inputs!$D137,IF(Inputs!G$187<Inputs!$D138,Inputs!$E137,""),"") ->  | I155: =IF(Inputs!H$187>=Inputs!$D137,IF(Inputs!H$187<Inputs!$D138,Inputs!$E137,""),"") ->  | J155: =IF(Inputs!I$187>=Inputs!$D137,IF(Inputs!I$187<Inputs!$D138,Inputs!$E137,""),"") ->  | K155: =IF(Inputs!J$187>=Inputs!$D137,IF(Inputs!J$187<Inputs!$D138,Inputs!$E137,""),"") ->  | L155: =IF(Inputs!K$187>=Inputs!$D137,IF(Inputs!K$187<Inputs!$D138,Inputs!$E137,""),"") ->  | M155: =IF(Inputs!L$187>=Inputs!$D137,IF(Inputs!L$187<Inputs!$D138,Inputs!$E137,""),"") ->  | N155: =IF(Inputs!M$187>=Inputs!$D137,IF(Inputs!M$187<Inputs!$D138,Inputs!$E137,""),"") ->  | O155: =IF(Inputs!N$187>=Inputs!$D137,IF(Inputs!N$187<Inputs!$D138,Inputs!$E137,""),"") ->  | P155: =IF(Inputs!O$187>=Inputs!$D137,IF(Inputs!O$187<Inputs!$D138,Inputs!$E137,""),"") ->  | Q155: =IF(Inputs!P$187>=Inputs!$D137,IF(Inputs!P$187<Inputs!$D138,Inputs!$E137,""),"") ->  | R155: =IF(Inputs!Q$187>=Inputs!$D137,IF(Inputs!Q$187<Inputs!$D138,Inputs!$E137,""),"") ->  | S155: =IF(Inputs!R$187>=Inputs!$D137,IF(Inputs!R$187<Inputs!$D138,Inputs!$E137,""),"") ->  | T155: =IF(Inputs!S$187>=Inputs!$D137,IF(Inputs!S$187<Inputs!$D138,Inputs!$E137,""),"") ->  | U155: =IF(Inputs!T$187>=Inputs!$D137,IF(Inputs!T$187<Inputs!$D138,Inputs!$E137,""),"") ->  | V155: =IF(Inputs!U$187>=Inputs!$D137,IF(Inputs!U$187<Inputs!$D138,Inputs!$E137,""),"") ->  | W155: =IF(Inputs!V$187>=Inputs!$D137,IF(Inputs!V$187<Inputs!$D138,Inputs!$E137,""),"") ->  | X155: =IF(Inputs!W$187>=Inputs!$D137,IF(Inputs!W$187<Inputs!$D138,Inputs!$E137,""),"") ->  | Y155: =IF(Inputs!X$187>=Inputs!$D137,IF(Inputs!X$187<Inputs!$D138,Inputs!$E137,""),"") ->  | Z155: =IF(Inputs!Y$187>=Inputs!$D137,IF(Inputs!Y$187<Inputs!$D138,Inputs!$E137,""),"") ->  | AA155: =IF(Inputs!Z$187>=Inputs!$D137,IF(Inputs!Z$187<Inputs!$D138,Inputs!$E137,""),"") ->  | AB155: =IF(Inputs!AA$187>=Inputs!$D137,IF(Inputs!AA$187<Inputs!$D138,Inputs!$E137,""),"") ->  | AC155: =IF(Inputs!AB$187>=Inputs!$D137,IF(Inputs!AB$187<Inputs!$D138,Inputs!$E137,""),"") ->  | AD155: =IF(Inputs!AC$187>=Inputs!$D137,IF(Inputs!AC$187<Inputs!$D138,Inputs!$E137,""),"") ->  | AE155: =IF(Inputs!AD$187>=Inputs!$D137,IF(Inputs!AD$187<Inputs!$D138,Inputs!$E137,""),"") ->  | AF155: =IF(Inputs!AE$187>=Inputs!$D137,IF(Inputs!AE$187<Inputs!$D138,Inputs!$E137,""),"") ->  | AG155: =IF(Inputs!AF$187>=Inputs!$D137,IF(Inputs!AF$187<Inputs!$D138,Inputs!$E137,""),"") ->  | AH155: =IF(Inputs!AG$187>=Inputs!$D137,IF(Inputs!AG$187<Inputs!$D138,Inputs!$E137,""),"") ->  | AI155: =IF(Inputs!AH$187>=Inputs!$D137,IF(Inputs!AH$187<Inputs!$D138,Inputs!$E137,""),"") ->  | AJ155: =IF(Inputs!AI$187>=Inputs!$D137,IF(Inputs!AI$187<Inputs!$D138,Inputs!$E137,""),"") ->  | AK155: =IF(Inputs!AJ$187>=Inputs!$D137,IF(Inputs!AJ$187<Inputs!$D138,Inputs!$E137,""),"") ->  | AL155: =IF(Inputs!AK$187>=Inputs!$D137,IF(Inputs!AK$187<Inputs!$D138,Inputs!$E137,""),"") ->  | AM155: =IF(Inputs!AL$187>=Inputs!$D137,IF(Inputs!AL$187<Inputs!$D138,Inputs!$E137,""),"") ->  | AN155: =IF(Inputs!AM$187>=Inputs!$D137,IF(Inputs!AM$187<Inputs!$D138,Inputs!$E137,""),"") ->  | AO155: =IF(Inputs!AN$187>=Inputs!$D137,IF(Inputs!AN$187<Inputs!$D138,Inputs!$E137,""),"") ->  | AP155: =IF(Inputs!AO$187>=Inputs!$D137,IF(Inputs!AO$187<Inputs!$D138,Inputs!$E137,""),"") ->  | AQ155: =IF(Inputs!AP$187>=Inputs!$D137,IF(Inputs!AP$187<Inputs!$D138,Inputs!$E137,""),"") ->  | AR155: =IF(Inputs!AQ$187>=Inputs!$D137,IF(Inputs!AQ$187<Inputs!$D138,Inputs!$E137,""),"") ->  | AS155: =IF(Inputs!AR$187>=Inputs!$D137,IF(Inputs!AR$187<Inputs!$D138,Inputs!$E137,""),"") ->  | AT155: =IF(Inputs!AS$187>=Inputs!$D137,IF(Inputs!AS$187<Inputs!$D138,Inputs!$E137,""),"") ->  | AU155: =IF(Inputs!AT$187>=Inputs!$D137,IF(Inputs!AT$187<Inputs!$D138,Inputs!$E137,""),"") ->  | AV155: =IF(Inputs!AU$187>=Inputs!$D137,IF(Inputs!AU$187<Inputs!$D138,Inputs!$E137,""),"") ->  | AW155: =IF(Inputs!AV$187>=Inputs!$D137,IF(Inputs!AV$187<Inputs!$D138,Inputs!$E137,""),"") ->  | AX155: =IF(Inputs!AW$187>=Inputs!$D137,IF(Inputs!AW$187<Inputs!$D138,Inputs!$E137,""),"") ->  | AY155: =IF(Inputs!AX$187>=Inputs!$D137,IF(Inputs!AX$187<Inputs!$D138,Inputs!$E137,""),"") ->  | AZ155: =IF(Inputs!AY$187>=Inputs!$D137,IF(Inputs!AY$187<Inputs!$D138,Inputs!$E137,""),"") ->  | BA155: =IF(Inputs!AZ$187>=Inputs!$D137,IF(Inputs!AZ$187<Inputs!$D138,Inputs!$E137,""),"") ->  | BB155: =IF(Inputs!BA$187>=Inputs!$D137,IF(Inputs!BA$187<Inputs!$D138,Inputs!$E137,""),"") ->  | BC155: =IF(Inputs!BB$187>=Inputs!$D137,IF(Inputs!BB$187<Inputs!$D138,Inputs!$E137,""),"") ->  | BD155: =IF(Inputs!BC$187>=Inputs!$D137,IF(Inputs!BC$187<Inputs!$D138,Inputs!$E137,""),"") -> 
D156: Price bracket 13 | E156: % | G156: =IF(Inputs!F$187>=Inputs!$D138,IF(Inputs!F$187<Inputs!$D139,Inputs!$E138,""),"") ->  | H156: =IF(Inputs!G$187>=Inputs!$D138,IF(Inputs!G$187<Inputs!$D139,Inputs!$E138,""),"") ->  | I156: =IF(Inputs!H$187>=Inputs!$D138,IF(Inputs!H$187<Inputs!$D139,Inputs!$E138,""),"") ->  | J156: =IF(Inputs!I$187>=Inputs!$D138,IF(Inputs!I$187<Inputs!$D139,Inputs!$E138,""),"") ->  | K156: =IF(Inputs!J$187>=Inputs!$D138,IF(Inputs!J$187<Inputs!$D139,Inputs!$E138,""),"") ->  | L156: =IF(Inputs!K$187>=Inputs!$D138,IF(Inputs!K$187<Inputs!$D139,Inputs!$E138,""),"") ->  | M156: =IF(Inputs!L$187>=Inputs!$D138,IF(Inputs!L$187<Inputs!$D139,Inputs!$E138,""),"") ->  | N156: =IF(Inputs!M$187>=Inputs!$D138,IF(Inputs!M$187<Inputs!$D139,Inputs!$E138,""),"") ->  | O156: =IF(Inputs!N$187>=Inputs!$D138,IF(Inputs!N$187<Inputs!$D139,Inputs!$E138,""),"") ->  | P156: =IF(Inputs!O$187>=Inputs!$D138,IF(Inputs!O$187<Inputs!$D139,Inputs!$E138,""),"") ->  | Q156: =IF(Inputs!P$187>=Inputs!$D138,IF(Inputs!P$187<Inputs!$D139,Inputs!$E138,""),"") ->  | R156: =IF(Inputs!Q$187>=Inputs!$D138,IF(Inputs!Q$187<Inputs!$D139,Inputs!$E138,""),"") ->  | S156: =IF(Inputs!R$187>=Inputs!$D138,IF(Inputs!R$187<Inputs!$D139,Inputs!$E138,""),"") ->  | T156: =IF(Inputs!S$187>=Inputs!$D138,IF(Inputs!S$187<Inputs!$D139,Inputs!$E138,""),"") ->  | U156: =IF(Inputs!T$187>=Inputs!$D138,IF(Inputs!T$187<Inputs!$D139,Inputs!$E138,""),"") ->  | V156: =IF(Inputs!U$187>=Inputs!$D138,IF(Inputs!U$187<Inputs!$D139,Inputs!$E138,""),"") ->  | W156: =IF(Inputs!V$187>=Inputs!$D138,IF(Inputs!V$187<Inputs!$D139,Inputs!$E138,""),"") ->  | X156: =IF(Inputs!W$187>=Inputs!$D138,IF(Inputs!W$187<Inputs!$D139,Inputs!$E138,""),"") ->  | Y156: =IF(Inputs!X$187>=Inputs!$D138,IF(Inputs!X$187<Inputs!$D139,Inputs!$E138,""),"") ->  | Z156: =IF(Inputs!Y$187>=Inputs!$D138,IF(Inputs!Y$187<Inputs!$D139,Inputs!$E138,""),"") ->  | AA156: =IF(Inputs!Z$187>=Inputs!$D138,IF(Inputs!Z$187<Inputs!$D139,Inputs!$E138,""),"") ->  | AB156: =IF(Inputs!AA$187>=Inputs!$D138,IF(Inputs!AA$187<Inputs!$D139,Inputs!$E138,""),"") ->  | AC156: =IF(Inputs!AB$187>=Inputs!$D138,IF(Inputs!AB$187<Inputs!$D139,Inputs!$E138,""),"") ->  | AD156: =IF(Inputs!AC$187>=Inputs!$D138,IF(Inputs!AC$187<Inputs!$D139,Inputs!$E138,""),"") ->  | AE156: =IF(Inputs!AD$187>=Inputs!$D138,IF(Inputs!AD$187<Inputs!$D139,Inputs!$E138,""),"") ->  | AF156: =IF(Inputs!AE$187>=Inputs!$D138,IF(Inputs!AE$187<Inputs!$D139,Inputs!$E138,""),"") ->  | AG156: =IF(Inputs!AF$187>=Inputs!$D138,IF(Inputs!AF$187<Inputs!$D139,Inputs!$E138,""),"") ->  | AH156: =IF(Inputs!AG$187>=Inputs!$D138,IF(Inputs!AG$187<Inputs!$D139,Inputs!$E138,""),"") ->  | AI156: =IF(Inputs!AH$187>=Inputs!$D138,IF(Inputs!AH$187<Inputs!$D139,Inputs!$E138,""),"") ->  | AJ156: =IF(Inputs!AI$187>=Inputs!$D138,IF(Inputs!AI$187<Inputs!$D139,Inputs!$E138,""),"") ->  | AK156: =IF(Inputs!AJ$187>=Inputs!$D138,IF(Inputs!AJ$187<Inputs!$D139,Inputs!$E138,""),"") ->  | AL156: =IF(Inputs!AK$187>=Inputs!$D138,IF(Inputs!AK$187<Inputs!$D139,Inputs!$E138,""),"") ->  | AM156: =IF(Inputs!AL$187>=Inputs!$D138,IF(Inputs!AL$187<Inputs!$D139,Inputs!$E138,""),"") ->  | AN156: =IF(Inputs!AM$187>=Inputs!$D138,IF(Inputs!AM$187<Inputs!$D139,Inputs!$E138,""),"") ->  | AO156: =IF(Inputs!AN$187>=Inputs!$D138,IF(Inputs!AN$187<Inputs!$D139,Inputs!$E138,""),"") ->  | AP156: =IF(Inputs!AO$187>=Inputs!$D138,IF(Inputs!AO$187<Inputs!$D139,Inputs!$E138,""),"") ->  | AQ156: =IF(Inputs!AP$187>=Inputs!$D138,IF(Inputs!AP$187<Inputs!$D139,Inputs!$E138,""),"") ->  | AR156: =IF(Inputs!AQ$187>=Inputs!$D138,IF(Inputs!AQ$187<Inputs!$D139,Inputs!$E138,""),"") ->  | AS156: =IF(Inputs!AR$187>=Inputs!$D138,IF(Inputs!AR$187<Inputs!$D139,Inputs!$E138,""),"") ->  | AT156: =IF(Inputs!AS$187>=Inputs!$D138,IF(Inputs!AS$187<Inputs!$D139,Inputs!$E138,""),"") ->  | AU156: =IF(Inputs!AT$187>=Inputs!$D138,IF(Inputs!AT$187<Inputs!$D139,Inputs!$E138,""),"") ->  | AV156: =IF(Inputs!AU$187>=Inputs!$D138,IF(Inputs!AU$187<Inputs!$D139,Inputs!$E138,""),"") ->  | AW156: =IF(Inputs!AV$187>=Inputs!$D138,IF(Inputs!AV$187<Inputs!$D139,Inputs!$E138,""),"") ->  | AX156: =IF(Inputs!AW$187>=Inputs!$D138,IF(Inputs!AW$187<Inputs!$D139,Inputs!$E138,""),"") ->  | AY156: =IF(Inputs!AX$187>=Inputs!$D138,IF(Inputs!AX$187<Inputs!$D139,Inputs!$E138,""),"") ->  | AZ156: =IF(Inputs!AY$187>=Inputs!$D138,IF(Inputs!AY$187<Inputs!$D139,Inputs!$E138,""),"") ->  | BA156: =IF(Inputs!AZ$187>=Inputs!$D138,IF(Inputs!AZ$187<Inputs!$D139,Inputs!$E138,""),"") ->  | BB156: =IF(Inputs!BA$187>=Inputs!$D138,IF(Inputs!BA$187<Inputs!$D139,Inputs!$E138,""),"") ->  | BC156: =IF(Inputs!BB$187>=Inputs!$D138,IF(Inputs!BB$187<Inputs!$D139,Inputs!$E138,""),"") ->  | BD156: =IF(Inputs!BC$187>=Inputs!$D138,IF(Inputs!BC$187<Inputs!$D139,Inputs!$E138,""),"") -> 
